Workbook

Sheet Velkomst

Sheet Tabel 1 S
A1: Tabel 1. Forsikrede medlemmer
A4: Sjælland
B6: 0
B7: 0 | C7: Mænd | D7: 0 | E7: Kvinder | F7: 0 | G7: I alt
B8: 0
A9: Civ. ing. | B9: 0 | C9: 1725 | D9: 0 | E9: 647 | F9: 0 | G9: 2372
A10: Diplom ing. | B10: 0 | C10: 3193 | D10: 0 | E10: 765 | F10: 0 | G10: 3958
A11: Cand. Scient. Tek. | B11: 0 | C11: 706 | D11: 0 | E11: 659 | F11: 0 | G11: 1365
A12: MA. Hum. | B12: 0 | C12: 982 | D12: 0 | E12: 2301 | F12: 0 | G12: 3283
A13: MA. Nat. | B13: 0 | C13: 721 | D13: 0 | E13: 741 | F13: 0 | G13: 1462
A14: MA. Ph.d. | B14: 0 | C14: 87 | D14: 0 | E14: 70 | F14: 0 | G14: 157
A15: MA. Samf. | B15: 0 | C15: 120 | D15: 0 | E15: 315 | F15: 0 | G15: 435
A16: Øvrige Mag. | B16: 0 | C16: 84 | D16: 0 | E16: 182 | F16: 0 | G16: 266
A17: Agronom | B17: 0 | C17: 203 | D17: 0 | E17: 243 | F17: 0 | G17: 446
A18: Landsk. Arkt. | B18: 0 | C18: 25 | D18: 0 | E18: 68 | F18: 0 | G18: 93
A19: Hortonom | B19: 0 | C19: 18 | D19: 0 | E19: 35 | F19: 0 | G19: 53
A20: Forstkand. | B20: 0 | C20: 61 | D20: 0 | E20: 19 | F20: 0 | G20: 80
A21: Jordbrugsakad. | B21: 0 | C21: 307 | D21: 0 | E21: 365 | F21: 0 | G21: 672
A22: Mejeriing. | B22: 0 | C22: 17 | D22: 0 | E22: 24 | F22: 0 | G22: 41
A23: Levn.m.kand. | B23: 0 | C23: 10 | D23: 0 | E23: 54 | F23: 0 | G23: 64
A24: Dyrlæge | B24: 0 | C24: 77 | D24: 0 | E24: 345 | F24: 0 | G24: 422
A25: Farmaceut | B25: 0 | C25: 141 | D25: 0 | E25: 456 | F25: 0 | G25: 597
A26: Læge | B26: 0 | C26: 223 | D26: 0 | E26: 508 | F26: 0 | G26: 731
A27: Tandlæge | B27: 0 | C27: 28 | D27: 0 | E27: 150 | F27: 0 | G27: 178
A28: Arkitekt | B28: 0 | C28: 108 | D28: 0 | E28: 141 | F28: 0 | G28: 249
A29: Landinspek. | B29: 0 | C29: 49 | D29: 0 | E29: 21 | F29: 0 | G29: 70
A30: Bibliotekar | B30: 0 | C30: 100 | D30: 0 | E30: 284 | F30: 0 | G30: 384
A31: Musikudd. | B31: 0 | C31: 37 | D31: 0 | E31: 64 | F31: 0 | G31: 101
A32: Teolog | B32: 0 | C32: 77 | D32: 0 | E32: 144 | F32: 0 | G32: 221
A33: Psykolog | B33: 0 | C33: 103 | D33: 0 | E33: 521 | F33: 0 | G33: 624
A34: Jurist | B34: 0 | C34: 347 | D34: 0 | E34: 855 | F34: 0 | G34: 1202
A35: Økonom | B35: 0 | C35: 335 | D35: 0 | E35: 272 | F35: 0 | G35: 607
A36: Samf. Adm. | B36: 0 | C36: 861 | D36: 0 | E36: 1269 | F36: 0 | G36: 2130
A37: Cand. Merc. | B37: 0 | C37: 1201 | D37: 0 | E37: 1175 | F37: 0 | G37: 2376
A38: HA | B38: 0 | C38: 316 | D38: 0 | E38: 266 | F38: 0 | G38: 582
A39: HD | B39: 0 | C39: 308 | D39: 0 | E39: 216 | F39: 0 | G39: 524
A40: Komm. og Sprog | B40: 0 | C40: 65 | D40: 0 | E40: 555 | F40: 0 | G40: 620
A41: Bygningskonst. | B41: 0 | C41: 1078 | D41: 0 | E41: 185 | F41: 0 | G41: 1263
A42: Cand. IT. | B42: 0 | C42: 131 | D42: 0 | E42: 106 | F42: 0 | G42: 237
A43: Bac. Samf. | B43: 0 | C43: 48 | D43: 0 | E43: 53 | F43: 0 | G43: 101
A44: Bac. Hum. | B44: 0 | C44: 103 | D44: 0 | E44: 191 | F44: 0 | G44: 294
A45: Bac. Nat. | B45: 0 | C45: 178 | D45: 0 | E45: 88 | F45: 0 | G45: 266
A46: Andre | B46: 0 | C46: 1002 | D46: 0 | E46: 897 | F46: 0 | G46: 1899
A48: Total | B48: 0 | C48: 14868 | D48: 0 | E48: 14885 | F48: 0 | G48: 29753
A50: Ingeniører i alt | B50: 0 | C50: 4918 | D50: 0 | E50: 1412 | F50: 0 | G50: 6330
A51: Magistre i alt | B51: 0 | C51: 1994 | D51: 0 | E51: 3609 | F51: 0 | G51: 5603
A52: DJØF'ere i alt | B52: 0 | C52: 3060 | D52: 0 | E52: 3837 | F52: 0 | G52: 6897
A58: Greve | B58: 0
B59: 0
B60: 0 | C60: Mænd | D60: 0 | E60: Kvinder | F60: 0 | G60: I alt
B61: 0
A62: Civ. ing. | B62: 0 | C62: 139 | D62: 0 | E62: 57 | F62: 0 | G62: 196
A63: Diplom ing. | B63: 0 | C63: 298 | D63: 0 | E63: 67 | F63: 0 | G63: 365
A64: Cand. Scient. Tek. | B64: 0 | C64: 48 | D64: 0 | E64: 44 | F64: 0 | G64: 92
A65: MA. Hum. | B65: 0 | C65: 32 | D65: 0 | E65: 111 | F65: 0 | G65: 143
A66: MA. Nat. | B66: 0 | C66: 41 | D66: 0 | E66: 36 | F66: 0 | G66: 77
A67: MA. Ph.d. | B67: 0 | C67: 3 | D67: 0 | E67: 7 | F67: 0 | G67: 10
A68: MA. Samf. | B68: 0 | C68: 6 | D68: 0 | E68: 10 | F68: 0 | G68: 16
A69: Øvrige Mag. | B69: 0 | C69: 3 | D69: 0 | E69: 16 | F69: 0 | G69: 19
A70: Agronom | B70: 0 | C70: 5 | D70: 0 | E70: 11 | F70: 0 | G70: 16
A71: Landsk. Arkt. | B71: 0 | C71: 2 | D71: 0 | E71: 2 | F71: 0 | G71: 4
A72: Hortonom | B72: 0 | C72: 0 | D72: 0 | E72: 2 | F72: 0 | G72: 2
A73: Forstkand. | B73: 0 | C73: 0 | D73: 0 | E73: 0 | F73: 0 | G73: 0
A74: Jordbrugsakad. | B74: 0 | C74: 7 | D74: 0 | E74: 15 | F74: 0 | G74: 22
A75: Mejeriing. | B75: 0 | C75: 0 | D75: 0 | E75: 1 | F75: 0 | G75: 1
A76: Levn.m.kand. | B76: 0 | C76: 0 | D76: 0 | E76: 2 | F76: 0 | G76: 2
A77: Dyrlæge | B77: 0 | C77: 4 | D77: 0 | E77: 11 | F77: 0 | G77: 15
A78: Farmaceut | B78: 0 | C78: 16 | D78: 0 | E78: 50 | F78: 0 | G78: 66
A79: Læge | B79: 0 | C79: 10 | D79: 0 | E79: 32 | F79: 0 | G79: 42
A80: Tandlæge | B80: 0 | C80: 2 | D80: 0 | E80: 17 | F80: 0 | G80: 19
A81: Arkitekt | B81: 0 | C81: 3 | D81: 0 | E81: 11 | F81: 0 | G81: 14
A82: Landinspek. | B82: 0 | C82: 2 | D82: 0 | E82: 3 | F82: 0 | G82: 5
A83: Bibliotekar | B83: 0 | C83: 5 | D83: 0 | E83: 17 | F83: 0 | G83: 22
A84: Musikudd. | B84: 0 | C84: 1 | D84: 0 | E84: 3 | F84: 0 | G84: 4
A85: Teolog | B85: 0 | C85: 5 | D85: 0 | E85: 10 | F85: 0 | G85: 15
A86: Psykolog | B86: 0 | C86: 5 | D86: 0 | E86: 23 | F86: 0 | G86: 28
A87: Jurist | B87: 0 | C87: 38 | D87: 0 | E87: 87 | F87: 0 | G87: 125
A88: Økonom | B88: 0 | C88: 31 | D88: 0 | E88: 25 | F88: 0 | G88: 56
A89: Samf. Adm. | B89: 0 | C89: 59 | D89: 0 | E89: 73 | F89: 0 | G89: 132
A90: Cand. Merc. | B90: 0 | C90: 147 | D90: 0 | E90: 156 | F90: 0 | G90: 303
A91: HA | B91: 0 | C91: 51 | D91: 0 | E91: 21 | F91: 0 | G91: 72
A92: HD | B92: 0 | C92: 48 | D92: 0 | E92: 28 | F92: 0 | G92: 76
A93: Komm. og Sprog | B93: 0 | C93: 4 | D93: 0 | E93: 54 | F93: 0 | G93: 58
A94: Bygningskonst. | B94: 0 | C94: 72 | D94: 0 | E94: 7 | F94: 0 | G94: 79
A95: Cand. IT. | B95: 0 | C95: 13 | D95: 0 | E95: 9 | F95: 0 | G95: 22
A96: Bac. Samf. | B96: 0 | C96: 4 | D96: 0 | E96: 5 | F96: 0 | G96: 9
A97: Bac. Hum. | B97: 0 | C97: 5 | D97: 0 | E97: 10 | F97: 0 | G97: 15
A98: Bac. Nat. | B98: 0 | C98: 12 | D98: 0 | E98: 5 | F98: 0 | G98: 17
A99: Andre | B99: 0 | C99: 77 | D99: 0 | E99: 82 | F99: 0 | G99: 159
A101: Total | B101: 0 | C101: 1191 | D101: 0 | E101: 1105 | F101: 0 | G101: 2296
A103: Ingeniører i alt | B103: 0 | C103: 437 | D103: 0 | E103: 124 | F103: 0 | G103: 561
A104: Magistre i alt | B104: 0 | C104: 85 | D104: 0 | E104: 180 | F104: 0 | G104: 265
A105: DJØF'ere i alt | B105: 0 | C105: 326 | D105: 0 | E105: 362 | F105: 0 | G105: 688
A112: Køge | B112: 0 | F112: 0
B113: 0 | F113: 0
B114: 0 | C114: Mænd | D114: 0 | E114: Kvinder | F114: 0 | G114: I alt
B115: 0 | F115: 0
A116: Civ. ing. | B116: 0 | C116: 151 | D116: 0 | E116: 53 | F116: 0 | G116: 204
A117: Diplom ing. | B117: 0 | C117: 294 | D117: 0 | E117: 66 | F117: 0 | G117: 360
A118: Cand. Scient. Tek. | B118: 0 | C118: 60 | D118: 0 | E118: 41 | F118: 0 | G118: 101
A119: MA. Hum. | B119: 0 | C119: 66 | D119: 0 | E119: 169 | F119: 0 | G119: 235
A120: MA. Nat. | B120: 0 | C120: 42 | D120: 0 | E120: 62 | F120: 0 | G120: 104
A121: MA. Ph.d. | B121: 0 | C121: 1 | D121: 0 | E121: 5 | F121: 0 | G121: 6
A122: MA. Samf. | B122: 0 | C122: 11 | D122: 0 | E122: 27 | F122: 0 | G122: 38
A123: Øvrige Mag. | B123: 0 | C123: 6 | D123: 0 | E123: 15 | F123: 0 | G123: 21
A124: Agronom | B124: 0 | C124: 15 | D124: 0 | E124: 19 | F124: 0 | G124: 34
A125: Landsk. Arkt. | B125: 0 | C125: 0 | D125: 0 | E125: 7 | F125: 0 | G125: 7
A126: Hortonom | B126: 0 | C126: 2 | D126: 0 | E126: 4 | F126: 0 | G126: 6
A127: Forstkand. | B127: 0 | C127: 3 | D127: 0 | E127: 1 | F127: 0 | G127: 4
A128: Jordbrugsakad. | B128: 0 | C128: 20 | D128: 0 | E128: 31 | F128: 0 | G128: 51
A129: Mejeriing. | B129: 0 | C129: 0 | D129: 0 | E129: 0 | F129: 0 | G129: 0
A130: Levn.m.kand. | B130: 0 | C130: 1 | D130: 0 | E130: 7 | F130: 0 | G130: 8
A131: Dyrlæge | B131: 0 | C131: 7 | D131: 0 | E131: 30 | F131: 0 | G131: 37
A132: Farmaceut | B132: 0 | C132: 10 | D132: 0 | E132: 39 | F132: 0 | G132: 49
A133: Læge | B133: 0 | C133: 22 | D133: 0 | E133: 33 | F133: 0 | G133: 55
A134: Tandlæge | B134: 0 | C134: 2 | D134: 0 | E134: 16 | F134: 0 | G134: 18
A135: Arkitekt | B135: 0 | C135: 6 | D135: 0 | E135: 9 | F135: 0 | G135: 15
A136: Landinspek. | B136: 0 | C136: 4 | D136: 0 | E136: 2 | F136: 0 | G136: 6
A137: Bibliotekar | B137: 0 | C137: 3 | D137: 0 | E137: 26 | F137: 0 | G137: 29
A138: Musikudd. | B138: 0 | C138: 2 | D138: 0 | E138: 4 | F138: 0 | G138: 6
A139: Teolog | B139: 0 | C139: 5 | D139: 0 | E139: 5 | F139: 0 | G139: 10
A140: Psykolog | B140: 0 | C140: 10 | D140: 0 | E140: 50 | F140: 0 | G140: 60
A141: Jurist | B141: 0 | C141: 33 | D141: 0 | E141: 91 | F141: 0 | G141: 124
A142: Økonom | B142: 0 | C142: 45 | D142: 0 | E142: 29 | F142: 0 | G142: 74
A143: Samf. Adm. | B143: 0 | C143: 67 | D143: 0 | E143: 109 | F143: 0 | G143: 176
A144: Cand. Merc. | B144: 0 | C144: 116 | D144: 0 | E144: 128 | F144: 0 | G144: 244
A145: HA | B145: 0 | C145: 24 | D145: 0 | E145: 22 | F145: 0 | G145: 46
A146: HD | B146: 0 | C146: 27 | D146: 0 | E146: 27 | F146: 0 | G146: 54
A147: Komm. og Sprog | B147: 0 | C147: 7 | D147: 0 | E147: 55 | F147: 0 | G147: 62
A148: Bygningskonst. | B148: 0 | C148: 90 | D148: 0 | E148: 16 | F148: 0 | G148: 106
A149: Cand. IT. | B149: 0 | C149: 23 | D149: 0 | E149: 10 | F149: 0 | G149: 33
A150: Bac. Samf. | B150: 0 | C150: 4 | D150: 0 | E150: 4 | F150: 0 | G150: 8
A151: Bac. Hum. | B151: 0 | C151: 8 | D151: 0 | E151: 19 | F151: 0 | G151: 27
A152: Bac. Nat. | B152: 0 | C152: 10 | D152: 0 | E152: 9 | F152: 0 | G152: 19
A153: Andre | B153: 0 | C153: 91 | D153: 0 | E153: 87 | F153: 0 | G153: 178
A155: Total | B155: 0 | C155: 1268 | D155: 0 | E155: 1296 | F155: 0 | G155: 2564
A157: Ingeniører i alt | B157: 0 | C157: 445 | D157: 0 | E157: 119 | F157: 0 | G157: 564
A158: Magistre i alt | B158: 0 | C158: 126 | D158: 0 | E158: 278 | F158: 0 | G158: 404
A159: DJØF'ere i alt | B159: 0 | C159: 285 | D159: 0 | E159: 379 | F159: 0 | G159: 664
A166: Roskilde | B166: 0
B167: 0
B168: 0 | C168: Mænd | D168: 0 | E168: Kvinder | G168: I alt
B169: 0
A170: Civ. ing. | B170: 0 | C170: 533 | D170: 0 | E170: 200 | F170: 0 | G170: 733
A171: Diplom ing. | B171: 0 | C171: 641 | D171: 0 | E171: 174 | F171: 0 | G171: 815
A172: Cand. Scient. Tek. | B172: 0 | C172: 192 | D172: 0 | E172: 173 | F172: 0 | G172: 365
A173: MA. Hum. | B173: 0 | C173: 221 | D173: 0 | E173: 545 | F173: 0 | G173: 766
A174: MA. Nat. | B174: 0 | C174: 201 | D174: 0 | E174: 196 | F174: 0 | G174: 397
A175: MA. Ph.d. | B175: 0 | C175: 36 | D175: 0 | E175: 15 | F175: 0 | G175: 51
A176: MA. Samf. | B176: 0 | C176: 39 | D176: 0 | E176: 78 | F176: 0 | G176: 117
A177: Øvrige Mag. | B177: 0 | C177: 17 | D177: 0 | E177: 41 | F177: 0 | G177: 58
A178: Agronom | B178: 0 | C178: 34 | D178: 0 | E178: 41 | F178: 0 | G178: 75
A179: Landsk. Arkt. | B179: 0 | C179: 3 | D179: 0 | E179: 22 | F179: 0 | G179: 25
A180: Hortonom | B180: 0 | C180: 2 | D180: 0 | E180: 1 | F180: 0 | G180: 3
A181: Forstkand. | B181: 0 | C181: 10 | D181: 0 | E181: 5 | F181: 0 | G181: 15
A182: Jordbrugsakad. | B182: 0 | C182: 49 | D182: 0 | E182: 69 | F182: 0 | G182: 118
A183: Mejeriing. | B183: 0 | C183: 2 | D183: 0 | E183: 2 | F183: 0 | G183: 4
A184: Levn.m.kand. | B184: 0 | C184: 6 | D184: 0 | E184: 13 | F184: 0 | G184: 19
A185: Dyrlæge | B185: 0 | C185: 14 | D185: 0 | E185: 46 | F185: 0 | G185: 60
A186: Farmaceut | B186: 0 | C186: 37 | D186: 0 | E186: 135 | F186: 0 | G186: 172
A187: Læge | B187: 0 | C187: 68 | D187: 0 | E187: 151 | F187: 0 | G187: 219
A188: Tandlæge | B188: 0 | C188: 6 | D188: 0 | E188: 31 | F188: 0 | G188: 37
A189: Arkitekt | B189: 0 | C189: 25 | D189: 0 | E189: 38 | F189: 0 | G189: 63
A190: Landinspek. | B190: 0 | C190: 9 | D190: 0 | E190: 4 | F190: 0 | G190: 13
A191: Bibliotekar | B191: 0 | C191: 21 | D191: 0 | E191: 62 | F191: 0 | G191: 83
A192: Musikudd. | B192: 0 | C192: 4 | D192: 0 | E192: 11 | F192: 0 | G192: 15
A193: Teolog | B193: 0 | C193: 12 | D193: 0 | E193: 17 | F193: 0 | G193: 29
A194: Psykolog | B194: 0 | C194: 20 | D194: 0 | E194: 120 | F194: 0 | G194: 140
A195: Jurist | B195: 0 | C195: 78 | D195: 0 | E195: 188 | F195: 0 | G195: 266
A196: Økonom | B196: 0 | C196: 94 | D196: 0 | E196: 69 | F196: 0 | G196: 163
A197: Samf. Adm. | B197: 0 | C197: 298 | D197: 0 | E197: 383 | F197: 0 | G197: 681
A198: Cand. Merc. | B198: 0 | C198: 288 | D198: 0 | E198: 307 | F198: 0 | G198: 595
A199: HA | B199: 0 | C199: 51 | D199: 0 | E199: 65 | F199: 0 | G199: 116
A200: HD | B200: 0 | C200: 55 | D200: 0 | E200: 42 | F200: 0 | G200: 97
A201: Komm. og Sprog | B201: 0 | C201: 13 | D201: 0 | E201: 108 | F201: 0 | G201: 121
A202: Bygningskonst. | B202: 0 | C202: 124 | D202: 0 | E202: 30 | F202: 0 | G202: 154
A203: Cand. IT. | B203: 0 | C203: 31 | D203: 0 | E203: 32 | F203: 0 | G203: 63
A204: Bac. Samf. | B204: 0 | C204: 10 | D204: 0 | E204: 14 | F204: 0 | G204: 24
A205: Bac. Hum. | B205: 0 | C205: 28 | D205: 0 | E205: 37 | F205: 0 | G205: 65
A206: Bac. Nat. | B206: 0 | C206: 34 | D206: 0 | E206: 10 | F206: 0 | G206: 44
A207: Andre | B207: 0 | C207: 190 | D207: 0 | E207: 216 | F207: 0 | G207: 406
A209: Total | B209: 0 | C209: 3447 | D209: 0 | E209: 3622 | F209: 0 | G209: 7069
A211: Ingeniører i alt | B211: 0 | C211: 1174 | D211: 0 | E211: 374 | F211: 0 | G211: 1548
A212: Magistre i alt | B212: 0 | C212: 514 | D212: 0 | E212: 875 | F212: 0 | G212: 1389
A213: DJØF'ere i alt | B213: 0 | C213: 809 | D213: 0 | E213: 1012 | F213: 0 | G213: 1821
A220: Solrød | B220: 0
B221: 0
B222: 0 | C222: Mænd | D222: 0 | E222: Kvinder | G222: I alt
B223: 0
A224: Civ. ing. | B224: 0 | C224: 97 | D224: 0 | E224: 39 | F224: 0 | G224: 136
A225: Diplom ing. | B225: 0 | C225: 147 | D225: 0 | E225: 33 | F225: 0 | G225: 180
A226: Cand. Scient. Tek. | B226: 0 | C226: 26 | D226: 0 | E226: 31 | F226: 0 | G226: 57
A227: MA. Hum. | B227: 0 | C227: 24 | D227: 0 | E227: 63 | F227: 0 | G227: 87
A228: MA. Nat. | B228: 0 | C228: 21 | D228: 0 | E228: 16 | F228: 0 | G228: 37
A229: MA. Ph.d. | B229: 0 | C229: 2 | D229: 0 | E229: 1 | F229: 0 | G229: 3
A230: MA. Samf. | B230: 0 | C230: 3 | D230: 0 | E230: 15 | F230: 0 | G230: 18
A231: Øvrige Mag. | B231: 0 | C231: 6 | D231: 0 | E231: 5 | F231: 0 | G231: 11
A232: Agronom | B232: 0 | C232: 2 | D232: 0 | E232: 1 | F232: 0 | G232: 3
A233: Landsk. Arkt. | B233: 0 | C233: 0 | D233: 0 | E233: 1 | F233: 0 | G233: 1
A234: Hortonom | B234: 0 | C234: 0 | D234: 0 | E234: 2 | F234: 0 | G234: 2
... 629 more rows

Sheet Tabel 2 S
A1: Tabel 2. Antal bruttoledighedsberørte og gennemsnitlig antal ledige brutto
A3: Sjælland
C5: Mænd | F5: Kvinder | I5: I alt
C6: Ledigheds- berørte | D6: Gns. brutto- ledighed | F6: Ledigheds- berørte | G6: Gns. brutto- ledighed | I6: Ledigheds- berørte | J6: Gns. brutto- ledighed
A9: Civ. ing. | C9: 40 | D9: 35.95334622 | F9: 12 | G9: 10.47963575 | I9: 52 | J9: 46.43298197
A10: Diplom ing. | C10: 57 | D10: 49.46610117 | F10: 18 | G10: 15.35271004 | I10: 75 | J10: 64.8188112
A11: Cand. Scient. Tek. | C11: 30 | D11: 24.88991455 | F11: 30 | G11: 25.72194848 | I11: 60 | J11: 50.61186303
A12: MA. Hum. | C12: 65 | D12: 54.30050521 | F12: 143 | G12: 122.3576374 | I12: 208 | J12: 176.6581426
A13: MA. Nat. | C13: 20 | D13: 16.59265265 | F13: 25 | G13: 21.77508888 | I13: 45 | J13: 38.36774153
A14: MA. Ph.d. | C14: 3 | D14: 2.412524169 | F14: 1 | G14: 0.9998128859 | I14: 4 | J14: 3.412337055
A15: MA. Samf. | C15: 11 | D15: 10.58629078 | F15: 25 | G15: 22.35327138 | I15: 36 | J15: 32.93956215
A16: Øvrige Mag. | C16: 5 | D16: 3.90132851 | F16: 8 | G16: 7.555042724 | I16: 13 | J16: 11.45637123
A17: Agronom | C17: 2 | D17: 1.999625772 | F17: 8 | G17: 7.543192166 | I17: 10 | J17: 9.542817938
A18: Landsk. Arkt. | C18: 0 | D18: 0 | F18: 3 | G18: 2.67323645 | I18: 3 | J18: 2.67323645
A19: Hortonom | C19: 0 | D19: 0 | F19: 0 | G19: 0 | I19: 0 | J19: 0
A20: Forstkand. | C20: 4 | D20: 3.089877128 | F20: 0 | G20: 0 | I20: 4 | J20: 3.089877128
A21: Jordbrugsakad. | C21: 6 | D21: 5.0895029 | F21: 11 | G21: 10.21642862 | I21: 17 | J21: 15.30593152
A22: Mejeriing. | C22: 1 | D22: 0.9998128859 | F22: 0 | G22: 0 | I22: 1 | J22: 0.9998128859
A23: Levn.m.kand. | C23: 0 | D23: 0 | F23: 5 | G23: 3.358697686 | I23: 5 | J23: 3.358697686
A24: Dyrlæge | C24: 1 | D24: 0.8151936631 | F24: 3 | G24: 2.491735795 | I24: 4 | J24: 3.306929458
A25: Farmaceut | C25: 1 | D25: 0.9998128859 | F25: 6 | G25: 5.035239818 | I25: 7 | J25: 6.035052704
A26: Læge | C26: 8 | D26: 7.584357263 | F26: 13 | G26: 11.53121687 | I26: 21 | J26: 19.11557413
A27: Tandlæge | C27: 1 | D27: 0.9998128859 | F27: 1 | G27: 0.9998128859 | I27: 2 | J27: 1.999625772
A28: Arkitekt | C28: 7 | D28: 6.255847315 | F28: 5 | G28: 4.810079212 | I28: 12 | J28: 11.06592653
A29: Landinspek. | C29: 1 | D29: 0.6218424499 | F29: 0 | G29: 0 | I29: 1 | J29: 0.6218424499
A30: Bibliotekar | C30: 4 | D30: 3.753508389 | F30: 15 | G30: 13.40672363 | I30: 19 | J30: 17.16023202
A31: Musikudd. | C31: 0 | D31: 0 | F31: 3 | G31: 1.96282667 | I31: 3 | J31: 1.96282667
A32: Teolog | C32: 3 | D32: 2.999438658 | F32: 3 | G32: 2.481132664 | I32: 6 | J32: 5.480571322
A33: Psykolog | C33: 3 | D33: 2.888417639 | F33: 13 | G33: 10.53639369 | I33: 16 | J33: 13.42481133
A34: Jurist | C34: 4 | D34: 3.034990332 | F34: 8 | G34: 6.058130107 | I34: 12 | J34: 9.093120439
A35: Økonom | C35: 8 | D35: 7.119066924 | F35: 8 | G35: 6.577683528 | I35: 16 | J35: 13.69675045
A36: Samf. Adm. | C36: 37 | D36: 33.6898896 | F36: 57 | G36: 46.26270816 | I36: 94 | J36: 79.95259777
A37: Cand. Merc. | C37: 27 | D37: 25.08887919 | F37: 36 | G37: 30.96176636 | I37: 63 | J37: 56.05064554
A38: HA | C38: 18 | D38: 15.77184557 | F38: 11 | G38: 10.11788187 | I38: 29 | J38: 25.88972744
A39: HD | C39: 7 | D39: 5.72007734 | F39: 8 | G39: 6.565209256 | I39: 15 | J39: 12.2852866
A40: Komm. og Sprog | C40: 7 | D40: 6.029439281 | F40: 29 | G40: 26.25148132 | I40: 36 | J40: 32.2809206
A41: Bygningskonst. | C41: 24 | D41: 22.08582299 | F41: 4 | G41: 3.567579368 | I41: 28 | J41: 25.65340236
A42: Cand. IT. | C42: 5 | D42: 4.970997318 | F42: 4 | G42: 3.73292584 | I42: 9 | J42: 8.703923158
A43: Bac. Samf. | C43: 2 | D43: 1.590469656 | F43: 3 | G43: 2.999438658 | I43: 5 | J43: 4.589908314
A44: Bac. Hum. | C44: 10 | D44: 8.564211314 | F44: 27 | G44: 21.49878376 | I44: 37 | J44: 30.06299507
A45: Bac. Nat. | C45: 9 | D45: 7.377908065 | F45: 6 | G45: 5.788062122 | I45: 15 | J45: 13.16597019
A46: Andre | C46: 39 | D46: 34.48574814 | F46: 58 | G46: 49.95634005 | I46: 97 | J46: 84.44208819
A48: Total | C48: 464 | D48: 406.6395559 | F48: 599 | G48: 513.7634254 | I48: 1063 | J48: 920.4029814
A50: Ingeniører i alt | C50: 97 | D50: 85.41944739 | F50: 30 | G50: 25.83234579 | I50: 127 | J50: 111.2517932
A51: Magistre i alt | C51: 104 | D51: 87.79330132 | F51: 202 | G51: 175.0408532 | I51: 306 | J51: 262.8341546
A52: DJØF'ere i alt | C52: 94 | D52: 84.70467161 | F52: 120 | G52: 99.97817002 | I52: 214 | J52: 184.6828416
A56: Greve
C58: Mænd | F58: Kvinder | I58: I alt
C59: Ledigheds- berørte | D59: Gns. brutto- ledighed | F59: Ledigheds- berørte | G59: Gns. brutto- ledighed | I59: Ledigheds- berørte | J59: Gns. brutto- ledighed
A62: Civ. ing. | C62: 2 | D62: 1.486309487 | F62: 0 | G62: 0 | I62: 2 | J62: 1.486309487
A63: Diplom ing. | C63: 4 | D63: 3.583858292 | F63: 2 | G63: 1.168839269 | I63: 6 | J63: 4.752697561
A64: Cand. Scient. Tek. | C64: 1 | D64: 0.6112393189 | F64: 1 | G64: 0.9998128859 | I64: 2 | J64: 1.611052205
A65: MA. Hum. | C65: 2 | D65: 1.157612424 | F65: 6 | G65: 4.314850621 | I65: 8 | J65: 5.472463045
A66: MA. Nat. | C66: 0 | D66: 0 | F66: 0 | G66: 0 | I66: 0 | J66: 0
A67: MA. Ph.d. | C67: 0 | D67: 0 | F67: 0 | G67: 0 | I67: 0 | J67: 0
A68: MA. Samf. | C68: 1 | D68: 0.9998128859 | F68: 1 | G68: 0.3998004117 | I68: 2 | J68: 1.399613298
A69: Øvrige Mag. | C69: 0 | D69: 0 | F69: 0 | G69: 0 | I69: 0 | J69: 0
A70: Agronom | C70: 0 | D70: 0 | F70: 1 | G70: 0.9998128859 | I70: 1 | J70: 0.9998128859
A71: Landsk. Arkt. | C71: 0 | D71: 0 | F71: 1 | G71: 0.7197654837 | I71: 1 | J71: 0.7197654837
A72: Hortonom | C72: 0 | D72: 0 | F72: 0 | G72: 0 | I72: 0 | J72: 0
A73: Forstkand. | C73: 0 | D73: 0 | F73: 0 | G73: 0 | I73: 0 | J73: 0
A74: Jordbrugsakad. | C74: 0 | D74: 0 | F74: 2 | G74: 1.71957837 | I74: 2 | J74: 1.71957837
A75: Mejeriing. | C75: 0 | D75: 0 | F75: 0 | G75: 0 | I75: 0 | J75: 0
A76: Levn.m.kand. | C76: 0 | D76: 0 | F76: 0 | G76: 0 | I76: 0 | J76: 0
A77: Dyrlæge | C77: 1 | D77: 0.8151936631 | F77: 0 | G77: 0 | I77: 1 | J77: 0.8151936631
A78: Farmaceut | C78: 0 | D78: 0 | F78: 0 | G78: 0 | I78: 0 | J78: 0
A79: Læge | C79: 1 | D79: 0.9998128859 | F79: 0 | G79: 0 | I79: 1 | J79: 0.9998128859
A80: Tandlæge | C80: 0 | D80: 0 | F80: 0 | G80: 0 | I80: 0 | J80: 0
A81: Arkitekt | C81: 0 | D81: 0 | F81: 0 | G81: 0 | I81: 0 | J81: 0
A82: Landinspek. | C82: 0 | D82: 0 | F82: 0 | G82: 0 | I82: 0 | J82: 0
A83: Bibliotekar | C83: 0 | D83: 0 | F83: 1 | G83: 0.3074908002 | I83: 1 | J83: 0.3074908002
A84: Musikudd. | C84: 0 | D84: 0 | F84: 1 | G84: 0.4758934697 | I84: 1 | J84: 0.4758934697
A85: Teolog | C85: 0 | D85: 0 | F85: 0 | G85: 0 | I85: 0 | J85: 0
A86: Psykolog | C86: 0 | D86: 0 | F86: 1 | G86: 0.9998128859 | I86: 1 | J86: 0.9998128859
A87: Jurist | C87: 0 | D87: 0 | F87: 1 | G87: 0.9075032745 | I87: 1 | J87: 0.9075032745
A88: Økonom | C88: 0 | D88: 0 | F88: 1 | G88: 0.9998128859 | I88: 1 | J88: 0.9998128859
A89: Samf. Adm. | C89: 0 | D89: 0 | F89: 0 | G89: 0 | I89: 0 | J89: 0
A90: Cand. Merc. | C90: 3 | D90: 2.58466912 | F90: 2 | G90: 1.953470966 | I90: 5 | J90: 4.538140086
A91: HA | C91: 3 | D91: 2.999438658 | F91: 0 | G91: 0 | I91: 3 | J91: 2.999438658
A92: HD | C92: 1 | D92: 0.9998128859 | F92: 2 | G92: 1.454500094 | I92: 3 | J92: 2.454312979
A93: Komm. og Sprog | C93: 0 | D93: 0 | F93: 0 | G93: 0 | I93: 0 | J93: 0
A94: Bygningskonst. | C94: 0 | D94: 0 | F94: 0 | G94: 0 | I94: 0 | J94: 0
A95: Cand. IT. | C95: 0 | D95: 0 | F95: 1 | G95: 0.9998128859 | I95: 1 | J95: 0.9998128859
A96: Bac. Samf. | C96: 0 | D96: 0 | F96: 0 | G96: 0 | I96: 0 | J96: 0
A97: Bac. Hum. | C97: 0 | D97: 0 | F97: 2 | G97: 1.980914364 | I97: 2 | J97: 1.980914364
A98: Bac. Nat. | C98: 1 | D98: 0.9536580802 | F98: 0 | G98: 0 | I98: 1 | J98: 0.9536580802
A99: Andre | C99: 2 | D99: 1.999625772 | F99: 6 | G99: 4.936693071 | I99: 8 | J99: 6.936318842
A101: Total | C101: 22 | D101: 19.19104347 | F101: 30 | G101: 23.61878625 | I101: 52 | J101: 42.80982973
A103: Ingeniører i alt | C103: 6 | D103: 5.070167779 | F103: 2 | G103: 1.168839269 | I103: 8 | J103: 6.239007048
A104: Magistre i alt | C104: 3 | D104: 2.15742531 | F104: 7 | G104: 4.714651032 | I104: 10 | J104: 6.872076343
A105: DJØF'ere i alt | C105: 6 | D105: 5.584107778 | F105: 4 | G105: 3.860787127 | I105: 10 | J105: 9.444894904
A110: Køge
C112: Mænd | F112: Kvinder | I112: I alt
C113: Ledigheds- berørte | D113: Gns. brutto- ledighed | F113: Ledigheds- berørte | G113: Gns. brutto- ledighed | I113: Ledigheds- berørte | J113: Gns. brutto- ledighed
A116: Civ. ing. | C116: 3 | D116: 2.739973804 | F116: 0 | G116: 0 | I116: 3 | J116: 2.739973804
A117: Diplom ing. | C117: 8 | D117: 6.743591343 | F117: 3 | G117: 2.817314289 | I117: 11 | J117: 9.560905632
A118: Cand. Scient. Tek. | C118: 5 | D118: 3.245805526 | F118: 4 | G118: 2.957649847 | I118: 9 | J118: 6.203455373
A119: MA. Hum. | C119: 4 | D119: 3.488430113 | F119: 3 | G119: 2.999438658 | I119: 7 | J119: 6.487868771
A120: MA. Nat. | C120: 3 | D120: 2.307116572 | F120: 5 | G120: 4.649161105 | I120: 8 | J120: 6.956277677
A121: MA. Ph.d. | C121: 0 | D121: 0 | F121: 1 | G121: 0.9998128859 | I121: 1 | J121: 0.9998128859
A122: MA. Samf. | C122: 0 | D122: 0 | F122: 3 | G122: 2.319590844 | I122: 3 | J122: 2.319590844
A123: Øvrige Mag. | C123: 0 | D123: 0 | F123: 1 | G123: 0.9124929832 | I123: 1 | J123: 0.9124929832
A124: Agronom | C124: 1 | D124: 0.9998128859 | F124: 0 | G124: 0 | I124: 1 | J124: 0.9998128859
A125: Landsk. Arkt. | C125: 0 | D125: 0 | F125: 0 | G125: 0 | I125: 0 | J125: 0
A126: Hortonom | C126: 0 | D126: 0 | F126: 0 | G126: 0 | I126: 0 | J126: 0
A127: Forstkand. | C127: 0 | D127: 0 | F127: 0 | G127: 0 | I127: 0 | J127: 0
A128: Jordbrugsakad. | C128: 1 | D128: 0.9998128859 | F128: 0 | G128: 0 | I128: 1 | J128: 0.9998128859
A129: Mejeriing. | C129: 0 | D129: 0 | F129: 0 | G129: 0 | I129: 0 | J129: 0
A130: Levn.m.kand. | C130: 0 | D130: 0 | F130: 1 | G130: 0.7347346099 | I130: 1 | J130: 0.7347346099
A131: Dyrlæge | C131: 0 | D131: 0 | F131: 1 | G131: 0.4921100231 | I131: 1 | J131: 0.4921100231
A132: Farmaceut | C132: 0 | D132: 0 | F132: 0 | G132: 0 | I132: 0 | J132: 0
A133: Læge | C133: 0 | D133: 0 | F133: 0 | G133: 0 | I133: 0 | J133: 0
A134: Tandlæge | C134: 0 | D134: 0 | F134: 0 | G134: 0 | I134: 0 | J134: 0
A135: Arkitekt | C135: 0 | D135: 0 | F135: 0 | G135: 0 | I135: 0 | J135: 0
A136: Landinspek. | C136: 0 | D136: 0 | F136: 0 | G136: 0 | I136: 0 | J136: 0
A137: Bibliotekar | C137: 0 | D137: 0 | F137: 2 | G137: 1.999625772 | I137: 2 | J137: 1.999625772
A138: Musikudd. | C138: 0 | D138: 0 | F138: 0 | G138: 0 | I138: 0 | J138: 0
A139: Teolog | C139: 0 | D139: 0 | F139: 0 | G139: 0 | I139: 0 | J139: 0
A140: Psykolog | C140: 0 | D140: 0 | F140: 0 | G140: 0 | I140: 0 | J140: 0
A141: Jurist | C141: 1 | D141: 0.188985218 | F141: 1 | G141: 0.9998128859 | I141: 2 | J141: 1.188798104
A142: Økonom | C142: 2 | D142: 1.768851743 | F142: 0 | G142: 0 | I142: 2 | J142: 1.768851743
A143: Samf. Adm. | C143: 4 | D143: 3.613796545 | F143: 6 | G143: 4.656021955 | I143: 10 | J143: 8.269818499
A144: Cand. Merc. | C144: 2 | D144: 1.993388636 | F144: 5 | G144: 4.619846566 | I144: 7 | J144: 6.613235202
A145: HA | C145: 0 | D145: 0 | F145: 0 | G145: 0 | I145: 0 | J145: 0
A146: HD | C146: 0 | D146: 0 | F146: 0 | G146: 0 | I146: 0 | J146: 0
A147: Komm. og Sprog | C147: 2 | D147: 1.122684463 | F147: 1 | G147: 0.9998128859 | I147: 3 | J147: 2.122497349
A148: Bygningskonst. | C148: 2 | D148: 1.723071166 | F148: 0 | G148: 0 | I148: 2 | J148: 1.723071166
A149: Cand. IT. | C149: 3 | D149: 2.971371546 | F149: 0 | G149: 0 | I149: 3 | J149: 2.971371546
A150: Bac. Samf. | C150: 0 | D150: 0 | F150: 0 | G150: 0 | I150: 0 | J150: 0
A151: Bac. Hum. | C151: 2 | D151: 1.446391817 | F151: 2 | G151: 1.999625772 | I151: 4 | J151: 3.446017589
A152: Bac. Nat. | C152: 1 | D152: 0.9998128859 | F152: 1 | G152: 0.9998128859 | I152: 2 | J152: 1.999625772
A153: Andre | C153: 3 | D153: 2.999438658 | F153: 11 | G153: 10.00062371 | I153: 14 | J153: 13.00006237
A155: Total | C155: 46 | D155: 38.35252292 | F155: 51 | G155: 45.15748768 | I155: 97 | J155: 83.5100106
A157: Ingeniører i alt | C157: 11 | D157: 9.483565147 | F157: 3 | G157: 2.817314289 | I157: 14 | J157: 12.30087944
A158: Magistre i alt | C158: 7 | D158: 5.795546685 | F158: 13 | G158: 11.88049648 | I158: 20 | J158: 17.67604316
A159: DJØF'ere i alt | C159: 9 | D159: 7.565022142 | F159: 12 | G159: 10.27568141 | I159: 21 | J159: 17.84070355
A164: Roskilde
C166: Mænd | F166: Kvinder | I166: I alt
C167: Ledigheds- berørte | D167: Gns. brutto- ledighed | F167: Ledigheds- berørte | G167: Gns. brutto- ledighed | I167: Ledigheds- berørte | J167: Gns. brutto- ledighed
A170: Civ. ing. | C170: 10 | D170: 8.521175076 | F170: 5 | G170: 4.997817002 | I170: 15 | J170: 13.51899208
A171: Diplom ing. | C171: 11 | D171: 9.776710535 | F171: 3 | G171: 2.953283852 | I171: 14 | J171: 12.72999439
A172: Cand. Scient. Tek. | C172: 9 | D172: 8.067735296 | F172: 4 | G172: 3.722322709 | I172: 13 | J172: 11.79005801
A173: MA. Hum. | C173: 14 | D173: 12.91960332 | F173: 31 | G173: 28.62970124 | I173: 45 | J173: 41.54930456
A174: MA. Nat. | C174: 4 | D174: 3.49653839 | F174: 8 | G174: 7.065427556 | I174: 12 | J174: 10.56196595
A175: MA. Ph.d. | C175: 2 | D175: 1.412711283 | F175: 0 | G175: 0 | I175: 2 | J175: 1.412711283
A176: MA. Samf. | C176: 1 | D176: 0.9998128859 | F176: 10 | G176: 9.813509636 | I176: 11 | J176: 10.81332252
A177: Øvrige Mag. | C177: 1 | D177: 0.9998128859 | F177: 3 | G177: 2.907129046 | I177: 4 | J177: 3.906941932
A178: Agronom | C178: 0 | D178: 0 | F178: 0 | G178: 0 | I178: 0 | J178: 0
A179: Landsk. Arkt. | C179: 0 | D179: 0 | F179: 0 | G179: 0 | I179: 0 | J179: 0
A180: Hortonom | C180: 0 | D180: 0 | F180: 0 | G180: 0 | I180: 0 | J180: 0
A181: Forstkand. | C181: 0 | D181: 0 | F181: 0 | G181: 0 | I181: 0 | J181: 0
A182: Jordbrugsakad. | C182: 0 | D182: 0 | F182: 0 | G182: 0 | I182: 0 | J182: 0
A183: Mejeriing. | C183: 0 | D183: 0 | F183: 0 | G183: 0 | I183: 0 | J183: 0
A184: Levn.m.kand. | C184: 0 | D184: 0 | F184: 1 | G184: 0.9998128859 | I184: 1 | J184: 0.9998128859
A185: Dyrlæge | C185: 0 | D185: 0 | F185: 0 | G185: 0 | I185: 0 | J185: 0
A186: Farmaceut | C186: 0 | D186: 0 | F186: 1 | G186: 0.8151936631 | I186: 1 | J186: 0.8151936631
A187: Læge | C187: 2 | D187: 1.862408782 | F187: 3 | G187: 2.907129046 | I187: 5 | J187: 4.769537828
A188: Tandlæge | C188: 0 | D188: 0 | F188: 0 | G188: 0 | I188: 0 | J188: 0
A189: Arkitekt | C189: 4 | D189: 3.302563463 | F189: 2 | G189: 1.810640554 | I189: 6 | J189: 5.113204017
A190: Landinspek. | C190: 0 | D190: 0 | F190: 0 | G190: 0 | I190: 0 | J190: 0
A191: Bibliotekar | C191: 1 | D191: 0.9998128859 | F191: 1 | G191: 0.9998128859 | I191: 2 | J191: 1.999625772
A192: Musikudd. | C192: 0 | D192: 0 | F192: 1 | G192: 0.6948169401 | I192: 1 | J192: 0.6948169401
A193: Teolog | C193: 1 | D193: 0.9998128859 | F193: 0 | G193: 0 | I193: 1 | J193: 0.9998128859
A194: Psykolog | C194: 2 | D194: 1.980914364 | F194: 5 | G194: 3.568265453 | I194: 7 | J194: 5.549179817
A195: Jurist | C195: 2 | D195: 1.999625772 | F195: 2 | G195: 1.335994511 | I195: 4 | J195: 3.335620283
A196: Økonom | C196: 2 | D196: 1.812511695 | F196: 2 | G196: 0.9954468908 | I196: 4 | J196: 2.807958585
A197: Samf. Adm. | C197: 12 | D197: 11.34535022 | F197: 15 | G197: 12.32769912 | I197: 27 | J197: 23.67304934
A198: Cand. Merc. | C198: 4 | D198: 3.485935259 | F198: 6 | G198: 5.484313603 | I198: 10 | J198: 8.970248862
A199: HA | C199: 3 | D199: 1.800037423 | F199: 4 | G199: 3.906941932 | I199: 7 | J199: 5.706979355
A200: HD | C200: 2 | D200: 1.768851743 | F200: 0 | G200: 0 | I200: 2 | J200: 1.768851743
A201: Komm. og Sprog | C201: 0 | D201: 0 | F201: 1 | G201: 0.9623900705 | I201: 1 | J201: 0.9623900705
A202: Bygningskonst. | C202: 6 | D202: 5.918917233 | F202: 1 | G202: 1 | I202: 7 | J202: 6.918917233
A203: Cand. IT. | C203: 0 | D203: 0 | F203: 0 | G203: 0 | I203: 0 | J203: 0
A204: Bac. Samf. | C204: 0 | D204: 0 | F204: 0 | G204: 0 | I204: 0 | J204: 0
A205: Bac. Hum. | C205: 2 | D205: 1.811264267 | F205: 5 | G205: 3.936880185 | I205: 7 | J205: 5.748144452
A206: Bac. Nat. | C206: 0 | D206: 0 | F206: 1 | G206: 0.8813073037 | I206: 1 | J206: 0.8813073037
A207: Andre | C207: 6 | D207: 5.214245618 | F207: 7 | G207: 5.982660762 | I207: 13 | J207: 11.19690638
A209: Total | C209: 101 | D209: 90.49635128 | F209: 122 | G209: 108.6984969 | I209: 223 | J209: 199.1948481
A211: Ingeniører i alt | C211: 21 | D211: 18.29788561 | F211: 8 | G211: 7.951100854 | I211: 29 | J211: 26.24898647
A212: Magistre i alt | C212: 22 | D212: 19.82847876 | F212: 52 | G212: 48.41576748 | I212: 74 | J212: 68.24424624
A213: DJØF'ere i alt | C213: 23 | D213: 20.44346036 | F213: 29 | G213: 24.05039606 | I213: 52 | J213: 44.49385642
A218: Solrød
C220: Mænd | F220: Kvinder | I220: I alt
C221: Ledigheds- berørte | D221: Gns. brutto- ledighed | F221: Ledigheds- berørte | G221: Gns. brutto- ledighed | I221: Ledigheds- berørte | J221: Gns. brutto- ledighed
A224: Civ. ing. | C224: 2 | D224: 1.569263394 | F224: 0 | G224: 0 | I224: 2 | J224: 1.569263394
A225: Diplom ing. | C225: 0 | D225: 0 | F225: 0 | G225: 0 | I225: 0 | J225: 0
A226: Cand. Scient. Tek. | C226: 1 | D226: 0.9998128859 | F226: 1 | G226: 0.9492920851 | I226: 2 | J226: 1.949104971
A227: MA. Hum. | C227: 2 | D227: 1.445768103 | F227: 2 | G227: 1.861161355 | I227: 4 | J227: 3.306929458
A228: MA. Nat. | C228: 0 | D228: 0 | F228: 0 | G228: 0 | I228: 0 | J228: 0
A229: MA. Ph.d. | C229: 0 | D229: 0 | F229: 0 | G229: 0 | I229: 0 | J229: 0
A230: MA. Samf. | C230: 2 | D230: 1.812511695 | F230: 0 | G230: 0 | I230: 2 | J230: 1.812511695
A231: Øvrige Mag. | C231: 0 | D231: 0 | F231: 0 | G231: 0 | I231: 0 | J231: 0
A232: Agronom | C232: 0 | D232: 0 | F232: 0 | G232: 0 | I232: 0 | J232: 0
A233: Landsk. Arkt. | C233: 0 | D233: 0 | F233: 0 | G233: 0 | I233: 0 | J233: 0
A234: Hortonom | C234: 0 | D234: 0 | F234: 0 | G234: 0 | I234: 0 | J234: 0
A235: Forstkand. | C235: 0 | D235: 0 | F235: 0 | G235: 0 | I235: 0 | J235: 0
A236: Jordbrugsakad. | C236: 0 | D236: 0 | F236: 0 | G236: 0 | I236: 0 | J236: 0
A237: Mejeriing. | C237: 0 | D237: 0 | F237: 0 | G237: 0 | I237: 0 | J237: 0
A238: Levn.m.kand. | C238: 0 | D238: 0 | F238: 0 | G238: 0 | I238: 0 | J238: 0
A239: Dyrlæge | C239: 0 | D239: 0 | F239: 0 | G239: 0 | I239: 0 | J239: 0
... 611 more rows

Sheet Tabel 3 S
A1: Tabel 3. Ledige i procent af forsikrede
A3: ='Tabel 2 S'!A3 -> Sjælland
C5: Mænd | F5: Kvinder | I5: I alt
C6: Ledigheds- berørte | D6: Gns. brutto- ledighed | F6: Ledigheds- berørte | G6: Gns. brutto- ledighed | I6: Ledigheds- berørte | J6: Gns. brutto- ledighed
A9: Civ. ing. | C9: =IF(OR('Tabel 1 S'!C9<5,'Tabel 2 S'!C9<0.5),"-",IFERROR('Tabel 2 S'!C9/'Tabel 1 S'!C9*100,"-")) -> 2.31884058 | D9: =IF(OR('Tabel 1 S'!C9<5,'Tabel 2 S'!D9<0.5),"-",IFERROR('Tabel 2 S'!D9/'Tabel 1 S'!C9*100,"-")) -> 2.084251955 | F9: =IF(OR('Tabel 1 S'!E9<5,'Tabel 2 S'!F9<0.5),"-",IFERROR('Tabel 2 S'!F9/'Tabel 1 S'!E9*100,"-")) -> 1.854714065 | G9: =IF(OR('Tabel 1 S'!E9<5,'Tabel 2 S'!G9<0.5),"-",IFERROR('Tabel 2 S'!G9/'Tabel 1 S'!E9*100,"-")) -> 1.619727319 | I9: =IF(OR('Tabel 1 S'!G9<5,'Tabel 2 S'!I9<0.5),"-",IFERROR('Tabel 2 S'!I9/'Tabel 1 S'!G9*100,"-")) -> 2.192242833 | J9: =IF(OR('Tabel 1 S'!G9<5,'Tabel 2 S'!J9<0.5),"-",IFERROR('Tabel 2 S'!J9/'Tabel 1 S'!G9*100,"-")) -> 1.957545614
A10: Diplom ing. | C10: =IF(OR('Tabel 1 S'!C10<5,'Tabel 2 S'!C10<0.5),"-",IFERROR('Tabel 2 S'!C10/'Tabel 1 S'!C10*100,"-")) -> 1.785155027 | D10: =IF(OR('Tabel 1 S'!C10<5,'Tabel 2 S'!D10<0.5),"-",IFERROR('Tabel 2 S'!D10/'Tabel 1 S'!C10*100,"-")) -> 1.549204546 | F10: =IF(OR('Tabel 1 S'!E10<5,'Tabel 2 S'!F10<0.5),"-",IFERROR('Tabel 2 S'!F10/'Tabel 1 S'!E10*100,"-")) -> 2.352941176 | G10: =IF(OR('Tabel 1 S'!E10<5,'Tabel 2 S'!G10<0.5),"-",IFERROR('Tabel 2 S'!G10/'Tabel 1 S'!E10*100,"-")) -> 2.006890201 | I10: =IF(OR('Tabel 1 S'!G10<5,'Tabel 2 S'!I10<0.5),"-",IFERROR('Tabel 2 S'!I10/'Tabel 1 S'!G10*100,"-")) -> 1.894896412 | J10: =IF(OR('Tabel 1 S'!G10<5,'Tabel 2 S'!J10<0.5),"-",IFERROR('Tabel 2 S'!J10/'Tabel 1 S'!G10*100,"-")) -> 1.637665771
A11: Cand. Scient. Tek. | C11: =IF(OR('Tabel 1 S'!C11<5,'Tabel 2 S'!C11<0.5),"-",IFERROR('Tabel 2 S'!C11/'Tabel 1 S'!C11*100,"-")) -> 4.249291785 | D11: =IF(OR('Tabel 1 S'!C11<5,'Tabel 2 S'!D11<0.5),"-",IFERROR('Tabel 2 S'!D11/'Tabel 1 S'!C11*100,"-")) -> 3.525483647 | F11: =IF(OR('Tabel 1 S'!E11<5,'Tabel 2 S'!F11<0.5),"-",IFERROR('Tabel 2 S'!F11/'Tabel 1 S'!E11*100,"-")) -> 4.552352049 | G11: =IF(OR('Tabel 1 S'!E11<5,'Tabel 2 S'!G11<0.5),"-",IFERROR('Tabel 2 S'!G11/'Tabel 1 S'!E11*100,"-")) -> 3.903178829 | I11: =IF(OR('Tabel 1 S'!G11<5,'Tabel 2 S'!I11<0.5),"-",IFERROR('Tabel 2 S'!I11/'Tabel 1 S'!G11*100,"-")) -> 4.395604396 | J11: =IF(OR('Tabel 1 S'!G11<5,'Tabel 2 S'!J11<0.5),"-",IFERROR('Tabel 2 S'!J11/'Tabel 1 S'!G11*100,"-")) -> 3.707828794
A12: MA. Hum. | C12: =IF(OR('Tabel 1 S'!C12<5,'Tabel 2 S'!C12<0.5),"-",IFERROR('Tabel 2 S'!C12/'Tabel 1 S'!C12*100,"-")) -> 6.619144603 | D12: =IF(OR('Tabel 1 S'!C12<5,'Tabel 2 S'!D12<0.5),"-",IFERROR('Tabel 2 S'!D12/'Tabel 1 S'!C12*100,"-")) -> 5.529583015 | F12: =IF(OR('Tabel 1 S'!E12<5,'Tabel 2 S'!F12<0.5),"-",IFERROR('Tabel 2 S'!F12/'Tabel 1 S'!E12*100,"-")) -> 6.214689266 | G12: =IF(OR('Tabel 1 S'!E12<5,'Tabel 2 S'!G12<0.5),"-",IFERROR('Tabel 2 S'!G12/'Tabel 1 S'!E12*100,"-")) -> 5.317585283 | I12: =IF(OR('Tabel 1 S'!G12<5,'Tabel 2 S'!I12<0.5),"-",IFERROR('Tabel 2 S'!I12/'Tabel 1 S'!G12*100,"-")) -> 6.335668596 | J12: =IF(OR('Tabel 1 S'!G12<5,'Tabel 2 S'!J12<0.5),"-",IFERROR('Tabel 2 S'!J12/'Tabel 1 S'!G12*100,"-")) -> 5.380997337
A13: MA. Nat. | C13: =IF(OR('Tabel 1 S'!C13<5,'Tabel 2 S'!C13<0.5),"-",IFERROR('Tabel 2 S'!C13/'Tabel 1 S'!C13*100,"-")) -> 2.773925104 | D13: =IF(OR('Tabel 1 S'!C13<5,'Tabel 2 S'!D13<0.5),"-",IFERROR('Tabel 2 S'!D13/'Tabel 1 S'!C13*100,"-")) -> 2.301338787 | F13: =IF(OR('Tabel 1 S'!E13<5,'Tabel 2 S'!F13<0.5),"-",IFERROR('Tabel 2 S'!F13/'Tabel 1 S'!E13*100,"-")) -> 3.373819163 | G13: =IF(OR('Tabel 1 S'!E13<5,'Tabel 2 S'!G13<0.5),"-",IFERROR('Tabel 2 S'!G13/'Tabel 1 S'!E13*100,"-")) -> 2.938608486 | I13: =IF(OR('Tabel 1 S'!G13<5,'Tabel 2 S'!I13<0.5),"-",IFERROR('Tabel 2 S'!I13/'Tabel 1 S'!G13*100,"-")) -> 3.077975376 | J13: =IF(OR('Tabel 1 S'!G13<5,'Tabel 2 S'!J13<0.5),"-",IFERROR('Tabel 2 S'!J13/'Tabel 1 S'!G13*100,"-")) -> 2.624332526
A14: MA. Ph.d. | C14: =IF(OR('Tabel 1 S'!C14<5,'Tabel 2 S'!C14<0.5),"-",IFERROR('Tabel 2 S'!C14/'Tabel 1 S'!C14*100,"-")) -> 3.448275862 | D14: =IF(OR('Tabel 1 S'!C14<5,'Tabel 2 S'!D14<0.5),"-",IFERROR('Tabel 2 S'!D14/'Tabel 1 S'!C14*100,"-")) -> 2.773016286 | F14: =IF(OR('Tabel 1 S'!E14<5,'Tabel 2 S'!F14<0.5),"-",IFERROR('Tabel 2 S'!F14/'Tabel 1 S'!E14*100,"-")) -> 1.428571429 | G14: =IF(OR('Tabel 1 S'!E14<5,'Tabel 2 S'!G14<0.5),"-",IFERROR('Tabel 2 S'!G14/'Tabel 1 S'!E14*100,"-")) -> 1.428304123 | I14: =IF(OR('Tabel 1 S'!G14<5,'Tabel 2 S'!I14<0.5),"-",IFERROR('Tabel 2 S'!I14/'Tabel 1 S'!G14*100,"-")) -> 2.547770701 | J14: =IF(OR('Tabel 1 S'!G14<5,'Tabel 2 S'!J14<0.5),"-",IFERROR('Tabel 2 S'!J14/'Tabel 1 S'!G14*100,"-")) -> 2.173463092
A15: MA. Samf. | C15: =IF(OR('Tabel 1 S'!C15<5,'Tabel 2 S'!C15<0.5),"-",IFERROR('Tabel 2 S'!C15/'Tabel 1 S'!C15*100,"-")) -> 9.166666667 | D15: =IF(OR('Tabel 1 S'!C15<5,'Tabel 2 S'!D15<0.5),"-",IFERROR('Tabel 2 S'!D15/'Tabel 1 S'!C15*100,"-")) -> 8.821908979 | F15: =IF(OR('Tabel 1 S'!E15<5,'Tabel 2 S'!F15<0.5),"-",IFERROR('Tabel 2 S'!F15/'Tabel 1 S'!E15*100,"-")) -> 7.936507937 | G15: =IF(OR('Tabel 1 S'!E15<5,'Tabel 2 S'!G15<0.5),"-",IFERROR('Tabel 2 S'!G15/'Tabel 1 S'!E15*100,"-")) -> 7.096276628 | I15: =IF(OR('Tabel 1 S'!G15<5,'Tabel 2 S'!I15<0.5),"-",IFERROR('Tabel 2 S'!I15/'Tabel 1 S'!G15*100,"-")) -> 8.275862069 | J15: =IF(OR('Tabel 1 S'!G15<5,'Tabel 2 S'!J15<0.5),"-",IFERROR('Tabel 2 S'!J15/'Tabel 1 S'!G15*100,"-")) -> 7.572313139
A16: Øvrige Mag. | C16: =IF(OR('Tabel 1 S'!C16<5,'Tabel 2 S'!C16<0.5),"-",IFERROR('Tabel 2 S'!C16/'Tabel 1 S'!C16*100,"-")) -> 5.952380952 | D16: =IF(OR('Tabel 1 S'!C16<5,'Tabel 2 S'!D16<0.5),"-",IFERROR('Tabel 2 S'!D16/'Tabel 1 S'!C16*100,"-")) -> 4.644438702 | F16: =IF(OR('Tabel 1 S'!E16<5,'Tabel 2 S'!F16<0.5),"-",IFERROR('Tabel 2 S'!F16/'Tabel 1 S'!E16*100,"-")) -> 4.395604396 | G16: =IF(OR('Tabel 1 S'!E16<5,'Tabel 2 S'!G16<0.5),"-",IFERROR('Tabel 2 S'!G16/'Tabel 1 S'!E16*100,"-")) -> 4.151122376 | I16: =IF(OR('Tabel 1 S'!G16<5,'Tabel 2 S'!I16<0.5),"-",IFERROR('Tabel 2 S'!I16/'Tabel 1 S'!G16*100,"-")) -> 4.887218045 | J16: =IF(OR('Tabel 1 S'!G16<5,'Tabel 2 S'!J16<0.5),"-",IFERROR('Tabel 2 S'!J16/'Tabel 1 S'!G16*100,"-")) -> 4.306906479
A17: Agronom | C17: =IF(OR('Tabel 1 S'!C17<5,'Tabel 2 S'!C17<0.5),"-",IFERROR('Tabel 2 S'!C17/'Tabel 1 S'!C17*100,"-")) -> 0.9852216749 | D17: =IF(OR('Tabel 1 S'!C17<5,'Tabel 2 S'!D17<0.5),"-",IFERROR('Tabel 2 S'!D17/'Tabel 1 S'!C17*100,"-")) -> 0.985037326 | F17: =IF(OR('Tabel 1 S'!E17<5,'Tabel 2 S'!F17<0.5),"-",IFERROR('Tabel 2 S'!F17/'Tabel 1 S'!E17*100,"-")) -> 3.29218107 | G17: =IF(OR('Tabel 1 S'!E17<5,'Tabel 2 S'!G17<0.5),"-",IFERROR('Tabel 2 S'!G17/'Tabel 1 S'!E17*100,"-")) -> 3.104194307 | I17: =IF(OR('Tabel 1 S'!G17<5,'Tabel 2 S'!I17<0.5),"-",IFERROR('Tabel 2 S'!I17/'Tabel 1 S'!G17*100,"-")) -> 2.242152466 | J17: =IF(OR('Tabel 1 S'!G17<5,'Tabel 2 S'!J17<0.5),"-",IFERROR('Tabel 2 S'!J17/'Tabel 1 S'!G17*100,"-")) -> 2.139645278
A18: Landsk. Arkt. | C18: =IF(OR('Tabel 1 S'!C18<5,'Tabel 2 S'!C18<0.5),"-",IFERROR('Tabel 2 S'!C18/'Tabel 1 S'!C18*100,"-")) -> - | D18: =IF(OR('Tabel 1 S'!C18<5,'Tabel 2 S'!D18<0.5),"-",IFERROR('Tabel 2 S'!D18/'Tabel 1 S'!C18*100,"-")) -> - | F18: =IF(OR('Tabel 1 S'!E18<5,'Tabel 2 S'!F18<0.5),"-",IFERROR('Tabel 2 S'!F18/'Tabel 1 S'!E18*100,"-")) -> 4.411764706 | G18: =IF(OR('Tabel 1 S'!E18<5,'Tabel 2 S'!G18<0.5),"-",IFERROR('Tabel 2 S'!G18/'Tabel 1 S'!E18*100,"-")) -> 3.931230073 | I18: =IF(OR('Tabel 1 S'!G18<5,'Tabel 2 S'!I18<0.5),"-",IFERROR('Tabel 2 S'!I18/'Tabel 1 S'!G18*100,"-")) -> 3.225806452 | J18: =IF(OR('Tabel 1 S'!G18<5,'Tabel 2 S'!J18<0.5),"-",IFERROR('Tabel 2 S'!J18/'Tabel 1 S'!G18*100,"-")) -> 2.874447796
A19: Hortonom | C19: =IF(OR('Tabel 1 S'!C19<5,'Tabel 2 S'!C19<0.5),"-",IFERROR('Tabel 2 S'!C19/'Tabel 1 S'!C19*100,"-")) -> - | D19: =IF(OR('Tabel 1 S'!C19<5,'Tabel 2 S'!D19<0.5),"-",IFERROR('Tabel 2 S'!D19/'Tabel 1 S'!C19*100,"-")) -> - | F19: =IF(OR('Tabel 1 S'!E19<5,'Tabel 2 S'!F19<0.5),"-",IFERROR('Tabel 2 S'!F19/'Tabel 1 S'!E19*100,"-")) -> - | G19: =IF(OR('Tabel 1 S'!E19<5,'Tabel 2 S'!G19<0.5),"-",IFERROR('Tabel 2 S'!G19/'Tabel 1 S'!E19*100,"-")) -> - | I19: =IF(OR('Tabel 1 S'!G19<5,'Tabel 2 S'!I19<0.5),"-",IFERROR('Tabel 2 S'!I19/'Tabel 1 S'!G19*100,"-")) -> - | J19: =IF(OR('Tabel 1 S'!G19<5,'Tabel 2 S'!J19<0.5),"-",IFERROR('Tabel 2 S'!J19/'Tabel 1 S'!G19*100,"-")) -> -
A20: Forstkand. | C20: =IF(OR('Tabel 1 S'!C20<5,'Tabel 2 S'!C20<0.5),"-",IFERROR('Tabel 2 S'!C20/'Tabel 1 S'!C20*100,"-")) -> 6.557377049 | D20: =IF(OR('Tabel 1 S'!C20<5,'Tabel 2 S'!D20<0.5),"-",IFERROR('Tabel 2 S'!D20/'Tabel 1 S'!C20*100,"-")) -> 5.065372342 | F20: =IF(OR('Tabel 1 S'!E20<5,'Tabel 2 S'!F20<0.5),"-",IFERROR('Tabel 2 S'!F20/'Tabel 1 S'!E20*100,"-")) -> - | G20: =IF(OR('Tabel 1 S'!E20<5,'Tabel 2 S'!G20<0.5),"-",IFERROR('Tabel 2 S'!G20/'Tabel 1 S'!E20*100,"-")) -> - | I20: =IF(OR('Tabel 1 S'!G20<5,'Tabel 2 S'!I20<0.5),"-",IFERROR('Tabel 2 S'!I20/'Tabel 1 S'!G20*100,"-")) -> 5 | J20: =IF(OR('Tabel 1 S'!G20<5,'Tabel 2 S'!J20<0.5),"-",IFERROR('Tabel 2 S'!J20/'Tabel 1 S'!G20*100,"-")) -> 3.862346411
A21: Jordbrugsakad. | C21: =IF(OR('Tabel 1 S'!C21<5,'Tabel 2 S'!C21<0.5),"-",IFERROR('Tabel 2 S'!C21/'Tabel 1 S'!C21*100,"-")) -> 1.954397394 | D21: =IF(OR('Tabel 1 S'!C21<5,'Tabel 2 S'!D21<0.5),"-",IFERROR('Tabel 2 S'!D21/'Tabel 1 S'!C21*100,"-")) -> 1.657818534 | F21: =IF(OR('Tabel 1 S'!E21<5,'Tabel 2 S'!F21<0.5),"-",IFERROR('Tabel 2 S'!F21/'Tabel 1 S'!E21*100,"-")) -> 3.01369863 | G21: =IF(OR('Tabel 1 S'!E21<5,'Tabel 2 S'!G21<0.5),"-",IFERROR('Tabel 2 S'!G21/'Tabel 1 S'!E21*100,"-")) -> 2.799021539 | I21: =IF(OR('Tabel 1 S'!G21<5,'Tabel 2 S'!I21<0.5),"-",IFERROR('Tabel 2 S'!I21/'Tabel 1 S'!G21*100,"-")) -> 2.529761905 | J21: =IF(OR('Tabel 1 S'!G21<5,'Tabel 2 S'!J21<0.5),"-",IFERROR('Tabel 2 S'!J21/'Tabel 1 S'!G21*100,"-")) -> 2.27766838
A22: Mejeriing. | C22: =IF(OR('Tabel 1 S'!C22<5,'Tabel 2 S'!C22<0.5),"-",IFERROR('Tabel 2 S'!C22/'Tabel 1 S'!C22*100,"-")) -> 5.882352941 | D22: =IF(OR('Tabel 1 S'!C22<5,'Tabel 2 S'!D22<0.5),"-",IFERROR('Tabel 2 S'!D22/'Tabel 1 S'!C22*100,"-")) -> 5.88125227 | F22: =IF(OR('Tabel 1 S'!E22<5,'Tabel 2 S'!F22<0.5),"-",IFERROR('Tabel 2 S'!F22/'Tabel 1 S'!E22*100,"-")) -> - | G22: =IF(OR('Tabel 1 S'!E22<5,'Tabel 2 S'!G22<0.5),"-",IFERROR('Tabel 2 S'!G22/'Tabel 1 S'!E22*100,"-")) -> - | I22: =IF(OR('Tabel 1 S'!G22<5,'Tabel 2 S'!I22<0.5),"-",IFERROR('Tabel 2 S'!I22/'Tabel 1 S'!G22*100,"-")) -> 2.43902439 | J22: =IF(OR('Tabel 1 S'!G22<5,'Tabel 2 S'!J22<0.5),"-",IFERROR('Tabel 2 S'!J22/'Tabel 1 S'!G22*100,"-")) -> 2.438568014
A23: Levn.m.kand. | C23: =IF(OR('Tabel 1 S'!C23<5,'Tabel 2 S'!C23<0.5),"-",IFERROR('Tabel 2 S'!C23/'Tabel 1 S'!C23*100,"-")) -> - | D23: =IF(OR('Tabel 1 S'!C23<5,'Tabel 2 S'!D23<0.5),"-",IFERROR('Tabel 2 S'!D23/'Tabel 1 S'!C23*100,"-")) -> - | F23: =IF(OR('Tabel 1 S'!E23<5,'Tabel 2 S'!F23<0.5),"-",IFERROR('Tabel 2 S'!F23/'Tabel 1 S'!E23*100,"-")) -> 9.259259259 | G23: =IF(OR('Tabel 1 S'!E23<5,'Tabel 2 S'!G23<0.5),"-",IFERROR('Tabel 2 S'!G23/'Tabel 1 S'!E23*100,"-")) -> 6.21981053 | I23: =IF(OR('Tabel 1 S'!G23<5,'Tabel 2 S'!I23<0.5),"-",IFERROR('Tabel 2 S'!I23/'Tabel 1 S'!G23*100,"-")) -> 7.8125 | J23: =IF(OR('Tabel 1 S'!G23<5,'Tabel 2 S'!J23<0.5),"-",IFERROR('Tabel 2 S'!J23/'Tabel 1 S'!G23*100,"-")) -> 5.247965134
A24: Dyrlæge | C24: =IF(OR('Tabel 1 S'!C24<5,'Tabel 2 S'!C24<0.5),"-",IFERROR('Tabel 2 S'!C24/'Tabel 1 S'!C24*100,"-")) -> 1.298701299 | D24: =IF(OR('Tabel 1 S'!C24<5,'Tabel 2 S'!D24<0.5),"-",IFERROR('Tabel 2 S'!D24/'Tabel 1 S'!C24*100,"-")) -> 1.058693069 | F24: =IF(OR('Tabel 1 S'!E24<5,'Tabel 2 S'!F24<0.5),"-",IFERROR('Tabel 2 S'!F24/'Tabel 1 S'!E24*100,"-")) -> 0.8695652174 | G24: =IF(OR('Tabel 1 S'!E24<5,'Tabel 2 S'!G24<0.5),"-",IFERROR('Tabel 2 S'!G24/'Tabel 1 S'!E24*100,"-")) -> 0.7222422594 | I24: =IF(OR('Tabel 1 S'!G24<5,'Tabel 2 S'!I24<0.5),"-",IFERROR('Tabel 2 S'!I24/'Tabel 1 S'!G24*100,"-")) -> 0.9478672986 | J24: =IF(OR('Tabel 1 S'!G24<5,'Tabel 2 S'!J24<0.5),"-",IFERROR('Tabel 2 S'!J24/'Tabel 1 S'!G24*100,"-")) -> 0.783632573
A25: Farmaceut | C25: =IF(OR('Tabel 1 S'!C25<5,'Tabel 2 S'!C25<0.5),"-",IFERROR('Tabel 2 S'!C25/'Tabel 1 S'!C25*100,"-")) -> 0.7092198582 | D25: =IF(OR('Tabel 1 S'!C25<5,'Tabel 2 S'!D25<0.5),"-",IFERROR('Tabel 2 S'!D25/'Tabel 1 S'!C25*100,"-")) -> 0.7090871531 | F25: =IF(OR('Tabel 1 S'!E25<5,'Tabel 2 S'!F25<0.5),"-",IFERROR('Tabel 2 S'!F25/'Tabel 1 S'!E25*100,"-")) -> 1.315789474 | G25: =IF(OR('Tabel 1 S'!E25<5,'Tabel 2 S'!G25<0.5),"-",IFERROR('Tabel 2 S'!G25/'Tabel 1 S'!E25*100,"-")) -> 1.104219258 | I25: =IF(OR('Tabel 1 S'!G25<5,'Tabel 2 S'!I25<0.5),"-",IFERROR('Tabel 2 S'!I25/'Tabel 1 S'!G25*100,"-")) -> 1.172529313 | J25: =IF(OR('Tabel 1 S'!G25<5,'Tabel 2 S'!J25<0.5),"-",IFERROR('Tabel 2 S'!J25/'Tabel 1 S'!G25*100,"-")) -> 1.0108966
A26: Læge | C26: =IF(OR('Tabel 1 S'!C26<5,'Tabel 2 S'!C26<0.5),"-",IFERROR('Tabel 2 S'!C26/'Tabel 1 S'!C26*100,"-")) -> 3.587443946 | D26: =IF(OR('Tabel 1 S'!C26<5,'Tabel 2 S'!D26<0.5),"-",IFERROR('Tabel 2 S'!D26/'Tabel 1 S'!C26*100,"-")) -> 3.401057069 | F26: =IF(OR('Tabel 1 S'!E26<5,'Tabel 2 S'!F26<0.5),"-",IFERROR('Tabel 2 S'!F26/'Tabel 1 S'!E26*100,"-")) -> 2.559055118 | G26: =IF(OR('Tabel 1 S'!E26<5,'Tabel 2 S'!G26<0.5),"-",IFERROR('Tabel 2 S'!G26/'Tabel 1 S'!E26*100,"-")) -> 2.26992458 | I26: =IF(OR('Tabel 1 S'!G26<5,'Tabel 2 S'!I26<0.5),"-",IFERROR('Tabel 2 S'!I26/'Tabel 1 S'!G26*100,"-")) -> 2.872777018 | J26: =IF(OR('Tabel 1 S'!G26<5,'Tabel 2 S'!J26<0.5),"-",IFERROR('Tabel 2 S'!J26/'Tabel 1 S'!G26*100,"-")) -> 2.614989621
A27: Tandlæge | C27: =IF(OR('Tabel 1 S'!C27<5,'Tabel 2 S'!C27<0.5),"-",IFERROR('Tabel 2 S'!C27/'Tabel 1 S'!C27*100,"-")) -> 3.571428571 | D27: =IF(OR('Tabel 1 S'!C27<5,'Tabel 2 S'!D27<0.5),"-",IFERROR('Tabel 2 S'!D27/'Tabel 1 S'!C27*100,"-")) -> 3.570760307 | F27: =IF(OR('Tabel 1 S'!E27<5,'Tabel 2 S'!F27<0.5),"-",IFERROR('Tabel 2 S'!F27/'Tabel 1 S'!E27*100,"-")) -> 0.6666666667 | G27: =IF(OR('Tabel 1 S'!E27<5,'Tabel 2 S'!G27<0.5),"-",IFERROR('Tabel 2 S'!G27/'Tabel 1 S'!E27*100,"-")) -> 0.6665419239 | I27: =IF(OR('Tabel 1 S'!G27<5,'Tabel 2 S'!I27<0.5),"-",IFERROR('Tabel 2 S'!I27/'Tabel 1 S'!G27*100,"-")) -> 1.123595506 | J27: =IF(OR('Tabel 1 S'!G27<5,'Tabel 2 S'!J27<0.5),"-",IFERROR('Tabel 2 S'!J27/'Tabel 1 S'!G27*100,"-")) -> 1.123385265
A28: Arkitekt | C28: =IF(OR('Tabel 1 S'!C28<5,'Tabel 2 S'!C28<0.5),"-",IFERROR('Tabel 2 S'!C28/'Tabel 1 S'!C28*100,"-")) -> 6.481481481 | D28: =IF(OR('Tabel 1 S'!C28<5,'Tabel 2 S'!D28<0.5),"-",IFERROR('Tabel 2 S'!D28/'Tabel 1 S'!C28*100,"-")) -> 5.792451218 | F28: =IF(OR('Tabel 1 S'!E28<5,'Tabel 2 S'!F28<0.5),"-",IFERROR('Tabel 2 S'!F28/'Tabel 1 S'!E28*100,"-")) -> 3.546099291 | G28: =IF(OR('Tabel 1 S'!E28<5,'Tabel 2 S'!G28<0.5),"-",IFERROR('Tabel 2 S'!G28/'Tabel 1 S'!E28*100,"-")) -> 3.411403696 | I28: =IF(OR('Tabel 1 S'!G28<5,'Tabel 2 S'!I28<0.5),"-",IFERROR('Tabel 2 S'!I28/'Tabel 1 S'!G28*100,"-")) -> 4.819277108 | J28: =IF(OR('Tabel 1 S'!G28<5,'Tabel 2 S'!J28<0.5),"-",IFERROR('Tabel 2 S'!J28/'Tabel 1 S'!G28*100,"-")) -> 4.444147199
A29: Landinspek. | C29: =IF(OR('Tabel 1 S'!C29<5,'Tabel 2 S'!C29<0.5),"-",IFERROR('Tabel 2 S'!C29/'Tabel 1 S'!C29*100,"-")) -> 2.040816327 | D29: =IF(OR('Tabel 1 S'!C29<5,'Tabel 2 S'!D29<0.5),"-",IFERROR('Tabel 2 S'!D29/'Tabel 1 S'!C29*100,"-")) -> 1.269066224 | F29: =IF(OR('Tabel 1 S'!E29<5,'Tabel 2 S'!F29<0.5),"-",IFERROR('Tabel 2 S'!F29/'Tabel 1 S'!E29*100,"-")) -> - | G29: =IF(OR('Tabel 1 S'!E29<5,'Tabel 2 S'!G29<0.5),"-",IFERROR('Tabel 2 S'!G29/'Tabel 1 S'!E29*100,"-")) -> - | I29: =IF(OR('Tabel 1 S'!G29<5,'Tabel 2 S'!I29<0.5),"-",IFERROR('Tabel 2 S'!I29/'Tabel 1 S'!G29*100,"-")) -> 1.428571429 | J29: =IF(OR('Tabel 1 S'!G29<5,'Tabel 2 S'!J29<0.5),"-",IFERROR('Tabel 2 S'!J29/'Tabel 1 S'!G29*100,"-")) -> 0.8883463571
A30: Bibliotekar | C30: =IF(OR('Tabel 1 S'!C30<5,'Tabel 2 S'!C30<0.5),"-",IFERROR('Tabel 2 S'!C30/'Tabel 1 S'!C30*100,"-")) -> 4 | D30: =IF(OR('Tabel 1 S'!C30<5,'Tabel 2 S'!D30<0.5),"-",IFERROR('Tabel 2 S'!D30/'Tabel 1 S'!C30*100,"-")) -> 3.753508389 | F30: =IF(OR('Tabel 1 S'!E30<5,'Tabel 2 S'!F30<0.5),"-",IFERROR('Tabel 2 S'!F30/'Tabel 1 S'!E30*100,"-")) -> 5.281690141 | G30: =IF(OR('Tabel 1 S'!E30<5,'Tabel 2 S'!G30<0.5),"-",IFERROR('Tabel 2 S'!G30/'Tabel 1 S'!E30*100,"-")) -> 4.720677335 | I30: =IF(OR('Tabel 1 S'!G30<5,'Tabel 2 S'!I30<0.5),"-",IFERROR('Tabel 2 S'!I30/'Tabel 1 S'!G30*100,"-")) -> 4.947916667 | J30: =IF(OR('Tabel 1 S'!G30<5,'Tabel 2 S'!J30<0.5),"-",IFERROR('Tabel 2 S'!J30/'Tabel 1 S'!G30*100,"-")) -> 4.468810422
A31: Musikudd. | C31: =IF(OR('Tabel 1 S'!C31<5,'Tabel 2 S'!C31<0.5),"-",IFERROR('Tabel 2 S'!C31/'Tabel 1 S'!C31*100,"-")) -> - | D31: =IF(OR('Tabel 1 S'!C31<5,'Tabel 2 S'!D31<0.5),"-",IFERROR('Tabel 2 S'!D31/'Tabel 1 S'!C31*100,"-")) -> - | F31: =IF(OR('Tabel 1 S'!E31<5,'Tabel 2 S'!F31<0.5),"-",IFERROR('Tabel 2 S'!F31/'Tabel 1 S'!E31*100,"-")) -> 4.6875 | G31: =IF(OR('Tabel 1 S'!E31<5,'Tabel 2 S'!G31<0.5),"-",IFERROR('Tabel 2 S'!G31/'Tabel 1 S'!E31*100,"-")) -> 3.066916672 | I31: =IF(OR('Tabel 1 S'!G31<5,'Tabel 2 S'!I31<0.5),"-",IFERROR('Tabel 2 S'!I31/'Tabel 1 S'!G31*100,"-")) -> 2.97029703 | J31: =IF(OR('Tabel 1 S'!G31<5,'Tabel 2 S'!J31<0.5),"-",IFERROR('Tabel 2 S'!J31/'Tabel 1 S'!G31*100,"-")) -> 1.943392743
A32: Teolog | C32: =IF(OR('Tabel 1 S'!C32<5,'Tabel 2 S'!C32<0.5),"-",IFERROR('Tabel 2 S'!C32/'Tabel 1 S'!C32*100,"-")) -> 3.896103896 | D32: =IF(OR('Tabel 1 S'!C32<5,'Tabel 2 S'!D32<0.5),"-",IFERROR('Tabel 2 S'!D32/'Tabel 1 S'!C32*100,"-")) -> 3.89537488 | F32: =IF(OR('Tabel 1 S'!E32<5,'Tabel 2 S'!F32<0.5),"-",IFERROR('Tabel 2 S'!F32/'Tabel 1 S'!E32*100,"-")) -> 2.083333333 | G32: =IF(OR('Tabel 1 S'!E32<5,'Tabel 2 S'!G32<0.5),"-",IFERROR('Tabel 2 S'!G32/'Tabel 1 S'!E32*100,"-")) -> 1.723008794 | I32: =IF(OR('Tabel 1 S'!G32<5,'Tabel 2 S'!I32<0.5),"-",IFERROR('Tabel 2 S'!I32/'Tabel 1 S'!G32*100,"-")) -> 2.714932127 | J32: =IF(OR('Tabel 1 S'!G32<5,'Tabel 2 S'!J32<0.5),"-",IFERROR('Tabel 2 S'!J32/'Tabel 1 S'!G32*100,"-")) -> 2.479896526
A33: Psykolog | C33: =IF(OR('Tabel 1 S'!C33<5,'Tabel 2 S'!C33<0.5),"-",IFERROR('Tabel 2 S'!C33/'Tabel 1 S'!C33*100,"-")) -> 2.912621359 | D33: =IF(OR('Tabel 1 S'!C33<5,'Tabel 2 S'!D33<0.5),"-",IFERROR('Tabel 2 S'!D33/'Tabel 1 S'!C33*100,"-")) -> 2.80428897 | F33: =IF(OR('Tabel 1 S'!E33<5,'Tabel 2 S'!F33<0.5),"-",IFERROR('Tabel 2 S'!F33/'Tabel 1 S'!E33*100,"-")) -> 2.495201536 | G33: =IF(OR('Tabel 1 S'!E33<5,'Tabel 2 S'!G33<0.5),"-",IFERROR('Tabel 2 S'!G33/'Tabel 1 S'!E33*100,"-")) -> 2.022340439 | I33: =IF(OR('Tabel 1 S'!G33<5,'Tabel 2 S'!I33<0.5),"-",IFERROR('Tabel 2 S'!I33/'Tabel 1 S'!G33*100,"-")) -> 2.564102564 | J33: =IF(OR('Tabel 1 S'!G33<5,'Tabel 2 S'!J33<0.5),"-",IFERROR('Tabel 2 S'!J33/'Tabel 1 S'!G33*100,"-")) -> 2.151412072
A34: Jurist | C34: =IF(OR('Tabel 1 S'!C34<5,'Tabel 2 S'!C34<0.5),"-",IFERROR('Tabel 2 S'!C34/'Tabel 1 S'!C34*100,"-")) -> 1.152737752 | D34: =IF(OR('Tabel 1 S'!C34<5,'Tabel 2 S'!D34<0.5),"-",IFERROR('Tabel 2 S'!D34/'Tabel 1 S'!C34*100,"-")) -> 0.8746369834 | F34: =IF(OR('Tabel 1 S'!E34<5,'Tabel 2 S'!F34<0.5),"-",IFERROR('Tabel 2 S'!F34/'Tabel 1 S'!E34*100,"-")) -> 0.9356725146 | G34: =IF(OR('Tabel 1 S'!E34<5,'Tabel 2 S'!G34<0.5),"-",IFERROR('Tabel 2 S'!G34/'Tabel 1 S'!E34*100,"-")) -> 0.7085532288 | I34: =IF(OR('Tabel 1 S'!G34<5,'Tabel 2 S'!I34<0.5),"-",IFERROR('Tabel 2 S'!I34/'Tabel 1 S'!G34*100,"-")) -> 0.9983361065 | J34: =IF(OR('Tabel 1 S'!G34<5,'Tabel 2 S'!J34<0.5),"-",IFERROR('Tabel 2 S'!J34/'Tabel 1 S'!G34*100,"-")) -> 0.7564992046
A35: Økonom | C35: =IF(OR('Tabel 1 S'!C35<5,'Tabel 2 S'!C35<0.5),"-",IFERROR('Tabel 2 S'!C35/'Tabel 1 S'!C35*100,"-")) -> 2.388059701 | D35: =IF(OR('Tabel 1 S'!C35<5,'Tabel 2 S'!D35<0.5),"-",IFERROR('Tabel 2 S'!D35/'Tabel 1 S'!C35*100,"-")) -> 2.125094604 | F35: =IF(OR('Tabel 1 S'!E35<5,'Tabel 2 S'!F35<0.5),"-",IFERROR('Tabel 2 S'!F35/'Tabel 1 S'!E35*100,"-")) -> 2.941176471 | G35: =IF(OR('Tabel 1 S'!E35<5,'Tabel 2 S'!G35<0.5),"-",IFERROR('Tabel 2 S'!G35/'Tabel 1 S'!E35*100,"-")) -> 2.418266003 | I35: =IF(OR('Tabel 1 S'!G35<5,'Tabel 2 S'!I35<0.5),"-",IFERROR('Tabel 2 S'!I35/'Tabel 1 S'!G35*100,"-")) -> 2.635914333 | J35: =IF(OR('Tabel 1 S'!G35<5,'Tabel 2 S'!J35<0.5),"-",IFERROR('Tabel 2 S'!J35/'Tabel 1 S'!G35*100,"-")) -> 2.256466302
A36: Samf. Adm. | C36: =IF(OR('Tabel 1 S'!C36<5,'Tabel 2 S'!C36<0.5),"-",IFERROR('Tabel 2 S'!C36/'Tabel 1 S'!C36*100,"-")) -> 4.297328688 | D36: =IF(OR('Tabel 1 S'!C36<5,'Tabel 2 S'!D36<0.5),"-",IFERROR('Tabel 2 S'!D36/'Tabel 1 S'!C36*100,"-")) -> 3.912879164 | F36: =IF(OR('Tabel 1 S'!E36<5,'Tabel 2 S'!F36<0.5),"-",IFERROR('Tabel 2 S'!F36/'Tabel 1 S'!E36*100,"-")) -> 4.491725768 | G36: =IF(OR('Tabel 1 S'!E36<5,'Tabel 2 S'!G36<0.5),"-",IFERROR('Tabel 2 S'!G36/'Tabel 1 S'!E36*100,"-")) -> 3.64560348 | I36: =IF(OR('Tabel 1 S'!G36<5,'Tabel 2 S'!I36<0.5),"-",IFERROR('Tabel 2 S'!I36/'Tabel 1 S'!G36*100,"-")) -> 4.41314554 | J36: =IF(OR('Tabel 1 S'!G36<5,'Tabel 2 S'!J36<0.5),"-",IFERROR('Tabel 2 S'!J36/'Tabel 1 S'!G36*100,"-")) -> 3.753643088
A37: Cand. Merc. | C37: =IF(OR('Tabel 1 S'!C37<5,'Tabel 2 S'!C37<0.5),"-",IFERROR('Tabel 2 S'!C37/'Tabel 1 S'!C37*100,"-")) -> 2.248126561 | D37: =IF(OR('Tabel 1 S'!C37<5,'Tabel 2 S'!D37<0.5),"-",IFERROR('Tabel 2 S'!D37/'Tabel 1 S'!C37*100,"-")) -> 2.0889991 | F37: =IF(OR('Tabel 1 S'!E37<5,'Tabel 2 S'!F37<0.5),"-",IFERROR('Tabel 2 S'!F37/'Tabel 1 S'!E37*100,"-")) -> 3.063829787 | G37: =IF(OR('Tabel 1 S'!E37<5,'Tabel 2 S'!G37<0.5),"-",IFERROR('Tabel 2 S'!G37/'Tabel 1 S'!E37*100,"-")) -> 2.635043945 | I37: =IF(OR('Tabel 1 S'!G37<5,'Tabel 2 S'!I37<0.5),"-",IFERROR('Tabel 2 S'!I37/'Tabel 1 S'!G37*100,"-")) -> 2.651515152 | J37: =IF(OR('Tabel 1 S'!G37<5,'Tabel 2 S'!J37<0.5),"-",IFERROR('Tabel 2 S'!J37/'Tabel 1 S'!G37*100,"-")) -> 2.359033903
A38: HA | C38: =IF(OR('Tabel 1 S'!C38<5,'Tabel 2 S'!C38<0.5),"-",IFERROR('Tabel 2 S'!C38/'Tabel 1 S'!C38*100,"-")) -> 5.696202532 | D38: =IF(OR('Tabel 1 S'!C38<5,'Tabel 2 S'!D38<0.5),"-",IFERROR('Tabel 2 S'!D38/'Tabel 1 S'!C38*100,"-")) -> 4.99109037 | F38: =IF(OR('Tabel 1 S'!E38<5,'Tabel 2 S'!F38<0.5),"-",IFERROR('Tabel 2 S'!F38/'Tabel 1 S'!E38*100,"-")) -> 4.135338346 | G38: =IF(OR('Tabel 1 S'!E38<5,'Tabel 2 S'!G38<0.5),"-",IFERROR('Tabel 2 S'!G38/'Tabel 1 S'!E38*100,"-")) -> 3.803714988 | I38: =IF(OR('Tabel 1 S'!G38<5,'Tabel 2 S'!I38<0.5),"-",IFERROR('Tabel 2 S'!I38/'Tabel 1 S'!G38*100,"-")) -> 4.982817869 | J38: =IF(OR('Tabel 1 S'!G38<5,'Tabel 2 S'!J38<0.5),"-",IFERROR('Tabel 2 S'!J38/'Tabel 1 S'!G38*100,"-")) -> 4.448406776
A39: HD | C39: =IF(OR('Tabel 1 S'!C39<5,'Tabel 2 S'!C39<0.5),"-",IFERROR('Tabel 2 S'!C39/'Tabel 1 S'!C39*100,"-")) -> 2.272727273 | D39: =IF(OR('Tabel 1 S'!C39<5,'Tabel 2 S'!D39<0.5),"-",IFERROR('Tabel 2 S'!D39/'Tabel 1 S'!C39*100,"-")) -> 1.857167968 | F39: =IF(OR('Tabel 1 S'!E39<5,'Tabel 2 S'!F39<0.5),"-",IFERROR('Tabel 2 S'!F39/'Tabel 1 S'!E39*100,"-")) -> 3.703703704 | G39: =IF(OR('Tabel 1 S'!E39<5,'Tabel 2 S'!G39<0.5),"-",IFERROR('Tabel 2 S'!G39/'Tabel 1 S'!E39*100,"-")) -> 3.03944873 | I39: =IF(OR('Tabel 1 S'!G39<5,'Tabel 2 S'!I39<0.5),"-",IFERROR('Tabel 2 S'!I39/'Tabel 1 S'!G39*100,"-")) -> 2.86259542 | J39: =IF(OR('Tabel 1 S'!G39<5,'Tabel 2 S'!J39<0.5),"-",IFERROR('Tabel 2 S'!J39/'Tabel 1 S'!G39*100,"-")) -> 2.344520343
A40: Komm. og Sprog | C40: =IF(OR('Tabel 1 S'!C40<5,'Tabel 2 S'!C40<0.5),"-",IFERROR('Tabel 2 S'!C40/'Tabel 1 S'!C40*100,"-")) -> 10.76923077 | D40: =IF(OR('Tabel 1 S'!C40<5,'Tabel 2 S'!D40<0.5),"-",IFERROR('Tabel 2 S'!D40/'Tabel 1 S'!C40*100,"-")) -> 9.276060433 | F40: =IF(OR('Tabel 1 S'!E40<5,'Tabel 2 S'!F40<0.5),"-",IFERROR('Tabel 2 S'!F40/'Tabel 1 S'!E40*100,"-")) -> 5.225225225 | G40: =IF(OR('Tabel 1 S'!E40<5,'Tabel 2 S'!G40<0.5),"-",IFERROR('Tabel 2 S'!G40/'Tabel 1 S'!E40*100,"-")) -> 4.729996634 | I40: =IF(OR('Tabel 1 S'!G40<5,'Tabel 2 S'!I40<0.5),"-",IFERROR('Tabel 2 S'!I40/'Tabel 1 S'!G40*100,"-")) -> 5.806451613 | J40: =IF(OR('Tabel 1 S'!G40<5,'Tabel 2 S'!J40<0.5),"-",IFERROR('Tabel 2 S'!J40/'Tabel 1 S'!G40*100,"-")) -> 5.206600097
A41: Bygningskonst. | C41: =IF(OR('Tabel 1 S'!C41<5,'Tabel 2 S'!C41<0.5),"-",IFERROR('Tabel 2 S'!C41/'Tabel 1 S'!C41*100,"-")) -> 2.226345083 | D41: =IF(OR('Tabel 1 S'!C41<5,'Tabel 2 S'!D41<0.5),"-",IFERROR('Tabel 2 S'!D41/'Tabel 1 S'!C41*100,"-")) -> 2.048777643 | F41: =IF(OR('Tabel 1 S'!E41<5,'Tabel 2 S'!F41<0.5),"-",IFERROR('Tabel 2 S'!F41/'Tabel 1 S'!E41*100,"-")) -> 2.162162162 | G41: =IF(OR('Tabel 1 S'!E41<5,'Tabel 2 S'!G41<0.5),"-",IFERROR('Tabel 2 S'!G41/'Tabel 1 S'!E41*100,"-")) -> 1.92842128 | I41: =IF(OR('Tabel 1 S'!G41<5,'Tabel 2 S'!I41<0.5),"-",IFERROR('Tabel 2 S'!I41/'Tabel 1 S'!G41*100,"-")) -> 2.216943785 | J41: =IF(OR('Tabel 1 S'!G41<5,'Tabel 2 S'!J41<0.5),"-",IFERROR('Tabel 2 S'!J41/'Tabel 1 S'!G41*100,"-")) -> 2.031148247
A42: Cand. IT. | C42: =IF(OR('Tabel 1 S'!C42<5,'Tabel 2 S'!C42<0.5),"-",IFERROR('Tabel 2 S'!C42/'Tabel 1 S'!C42*100,"-")) -> 3.816793893 | D42: =IF(OR('Tabel 1 S'!C42<5,'Tabel 2 S'!D42<0.5),"-",IFERROR('Tabel 2 S'!D42/'Tabel 1 S'!C42*100,"-")) -> 3.794654441 | F42: =IF(OR('Tabel 1 S'!E42<5,'Tabel 2 S'!F42<0.5),"-",IFERROR('Tabel 2 S'!F42/'Tabel 1 S'!E42*100,"-")) -> 3.773584906 | G42: =IF(OR('Tabel 1 S'!E42<5,'Tabel 2 S'!G42<0.5),"-",IFERROR('Tabel 2 S'!G42/'Tabel 1 S'!E42*100,"-")) -> 3.521628151 | I42: =IF(OR('Tabel 1 S'!G42<5,'Tabel 2 S'!I42<0.5),"-",IFERROR('Tabel 2 S'!I42/'Tabel 1 S'!G42*100,"-")) -> 3.797468354 | J42: =IF(OR('Tabel 1 S'!G42<5,'Tabel 2 S'!J42<0.5),"-",IFERROR('Tabel 2 S'!J42/'Tabel 1 S'!G42*100,"-")) -> 3.672541417
A43: Bac. Samf. | C43: =IF(OR('Tabel 1 S'!C43<5,'Tabel 2 S'!C43<0.5),"-",IFERROR('Tabel 2 S'!C43/'Tabel 1 S'!C43*100,"-")) -> 4.166666667 | D43: =IF(OR('Tabel 1 S'!C43<5,'Tabel 2 S'!D43<0.5),"-",IFERROR('Tabel 2 S'!D43/'Tabel 1 S'!C43*100,"-")) -> 3.313478451 | F43: =IF(OR('Tabel 1 S'!E43<5,'Tabel 2 S'!F43<0.5),"-",IFERROR('Tabel 2 S'!F43/'Tabel 1 S'!E43*100,"-")) -> 5.660377358 | G43: =IF(OR('Tabel 1 S'!E43<5,'Tabel 2 S'!G43<0.5),"-",IFERROR('Tabel 2 S'!G43/'Tabel 1 S'!E43*100,"-")) -> 5.659318222 | I43: =IF(OR('Tabel 1 S'!G43<5,'Tabel 2 S'!I43<0.5),"-",IFERROR('Tabel 2 S'!I43/'Tabel 1 S'!G43*100,"-")) -> 4.95049505 | J43: =IF(OR('Tabel 1 S'!G43<5,'Tabel 2 S'!J43<0.5),"-",IFERROR('Tabel 2 S'!J43/'Tabel 1 S'!G43*100,"-")) -> 4.544463677
A44: Bac. Hum. | C44: =IF(OR('Tabel 1 S'!C44<5,'Tabel 2 S'!C44<0.5),"-",IFERROR('Tabel 2 S'!C44/'Tabel 1 S'!C44*100,"-")) -> 9.708737864 | D44: =IF(OR('Tabel 1 S'!C44<5,'Tabel 2 S'!D44<0.5),"-",IFERROR('Tabel 2 S'!D44/'Tabel 1 S'!C44*100,"-")) -> 8.314768266 | F44: =IF(OR('Tabel 1 S'!E44<5,'Tabel 2 S'!F44<0.5),"-",IFERROR('Tabel 2 S'!F44/'Tabel 1 S'!E44*100,"-")) -> 14.13612565 | G44: =IF(OR('Tabel 1 S'!E44<5,'Tabel 2 S'!G44<0.5),"-",IFERROR('Tabel 2 S'!G44/'Tabel 1 S'!E44*100,"-")) -> 11.25590773 | I44: =IF(OR('Tabel 1 S'!G44<5,'Tabel 2 S'!I44<0.5),"-",IFERROR('Tabel 2 S'!I44/'Tabel 1 S'!G44*100,"-")) -> 12.58503401 | J44: =IF(OR('Tabel 1 S'!G44<5,'Tabel 2 S'!J44<0.5),"-",IFERROR('Tabel 2 S'!J44/'Tabel 1 S'!G44*100,"-")) -> 10.22550853
A45: Bac. Nat. | C45: =IF(OR('Tabel 1 S'!C45<5,'Tabel 2 S'!C45<0.5),"-",IFERROR('Tabel 2 S'!C45/'Tabel 1 S'!C45*100,"-")) -> 5.056179775 | D45: =IF(OR('Tabel 1 S'!C45<5,'Tabel 2 S'!D45<0.5),"-",IFERROR('Tabel 2 S'!D45/'Tabel 1 S'!C45*100,"-")) -> 4.144892171 | F45: =IF(OR('Tabel 1 S'!E45<5,'Tabel 2 S'!F45<0.5),"-",IFERROR('Tabel 2 S'!F45/'Tabel 1 S'!E45*100,"-")) -> 6.818181818 | G45: =IF(OR('Tabel 1 S'!E45<5,'Tabel 2 S'!G45<0.5),"-",IFERROR('Tabel 2 S'!G45/'Tabel 1 S'!E45*100,"-")) -> 6.57734332 | I45: =IF(OR('Tabel 1 S'!G45<5,'Tabel 2 S'!I45<0.5),"-",IFERROR('Tabel 2 S'!I45/'Tabel 1 S'!G45*100,"-")) -> 5.639097744 | J45: =IF(OR('Tabel 1 S'!G45<5,'Tabel 2 S'!J45<0.5),"-",IFERROR('Tabel 2 S'!J45/'Tabel 1 S'!G45*100,"-")) -> 4.949612852
A46: Andre | C46: =IF(OR('Tabel 1 S'!C46<5,'Tabel 2 S'!C46<0.5),"-",IFERROR('Tabel 2 S'!C46/'Tabel 1 S'!C46*100,"-")) -> 3.892215569 | D46: =IF(OR('Tabel 1 S'!C46<5,'Tabel 2 S'!D46<0.5),"-",IFERROR('Tabel 2 S'!D46/'Tabel 1 S'!C46*100,"-")) -> 3.441691432 | F46: =IF(OR('Tabel 1 S'!E46<5,'Tabel 2 S'!F46<0.5),"-",IFERROR('Tabel 2 S'!F46/'Tabel 1 S'!E46*100,"-")) -> 6.46599777 | G46: =IF(OR('Tabel 1 S'!E46<5,'Tabel 2 S'!G46<0.5),"-",IFERROR('Tabel 2 S'!G46/'Tabel 1 S'!E46*100,"-")) -> 5.569268679 | I46: =IF(OR('Tabel 1 S'!G46<5,'Tabel 2 S'!I46<0.5),"-",IFERROR('Tabel 2 S'!I46/'Tabel 1 S'!G46*100,"-")) -> 5.107951553 | J46: =IF(OR('Tabel 1 S'!G46<5,'Tabel 2 S'!J46<0.5),"-",IFERROR('Tabel 2 S'!J46/'Tabel 1 S'!G46*100,"-")) -> 4.446660779
A48: Total | C48: =IF(OR('Tabel 1 S'!C48<5,'Tabel 2 S'!C48<0.5),"-",IFERROR('Tabel 2 S'!C48/'Tabel 1 S'!C48*100,"-")) -> 3.120796341 | D48: =IF(OR('Tabel 1 S'!C48<5,'Tabel 2 S'!D48<0.5),"-",IFERROR('Tabel 2 S'!D48/'Tabel 1 S'!C48*100,"-")) -> 2.734998358 | F48: =IF(OR('Tabel 1 S'!E48<5,'Tabel 2 S'!F48<0.5),"-",IFERROR('Tabel 2 S'!F48/'Tabel 1 S'!E48*100,"-")) -> 4.024185422 | G48: =IF(OR('Tabel 1 S'!E48<5,'Tabel 2 S'!G48<0.5),"-",IFERROR('Tabel 2 S'!G48/'Tabel 1 S'!E48*100,"-")) -> 3.451551397 | I48: =IF(OR('Tabel 1 S'!G48<5,'Tabel 2 S'!I48<0.5),"-",IFERROR('Tabel 2 S'!I48/'Tabel 1 S'!G48*100,"-")) -> 3.572748966 | J48: =IF(OR('Tabel 1 S'!G48<5,'Tabel 2 S'!J48<0.5),"-",IFERROR('Tabel 2 S'!J48/'Tabel 1 S'!G48*100,"-")) -> 3.093479586
A50: Ingeniører i alt | C50: =IF(OR('Tabel 1 S'!C50<5,'Tabel 2 S'!C50<0.5),"-",IFERROR('Tabel 2 S'!C50/'Tabel 1 S'!C50*100,"-")) -> 1.972346482 | D50: =IF(OR('Tabel 1 S'!C50<5,'Tabel 2 S'!D50<0.5),"-",IFERROR('Tabel 2 S'!D50/'Tabel 1 S'!C50*100,"-")) -> 1.736873676 | F50: =IF(OR('Tabel 1 S'!E50<5,'Tabel 2 S'!F50<0.5),"-",IFERROR('Tabel 2 S'!F50/'Tabel 1 S'!E50*100,"-")) -> 2.124645892 | G50: =IF(OR('Tabel 1 S'!E50<5,'Tabel 2 S'!G50<0.5),"-",IFERROR('Tabel 2 S'!G50/'Tabel 1 S'!E50*100,"-")) -> 1.829486246 | I50: =IF(OR('Tabel 1 S'!G50<5,'Tabel 2 S'!I50<0.5),"-",IFERROR('Tabel 2 S'!I50/'Tabel 1 S'!G50*100,"-")) -> 2.006319115 | J50: =IF(OR('Tabel 1 S'!G50<5,'Tabel 2 S'!J50<0.5),"-",IFERROR('Tabel 2 S'!J50/'Tabel 1 S'!G50*100,"-")) -> 1.757532278
A51: Magistre i alt | C51: =IF(OR('Tabel 1 S'!C51<5,'Tabel 2 S'!C51<0.5),"-",IFERROR('Tabel 2 S'!C51/'Tabel 1 S'!C51*100,"-")) -> 5.215646941 | D51: =IF(OR('Tabel 1 S'!C51<5,'Tabel 2 S'!D51<0.5),"-",IFERROR('Tabel 2 S'!D51/'Tabel 1 S'!C51*100,"-")) -> 4.402873687 | F51: =IF(OR('Tabel 1 S'!E51<5,'Tabel 2 S'!F51<0.5),"-",IFERROR('Tabel 2 S'!F51/'Tabel 1 S'!E51*100,"-")) -> 5.597118315 | G51: =IF(OR('Tabel 1 S'!E51<5,'Tabel 2 S'!G51<0.5),"-",IFERROR('Tabel 2 S'!G51/'Tabel 1 S'!E51*100,"-")) -> 4.850120622 | I51: =IF(OR('Tabel 1 S'!G51<5,'Tabel 2 S'!I51<0.5),"-",IFERROR('Tabel 2 S'!I51/'Tabel 1 S'!G51*100,"-")) -> 5.461359986 | J51: =IF(OR('Tabel 1 S'!G51<5,'Tabel 2 S'!J51<0.5),"-",IFERROR('Tabel 2 S'!J51/'Tabel 1 S'!G51*100,"-")) -> 4.690954035
A52: DJØF'ere i alt | C52: =IF(OR('Tabel 1 S'!C52<5,'Tabel 2 S'!C52<0.5),"-",IFERROR('Tabel 2 S'!C52/'Tabel 1 S'!C52*100,"-")) -> 3.071895425 | D52: =IF(OR('Tabel 1 S'!C52<5,'Tabel 2 S'!D52<0.5),"-",IFERROR('Tabel 2 S'!D52/'Tabel 1 S'!C52*100,"-")) -> 2.768126523 | F52: =IF(OR('Tabel 1 S'!E52<5,'Tabel 2 S'!F52<0.5),"-",IFERROR('Tabel 2 S'!F52/'Tabel 1 S'!E52*100,"-")) -> 3.127443315 | G52: =IF(OR('Tabel 1 S'!E52<5,'Tabel 2 S'!G52<0.5),"-",IFERROR('Tabel 2 S'!G52/'Tabel 1 S'!E52*100,"-")) -> 2.605633829 | I52: =IF(OR('Tabel 1 S'!G52<5,'Tabel 2 S'!I52<0.5),"-",IFERROR('Tabel 2 S'!I52/'Tabel 1 S'!G52*100,"-")) -> 3.102798318 | J52: =IF(OR('Tabel 1 S'!G52<5,'Tabel 2 S'!J52<0.5),"-",IFERROR('Tabel 2 S'!J52/'Tabel 1 S'!G52*100,"-")) -> 2.677727152
A56: ='Tabel 2 S'!A56 -> Greve
C58: Mænd | F58: Kvinder | I58: I alt
C59: Ledigheds- berørte | D59: Gns. brutto- ledighed | F59: Ledigheds- berørte | G59: Gns. brutto- ledighed | I59: Ledigheds- berørte | J59: Gns. brutto- ledighed
A62: Civ. ing. | C62: =IF(OR('Tabel 1 S'!C62<5,'Tabel 2 S'!C62<0.5),"-",IFERROR('Tabel 2 S'!C62/'Tabel 1 S'!C62*100,"-")) -> 1.438848921 | D62: =IF(OR('Tabel 1 S'!C62<5,'Tabel 2 S'!D62<0.5),"-",IFERROR('Tabel 2 S'!D62/'Tabel 1 S'!C62*100,"-")) -> 1.0692874 | F62: =IF(OR('Tabel 1 S'!E62<5,'Tabel 2 S'!F62<0.5),"-",IFERROR('Tabel 2 S'!F62/'Tabel 1 S'!E62*100,"-")) -> - | G62: =IF(OR('Tabel 1 S'!E62<5,'Tabel 2 S'!G62<0.5),"-",IFERROR('Tabel 2 S'!G62/'Tabel 1 S'!E62*100,"-")) -> - | I62: =IF(OR('Tabel 1 S'!G62<5,'Tabel 2 S'!I62<0.5),"-",IFERROR('Tabel 2 S'!I62/'Tabel 1 S'!G62*100,"-")) -> 1.020408163 | J62: =IF(OR('Tabel 1 S'!G62<5,'Tabel 2 S'!J62<0.5),"-",IFERROR('Tabel 2 S'!J62/'Tabel 1 S'!G62*100,"-")) -> 0.7583211667
A63: Diplom ing. | C63: =IF(OR('Tabel 1 S'!C63<5,'Tabel 2 S'!C63<0.5),"-",IFERROR('Tabel 2 S'!C63/'Tabel 1 S'!C63*100,"-")) -> 1.342281879 | D63: =IF(OR('Tabel 1 S'!C63<5,'Tabel 2 S'!D63<0.5),"-",IFERROR('Tabel 2 S'!D63/'Tabel 1 S'!C63*100,"-")) -> 1.202637011 | F63: =IF(OR('Tabel 1 S'!E63<5,'Tabel 2 S'!F63<0.5),"-",IFERROR('Tabel 2 S'!F63/'Tabel 1 S'!E63*100,"-")) -> 2.985074627 | G63: =IF(OR('Tabel 1 S'!E63<5,'Tabel 2 S'!G63<0.5),"-",IFERROR('Tabel 2 S'!G63/'Tabel 1 S'!E63*100,"-")) -> 1.744536222 | I63: =IF(OR('Tabel 1 S'!G63<5,'Tabel 2 S'!I63<0.5),"-",IFERROR('Tabel 2 S'!I63/'Tabel 1 S'!G63*100,"-")) -> 1.643835616 | J63: =IF(OR('Tabel 1 S'!G63<5,'Tabel 2 S'!J63<0.5),"-",IFERROR('Tabel 2 S'!J63/'Tabel 1 S'!G63*100,"-")) -> 1.302108921
A64: Cand. Scient. Tek. | C64: =IF(OR('Tabel 1 S'!C64<5,'Tabel 2 S'!C64<0.5),"-",IFERROR('Tabel 2 S'!C64/'Tabel 1 S'!C64*100,"-")) -> 2.083333333 | D64: =IF(OR('Tabel 1 S'!C64<5,'Tabel 2 S'!D64<0.5),"-",IFERROR('Tabel 2 S'!D64/'Tabel 1 S'!C64*100,"-")) -> 1.273415248 | F64: =IF(OR('Tabel 1 S'!E64<5,'Tabel 2 S'!F64<0.5),"-",IFERROR('Tabel 2 S'!F64/'Tabel 1 S'!E64*100,"-")) -> 2.272727273 | G64: =IF(OR('Tabel 1 S'!E64<5,'Tabel 2 S'!G64<0.5),"-",IFERROR('Tabel 2 S'!G64/'Tabel 1 S'!E64*100,"-")) -> 2.272302013 | I64: =IF(OR('Tabel 1 S'!G64<5,'Tabel 2 S'!I64<0.5),"-",IFERROR('Tabel 2 S'!I64/'Tabel 1 S'!G64*100,"-")) -> 2.173913043 | J64: =IF(OR('Tabel 1 S'!G64<5,'Tabel 2 S'!J64<0.5),"-",IFERROR('Tabel 2 S'!J64/'Tabel 1 S'!G64*100,"-")) -> 1.751143701
A65: MA. Hum. | C65: =IF(OR('Tabel 1 S'!C65<5,'Tabel 2 S'!C65<0.5),"-",IFERROR('Tabel 2 S'!C65/'Tabel 1 S'!C65*100,"-")) -> 6.25 | D65: =IF(OR('Tabel 1 S'!C65<5,'Tabel 2 S'!D65<0.5),"-",IFERROR('Tabel 2 S'!D65/'Tabel 1 S'!C65*100,"-")) -> 3.617538826 | F65: =IF(OR('Tabel 1 S'!E65<5,'Tabel 2 S'!F65<0.5),"-",IFERROR('Tabel 2 S'!F65/'Tabel 1 S'!E65*100,"-")) -> 5.405405405 | G65: =IF(OR('Tabel 1 S'!E65<5,'Tabel 2 S'!G65<0.5),"-",IFERROR('Tabel 2 S'!G65/'Tabel 1 S'!E65*100,"-")) -> 3.887252811 | I65: =IF(OR('Tabel 1 S'!G65<5,'Tabel 2 S'!I65<0.5),"-",IFERROR('Tabel 2 S'!I65/'Tabel 1 S'!G65*100,"-")) -> 5.594405594 | J65: =IF(OR('Tabel 1 S'!G65<5,'Tabel 2 S'!J65<0.5),"-",IFERROR('Tabel 2 S'!J65/'Tabel 1 S'!G65*100,"-")) -> 3.826897234
A66: MA. Nat. | C66: =IF(OR('Tabel 1 S'!C66<5,'Tabel 2 S'!C66<0.5),"-",IFERROR('Tabel 2 S'!C66/'Tabel 1 S'!C66*100,"-")) -> - | D66: =IF(OR('Tabel 1 S'!C66<5,'Tabel 2 S'!D66<0.5),"-",IFERROR('Tabel 2 S'!D66/'Tabel 1 S'!C66*100,"-")) -> - | F66: =IF(OR('Tabel 1 S'!E66<5,'Tabel 2 S'!F66<0.5),"-",IFERROR('Tabel 2 S'!F66/'Tabel 1 S'!E66*100,"-")) -> - | G66: =IF(OR('Tabel 1 S'!E66<5,'Tabel 2 S'!G66<0.5),"-",IFERROR('Tabel 2 S'!G66/'Tabel 1 S'!E66*100,"-")) -> - | I66: =IF(OR('Tabel 1 S'!G66<5,'Tabel 2 S'!I66<0.5),"-",IFERROR('Tabel 2 S'!I66/'Tabel 1 S'!G66*100,"-")) -> - | J66: =IF(OR('Tabel 1 S'!G66<5,'Tabel 2 S'!J66<0.5),"-",IFERROR('Tabel 2 S'!J66/'Tabel 1 S'!G66*100,"-")) -> -
A67: MA. Ph.d. | C67: =IF(OR('Tabel 1 S'!C67<5,'Tabel 2 S'!C67<0.5),"-",IFERROR('Tabel 2 S'!C67/'Tabel 1 S'!C67*100,"-")) -> - | D67: =IF(OR('Tabel 1 S'!C67<5,'Tabel 2 S'!D67<0.5),"-",IFERROR('Tabel 2 S'!D67/'Tabel 1 S'!C67*100,"-")) -> - | F67: =IF(OR('Tabel 1 S'!E67<5,'Tabel 2 S'!F67<0.5),"-",IFERROR('Tabel 2 S'!F67/'Tabel 1 S'!E67*100,"-")) -> - | G67: =IF(OR('Tabel 1 S'!E67<5,'Tabel 2 S'!G67<0.5),"-",IFERROR('Tabel 2 S'!G67/'Tabel 1 S'!E67*100,"-")) -> - | I67: =IF(OR('Tabel 1 S'!G67<5,'Tabel 2 S'!I67<0.5),"-",IFERROR('Tabel 2 S'!I67/'Tabel 1 S'!G67*100,"-")) -> - | J67: =IF(OR('Tabel 1 S'!G67<5,'Tabel 2 S'!J67<0.5),"-",IFERROR('Tabel 2 S'!J67/'Tabel 1 S'!G67*100,"-")) -> -
A68: MA. Samf. | C68: =IF(OR('Tabel 1 S'!C68<5,'Tabel 2 S'!C68<0.5),"-",IFERROR('Tabel 2 S'!C68/'Tabel 1 S'!C68*100,"-")) -> 16.66666667 | D68: =IF(OR('Tabel 1 S'!C68<5,'Tabel 2 S'!D68<0.5),"-",IFERROR('Tabel 2 S'!D68/'Tabel 1 S'!C68*100,"-")) -> 16.6635481 | F68: =IF(OR('Tabel 1 S'!E68<5,'Tabel 2 S'!F68<0.5),"-",IFERROR('Tabel 2 S'!F68/'Tabel 1 S'!E68*100,"-")) -> 10 | G68: =IF(OR('Tabel 1 S'!E68<5,'Tabel 2 S'!G68<0.5),"-",IFERROR('Tabel 2 S'!G68/'Tabel 1 S'!E68*100,"-")) -> - | I68: =IF(OR('Tabel 1 S'!G68<5,'Tabel 2 S'!I68<0.5),"-",IFERROR('Tabel 2 S'!I68/'Tabel 1 S'!G68*100,"-")) -> 12.5 | J68: =IF(OR('Tabel 1 S'!G68<5,'Tabel 2 S'!J68<0.5),"-",IFERROR('Tabel 2 S'!J68/'Tabel 1 S'!G68*100,"-")) -> 8.74758311
A69: Øvrige Mag. | C69: =IF(OR('Tabel 1 S'!C69<5,'Tabel 2 S'!C69<0.5),"-",IFERROR('Tabel 2 S'!C69/'Tabel 1 S'!C69*100,"-")) -> - | D69: =IF(OR('Tabel 1 S'!C69<5,'Tabel 2 S'!D69<0.5),"-",IFERROR('Tabel 2 S'!D69/'Tabel 1 S'!C69*100,"-")) -> - | F69: =IF(OR('Tabel 1 S'!E69<5,'Tabel 2 S'!F69<0.5),"-",IFERROR('Tabel 2 S'!F69/'Tabel 1 S'!E69*100,"-")) -> - | G69: =IF(OR('Tabel 1 S'!E69<5,'Tabel 2 S'!G69<0.5),"-",IFERROR('Tabel 2 S'!G69/'Tabel 1 S'!E69*100,"-")) -> - | I69: =IF(OR('Tabel 1 S'!G69<5,'Tabel 2 S'!I69<0.5),"-",IFERROR('Tabel 2 S'!I69/'Tabel 1 S'!G69*100,"-")) -> - | J69: =IF(OR('Tabel 1 S'!G69<5,'Tabel 2 S'!J69<0.5),"-",IFERROR('Tabel 2 S'!J69/'Tabel 1 S'!G69*100,"-")) -> -
A70: Agronom | C70: =IF(OR('Tabel 1 S'!C70<5,'Tabel 2 S'!C70<0.5),"-",IFERROR('Tabel 2 S'!C70/'Tabel 1 S'!C70*100,"-")) -> - | D70: =IF(OR('Tabel 1 S'!C70<5,'Tabel 2 S'!D70<0.5),"-",IFERROR('Tabel 2 S'!D70/'Tabel 1 S'!C70*100,"-")) -> - | F70: =IF(OR('Tabel 1 S'!E70<5,'Tabel 2 S'!F70<0.5),"-",IFERROR('Tabel 2 S'!F70/'Tabel 1 S'!E70*100,"-")) -> 9.090909091 | G70: =IF(OR('Tabel 1 S'!E70<5,'Tabel 2 S'!G70<0.5),"-",IFERROR('Tabel 2 S'!G70/'Tabel 1 S'!E70*100,"-")) -> 9.089208054 | I70: =IF(OR('Tabel 1 S'!G70<5,'Tabel 2 S'!I70<0.5),"-",IFERROR('Tabel 2 S'!I70/'Tabel 1 S'!G70*100,"-")) -> 6.25 | J70: =IF(OR('Tabel 1 S'!G70<5,'Tabel 2 S'!J70<0.5),"-",IFERROR('Tabel 2 S'!J70/'Tabel 1 S'!G70*100,"-")) -> 6.248830537
A71: Landsk. Arkt. | C71: =IF(OR('Tabel 1 S'!C71<5,'Tabel 2 S'!C71<0.5),"-",IFERROR('Tabel 2 S'!C71/'Tabel 1 S'!C71*100,"-")) -> - | D71: =IF(OR('Tabel 1 S'!C71<5,'Tabel 2 S'!D71<0.5),"-",IFERROR('Tabel 2 S'!D71/'Tabel 1 S'!C71*100,"-")) -> - | F71: =IF(OR('Tabel 1 S'!E71<5,'Tabel 2 S'!F71<0.5),"-",IFERROR('Tabel 2 S'!F71/'Tabel 1 S'!E71*100,"-")) -> - | G71: =IF(OR('Tabel 1 S'!E71<5,'Tabel 2 S'!G71<0.5),"-",IFERROR('Tabel 2 S'!G71/'Tabel 1 S'!E71*100,"-")) -> - | I71: =IF(OR('Tabel 1 S'!G71<5,'Tabel 2 S'!I71<0.5),"-",IFERROR('Tabel 2 S'!I71/'Tabel 1 S'!G71*100,"-")) -> - | J71: =IF(OR('Tabel 1 S'!G71<5,'Tabel 2 S'!J71<0.5),"-",IFERROR('Tabel 2 S'!J71/'Tabel 1 S'!G71*100,"-")) -> -
A72: Hortonom | C72: =IF(OR('Tabel 1 S'!C72<5,'Tabel 2 S'!C72<0.5),"-",IFERROR('Tabel 2 S'!C72/'Tabel 1 S'!C72*100,"-")) -> - | D72: =IF(OR('Tabel 1 S'!C72<5,'Tabel 2 S'!D72<0.5),"-",IFERROR('Tabel 2 S'!D72/'Tabel 1 S'!C72*100,"-")) -> - | F72: =IF(OR('Tabel 1 S'!E72<5,'Tabel 2 S'!F72<0.5),"-",IFERROR('Tabel 2 S'!F72/'Tabel 1 S'!E72*100,"-")) -> - | G72: =IF(OR('Tabel 1 S'!E72<5,'Tabel 2 S'!G72<0.5),"-",IFERROR('Tabel 2 S'!G72/'Tabel 1 S'!E72*100,"-")) -> - | I72: =IF(OR('Tabel 1 S'!G72<5,'Tabel 2 S'!I72<0.5),"-",IFERROR('Tabel 2 S'!I72/'Tabel 1 S'!G72*100,"-")) -> - | J72: =IF(OR('Tabel 1 S'!G72<5,'Tabel 2 S'!J72<0.5),"-",IFERROR('Tabel 2 S'!J72/'Tabel 1 S'!G72*100,"-")) -> -
A73: Forstkand. | C73: =IF(OR('Tabel 1 S'!C73<5,'Tabel 2 S'!C73<0.5),"-",IFERROR('Tabel 2 S'!C73/'Tabel 1 S'!C73*100,"-")) -> - | D73: =IF(OR('Tabel 1 S'!C73<5,'Tabel 2 S'!D73<0.5),"-",IFERROR('Tabel 2 S'!D73/'Tabel 1 S'!C73*100,"-")) -> - | F73: =IF(OR('Tabel 1 S'!E73<5,'Tabel 2 S'!F73<0.5),"-",IFERROR('Tabel 2 S'!F73/'Tabel 1 S'!E73*100,"-")) -> - | G73: =IF(OR('Tabel 1 S'!E73<5,'Tabel 2 S'!G73<0.5),"-",IFERROR('Tabel 2 S'!G73/'Tabel 1 S'!E73*100,"-")) -> - | I73: =IF(OR('Tabel 1 S'!G73<5,'Tabel 2 S'!I73<0.5),"-",IFERROR('Tabel 2 S'!I73/'Tabel 1 S'!G73*100,"-")) -> - | J73: =IF(OR('Tabel 1 S'!G73<5,'Tabel 2 S'!J73<0.5),"-",IFERROR('Tabel 2 S'!J73/'Tabel 1 S'!G73*100,"-")) -> -
A74: Jordbrugsakad. | C74: =IF(OR('Tabel 1 S'!C74<5,'Tabel 2 S'!C74<0.5),"-",IFERROR('Tabel 2 S'!C74/'Tabel 1 S'!C74*100,"-")) -> - | D74: =IF(OR('Tabel 1 S'!C74<5,'Tabel 2 S'!D74<0.5),"-",IFERROR('Tabel 2 S'!D74/'Tabel 1 S'!C74*100,"-")) -> - | F74: =IF(OR('Tabel 1 S'!E74<5,'Tabel 2 S'!F74<0.5),"-",IFERROR('Tabel 2 S'!F74/'Tabel 1 S'!E74*100,"-")) -> 13.33333333 | G74: =IF(OR('Tabel 1 S'!E74<5,'Tabel 2 S'!G74<0.5),"-",IFERROR('Tabel 2 S'!G74/'Tabel 1 S'!E74*100,"-")) -> 11.4638558 | I74: =IF(OR('Tabel 1 S'!G74<5,'Tabel 2 S'!I74<0.5),"-",IFERROR('Tabel 2 S'!I74/'Tabel 1 S'!G74*100,"-")) -> 9.090909091 | J74: =IF(OR('Tabel 1 S'!G74<5,'Tabel 2 S'!J74<0.5),"-",IFERROR('Tabel 2 S'!J74/'Tabel 1 S'!G74*100,"-")) -> 7.816265316
A75: Mejeriing. | C75: =IF(OR('Tabel 1 S'!C75<5,'Tabel 2 S'!C75<0.5),"-",IFERROR('Tabel 2 S'!C75/'Tabel 1 S'!C75*100,"-")) -> - | D75: =IF(OR('Tabel 1 S'!C75<5,'Tabel 2 S'!D75<0.5),"-",IFERROR('Tabel 2 S'!D75/'Tabel 1 S'!C75*100,"-")) -> - | F75: =IF(OR('Tabel 1 S'!E75<5,'Tabel 2 S'!F75<0.5),"-",IFERROR('Tabel 2 S'!F75/'Tabel 1 S'!E75*100,"-")) -> - | G75: =IF(OR('Tabel 1 S'!E75<5,'Tabel 2 S'!G75<0.5),"-",IFERROR('Tabel 2 S'!G75/'Tabel 1 S'!E75*100,"-")) -> - | I75: =IF(OR('Tabel 1 S'!G75<5,'Tabel 2 S'!I75<0.5),"-",IFERROR('Tabel 2 S'!I75/'Tabel 1 S'!G75*100,"-")) -> - | J75: =IF(OR('Tabel 1 S'!G75<5,'Tabel 2 S'!J75<0.5),"-",IFERROR('Tabel 2 S'!J75/'Tabel 1 S'!G75*100,"-")) -> -
A76: Levn.m.kand. | C76: =IF(OR('Tabel 1 S'!C76<5,'Tabel 2 S'!C76<0.5),"-",IFERROR('Tabel 2 S'!C76/'Tabel 1 S'!C76*100,"-")) -> - | D76: =IF(OR('Tabel 1 S'!C76<5,'Tabel 2 S'!D76<0.5),"-",IFERROR('Tabel 2 S'!D76/'Tabel 1 S'!C76*100,"-")) -> - | F76: =IF(OR('Tabel 1 S'!E76<5,'Tabel 2 S'!F76<0.5),"-",IFERROR('Tabel 2 S'!F76/'Tabel 1 S'!E76*100,"-")) -> - | G76: =IF(OR('Tabel 1 S'!E76<5,'Tabel 2 S'!G76<0.5),"-",IFERROR('Tabel 2 S'!G76/'Tabel 1 S'!E76*100,"-")) -> - | I76: =IF(OR('Tabel 1 S'!G76<5,'Tabel 2 S'!I76<0.5),"-",IFERROR('Tabel 2 S'!I76/'Tabel 1 S'!G76*100,"-")) -> - | J76: =IF(OR('Tabel 1 S'!G76<5,'Tabel 2 S'!J76<0.5),"-",IFERROR('Tabel 2 S'!J76/'Tabel 1 S'!G76*100,"-")) -> -
A77: Dyrlæge | C77: =IF(OR('Tabel 1 S'!C77<5,'Tabel 2 S'!C77<0.5),"-",IFERROR('Tabel 2 S'!C77/'Tabel 1 S'!C77*100,"-")) -> - | D77: =IF(OR('Tabel 1 S'!C77<5,'Tabel 2 S'!D77<0.5),"-",IFERROR('Tabel 2 S'!D77/'Tabel 1 S'!C77*100,"-")) -> - | F77: =IF(OR('Tabel 1 S'!E77<5,'Tabel 2 S'!F77<0.5),"-",IFERROR('Tabel 2 S'!F77/'Tabel 1 S'!E77*100,"-")) -> - | G77: =IF(OR('Tabel 1 S'!E77<5,'Tabel 2 S'!G77<0.5),"-",IFERROR('Tabel 2 S'!G77/'Tabel 1 S'!E77*100,"-")) -> - | I77: =IF(OR('Tabel 1 S'!G77<5,'Tabel 2 S'!I77<0.5),"-",IFERROR('Tabel 2 S'!I77/'Tabel 1 S'!G77*100,"-")) -> 6.666666667 | J77: =IF(OR('Tabel 1 S'!G77<5,'Tabel 2 S'!J77<0.5),"-",IFERROR('Tabel 2 S'!J77/'Tabel 1 S'!G77*100,"-")) -> 5.43462442
A78: Farmaceut | C78: =IF(OR('Tabel 1 S'!C78<5,'Tabel 2 S'!C78<0.5),"-",IFERROR('Tabel 2 S'!C78/'Tabel 1 S'!C78*100,"-")) -> - | D78: =IF(OR('Tabel 1 S'!C78<5,'Tabel 2 S'!D78<0.5),"-",IFERROR('Tabel 2 S'!D78/'Tabel 1 S'!C78*100,"-")) -> - | F78: =IF(OR('Tabel 1 S'!E78<5,'Tabel 2 S'!F78<0.5),"-",IFERROR('Tabel 2 S'!F78/'Tabel 1 S'!E78*100,"-")) -> - | G78: =IF(OR('Tabel 1 S'!E78<5,'Tabel 2 S'!G78<0.5),"-",IFERROR('Tabel 2 S'!G78/'Tabel 1 S'!E78*100,"-")) -> - | I78: =IF(OR('Tabel 1 S'!G78<5,'Tabel 2 S'!I78<0.5),"-",IFERROR('Tabel 2 S'!I78/'Tabel 1 S'!G78*100,"-")) -> - | J78: =IF(OR('Tabel 1 S'!G78<5,'Tabel 2 S'!J78<0.5),"-",IFERROR('Tabel 2 S'!J78/'Tabel 1 S'!G78*100,"-")) -> -
A79: Læge | C79: =IF(OR('Tabel 1 S'!C79<5,'Tabel 2 S'!C79<0.5),"-",IFERROR('Tabel 2 S'!C79/'Tabel 1 S'!C79*100,"-")) -> 10 | D79: =IF(OR('Tabel 1 S'!C79<5,'Tabel 2 S'!D79<0.5),"-",IFERROR('Tabel 2 S'!D79/'Tabel 1 S'!C79*100,"-")) -> 9.998128859 | F79: =IF(OR('Tabel 1 S'!E79<5,'Tabel 2 S'!F79<0.5),"-",IFERROR('Tabel 2 S'!F79/'Tabel 1 S'!E79*100,"-")) -> - | G79: =IF(OR('Tabel 1 S'!E79<5,'Tabel 2 S'!G79<0.5),"-",IFERROR('Tabel 2 S'!G79/'Tabel 1 S'!E79*100,"-")) -> - | I79: =IF(OR('Tabel 1 S'!G79<5,'Tabel 2 S'!I79<0.5),"-",IFERROR('Tabel 2 S'!I79/'Tabel 1 S'!G79*100,"-")) -> 2.380952381 | J79: =IF(OR('Tabel 1 S'!G79<5,'Tabel 2 S'!J79<0.5),"-",IFERROR('Tabel 2 S'!J79/'Tabel 1 S'!G79*100,"-")) -> 2.380506871
A80: Tandlæge | C80: =IF(OR('Tabel 1 S'!C80<5,'Tabel 2 S'!C80<0.5),"-",IFERROR('Tabel 2 S'!C80/'Tabel 1 S'!C80*100,"-")) -> - | D80: =IF(OR('Tabel 1 S'!C80<5,'Tabel 2 S'!D80<0.5),"-",IFERROR('Tabel 2 S'!D80/'Tabel 1 S'!C80*100,"-")) -> - | F80: =IF(OR('Tabel 1 S'!E80<5,'Tabel 2 S'!F80<0.5),"-",IFERROR('Tabel 2 S'!F80/'Tabel 1 S'!E80*100,"-")) -> - | G80: =IF(OR('Tabel 1 S'!E80<5,'Tabel 2 S'!G80<0.5),"-",IFERROR('Tabel 2 S'!G80/'Tabel 1 S'!E80*100,"-")) -> - | I80: =IF(OR('Tabel 1 S'!G80<5,'Tabel 2 S'!I80<0.5),"-",IFERROR('Tabel 2 S'!I80/'Tabel 1 S'!G80*100,"-")) -> - | J80: =IF(OR('Tabel 1 S'!G80<5,'Tabel 2 S'!J80<0.5),"-",IFERROR('Tabel 2 S'!J80/'Tabel 1 S'!G80*100,"-")) -> -
A81: Arkitekt | C81: =IF(OR('Tabel 1 S'!C81<5,'Tabel 2 S'!C81<0.5),"-",IFERROR('Tabel 2 S'!C81/'Tabel 1 S'!C81*100,"-")) -> - | D81: =IF(OR('Tabel 1 S'!C81<5,'Tabel 2 S'!D81<0.5),"-",IFERROR('Tabel 2 S'!D81/'Tabel 1 S'!C81*100,"-")) -> - | F81: =IF(OR('Tabel 1 S'!E81<5,'Tabel 2 S'!F81<0.5),"-",IFERROR('Tabel 2 S'!F81/'Tabel 1 S'!E81*100,"-")) -> - | G81: =IF(OR('Tabel 1 S'!E81<5,'Tabel 2 S'!G81<0.5),"-",IFERROR('Tabel 2 S'!G81/'Tabel 1 S'!E81*100,"-")) -> - | I81: =IF(OR('Tabel 1 S'!G81<5,'Tabel 2 S'!I81<0.5),"-",IFERROR('Tabel 2 S'!I81/'Tabel 1 S'!G81*100,"-")) -> - | J81: =IF(OR('Tabel 1 S'!G81<5,'Tabel 2 S'!J81<0.5),"-",IFERROR('Tabel 2 S'!J81/'Tabel 1 S'!G81*100,"-")) -> -
A82: Landinspek. | C82: =IF(OR('Tabel 1 S'!C82<5,'Tabel 2 S'!C82<0.5),"-",IFERROR('Tabel 2 S'!C82/'Tabel 1 S'!C82*100,"-")) -> - | D82: =IF(OR('Tabel 1 S'!C82<5,'Tabel 2 S'!D82<0.5),"-",IFERROR('Tabel 2 S'!D82/'Tabel 1 S'!C82*100,"-")) -> - | F82: =IF(OR('Tabel 1 S'!E82<5,'Tabel 2 S'!F82<0.5),"-",IFERROR('Tabel 2 S'!F82/'Tabel 1 S'!E82*100,"-")) -> - | G82: =IF(OR('Tabel 1 S'!E82<5,'Tabel 2 S'!G82<0.5),"-",IFERROR('Tabel 2 S'!G82/'Tabel 1 S'!E82*100,"-")) -> - | I82: =IF(OR('Tabel 1 S'!G82<5,'Tabel 2 S'!I82<0.5),"-",IFERROR('Tabel 2 S'!I82/'Tabel 1 S'!G82*100,"-")) -> - | J82: =IF(OR('Tabel 1 S'!G82<5,'Tabel 2 S'!J82<0.5),"-",IFERROR('Tabel 2 S'!J82/'Tabel 1 S'!G82*100,"-")) -> -
A83: Bibliotekar | C83: =IF(OR('Tabel 1 S'!C83<5,'Tabel 2 S'!C83<0.5),"-",IFERROR('Tabel 2 S'!C83/'Tabel 1 S'!C83*100,"-")) -> - | D83: =IF(OR('Tabel 1 S'!C83<5,'Tabel 2 S'!D83<0.5),"-",IFERROR('Tabel 2 S'!D83/'Tabel 1 S'!C83*100,"-")) -> - | F83: =IF(OR('Tabel 1 S'!E83<5,'Tabel 2 S'!F83<0.5),"-",IFERROR('Tabel 2 S'!F83/'Tabel 1 S'!E83*100,"-")) -> 5.882352941 | G83: =IF(OR('Tabel 1 S'!E83<5,'Tabel 2 S'!G83<0.5),"-",IFERROR('Tabel 2 S'!G83/'Tabel 1 S'!E83*100,"-")) -> - | I83: =IF(OR('Tabel 1 S'!G83<5,'Tabel 2 S'!I83<0.5),"-",IFERROR('Tabel 2 S'!I83/'Tabel 1 S'!G83*100,"-")) -> 4.545454545 | J83: =IF(OR('Tabel 1 S'!G83<5,'Tabel 2 S'!J83<0.5),"-",IFERROR('Tabel 2 S'!J83/'Tabel 1 S'!G83*100,"-")) -> -
A84: Musikudd. | C84: =IF(OR('Tabel 1 S'!C84<5,'Tabel 2 S'!C84<0.5),"-",IFERROR('Tabel 2 S'!C84/'Tabel 1 S'!C84*100,"-")) -> - | D84: =IF(OR('Tabel 1 S'!C84<5,'Tabel 2 S'!D84<0.5),"-",IFERROR('Tabel 2 S'!D84/'Tabel 1 S'!C84*100,"-")) -> - | F84: =IF(OR('Tabel 1 S'!E84<5,'Tabel 2 S'!F84<0.5),"-",IFERROR('Tabel 2 S'!F84/'Tabel 1 S'!E84*100,"-")) -> - | G84: =IF(OR('Tabel 1 S'!E84<5,'Tabel 2 S'!G84<0.5),"-",IFERROR('Tabel 2 S'!G84/'Tabel 1 S'!E84*100,"-")) -> - | I84: =IF(OR('Tabel 1 S'!G84<5,'Tabel 2 S'!I84<0.5),"-",IFERROR('Tabel 2 S'!I84/'Tabel 1 S'!G84*100,"-")) -> - | J84: =IF(OR('Tabel 1 S'!G84<5,'Tabel 2 S'!J84<0.5),"-",IFERROR('Tabel 2 S'!J84/'Tabel 1 S'!G84*100,"-")) -> -
A85: Teolog | C85: =IF(OR('Tabel 1 S'!C85<5,'Tabel 2 S'!C85<0.5),"-",IFERROR('Tabel 2 S'!C85/'Tabel 1 S'!C85*100,"-")) -> - | D85: =IF(OR('Tabel 1 S'!C85<5,'Tabel 2 S'!D85<0.5),"-",IFERROR('Tabel 2 S'!D85/'Tabel 1 S'!C85*100,"-")) -> - | F85: =IF(OR('Tabel 1 S'!E85<5,'Tabel 2 S'!F85<0.5),"-",IFERROR('Tabel 2 S'!F85/'Tabel 1 S'!E85*100,"-")) -> - | G85: =IF(OR('Tabel 1 S'!E85<5,'Tabel 2 S'!G85<0.5),"-",IFERROR('Tabel 2 S'!G85/'Tabel 1 S'!E85*100,"-")) -> - | I85: =IF(OR('Tabel 1 S'!G85<5,'Tabel 2 S'!I85<0.5),"-",IFERROR('Tabel 2 S'!I85/'Tabel 1 S'!G85*100,"-")) -> - | J85: =IF(OR('Tabel 1 S'!G85<5,'Tabel 2 S'!J85<0.5),"-",IFERROR('Tabel 2 S'!J85/'Tabel 1 S'!G85*100,"-")) -> -
A86: Psykolog | C86: =IF(OR('Tabel 1 S'!C86<5,'Tabel 2 S'!C86<0.5),"-",IFERROR('Tabel 2 S'!C86/'Tabel 1 S'!C86*100,"-")) -> - | D86: =IF(OR('Tabel 1 S'!C86<5,'Tabel 2 S'!D86<0.5),"-",IFERROR('Tabel 2 S'!D86/'Tabel 1 S'!C86*100,"-")) -> - | F86: =IF(OR('Tabel 1 S'!E86<5,'Tabel 2 S'!F86<0.5),"-",IFERROR('Tabel 2 S'!F86/'Tabel 1 S'!E86*100,"-")) -> 4.347826087 | G86: =IF(OR('Tabel 1 S'!E86<5,'Tabel 2 S'!G86<0.5),"-",IFERROR('Tabel 2 S'!G86/'Tabel 1 S'!E86*100,"-")) -> 4.347012547 | I86: =IF(OR('Tabel 1 S'!G86<5,'Tabel 2 S'!I86<0.5),"-",IFERROR('Tabel 2 S'!I86/'Tabel 1 S'!G86*100,"-")) -> 3.571428571 | J86: =IF(OR('Tabel 1 S'!G86<5,'Tabel 2 S'!J86<0.5),"-",IFERROR('Tabel 2 S'!J86/'Tabel 1 S'!G86*100,"-")) -> 3.570760307
A87: Jurist | C87: =IF(OR('Tabel 1 S'!C87<5,'Tabel 2 S'!C87<0.5),"-",IFERROR('Tabel 2 S'!C87/'Tabel 1 S'!C87*100,"-")) -> - | D87: =IF(OR('Tabel 1 S'!C87<5,'Tabel 2 S'!D87<0.5),"-",IFERROR('Tabel 2 S'!D87/'Tabel 1 S'!C87*100,"-")) -> - | F87: =IF(OR('Tabel 1 S'!E87<5,'Tabel 2 S'!F87<0.5),"-",IFERROR('Tabel 2 S'!F87/'Tabel 1 S'!E87*100,"-")) -> 1.149425287 | G87: =IF(OR('Tabel 1 S'!E87<5,'Tabel 2 S'!G87<0.5),"-",IFERROR('Tabel 2 S'!G87/'Tabel 1 S'!E87*100,"-")) -> 1.043107212 | I87: =IF(OR('Tabel 1 S'!G87<5,'Tabel 2 S'!I87<0.5),"-",IFERROR('Tabel 2 S'!I87/'Tabel 1 S'!G87*100,"-")) -> 0.8 | J87: =IF(OR('Tabel 1 S'!G87<5,'Tabel 2 S'!J87<0.5),"-",IFERROR('Tabel 2 S'!J87/'Tabel 1 S'!G87*100,"-")) -> 0.7260026196
A88: Økonom | C88: =IF(OR('Tabel 1 S'!C88<5,'Tabel 2 S'!C88<0.5),"-",IFERROR('Tabel 2 S'!C88/'Tabel 1 S'!C88*100,"-")) -> - | D88: =IF(OR('Tabel 1 S'!C88<5,'Tabel 2 S'!D88<0.5),"-",IFERROR('Tabel 2 S'!D88/'Tabel 1 S'!C88*100,"-")) -> - | F88: =IF(OR('Tabel 1 S'!E88<5,'Tabel 2 S'!F88<0.5),"-",IFERROR('Tabel 2 S'!F88/'Tabel 1 S'!E88*100,"-")) -> 4 | G88: =IF(OR('Tabel 1 S'!E88<5,'Tabel 2 S'!G88<0.5),"-",IFERROR('Tabel 2 S'!G88/'Tabel 1 S'!E88*100,"-")) -> 3.999251544 | I88: =IF(OR('Tabel 1 S'!G88<5,'Tabel 2 S'!I88<0.5),"-",IFERROR('Tabel 2 S'!I88/'Tabel 1 S'!G88*100,"-")) -> 1.785714286 | J88: =IF(OR('Tabel 1 S'!G88<5,'Tabel 2 S'!J88<0.5),"-",IFERROR('Tabel 2 S'!J88/'Tabel 1 S'!G88*100,"-")) -> 1.785380153
A89: Samf. Adm. | C89: =IF(OR('Tabel 1 S'!C89<5,'Tabel 2 S'!C89<0.5),"-",IFERROR('Tabel 2 S'!C89/'Tabel 1 S'!C89*100,"-")) -> - | D89: =IF(OR('Tabel 1 S'!C89<5,'Tabel 2 S'!D89<0.5),"-",IFERROR('Tabel 2 S'!D89/'Tabel 1 S'!C89*100,"-")) -> - | F89: =IF(OR('Tabel 1 S'!E89<5,'Tabel 2 S'!F89<0.5),"-",IFERROR('Tabel 2 S'!F89/'Tabel 1 S'!E89*100,"-")) -> - | G89: =IF(OR('Tabel 1 S'!E89<5,'Tabel 2 S'!G89<0.5),"-",IFERROR('Tabel 2 S'!G89/'Tabel 1 S'!E89*100,"-")) -> - | I89: =IF(OR('Tabel 1 S'!G89<5,'Tabel 2 S'!I89<0.5),"-",IFERROR('Tabel 2 S'!I89/'Tabel 1 S'!G89*100,"-")) -> - | J89: =IF(OR('Tabel 1 S'!G89<5,'Tabel 2 S'!J89<0.5),"-",IFERROR('Tabel 2 S'!J89/'Tabel 1 S'!G89*100,"-")) -> -
A90: Cand. Merc. | C90: =IF(OR('Tabel 1 S'!C90<5,'Tabel 2 S'!C90<0.5),"-",IFERROR('Tabel 2 S'!C90/'Tabel 1 S'!C90*100,"-")) -> 2.040816327 | D90: =IF(OR('Tabel 1 S'!C90<5,'Tabel 2 S'!D90<0.5),"-",IFERROR('Tabel 2 S'!D90/'Tabel 1 S'!C90*100,"-")) -> 1.758278313 | F90: =IF(OR('Tabel 1 S'!E90<5,'Tabel 2 S'!F90<0.5),"-",IFERROR('Tabel 2 S'!F90/'Tabel 1 S'!E90*100,"-")) -> 1.282051282 | G90: =IF(OR('Tabel 1 S'!E90<5,'Tabel 2 S'!G90<0.5),"-",IFERROR('Tabel 2 S'!G90/'Tabel 1 S'!E90*100,"-")) -> 1.252224978 | I90: =IF(OR('Tabel 1 S'!G90<5,'Tabel 2 S'!I90<0.5),"-",IFERROR('Tabel 2 S'!I90/'Tabel 1 S'!G90*100,"-")) -> 1.650165017 | J90: =IF(OR('Tabel 1 S'!G90<5,'Tabel 2 S'!J90<0.5),"-",IFERROR('Tabel 2 S'!J90/'Tabel 1 S'!G90*100,"-")) -> 1.497736002
A91: HA | C91: =IF(OR('Tabel 1 S'!C91<5,'Tabel 2 S'!C91<0.5),"-",IFERROR('Tabel 2 S'!C91/'Tabel 1 S'!C91*100,"-")) -> 5.882352941 | D91: =IF(OR('Tabel 1 S'!C91<5,'Tabel 2 S'!D91<0.5),"-",IFERROR('Tabel 2 S'!D91/'Tabel 1 S'!C91*100,"-")) -> 5.88125227 | F91: =IF(OR('Tabel 1 S'!E91<5,'Tabel 2 S'!F91<0.5),"-",IFERROR('Tabel 2 S'!F91/'Tabel 1 S'!E91*100,"-")) -> - | G91: =IF(OR('Tabel 1 S'!E91<5,'Tabel 2 S'!G91<0.5),"-",IFERROR('Tabel 2 S'!G91/'Tabel 1 S'!E91*100,"-")) -> - | I91: =IF(OR('Tabel 1 S'!G91<5,'Tabel 2 S'!I91<0.5),"-",IFERROR('Tabel 2 S'!I91/'Tabel 1 S'!G91*100,"-")) -> 4.166666667 | J91: =IF(OR('Tabel 1 S'!G91<5,'Tabel 2 S'!J91<0.5),"-",IFERROR('Tabel 2 S'!J91/'Tabel 1 S'!G91*100,"-")) -> 4.165887025
A92: HD | C92: =IF(OR('Tabel 1 S'!C92<5,'Tabel 2 S'!C92<0.5),"-",IFERROR('Tabel 2 S'!C92/'Tabel 1 S'!C92*100,"-")) -> 2.083333333 | D92: =IF(OR('Tabel 1 S'!C92<5,'Tabel 2 S'!D92<0.5),"-",IFERROR('Tabel 2 S'!D92/'Tabel 1 S'!C92*100,"-")) -> 2.082943512 | F92: =IF(OR('Tabel 1 S'!E92<5,'Tabel 2 S'!F92<0.5),"-",IFERROR('Tabel 2 S'!F92/'Tabel 1 S'!E92*100,"-")) -> 7.142857143 | G92: =IF(OR('Tabel 1 S'!E92<5,'Tabel 2 S'!G92<0.5),"-",IFERROR('Tabel 2 S'!G92/'Tabel 1 S'!E92*100,"-")) -> 5.194643191 | I92: =IF(OR('Tabel 1 S'!G92<5,'Tabel 2 S'!I92<0.5),"-",IFERROR('Tabel 2 S'!I92/'Tabel 1 S'!G92*100,"-")) -> 3.947368421 | J92: =IF(OR('Tabel 1 S'!G92<5,'Tabel 2 S'!J92<0.5),"-",IFERROR('Tabel 2 S'!J92/'Tabel 1 S'!G92*100,"-")) -> 3.229359184
A93: Komm. og Sprog | C93: =IF(OR('Tabel 1 S'!C93<5,'Tabel 2 S'!C93<0.5),"-",IFERROR('Tabel 2 S'!C93/'Tabel 1 S'!C93*100,"-")) -> - | D93: =IF(OR('Tabel 1 S'!C93<5,'Tabel 2 S'!D93<0.5),"-",IFERROR('Tabel 2 S'!D93/'Tabel 1 S'!C93*100,"-")) -> - | F93: =IF(OR('Tabel 1 S'!E93<5,'Tabel 2 S'!F93<0.5),"-",IFERROR('Tabel 2 S'!F93/'Tabel 1 S'!E93*100,"-")) -> - | G93: =IF(OR('Tabel 1 S'!E93<5,'Tabel 2 S'!G93<0.5),"-",IFERROR('Tabel 2 S'!G93/'Tabel 1 S'!E93*100,"-")) -> - | I93: =IF(OR('Tabel 1 S'!G93<5,'Tabel 2 S'!I93<0.5),"-",IFERROR('Tabel 2 S'!I93/'Tabel 1 S'!G93*100,"-")) -> - | J93: =IF(OR('Tabel 1 S'!G93<5,'Tabel 2 S'!J93<0.5),"-",IFERROR('Tabel 2 S'!J93/'Tabel 1 S'!G93*100,"-")) -> -
A94: Bygningskonst. | C94: =IF(OR('Tabel 1 S'!C94<5,'Tabel 2 S'!C94<0.5),"-",IFERROR('Tabel 2 S'!C94/'Tabel 1 S'!C94*100,"-")) -> - | D94: =IF(OR('Tabel 1 S'!C94<5,'Tabel 2 S'!D94<0.5),"-",IFERROR('Tabel 2 S'!D94/'Tabel 1 S'!C94*100,"-")) -> - | F94: =IF(OR('Tabel 1 S'!E94<5,'Tabel 2 S'!F94<0.5),"-",IFERROR('Tabel 2 S'!F94/'Tabel 1 S'!E94*100,"-")) -> - | G94: =IF(OR('Tabel 1 S'!E94<5,'Tabel 2 S'!G94<0.5),"-",IFERROR('Tabel 2 S'!G94/'Tabel 1 S'!E94*100,"-")) -> - | I94: =IF(OR('Tabel 1 S'!G94<5,'Tabel 2 S'!I94<0.5),"-",IFERROR('Tabel 2 S'!I94/'Tabel 1 S'!G94*100,"-")) -> - | J94: =IF(OR('Tabel 1 S'!G94<5,'Tabel 2 S'!J94<0.5),"-",IFERROR('Tabel 2 S'!J94/'Tabel 1 S'!G94*100,"-")) -> -
A95: Cand. IT. | C95: =IF(OR('Tabel 1 S'!C95<5,'Tabel 2 S'!C95<0.5),"-",IFERROR('Tabel 2 S'!C95/'Tabel 1 S'!C95*100,"-")) -> - | D95: =IF(OR('Tabel 1 S'!C95<5,'Tabel 2 S'!D95<0.5),"-",IFERROR('Tabel 2 S'!D95/'Tabel 1 S'!C95*100,"-")) -> - | F95: =IF(OR('Tabel 1 S'!E95<5,'Tabel 2 S'!F95<0.5),"-",IFERROR('Tabel 2 S'!F95/'Tabel 1 S'!E95*100,"-")) -> 11.11111111 | G95: =IF(OR('Tabel 1 S'!E95<5,'Tabel 2 S'!G95<0.5),"-",IFERROR('Tabel 2 S'!G95/'Tabel 1 S'!E95*100,"-")) -> 11.10903207 | I95: =IF(OR('Tabel 1 S'!G95<5,'Tabel 2 S'!I95<0.5),"-",IFERROR('Tabel 2 S'!I95/'Tabel 1 S'!G95*100,"-")) -> 4.545454545 | J95: =IF(OR('Tabel 1 S'!G95<5,'Tabel 2 S'!J95<0.5),"-",IFERROR('Tabel 2 S'!J95/'Tabel 1 S'!G95*100,"-")) -> 4.544604027
A96: Bac. Samf. | C96: =IF(OR('Tabel 1 S'!C96<5,'Tabel 2 S'!C96<0.5),"-",IFERROR('Tabel 2 S'!C96/'Tabel 1 S'!C96*100,"-")) -> - | D96: =IF(OR('Tabel 1 S'!C96<5,'Tabel 2 S'!D96<0.5),"-",IFERROR('Tabel 2 S'!D96/'Tabel 1 S'!C96*100,"-")) -> - | F96: =IF(OR('Tabel 1 S'!E96<5,'Tabel 2 S'!F96<0.5),"-",IFERROR('Tabel 2 S'!F96/'Tabel 1 S'!E96*100,"-")) -> - | G96: =IF(OR('Tabel 1 S'!E96<5,'Tabel 2 S'!G96<0.5),"-",IFERROR('Tabel 2 S'!G96/'Tabel 1 S'!E96*100,"-")) -> - | I96: =IF(OR('Tabel 1 S'!G96<5,'Tabel 2 S'!I96<0.5),"-",IFERROR('Tabel 2 S'!I96/'Tabel 1 S'!G96*100,"-")) -> - | J96: =IF(OR('Tabel 1 S'!G96<5,'Tabel 2 S'!J96<0.5),"-",IFERROR('Tabel 2 S'!J96/'Tabel 1 S'!G96*100,"-")) -> -
A97: Bac. Hum. | C97: =IF(OR('Tabel 1 S'!C97<5,'Tabel 2 S'!C97<0.5),"-",IFERROR('Tabel 2 S'!C97/'Tabel 1 S'!C97*100,"-")) -> - | D97: =IF(OR('Tabel 1 S'!C97<5,'Tabel 2 S'!D97<0.5),"-",IFERROR('Tabel 2 S'!D97/'Tabel 1 S'!C97*100,"-")) -> - | F97: =IF(OR('Tabel 1 S'!E97<5,'Tabel 2 S'!F97<0.5),"-",IFERROR('Tabel 2 S'!F97/'Tabel 1 S'!E97*100,"-")) -> 20 | G97: =IF(OR('Tabel 1 S'!E97<5,'Tabel 2 S'!G97<0.5),"-",IFERROR('Tabel 2 S'!G97/'Tabel 1 S'!E97*100,"-")) -> 19.80914364 | I97: =IF(OR('Tabel 1 S'!G97<5,'Tabel 2 S'!I97<0.5),"-",IFERROR('Tabel 2 S'!I97/'Tabel 1 S'!G97*100,"-")) -> 13.33333333 | J97: =IF(OR('Tabel 1 S'!G97<5,'Tabel 2 S'!J97<0.5),"-",IFERROR('Tabel 2 S'!J97/'Tabel 1 S'!G97*100,"-")) -> 13.20609576
A98: Bac. Nat. | C98: =IF(OR('Tabel 1 S'!C98<5,'Tabel 2 S'!C98<0.5),"-",IFERROR('Tabel 2 S'!C98/'Tabel 1 S'!C98*100,"-")) -> 8.333333333 | D98: =IF(OR('Tabel 1 S'!C98<5,'Tabel 2 S'!D98<0.5),"-",IFERROR('Tabel 2 S'!D98/'Tabel 1 S'!C98*100,"-")) -> 7.947150668 | F98: =IF(OR('Tabel 1 S'!E98<5,'Tabel 2 S'!F98<0.5),"-",IFERROR('Tabel 2 S'!F98/'Tabel 1 S'!E98*100,"-")) -> - | G98: =IF(OR('Tabel 1 S'!E98<5,'Tabel 2 S'!G98<0.5),"-",IFERROR('Tabel 2 S'!G98/'Tabel 1 S'!E98*100,"-")) -> - | I98: =IF(OR('Tabel 1 S'!G98<5,'Tabel 2 S'!I98<0.5),"-",IFERROR('Tabel 2 S'!I98/'Tabel 1 S'!G98*100,"-")) -> 5.882352941 | J98: =IF(OR('Tabel 1 S'!G98<5,'Tabel 2 S'!J98<0.5),"-",IFERROR('Tabel 2 S'!J98/'Tabel 1 S'!G98*100,"-")) -> 5.609753413
A99: Andre | C99: =IF(OR('Tabel 1 S'!C99<5,'Tabel 2 S'!C99<0.5),"-",IFERROR('Tabel 2 S'!C99/'Tabel 1 S'!C99*100,"-")) -> 2.597402597 | D99: =IF(OR('Tabel 1 S'!C99<5,'Tabel 2 S'!D99<0.5),"-",IFERROR('Tabel 2 S'!D99/'Tabel 1 S'!C99*100,"-")) -> 2.596916587 | F99: =IF(OR('Tabel 1 S'!E99<5,'Tabel 2 S'!F99<0.5),"-",IFERROR('Tabel 2 S'!F99/'Tabel 1 S'!E99*100,"-")) -> 7.317073171 | G99: =IF(OR('Tabel 1 S'!E99<5,'Tabel 2 S'!G99<0.5),"-",IFERROR('Tabel 2 S'!G99/'Tabel 1 S'!E99*100,"-")) -> 6.020357403 | I99: =IF(OR('Tabel 1 S'!G99<5,'Tabel 2 S'!I99<0.5),"-",IFERROR('Tabel 2 S'!I99/'Tabel 1 S'!G99*100,"-")) -> 5.031446541 | J99: =IF(OR('Tabel 1 S'!G99<5,'Tabel 2 S'!J99<0.5),"-",IFERROR('Tabel 2 S'!J99/'Tabel 1 S'!G99*100,"-")) -> 4.362464681
A101: Total | C101: =IF(OR('Tabel 1 S'!C101<5,'Tabel 2 S'!C101<0.5),"-",IFERROR('Tabel 2 S'!C101/'Tabel 1 S'!C101*100,"-")) -> 1.847187238 | D101: =IF(OR('Tabel 1 S'!C101<5,'Tabel 2 S'!D101<0.5),"-",IFERROR('Tabel 2 S'!D101/'Tabel 1 S'!C101*100,"-")) -> 1.611338663 | F101: =IF(OR('Tabel 1 S'!E101<5,'Tabel 2 S'!F101<0.5),"-",IFERROR('Tabel 2 S'!F101/'Tabel 1 S'!E101*100,"-")) -> 2.714932127 | G101: =IF(OR('Tabel 1 S'!E101<5,'Tabel 2 S'!G101<0.5),"-",IFERROR('Tabel 2 S'!G101/'Tabel 1 S'!E101*100,"-")) -> 2.13744672 | I101: =IF(OR('Tabel 1 S'!G101<5,'Tabel 2 S'!I101<0.5),"-",IFERROR('Tabel 2 S'!I101/'Tabel 1 S'!G101*100,"-")) -> 2.264808362 | J101: =IF(OR('Tabel 1 S'!G101<5,'Tabel 2 S'!J101<0.5),"-",IFERROR('Tabel 2 S'!J101/'Tabel 1 S'!G101*100,"-")) -> 1.864539622
A103: Ingeniører i alt | C103: =IF(OR('Tabel 1 S'!C103<5,'Tabel 2 S'!C103<0.5),"-",IFERROR('Tabel 2 S'!C103/'Tabel 1 S'!C103*100,"-")) -> 1.372997712 | D103: =IF(OR('Tabel 1 S'!C103<5,'Tabel 2 S'!D103<0.5),"-",IFERROR('Tabel 2 S'!D103/'Tabel 1 S'!C103*100,"-")) -> 1.16022146 | F103: =IF(OR('Tabel 1 S'!E103<5,'Tabel 2 S'!F103<0.5),"-",IFERROR('Tabel 2 S'!F103/'Tabel 1 S'!E103*100,"-")) -> 1.612903226 | G103: =IF(OR('Tabel 1 S'!E103<5,'Tabel 2 S'!G103<0.5),"-",IFERROR('Tabel 2 S'!G103/'Tabel 1 S'!E103*100,"-")) -> 0.9426123137 | I103: =IF(OR('Tabel 1 S'!G103<5,'Tabel 2 S'!I103<0.5),"-",IFERROR('Tabel 2 S'!I103/'Tabel 1 S'!G103*100,"-")) -> 1.426024955 | J103: =IF(OR('Tabel 1 S'!G103<5,'Tabel 2 S'!J103<0.5),"-",IFERROR('Tabel 2 S'!J103/'Tabel 1 S'!G103*100,"-")) -> 1.112122468
A104: Magistre i alt | C104: =IF(OR('Tabel 1 S'!C104<5,'Tabel 2 S'!C104<0.5),"-",IFERROR('Tabel 2 S'!C104/'Tabel 1 S'!C104*100,"-")) -> 3.529411765 | D104: =IF(OR('Tabel 1 S'!C104<5,'Tabel 2 S'!D104<0.5),"-",IFERROR('Tabel 2 S'!D104/'Tabel 1 S'!C104*100,"-")) -> 2.538147424 | F104: =IF(OR('Tabel 1 S'!E104<5,'Tabel 2 S'!F104<0.5),"-",IFERROR('Tabel 2 S'!F104/'Tabel 1 S'!E104*100,"-")) -> 3.888888889 | G104: =IF(OR('Tabel 1 S'!E104<5,'Tabel 2 S'!G104<0.5),"-",IFERROR('Tabel 2 S'!G104/'Tabel 1 S'!E104*100,"-")) -> 2.619250573 | I104: =IF(OR('Tabel 1 S'!G104<5,'Tabel 2 S'!I104<0.5),"-",IFERROR('Tabel 2 S'!I104/'Tabel 1 S'!G104*100,"-")) -> 3.773584906 | J104: =IF(OR('Tabel 1 S'!G104<5,'Tabel 2 S'!J104<0.5),"-",IFERROR('Tabel 2 S'!J104/'Tabel 1 S'!G104*100,"-")) -> 2.593236356
A105: DJØF'ere i alt | C105: =IF(OR('Tabel 1 S'!C105<5,'Tabel 2 S'!C105<0.5),"-",IFERROR('Tabel 2 S'!C105/'Tabel 1 S'!C105*100,"-")) -> 1.840490798 | D105: =IF(OR('Tabel 1 S'!C105<5,'Tabel 2 S'!D105<0.5),"-",IFERROR('Tabel 2 S'!D105/'Tabel 1 S'!C105*100,"-")) -> 1.712916496 | F105: =IF(OR('Tabel 1 S'!E105<5,'Tabel 2 S'!F105<0.5),"-",IFERROR('Tabel 2 S'!F105/'Tabel 1 S'!E105*100,"-")) -> 1.104972376 | G105: =IF(OR('Tabel 1 S'!E105<5,'Tabel 2 S'!G105<0.5),"-",IFERROR('Tabel 2 S'!G105/'Tabel 1 S'!E105*100,"-")) -> 1.066515781 | I105: =IF(OR('Tabel 1 S'!G105<5,'Tabel 2 S'!I105<0.5),"-",IFERROR('Tabel 2 S'!I105/'Tabel 1 S'!G105*100,"-")) -> 1.453488372 | J105: =IF(OR('Tabel 1 S'!G105<5,'Tabel 2 S'!J105<0.5),"-",IFERROR('Tabel 2 S'!J105/'Tabel 1 S'!G105*100,"-")) -> 1.372804492
A110: ='Tabel 2 S'!A110 -> Køge
C112: Mænd | F112: Kvinder | I112: I alt
C113: Ledigheds- berørte | D113: Gns. brutto- ledighed | F113: Ledigheds- berørte | G113: Gns. brutto- ledighed | I113: Ledigheds- berørte | J113: Gns. brutto- ledighed
A116: Civ. ing. | C116: =IF(OR('Tabel 1 S'!C116<5,'Tabel 2 S'!C116<0.5),"-",IFERROR('Tabel 2 S'!C116/'Tabel 1 S'!C116*100,"-")) -> 1.986754967 | D116: =IF(OR('Tabel 1 S'!C116<5,'Tabel 2 S'!D116<0.5),"-",IFERROR('Tabel 2 S'!D116/'Tabel 1 S'!C116*100,"-")) -> 1.814552188 | F116: =IF(OR('Tabel 1 S'!E116<5,'Tabel 2 S'!F116<0.5),"-",IFERROR('Tabel 2 S'!F116/'Tabel 1 S'!E116*100,"-")) -> - | G116: =IF(OR('Tabel 1 S'!E116<5,'Tabel 2 S'!G116<0.5),"-",IFERROR('Tabel 2 S'!G116/'Tabel 1 S'!E116*100,"-")) -> - | I116: =IF(OR('Tabel 1 S'!G116<5,'Tabel 2 S'!I116<0.5),"-",IFERROR('Tabel 2 S'!I116/'Tabel 1 S'!G116*100,"-")) -> 1.470588235 | J116: =IF(OR('Tabel 1 S'!G116<5,'Tabel 2 S'!J116<0.5),"-",IFERROR('Tabel 2 S'!J116/'Tabel 1 S'!G116*100,"-")) -> 1.343124414
A117: Diplom ing. | C117: =IF(OR('Tabel 1 S'!C117<5,'Tabel 2 S'!C117<0.5),"-",IFERROR('Tabel 2 S'!C117/'Tabel 1 S'!C117*100,"-")) -> 2.721088435 | D117: =IF(OR('Tabel 1 S'!C117<5,'Tabel 2 S'!D117<0.5),"-",IFERROR('Tabel 2 S'!D117/'Tabel 1 S'!C117*100,"-")) -> 2.293738552 | F117: =IF(OR('Tabel 1 S'!E117<5,'Tabel 2 S'!F117<0.5),"-",IFERROR('Tabel 2 S'!F117/'Tabel 1 S'!E117*100,"-")) -> 4.545454545 | G117: =IF(OR('Tabel 1 S'!E117<5,'Tabel 2 S'!G117<0.5),"-",IFERROR('Tabel 2 S'!G117/'Tabel 1 S'!E117*100,"-")) -> 4.268658014 | I117: =IF(OR('Tabel 1 S'!G117<5,'Tabel 2 S'!I117<0.5),"-",IFERROR('Tabel 2 S'!I117/'Tabel 1 S'!G117*100,"-")) -> 3.055555556 | J117: =IF(OR('Tabel 1 S'!G117<5,'Tabel 2 S'!J117<0.5),"-",IFERROR('Tabel 2 S'!J117/'Tabel 1 S'!G117*100,"-")) -> 2.65580712
A118: Cand. Scient. Tek. | C118: =IF(OR('Tabel 1 S'!C118<5,'Tabel 2 S'!C118<0.5),"-",IFERROR('Tabel 2 S'!C118/'Tabel 1 S'!C118*100,"-")) -> 8.333333333 | D118: =IF(OR('Tabel 1 S'!C118<5,'Tabel 2 S'!D118<0.5),"-",IFERROR('Tabel 2 S'!D118/'Tabel 1 S'!C118*100,"-")) -> 5.409675877 | F118: =IF(OR('Tabel 1 S'!E118<5,'Tabel 2 S'!F118<0.5),"-",IFERROR('Tabel 2 S'!F118/'Tabel 1 S'!E118*100,"-")) -> 9.756097561 | G118: =IF(OR('Tabel 1 S'!E118<5,'Tabel 2 S'!G118<0.5),"-",IFERROR('Tabel 2 S'!G118/'Tabel 1 S'!E118*100,"-")) -> 7.213780115 | I118: =IF(OR('Tabel 1 S'!G118<5,'Tabel 2 S'!I118<0.5),"-",IFERROR('Tabel 2 S'!I118/'Tabel 1 S'!G118*100,"-")) -> 8.910891089 | J118: =IF(OR('Tabel 1 S'!G118<5,'Tabel 2 S'!J118<0.5),"-",IFERROR('Tabel 2 S'!J118/'Tabel 1 S'!G118*100,"-")) -> 6.142035023
A119: MA. Hum. | C119: =IF(OR('Tabel 1 S'!C119<5,'Tabel 2 S'!C119<0.5),"-",IFERROR('Tabel 2 S'!C119/'Tabel 1 S'!C119*100,"-")) -> 6.060606061 | D119: =IF(OR('Tabel 1 S'!C119<5,'Tabel 2 S'!D119<0.5),"-",IFERROR('Tabel 2 S'!D119/'Tabel 1 S'!C119*100,"-")) -> 5.285500171 | F119: =IF(OR('Tabel 1 S'!E119<5,'Tabel 2 S'!F119<0.5),"-",IFERROR('Tabel 2 S'!F119/'Tabel 1 S'!E119*100,"-")) -> 1.775147929 | G119: =IF(OR('Tabel 1 S'!E119<5,'Tabel 2 S'!G119<0.5),"-",IFERROR('Tabel 2 S'!G119/'Tabel 1 S'!E119*100,"-")) -> 1.774815774 | I119: =IF(OR('Tabel 1 S'!G119<5,'Tabel 2 S'!I119<0.5),"-",IFERROR('Tabel 2 S'!I119/'Tabel 1 S'!G119*100,"-")) -> 2.978723404 | J119: =IF(OR('Tabel 1 S'!G119<5,'Tabel 2 S'!J119<0.5),"-",IFERROR('Tabel 2 S'!J119/'Tabel 1 S'!G119*100,"-")) -> 2.760795222
A120: MA. Nat. | C120: =IF(OR('Tabel 1 S'!C120<5,'Tabel 2 S'!C120<0.5),"-",IFERROR('Tabel 2 S'!C120/'Tabel 1 S'!C120*100,"-")) -> 7.142857143 | D120: =IF(OR('Tabel 1 S'!C120<5,'Tabel 2 S'!D120<0.5),"-",IFERROR('Tabel 2 S'!D120/'Tabel 1 S'!C120*100,"-")) -> 5.493134695 | F120: =IF(OR('Tabel 1 S'!E120<5,'Tabel 2 S'!F120<0.5),"-",IFERROR('Tabel 2 S'!F120/'Tabel 1 S'!E120*100,"-")) -> 8.064516129 | G120: =IF(OR('Tabel 1 S'!E120<5,'Tabel 2 S'!G120<0.5),"-",IFERROR('Tabel 2 S'!G120/'Tabel 1 S'!E120*100,"-")) -> 7.498646944 | I120: =IF(OR('Tabel 1 S'!G120<5,'Tabel 2 S'!I120<0.5),"-",IFERROR('Tabel 2 S'!I120/'Tabel 1 S'!G120*100,"-")) -> 7.692307692 | J120: =IF(OR('Tabel 1 S'!G120<5,'Tabel 2 S'!J120<0.5),"-",IFERROR('Tabel 2 S'!J120/'Tabel 1 S'!G120*100,"-")) -> 6.688728536
A121: MA. Ph.d. | C121: =IF(OR('Tabel 1 S'!C121<5,'Tabel 2 S'!C121<0.5),"-",IFERROR('Tabel 2 S'!C121/'Tabel 1 S'!C121*100,"-")) -> - | D121: =IF(OR('Tabel 1 S'!C121<5,'Tabel 2 S'!D121<0.5),"-",IFERROR('Tabel 2 S'!D121/'Tabel 1 S'!C121*100,"-")) -> - | F121: =IF(OR('Tabel 1 S'!E121<5,'Tabel 2 S'!F121<0.5),"-",IFERROR('Tabel 2 S'!F121/'Tabel 1 S'!E121*100,"-")) -> 20 | G121: =IF(OR('Tabel 1 S'!E121<5,'Tabel 2 S'!G121<0.5),"-",IFERROR('Tabel 2 S'!G121/'Tabel 1 S'!E121*100,"-")) -> 19.99625772 | I121: =IF(OR('Tabel 1 S'!G121<5,'Tabel 2 S'!I121<0.5),"-",IFERROR('Tabel 2 S'!I121/'Tabel 1 S'!G121*100,"-")) -> 16.66666667 | J121: =IF(OR('Tabel 1 S'!G121<5,'Tabel 2 S'!J121<0.5),"-",IFERROR('Tabel 2 S'!J121/'Tabel 1 S'!G121*100,"-")) -> 16.6635481
A122: MA. Samf. | C122: =IF(OR('Tabel 1 S'!C122<5,'Tabel 2 S'!C122<0.5),"-",IFERROR('Tabel 2 S'!C122/'Tabel 1 S'!C122*100,"-")) -> - | D122: =IF(OR('Tabel 1 S'!C122<5,'Tabel 2 S'!D122<0.5),"-",IFERROR('Tabel 2 S'!D122/'Tabel 1 S'!C122*100,"-")) -> - | F122: =IF(OR('Tabel 1 S'!E122<5,'Tabel 2 S'!F122<0.5),"-",IFERROR('Tabel 2 S'!F122/'Tabel 1 S'!E122*100,"-")) -> 11.11111111 | G122: =IF(OR('Tabel 1 S'!E122<5,'Tabel 2 S'!G122<0.5),"-",IFERROR('Tabel 2 S'!G122/'Tabel 1 S'!E122*100,"-")) -> 8.5910772 | I122: =IF(OR('Tabel 1 S'!G122<5,'Tabel 2 S'!I122<0.5),"-",IFERROR('Tabel 2 S'!I122/'Tabel 1 S'!G122*100,"-")) -> 7.894736842 | J122: =IF(OR('Tabel 1 S'!G122<5,'Tabel 2 S'!J122<0.5),"-",IFERROR('Tabel 2 S'!J122/'Tabel 1 S'!G122*100,"-")) -> 6.104186431
A123: Øvrige Mag. | C123: =IF(OR('Tabel 1 S'!C123<5,'Tabel 2 S'!C123<0.5),"-",IFERROR('Tabel 2 S'!C123/'Tabel 1 S'!C123*100,"-")) -> - | D123: =IF(OR('Tabel 1 S'!C123<5,'Tabel 2 S'!D123<0.5),"-",IFERROR('Tabel 2 S'!D123/'Tabel 1 S'!C123*100,"-")) -> - | F123: =IF(OR('Tabel 1 S'!E123<5,'Tabel 2 S'!F123<0.5),"-",IFERROR('Tabel 2 S'!F123/'Tabel 1 S'!E123*100,"-")) -> 6.666666667 | G123: =IF(OR('Tabel 1 S'!E123<5,'Tabel 2 S'!G123<0.5),"-",IFERROR('Tabel 2 S'!G123/'Tabel 1 S'!E123*100,"-")) -> 6.083286555 | I123: =IF(OR('Tabel 1 S'!G123<5,'Tabel 2 S'!I123<0.5),"-",IFERROR('Tabel 2 S'!I123/'Tabel 1 S'!G123*100,"-")) -> 4.761904762 | J123: =IF(OR('Tabel 1 S'!G123<5,'Tabel 2 S'!J123<0.5),"-",IFERROR('Tabel 2 S'!J123/'Tabel 1 S'!G123*100,"-")) -> 4.345204682
A124: Agronom | C124: =IF(OR('Tabel 1 S'!C124<5,'Tabel 2 S'!C124<0.5),"-",IFERROR('Tabel 2 S'!C124/'Tabel 1 S'!C124*100,"-")) -> 6.666666667 | D124: =IF(OR('Tabel 1 S'!C124<5,'Tabel 2 S'!D124<0.5),"-",IFERROR('Tabel 2 S'!D124/'Tabel 1 S'!C124*100,"-")) -> 6.665419239 | F124: =IF(OR('Tabel 1 S'!E124<5,'Tabel 2 S'!F124<0.5),"-",IFERROR('Tabel 2 S'!F124/'Tabel 1 S'!E124*100,"-")) -> - | G124: =IF(OR('Tabel 1 S'!E124<5,'Tabel 2 S'!G124<0.5),"-",IFERROR('Tabel 2 S'!G124/'Tabel 1 S'!E124*100,"-")) -> - | I124: =IF(OR('Tabel 1 S'!G124<5,'Tabel 2 S'!I124<0.5),"-",IFERROR('Tabel 2 S'!I124/'Tabel 1 S'!G124*100,"-")) -> 2.941176471 | J124: =IF(OR('Tabel 1 S'!G124<5,'Tabel 2 S'!J124<0.5),"-",IFERROR('Tabel 2 S'!J124/'Tabel 1 S'!G124*100,"-")) -> 2.940626135
A125: Landsk. Arkt. | C125: =IF(OR('Tabel 1 S'!C125<5,'Tabel 2 S'!C125<0.5),"-",IFERROR('Tabel 2 S'!C125/'Tabel 1 S'!C125*100,"-")) -> - | D125: =IF(OR('Tabel 1 S'!C125<5,'Tabel 2 S'!D125<0.5),"-",IFERROR('Tabel 2 S'!D125/'Tabel 1 S'!C125*100,"-")) -> - | F125: =IF(OR('Tabel 1 S'!E125<5,'Tabel 2 S'!F125<0.5),"-",IFERROR('Tabel 2 S'!F125/'Tabel 1 S'!E125*100,"-")) -> - | G125: =IF(OR('Tabel 1 S'!E125<5,'Tabel 2 S'!G125<0.5),"-",IFERROR('Tabel 2 S'!G125/'Tabel 1 S'!E125*100,"-")) -> - | I125: =IF(OR('Tabel 1 S'!G125<5,'Tabel 2 S'!I125<0.5),"-",IFERROR('Tabel 2 S'!I125/'Tabel 1 S'!G125*100,"-")) -> - | J125: =IF(OR('Tabel 1 S'!G125<5,'Tabel 2 S'!J125<0.5),"-",IFERROR('Tabel 2 S'!J125/'Tabel 1 S'!G125*100,"-")) -> -
A126: Hortonom | C126: =IF(OR('Tabel 1 S'!C126<5,'Tabel 2 S'!C126<0.5),"-",IFERROR('Tabel 2 S'!C126/'Tabel 1 S'!C126*100,"-")) -> - | D126: =IF(OR('Tabel 1 S'!C126<5,'Tabel 2 S'!D126<0.5),"-",IFERROR('Tabel 2 S'!D126/'Tabel 1 S'!C126*100,"-")) -> - | F126: =IF(OR('Tabel 1 S'!E126<5,'Tabel 2 S'!F126<0.5),"-",IFERROR('Tabel 2 S'!F126/'Tabel 1 S'!E126*100,"-")) -> - | G126: =IF(OR('Tabel 1 S'!E126<5,'Tabel 2 S'!G126<0.5),"-",IFERROR('Tabel 2 S'!G126/'Tabel 1 S'!E126*100,"-")) -> - | I126: =IF(OR('Tabel 1 S'!G126<5,'Tabel 2 S'!I126<0.5),"-",IFERROR('Tabel 2 S'!I126/'Tabel 1 S'!G126*100,"-")) -> - | J126: =IF(OR('Tabel 1 S'!G126<5,'Tabel 2 S'!J126<0.5),"-",IFERROR('Tabel 2 S'!J126/'Tabel 1 S'!G126*100,"-")) -> -
A127: Forstkand. | C127: =IF(OR('Tabel 1 S'!C127<5,'Tabel 2 S'!C127<0.5),"-",IFERROR('Tabel 2 S'!C127/'Tabel 1 S'!C127*100,"-")) -> - | D127: =IF(OR('Tabel 1 S'!C127<5,'Tabel 2 S'!D127<0.5),"-",IFERROR('Tabel 2 S'!D127/'Tabel 1 S'!C127*100,"-")) -> - | F127: =IF(OR('Tabel 1 S'!E127<5,'Tabel 2 S'!F127<0.5),"-",IFERROR('Tabel 2 S'!F127/'Tabel 1 S'!E127*100,"-")) -> - | G127: =IF(OR('Tabel 1 S'!E127<5,'Tabel 2 S'!G127<0.5),"-",IFERROR('Tabel 2 S'!G127/'Tabel 1 S'!E127*100,"-")) -> - | I127: =IF(OR('Tabel 1 S'!G127<5,'Tabel 2 S'!I127<0.5),"-",IFERROR('Tabel 2 S'!I127/'Tabel 1 S'!G127*100,"-")) -> - | J127: =IF(OR('Tabel 1 S'!G127<5,'Tabel 2 S'!J127<0.5),"-",IFERROR('Tabel 2 S'!J127/'Tabel 1 S'!G127*100,"-")) -> -
A128: Jordbrugsakad. | C128: =IF(OR('Tabel 1 S'!C128<5,'Tabel 2 S'!C128<0.5),"-",IFERROR('Tabel 2 S'!C128/'Tabel 1 S'!C128*100,"-")) -> 5 | D128: =IF(OR('Tabel 1 S'!C128<5,'Tabel 2 S'!D128<0.5),"-",IFERROR('Tabel 2 S'!D128/'Tabel 1 S'!C128*100,"-")) -> 4.99906443 | F128: =IF(OR('Tabel 1 S'!E128<5,'Tabel 2 S'!F128<0.5),"-",IFERROR('Tabel 2 S'!F128/'Tabel 1 S'!E128*100,"-")) -> - | G128: =IF(OR('Tabel 1 S'!E128<5,'Tabel 2 S'!G128<0.5),"-",IFERROR('Tabel 2 S'!G128/'Tabel 1 S'!E128*100,"-")) -> - | I128: =IF(OR('Tabel 1 S'!G128<5,'Tabel 2 S'!I128<0.5),"-",IFERROR('Tabel 2 S'!I128/'Tabel 1 S'!G128*100,"-")) -> 1.960784314 | J128: =IF(OR('Tabel 1 S'!G128<5,'Tabel 2 S'!J128<0.5),"-",IFERROR('Tabel 2 S'!J128/'Tabel 1 S'!G128*100,"-")) -> 1.960417423
A129: Mejeriing. | C129: =IF(OR('Tabel 1 S'!C129<5,'Tabel 2 S'!C129<0.5),"-",IFERROR('Tabel 2 S'!C129/'Tabel 1 S'!C129*100,"-")) -> - | D129: =IF(OR('Tabel 1 S'!C129<5,'Tabel 2 S'!D129<0.5),"-",IFERROR('Tabel 2 S'!D129/'Tabel 1 S'!C129*100,"-")) -> - | F129: =IF(OR('Tabel 1 S'!E129<5,'Tabel 2 S'!F129<0.5),"-",IFERROR('Tabel 2 S'!F129/'Tabel 1 S'!E129*100,"-")) -> - | G129: =IF(OR('Tabel 1 S'!E129<5,'Tabel 2 S'!G129<0.5),"-",IFERROR('Tabel 2 S'!G129/'Tabel 1 S'!E129*100,"-")) -> - | I129: =IF(OR('Tabel 1 S'!G129<5,'Tabel 2 S'!I129<0.5),"-",IFERROR('Tabel 2 S'!I129/'Tabel 1 S'!G129*100,"-")) -> - | J129: =IF(OR('Tabel 1 S'!G129<5,'Tabel 2 S'!J129<0.5),"-",IFERROR('Tabel 2 S'!J129/'Tabel 1 S'!G129*100,"-")) -> -
A130: Levn.m.kand. | C130: =IF(OR('Tabel 1 S'!C130<5,'Tabel 2 S'!C130<0.5),"-",IFERROR('Tabel 2 S'!C130/'Tabel 1 S'!C130*100,"-")) -> - | D130: =IF(OR('Tabel 1 S'!C130<5,'Tabel 2 S'!D130<0.5),"-",IFERROR('Tabel 2 S'!D130/'Tabel 1 S'!C130*100,"-")) -> - | F130: =IF(OR('Tabel 1 S'!E130<5,'Tabel 2 S'!F130<0.5),"-",IFERROR('Tabel 2 S'!F130/'Tabel 1 S'!E130*100,"-")) -> 14.28571429 | G130: =IF(OR('Tabel 1 S'!E130<5,'Tabel 2 S'!G130<0.5),"-",IFERROR('Tabel 2 S'!G130/'Tabel 1 S'!E130*100,"-")) -> 10.49620871 | I130: =IF(OR('Tabel 1 S'!G130<5,'Tabel 2 S'!I130<0.5),"-",IFERROR('Tabel 2 S'!I130/'Tabel 1 S'!G130*100,"-")) -> 12.5 | J130: =IF(OR('Tabel 1 S'!G130<5,'Tabel 2 S'!J130<0.5),"-",IFERROR('Tabel 2 S'!J130/'Tabel 1 S'!G130*100,"-")) -> 9.184182623
A131: Dyrlæge | C131: =IF(OR('Tabel 1 S'!C131<5,'Tabel 2 S'!C131<0.5),"-",IFERROR('Tabel 2 S'!C131/'Tabel 1 S'!C131*100,"-")) -> - | D131: =IF(OR('Tabel 1 S'!C131<5,'Tabel 2 S'!D131<0.5),"-",IFERROR('Tabel 2 S'!D131/'Tabel 1 S'!C131*100,"-")) -> - | F131: =IF(OR('Tabel 1 S'!E131<5,'Tabel 2 S'!F131<0.5),"-",IFERROR('Tabel 2 S'!F131/'Tabel 1 S'!E131*100,"-")) -> 3.333333333 | G131: =IF(OR('Tabel 1 S'!E131<5,'Tabel 2 S'!G131<0.5),"-",IFERROR('Tabel 2 S'!G131/'Tabel 1 S'!E131*100,"-")) -> - | I131: =IF(OR('Tabel 1 S'!G131<5,'Tabel 2 S'!I131<0.5),"-",IFERROR('Tabel 2 S'!I131/'Tabel 1 S'!G131*100,"-")) -> 2.702702703 | J131: =IF(OR('Tabel 1 S'!G131<5,'Tabel 2 S'!J131<0.5),"-",IFERROR('Tabel 2 S'!J131/'Tabel 1 S'!G131*100,"-")) -> -
A132: Farmaceut | C132: =IF(OR('Tabel 1 S'!C132<5,'Tabel 2 S'!C132<0.5),"-",IFERROR('Tabel 2 S'!C132/'Tabel 1 S'!C132*100,"-")) -> - | D132: =IF(OR('Tabel 1 S'!C132<5,'Tabel 2 S'!D132<0.5),"-",IFERROR('Tabel 2 S'!D132/'Tabel 1 S'!C132*100,"-")) -> - | F132: =IF(OR('Tabel 1 S'!E132<5,'Tabel 2 S'!F132<0.5),"-",IFERROR('Tabel 2 S'!F132/'Tabel 1 S'!E132*100,"-")) -> - | G132: =IF(OR('Tabel 1 S'!E132<5,'Tabel 2 S'!G132<0.5),"-",IFERROR('Tabel 2 S'!G132/'Tabel 1 S'!E132*100,"-")) -> - | I132: =IF(OR('Tabel 1 S'!G132<5,'Tabel 2 S'!I132<0.5),"-",IFERROR('Tabel 2 S'!I132/'Tabel 1 S'!G132*100,"-")) -> - | J132: =IF(OR('Tabel 1 S'!G132<5,'Tabel 2 S'!J132<0.5),"-",IFERROR('Tabel 2 S'!J132/'Tabel 1 S'!G132*100,"-")) -> -
A133: Læge | C133: =IF(OR('Tabel 1 S'!C133<5,'Tabel 2 S'!C133<0.5),"-",IFERROR('Tabel 2 S'!C133/'Tabel 1 S'!C133*100,"-")) -> - | D133: =IF(OR('Tabel 1 S'!C133<5,'Tabel 2 S'!D133<0.5),"-",IFERROR('Tabel 2 S'!D133/'Tabel 1 S'!C133*100,"-")) -> - | F133: =IF(OR('Tabel 1 S'!E133<5,'Tabel 2 S'!F133<0.5),"-",IFERROR('Tabel 2 S'!F133/'Tabel 1 S'!E133*100,"-")) -> - | G133: =IF(OR('Tabel 1 S'!E133<5,'Tabel 2 S'!G133<0.5),"-",IFERROR('Tabel 2 S'!G133/'Tabel 1 S'!E133*100,"-")) -> - | I133: =IF(OR('Tabel 1 S'!G133<5,'Tabel 2 S'!I133<0.5),"-",IFERROR('Tabel 2 S'!I133/'Tabel 1 S'!G133*100,"-")) -> - | J133: =IF(OR('Tabel 1 S'!G133<5,'Tabel 2 S'!J133<0.5),"-",IFERROR('Tabel 2 S'!J133/'Tabel 1 S'!G133*100,"-")) -> -
A134: Tandlæge | C134: =IF(OR('Tabel 1 S'!C134<5,'Tabel 2 S'!C134<0.5),"-",IFERROR('Tabel 2 S'!C134/'Tabel 1 S'!C134*100,"-")) -> - | D134: =IF(OR('Tabel 1 S'!C134<5,'Tabel 2 S'!D134<0.5),"-",IFERROR('Tabel 2 S'!D134/'Tabel 1 S'!C134*100,"-")) -> - | F134: =IF(OR('Tabel 1 S'!E134<5,'Tabel 2 S'!F134<0.5),"-",IFERROR('Tabel 2 S'!F134/'Tabel 1 S'!E134*100,"-")) -> - | G134: =IF(OR('Tabel 1 S'!E134<5,'Tabel 2 S'!G134<0.5),"-",IFERROR('Tabel 2 S'!G134/'Tabel 1 S'!E134*100,"-")) -> - | I134: =IF(OR('Tabel 1 S'!G134<5,'Tabel 2 S'!I134<0.5),"-",IFERROR('Tabel 2 S'!I134/'Tabel 1 S'!G134*100,"-")) -> - | J134: =IF(OR('Tabel 1 S'!G134<5,'Tabel 2 S'!J134<0.5),"-",IFERROR('Tabel 2 S'!J134/'Tabel 1 S'!G134*100,"-")) -> -
A135: Arkitekt | C135: =IF(OR('Tabel 1 S'!C135<5,'Tabel 2 S'!C135<0.5),"-",IFERROR('Tabel 2 S'!C135/'Tabel 1 S'!C135*100,"-")) -> - | D135: =IF(OR('Tabel 1 S'!C135<5,'Tabel 2 S'!D135<0.5),"-",IFERROR('Tabel 2 S'!D135/'Tabel 1 S'!C135*100,"-")) -> - | F135: =IF(OR('Tabel 1 S'!E135<5,'Tabel 2 S'!F135<0.5),"-",IFERROR('Tabel 2 S'!F135/'Tabel 1 S'!E135*100,"-")) -> - | G135: =IF(OR('Tabel 1 S'!E135<5,'Tabel 2 S'!G135<0.5),"-",IFERROR('Tabel 2 S'!G135/'Tabel 1 S'!E135*100,"-")) -> - | I135: =IF(OR('Tabel 1 S'!G135<5,'Tabel 2 S'!I135<0.5),"-",IFERROR('Tabel 2 S'!I135/'Tabel 1 S'!G135*100,"-")) -> - | J135: =IF(OR('Tabel 1 S'!G135<5,'Tabel 2 S'!J135<0.5),"-",IFERROR('Tabel 2 S'!J135/'Tabel 1 S'!G135*100,"-")) -> -
A136: Landinspek. | C136: =IF(OR('Tabel 1 S'!C136<5,'Tabel 2 S'!C136<0.5),"-",IFERROR('Tabel 2 S'!C136/'Tabel 1 S'!C136*100,"-")) -> - | D136: =IF(OR('Tabel 1 S'!C136<5,'Tabel 2 S'!D136<0.5),"-",IFERROR('Tabel 2 S'!D136/'Tabel 1 S'!C136*100,"-")) -> - | F136: =IF(OR('Tabel 1 S'!E136<5,'Tabel 2 S'!F136<0.5),"-",IFERROR('Tabel 2 S'!F136/'Tabel 1 S'!E136*100,"-")) -> - | G136: =IF(OR('Tabel 1 S'!E136<5,'Tabel 2 S'!G136<0.5),"-",IFERROR('Tabel 2 S'!G136/'Tabel 1 S'!E136*100,"-")) -> - | I136: =IF(OR('Tabel 1 S'!G136<5,'Tabel 2 S'!I136<0.5),"-",IFERROR('Tabel 2 S'!I136/'Tabel 1 S'!G136*100,"-")) -> - | J136: =IF(OR('Tabel 1 S'!G136<5,'Tabel 2 S'!J136<0.5),"-",IFERROR('Tabel 2 S'!J136/'Tabel 1 S'!G136*100,"-")) -> -
A137: Bibliotekar | C137: =IF(OR('Tabel 1 S'!C137<5,'Tabel 2 S'!C137<0.5),"-",IFERROR('Tabel 2 S'!C137/'Tabel 1 S'!C137*100,"-")) -> - | D137: =IF(OR('Tabel 1 S'!C137<5,'Tabel 2 S'!D137<0.5),"-",IFERROR('Tabel 2 S'!D137/'Tabel 1 S'!C137*100,"-")) -> - | F137: =IF(OR('Tabel 1 S'!E137<5,'Tabel 2 S'!F137<0.5),"-",IFERROR('Tabel 2 S'!F137/'Tabel 1 S'!E137*100,"-")) -> 7.692307692 | G137: =IF(OR('Tabel 1 S'!E137<5,'Tabel 2 S'!G137<0.5),"-",IFERROR('Tabel 2 S'!G137/'Tabel 1 S'!E137*100,"-")) -> 7.690868353 | I137: =IF(OR('Tabel 1 S'!G137<5,'Tabel 2 S'!I137<0.5),"-",IFERROR('Tabel 2 S'!I137/'Tabel 1 S'!G137*100,"-")) -> 6.896551724 | J137: =IF(OR('Tabel 1 S'!G137<5,'Tabel 2 S'!J137<0.5),"-",IFERROR('Tabel 2 S'!J137/'Tabel 1 S'!G137*100,"-")) -> 6.895261282
A138: Musikudd. | C138: =IF(OR('Tabel 1 S'!C138<5,'Tabel 2 S'!C138<0.5),"-",IFERROR('Tabel 2 S'!C138/'Tabel 1 S'!C138*100,"-")) -> - | D138: =IF(OR('Tabel 1 S'!C138<5,'Tabel 2 S'!D138<0.5),"-",IFERROR('Tabel 2 S'!D138/'Tabel 1 S'!C138*100,"-")) -> - | F138: =IF(OR('Tabel 1 S'!E138<5,'Tabel 2 S'!F138<0.5),"-",IFERROR('Tabel 2 S'!F138/'Tabel 1 S'!E138*100,"-")) -> - | G138: =IF(OR('Tabel 1 S'!E138<5,'Tabel 2 S'!G138<0.5),"-",IFERROR('Tabel 2 S'!G138/'Tabel 1 S'!E138*100,"-")) -> - | I138: =IF(OR('Tabel 1 S'!G138<5,'Tabel 2 S'!I138<0.5),"-",IFERROR('Tabel 2 S'!I138/'Tabel 1 S'!G138*100,"-")) -> - | J138: =IF(OR('Tabel 1 S'!G138<5,'Tabel 2 S'!J138<0.5),"-",IFERROR('Tabel 2 S'!J138/'Tabel 1 S'!G138*100,"-")) -> -
A139: Teolog | C139: =IF(OR('Tabel 1 S'!C139<5,'Tabel 2 S'!C139<0.5),"-",IFERROR('Tabel 2 S'!C139/'Tabel 1 S'!C139*100,"-")) -> - | D139: =IF(OR('Tabel 1 S'!C139<5,'Tabel 2 S'!D139<0.5),"-",IFERROR('Tabel 2 S'!D139/'Tabel 1 S'!C139*100,"-")) -> - | F139: =IF(OR('Tabel 1 S'!E139<5,'Tabel 2 S'!F139<0.5),"-",IFERROR('Tabel 2 S'!F139/'Tabel 1 S'!E139*100,"-")) -> - | G139: =IF(OR('Tabel 1 S'!E139<5,'Tabel 2 S'!G139<0.5),"-",IFERROR('Tabel 2 S'!G139/'Tabel 1 S'!E139*100,"-")) -> - | I139: =IF(OR('Tabel 1 S'!G139<5,'Tabel 2 S'!I139<0.5),"-",IFERROR('Tabel 2 S'!I139/'Tabel 1 S'!G139*100,"-")) -> - | J139: =IF(OR('Tabel 1 S'!G139<5,'Tabel 2 S'!J139<0.5),"-",IFERROR('Tabel 2 S'!J139/'Tabel 1 S'!G139*100,"-")) -> -
A140: Psykolog | C140: =IF(OR('Tabel 1 S'!C140<5,'Tabel 2 S'!C140<0.5),"-",IFERROR('Tabel 2 S'!C140/'Tabel 1 S'!C140*100,"-")) -> - | D140: =IF(OR('Tabel 1 S'!C140<5,'Tabel 2 S'!D140<0.5),"-",IFERROR('Tabel 2 S'!D140/'Tabel 1 S'!C140*100,"-")) -> - | F140: =IF(OR('Tabel 1 S'!E140<5,'Tabel 2 S'!F140<0.5),"-",IFERROR('Tabel 2 S'!F140/'Tabel 1 S'!E140*100,"-")) -> - | G140: =IF(OR('Tabel 1 S'!E140<5,'Tabel 2 S'!G140<0.5),"-",IFERROR('Tabel 2 S'!G140/'Tabel 1 S'!E140*100,"-")) -> - | I140: =IF(OR('Tabel 1 S'!G140<5,'Tabel 2 S'!I140<0.5),"-",IFERROR('Tabel 2 S'!I140/'Tabel 1 S'!G140*100,"-")) -> - | J140: =IF(OR('Tabel 1 S'!G140<5,'Tabel 2 S'!J140<0.5),"-",IFERROR('Tabel 2 S'!J140/'Tabel 1 S'!G140*100,"-")) -> -
A141: Jurist | C141: =IF(OR('Tabel 1 S'!C141<5,'Tabel 2 S'!C141<0.5),"-",IFERROR('Tabel 2 S'!C141/'Tabel 1 S'!C141*100,"-")) -> 3.03030303 | D141: =IF(OR('Tabel 1 S'!C141<5,'Tabel 2 S'!D141<0.5),"-",IFERROR('Tabel 2 S'!D141/'Tabel 1 S'!C141*100,"-")) -> - | F141: =IF(OR('Tabel 1 S'!E141<5,'Tabel 2 S'!F141<0.5),"-",IFERROR('Tabel 2 S'!F141/'Tabel 1 S'!E141*100,"-")) -> 1.098901099 | G141: =IF(OR('Tabel 1 S'!E141<5,'Tabel 2 S'!G141<0.5),"-",IFERROR('Tabel 2 S'!G141/'Tabel 1 S'!E141*100,"-")) -> 1.098695479 | I141: =IF(OR('Tabel 1 S'!G141<5,'Tabel 2 S'!I141<0.5),"-",IFERROR('Tabel 2 S'!I141/'Tabel 1 S'!G141*100,"-")) -> 1.612903226 | J141: =IF(OR('Tabel 1 S'!G141<5,'Tabel 2 S'!J141<0.5),"-",IFERROR('Tabel 2 S'!J141/'Tabel 1 S'!G141*100,"-")) -> 0.9587081483
A142: Økonom | C142: =IF(OR('Tabel 1 S'!C142<5,'Tabel 2 S'!C142<0.5),"-",IFERROR('Tabel 2 S'!C142/'Tabel 1 S'!C142*100,"-")) -> 4.444444444 | D142: =IF(OR('Tabel 1 S'!C142<5,'Tabel 2 S'!D142<0.5),"-",IFERROR('Tabel 2 S'!D142/'Tabel 1 S'!C142*100,"-")) -> 3.930781652 | F142: =IF(OR('Tabel 1 S'!E142<5,'Tabel 2 S'!F142<0.5),"-",IFERROR('Tabel 2 S'!F142/'Tabel 1 S'!E142*100,"-")) -> - | G142: =IF(OR('Tabel 1 S'!E142<5,'Tabel 2 S'!G142<0.5),"-",IFERROR('Tabel 2 S'!G142/'Tabel 1 S'!E142*100,"-")) -> - | I142: =IF(OR('Tabel 1 S'!G142<5,'Tabel 2 S'!I142<0.5),"-",IFERROR('Tabel 2 S'!I142/'Tabel 1 S'!G142*100,"-")) -> 2.702702703 | J142: =IF(OR('Tabel 1 S'!G142<5,'Tabel 2 S'!J142<0.5),"-",IFERROR('Tabel 2 S'!J142/'Tabel 1 S'!G142*100,"-")) -> 2.390340194
A143: Samf. Adm. | C143: =IF(OR('Tabel 1 S'!C143<5,'Tabel 2 S'!C143<0.5),"-",IFERROR('Tabel 2 S'!C143/'Tabel 1 S'!C143*100,"-")) -> 5.970149254 | D143: =IF(OR('Tabel 1 S'!C143<5,'Tabel 2 S'!D143<0.5),"-",IFERROR('Tabel 2 S'!D143/'Tabel 1 S'!C143*100,"-")) -> 5.393726186 | F143: =IF(OR('Tabel 1 S'!E143<5,'Tabel 2 S'!F143<0.5),"-",IFERROR('Tabel 2 S'!F143/'Tabel 1 S'!E143*100,"-")) -> 5.504587156 | G143: =IF(OR('Tabel 1 S'!E143<5,'Tabel 2 S'!G143<0.5),"-",IFERROR('Tabel 2 S'!G143/'Tabel 1 S'!E143*100,"-")) -> 4.271579775 | I143: =IF(OR('Tabel 1 S'!G143<5,'Tabel 2 S'!I143<0.5),"-",IFERROR('Tabel 2 S'!I143/'Tabel 1 S'!G143*100,"-")) -> 5.681818182 | J143: =IF(OR('Tabel 1 S'!G143<5,'Tabel 2 S'!J143<0.5),"-",IFERROR('Tabel 2 S'!J143/'Tabel 1 S'!G143*100,"-")) -> 4.698760511
A144: Cand. Merc. | C144: =IF(OR('Tabel 1 S'!C144<5,'Tabel 2 S'!C144<0.5),"-",IFERROR('Tabel 2 S'!C144/'Tabel 1 S'!C144*100,"-")) -> 1.724137931 | D144: =IF(OR('Tabel 1 S'!C144<5,'Tabel 2 S'!D144<0.5),"-",IFERROR('Tabel 2 S'!D144/'Tabel 1 S'!C144*100,"-")) -> 1.718438479 | F144: =IF(OR('Tabel 1 S'!E144<5,'Tabel 2 S'!F144<0.5),"-",IFERROR('Tabel 2 S'!F144/'Tabel 1 S'!E144*100,"-")) -> 3.90625 | G144: =IF(OR('Tabel 1 S'!E144<5,'Tabel 2 S'!G144<0.5),"-",IFERROR('Tabel 2 S'!G144/'Tabel 1 S'!E144*100,"-")) -> 3.60925513 | I144: =IF(OR('Tabel 1 S'!G144<5,'Tabel 2 S'!I144<0.5),"-",IFERROR('Tabel 2 S'!I144/'Tabel 1 S'!G144*100,"-")) -> 2.868852459 | J144: =IF(OR('Tabel 1 S'!G144<5,'Tabel 2 S'!J144<0.5),"-",IFERROR('Tabel 2 S'!J144/'Tabel 1 S'!G144*100,"-")) -> 2.710342296
A145: HA | C145: =IF(OR('Tabel 1 S'!C145<5,'Tabel 2 S'!C145<0.5),"-",IFERROR('Tabel 2 S'!C145/'Tabel 1 S'!C145*100,"-")) -> - | D145: =IF(OR('Tabel 1 S'!C145<5,'Tabel 2 S'!D145<0.5),"-",IFERROR('Tabel 2 S'!D145/'Tabel 1 S'!C145*100,"-")) -> - | F145: =IF(OR('Tabel 1 S'!E145<5,'Tabel 2 S'!F145<0.5),"-",IFERROR('Tabel 2 S'!F145/'Tabel 1 S'!E145*100,"-")) -> - | G145: =IF(OR('Tabel 1 S'!E145<5,'Tabel 2 S'!G145<0.5),"-",IFERROR('Tabel 2 S'!G145/'Tabel 1 S'!E145*100,"-")) -> - | I145: =IF(OR('Tabel 1 S'!G145<5,'Tabel 2 S'!I145<0.5),"-",IFERROR('Tabel 2 S'!I145/'Tabel 1 S'!G145*100,"-")) -> - | J145: =IF(OR('Tabel 1 S'!G145<5,'Tabel 2 S'!J145<0.5),"-",IFERROR('Tabel 2 S'!J145/'Tabel 1 S'!G145*100,"-")) -> -
A146: HD | C146: =IF(OR('Tabel 1 S'!C146<5,'Tabel 2 S'!C146<0.5),"-",IFERROR('Tabel 2 S'!C146/'Tabel 1 S'!C146*100,"-")) -> - | D146: =IF(OR('Tabel 1 S'!C146<5,'Tabel 2 S'!D146<0.5),"-",IFERROR('Tabel 2 S'!D146/'Tabel 1 S'!C146*100,"-")) -> - | F146: =IF(OR('Tabel 1 S'!E146<5,'Tabel 2 S'!F146<0.5),"-",IFERROR('Tabel 2 S'!F146/'Tabel 1 S'!E146*100,"-")) -> - | G146: =IF(OR('Tabel 1 S'!E146<5,'Tabel 2 S'!G146<0.5),"-",IFERROR('Tabel 2 S'!G146/'Tabel 1 S'!E146*100,"-")) -> - | I146: =IF(OR('Tabel 1 S'!G146<5,'Tabel 2 S'!I146<0.5),"-",IFERROR('Tabel 2 S'!I146/'Tabel 1 S'!G146*100,"-")) -> - | J146: =IF(OR('Tabel 1 S'!G146<5,'Tabel 2 S'!J146<0.5),"-",IFERROR('Tabel 2 S'!J146/'Tabel 1 S'!G146*100,"-")) -> -
A147: Komm. og Sprog | C147: =IF(OR('Tabel 1 S'!C147<5,'Tabel 2 S'!C147<0.5),"-",IFERROR('Tabel 2 S'!C147/'Tabel 1 S'!C147*100,"-")) -> 28.57142857 | D147: =IF(OR('Tabel 1 S'!C147<5,'Tabel 2 S'!D147<0.5),"-",IFERROR('Tabel 2 S'!D147/'Tabel 1 S'!C147*100,"-")) -> 16.03834948 | F147: =IF(OR('Tabel 1 S'!E147<5,'Tabel 2 S'!F147<0.5),"-",IFERROR('Tabel 2 S'!F147/'Tabel 1 S'!E147*100,"-")) -> 1.818181818 | G147: =IF(OR('Tabel 1 S'!E147<5,'Tabel 2 S'!G147<0.5),"-",IFERROR('Tabel 2 S'!G147/'Tabel 1 S'!E147*100,"-")) -> 1.817841611 | I147: =IF(OR('Tabel 1 S'!G147<5,'Tabel 2 S'!I147<0.5),"-",IFERROR('Tabel 2 S'!I147/'Tabel 1 S'!G147*100,"-")) -> 4.838709677 | J147: =IF(OR('Tabel 1 S'!G147<5,'Tabel 2 S'!J147<0.5),"-",IFERROR('Tabel 2 S'!J147/'Tabel 1 S'!G147*100,"-")) -> 3.423382821
A148: Bygningskonst. | C148: =IF(OR('Tabel 1 S'!C148<5,'Tabel 2 S'!C148<0.5),"-",IFERROR('Tabel 2 S'!C148/'Tabel 1 S'!C148*100,"-")) -> 2.222222222 | D148: =IF(OR('Tabel 1 S'!C148<5,'Tabel 2 S'!D148<0.5),"-",IFERROR('Tabel 2 S'!D148/'Tabel 1 S'!C148*100,"-")) -> 1.914523517 | F148: =IF(OR('Tabel 1 S'!E148<5,'Tabel 2 S'!F148<0.5),"-",IFERROR('Tabel 2 S'!F148/'Tabel 1 S'!E148*100,"-")) -> - | G148: =IF(OR('Tabel 1 S'!E148<5,'Tabel 2 S'!G148<0.5),"-",IFERROR('Tabel 2 S'!G148/'Tabel 1 S'!E148*100,"-")) -> - | I148: =IF(OR('Tabel 1 S'!G148<5,'Tabel 2 S'!I148<0.5),"-",IFERROR('Tabel 2 S'!I148/'Tabel 1 S'!G148*100,"-")) -> 1.886792453 | J148: =IF(OR('Tabel 1 S'!G148<5,'Tabel 2 S'!J148<0.5),"-",IFERROR('Tabel 2 S'!J148/'Tabel 1 S'!G148*100,"-")) -> 1.625538836
A149: Cand. IT. | C149: =IF(OR('Tabel 1 S'!C149<5,'Tabel 2 S'!C149<0.5),"-",IFERROR('Tabel 2 S'!C149/'Tabel 1 S'!C149*100,"-")) -> 13.04347826 | D149: =IF(OR('Tabel 1 S'!C149<5,'Tabel 2 S'!D149<0.5),"-",IFERROR('Tabel 2 S'!D149/'Tabel 1 S'!C149*100,"-")) -> 12.91900672 | F149: =IF(OR('Tabel 1 S'!E149<5,'Tabel 2 S'!F149<0.5),"-",IFERROR('Tabel 2 S'!F149/'Tabel 1 S'!E149*100,"-")) -> - | G149: =IF(OR('Tabel 1 S'!E149<5,'Tabel 2 S'!G149<0.5),"-",IFERROR('Tabel 2 S'!G149/'Tabel 1 S'!E149*100,"-")) -> - | I149: =IF(OR('Tabel 1 S'!G149<5,'Tabel 2 S'!I149<0.5),"-",IFERROR('Tabel 2 S'!I149/'Tabel 1 S'!G149*100,"-")) -> 9.090909091 | J149: =IF(OR('Tabel 1 S'!G149<5,'Tabel 2 S'!J149<0.5),"-",IFERROR('Tabel 2 S'!J149/'Tabel 1 S'!G149*100,"-")) -> 9.004156201
A150: Bac. Samf. | C150: =IF(OR('Tabel 1 S'!C150<5,'Tabel 2 S'!C150<0.5),"-",IFERROR('Tabel 2 S'!C150/'Tabel 1 S'!C150*100,"-")) -> - | D150: =IF(OR('Tabel 1 S'!C150<5,'Tabel 2 S'!D150<0.5),"-",IFERROR('Tabel 2 S'!D150/'Tabel 1 S'!C150*100,"-")) -> - | F150: =IF(OR('Tabel 1 S'!E150<5,'Tabel 2 S'!F150<0.5),"-",IFERROR('Tabel 2 S'!F150/'Tabel 1 S'!E150*100,"-")) -> - | G150: =IF(OR('Tabel 1 S'!E150<5,'Tabel 2 S'!G150<0.5),"-",IFERROR('Tabel 2 S'!G150/'Tabel 1 S'!E150*100,"-")) -> - | I150: =IF(OR('Tabel 1 S'!G150<5,'Tabel 2 S'!I150<0.5),"-",IFERROR('Tabel 2 S'!I150/'Tabel 1 S'!G150*100,"-")) -> - | J150: =IF(OR('Tabel 1 S'!G150<5,'Tabel 2 S'!J150<0.5),"-",IFERROR('Tabel 2 S'!J150/'Tabel 1 S'!G150*100,"-")) -> -
A151: Bac. Hum. | C151: =IF(OR('Tabel 1 S'!C151<5,'Tabel 2 S'!C151<0.5),"-",IFERROR('Tabel 2 S'!C151/'Tabel 1 S'!C151*100,"-")) -> 25 | D151: =IF(OR('Tabel 1 S'!C151<5,'Tabel 2 S'!D151<0.5),"-",IFERROR('Tabel 2 S'!D151/'Tabel 1 S'!C151*100,"-")) -> 18.07989771 | F151: =IF(OR('Tabel 1 S'!E151<5,'Tabel 2 S'!F151<0.5),"-",IFERROR('Tabel 2 S'!F151/'Tabel 1 S'!E151*100,"-")) -> 10.52631579 | G151: =IF(OR('Tabel 1 S'!E151<5,'Tabel 2 S'!G151<0.5),"-",IFERROR('Tabel 2 S'!G151/'Tabel 1 S'!E151*100,"-")) -> 10.52434617 | I151: =IF(OR('Tabel 1 S'!G151<5,'Tabel 2 S'!I151<0.5),"-",IFERROR('Tabel 2 S'!I151/'Tabel 1 S'!G151*100,"-")) -> 14.81481481 | J151: =IF(OR('Tabel 1 S'!G151<5,'Tabel 2 S'!J151<0.5),"-",IFERROR('Tabel 2 S'!J151/'Tabel 1 S'!G151*100,"-")) -> 12.76302811
A152: Bac. Nat. | C152: =IF(OR('Tabel 1 S'!C152<5,'Tabel 2 S'!C152<0.5),"-",IFERROR('Tabel 2 S'!C152/'Tabel 1 S'!C152*100,"-")) -> 10 | D152: =IF(OR('Tabel 1 S'!C152<5,'Tabel 2 S'!D152<0.5),"-",IFERROR('Tabel 2 S'!D152/'Tabel 1 S'!C152*100,"-")) -> 9.998128859 | F152: =IF(OR('Tabel 1 S'!E152<5,'Tabel 2 S'!F152<0.5),"-",IFERROR('Tabel 2 S'!F152/'Tabel 1 S'!E152*100,"-")) -> 11.11111111 | G152: =IF(OR('Tabel 1 S'!E152<5,'Tabel 2 S'!G152<0.5),"-",IFERROR('Tabel 2 S'!G152/'Tabel 1 S'!E152*100,"-")) -> 11.10903207 | I152: =IF(OR('Tabel 1 S'!G152<5,'Tabel 2 S'!I152<0.5),"-",IFERROR('Tabel 2 S'!I152/'Tabel 1 S'!G152*100,"-")) -> 10.52631579 | J152: =IF(OR('Tabel 1 S'!G152<5,'Tabel 2 S'!J152<0.5),"-",IFERROR('Tabel 2 S'!J152/'Tabel 1 S'!G152*100,"-")) -> 10.52434617
A153: Andre | C153: =IF(OR('Tabel 1 S'!C153<5,'Tabel 2 S'!C153<0.5),"-",IFERROR('Tabel 2 S'!C153/'Tabel 1 S'!C153*100,"-")) -> 3.296703297 | D153: =IF(OR('Tabel 1 S'!C153<5,'Tabel 2 S'!D153<0.5),"-",IFERROR('Tabel 2 S'!D153/'Tabel 1 S'!C153*100,"-")) -> 3.296086437 | F153: =IF(OR('Tabel 1 S'!E153<5,'Tabel 2 S'!F153<0.5),"-",IFERROR('Tabel 2 S'!F153/'Tabel 1 S'!E153*100,"-")) -> 12.64367816 | G153: =IF(OR('Tabel 1 S'!E153<5,'Tabel 2 S'!G153<0.5),"-",IFERROR('Tabel 2 S'!G153/'Tabel 1 S'!E153*100,"-")) -> 11.49496979 | I153: =IF(OR('Tabel 1 S'!G153<5,'Tabel 2 S'!I153<0.5),"-",IFERROR('Tabel 2 S'!I153/'Tabel 1 S'!G153*100,"-")) -> 7.865168539 | J153: =IF(OR('Tabel 1 S'!G153<5,'Tabel 2 S'!J153<0.5),"-",IFERROR('Tabel 2 S'!J153/'Tabel 1 S'!G153*100,"-")) -> 7.303405827
A155: Total | C155: =IF(OR('Tabel 1 S'!C155<5,'Tabel 2 S'!C155<0.5),"-",IFERROR('Tabel 2 S'!C155/'Tabel 1 S'!C155*100,"-")) -> 3.627760252 | D155: =IF(OR('Tabel 1 S'!C155<5,'Tabel 2 S'!D155<0.5),"-",IFERROR('Tabel 2 S'!D155/'Tabel 1 S'!C155*100,"-")) -> 3.024646918 | F155: =IF(OR('Tabel 1 S'!E155<5,'Tabel 2 S'!F155<0.5),"-",IFERROR('Tabel 2 S'!F155/'Tabel 1 S'!E155*100,"-")) -> 3.935185185 | G155: =IF(OR('Tabel 1 S'!E155<5,'Tabel 2 S'!G155<0.5),"-",IFERROR('Tabel 2 S'!G155/'Tabel 1 S'!E155*100,"-")) -> 3.48437405 | I155: =IF(OR('Tabel 1 S'!G155<5,'Tabel 2 S'!I155<0.5),"-",IFERROR('Tabel 2 S'!I155/'Tabel 1 S'!G155*100,"-")) -> 3.783151326 | J155: =IF(OR('Tabel 1 S'!G155<5,'Tabel 2 S'!J155<0.5),"-",IFERROR('Tabel 2 S'!J155/'Tabel 1 S'!G155*100,"-")) -> 3.257020694
A157: Ingeniører i alt | C157: =IF(OR('Tabel 1 S'!C157<5,'Tabel 2 S'!C157<0.5),"-",IFERROR('Tabel 2 S'!C157/'Tabel 1 S'!C157*100,"-")) -> 2.471910112 | D157: =IF(OR('Tabel 1 S'!C157<5,'Tabel 2 S'!D157<0.5),"-",IFERROR('Tabel 2 S'!D157/'Tabel 1 S'!C157*100,"-")) -> 2.131138235 | F157: =IF(OR('Tabel 1 S'!E157<5,'Tabel 2 S'!F157<0.5),"-",IFERROR('Tabel 2 S'!F157/'Tabel 1 S'!E157*100,"-")) -> 2.521008403 | G157: =IF(OR('Tabel 1 S'!E157<5,'Tabel 2 S'!G157<0.5),"-",IFERROR('Tabel 2 S'!G157/'Tabel 1 S'!E157*100,"-")) -> 2.367490999 | I157: =IF(OR('Tabel 1 S'!G157<5,'Tabel 2 S'!I157<0.5),"-",IFERROR('Tabel 2 S'!I157/'Tabel 1 S'!G157*100,"-")) -> 2.482269504 | J157: =IF(OR('Tabel 1 S'!G157<5,'Tabel 2 S'!J157<0.5),"-",IFERROR('Tabel 2 S'!J157/'Tabel 1 S'!G157*100,"-")) -> 2.181006992
A158: Magistre i alt | C158: =IF(OR('Tabel 1 S'!C158<5,'Tabel 2 S'!C158<0.5),"-",IFERROR('Tabel 2 S'!C158/'Tabel 1 S'!C158*100,"-")) -> 5.555555556 | D158: =IF(OR('Tabel 1 S'!C158<5,'Tabel 2 S'!D158<0.5),"-",IFERROR('Tabel 2 S'!D158/'Tabel 1 S'!C158*100,"-")) -> 4.599640226 | F158: =IF(OR('Tabel 1 S'!E158<5,'Tabel 2 S'!F158<0.5),"-",IFERROR('Tabel 2 S'!F158/'Tabel 1 S'!E158*100,"-")) -> 4.676258993 | G158: =IF(OR('Tabel 1 S'!E158<5,'Tabel 2 S'!G158<0.5),"-",IFERROR('Tabel 2 S'!G158/'Tabel 1 S'!E158*100,"-")) -> 4.273559883 | I158: =IF(OR('Tabel 1 S'!G158<5,'Tabel 2 S'!I158<0.5),"-",IFERROR('Tabel 2 S'!I158/'Tabel 1 S'!G158*100,"-")) -> 4.95049505 | J158: =IF(OR('Tabel 1 S'!G158<5,'Tabel 2 S'!J158<0.5),"-",IFERROR('Tabel 2 S'!J158/'Tabel 1 S'!G158*100,"-")) -> 4.375258208
A159: DJØF'ere i alt | C159: =IF(OR('Tabel 1 S'!C159<5,'Tabel 2 S'!C159<0.5),"-",IFERROR('Tabel 2 S'!C159/'Tabel 1 S'!C159*100,"-")) -> 3.157894737 | D159: =IF(OR('Tabel 1 S'!C159<5,'Tabel 2 S'!D159<0.5),"-",IFERROR('Tabel 2 S'!D159/'Tabel 1 S'!C159*100,"-")) -> 2.654393734 | F159: =IF(OR('Tabel 1 S'!E159<5,'Tabel 2 S'!F159<0.5),"-",IFERROR('Tabel 2 S'!F159/'Tabel 1 S'!E159*100,"-")) -> 3.166226913 | G159: =IF(OR('Tabel 1 S'!E159<5,'Tabel 2 S'!G159<0.5),"-",IFERROR('Tabel 2 S'!G159/'Tabel 1 S'!E159*100,"-")) -> 2.711261585 | I159: =IF(OR('Tabel 1 S'!G159<5,'Tabel 2 S'!I159<0.5),"-",IFERROR('Tabel 2 S'!I159/'Tabel 1 S'!G159*100,"-")) -> 3.162650602 | J159: =IF(OR('Tabel 1 S'!G159<5,'Tabel 2 S'!J159<0.5),"-",IFERROR('Tabel 2 S'!J159/'Tabel 1 S'!G159*100,"-")) -> 2.686852944
A164: ='Tabel 2 S'!A164 -> Roskilde
C166: Mænd | F166: Kvinder | I166: I alt
C167: Ledigheds- berørte | D167: Gns. brutto- ledighed | F167: Ledigheds- berørte | G167: Gns. brutto- ledighed | I167: Ledigheds- berørte | J167: Gns. brutto- ledighed
A170: Civ. ing. | C170: =IF(OR('Tabel 1 S'!C170<5,'Tabel 2 S'!C170<0.5),"-",IFERROR('Tabel 2 S'!C170/'Tabel 1 S'!C170*100,"-")) -> 1.876172608 | D170: =IF(OR('Tabel 1 S'!C170<5,'Tabel 2 S'!D170<0.5),"-",IFERROR('Tabel 2 S'!D170/'Tabel 1 S'!C170*100,"-")) -> 1.598719527 | F170: =IF(OR('Tabel 1 S'!E170<5,'Tabel 2 S'!F170<0.5),"-",IFERROR('Tabel 2 S'!F170/'Tabel 1 S'!E170*100,"-")) -> 2.5 | G170: =IF(OR('Tabel 1 S'!E170<5,'Tabel 2 S'!G170<0.5),"-",IFERROR('Tabel 2 S'!G170/'Tabel 1 S'!E170*100,"-")) -> 2.498908501 | I170: =IF(OR('Tabel 1 S'!G170<5,'Tabel 2 S'!I170<0.5),"-",IFERROR('Tabel 2 S'!I170/'Tabel 1 S'!G170*100,"-")) -> 2.04638472 | J170: =IF(OR('Tabel 1 S'!G170<5,'Tabel 2 S'!J170<0.5),"-",IFERROR('Tabel 2 S'!J170/'Tabel 1 S'!G170*100,"-")) -> 1.844337255
A171: Diplom ing. | C171: =IF(OR('Tabel 1 S'!C171<5,'Tabel 2 S'!C171<0.5),"-",IFERROR('Tabel 2 S'!C171/'Tabel 1 S'!C171*100,"-")) -> 1.716068643 | D171: =IF(OR('Tabel 1 S'!C171<5,'Tabel 2 S'!D171<0.5),"-",IFERROR('Tabel 2 S'!D171/'Tabel 1 S'!C171*100,"-")) -> 1.525227852 | F171: =IF(OR('Tabel 1 S'!E171<5,'Tabel 2 S'!F171<0.5),"-",IFERROR('Tabel 2 S'!F171/'Tabel 1 S'!E171*100,"-")) -> 1.724137931 | G171: =IF(OR('Tabel 1 S'!E171<5,'Tabel 2 S'!G171<0.5),"-",IFERROR('Tabel 2 S'!G171/'Tabel 1 S'!E171*100,"-")) -> 1.69728957 | I171: =IF(OR('Tabel 1 S'!G171<5,'Tabel 2 S'!I171<0.5),"-",IFERROR('Tabel 2 S'!I171/'Tabel 1 S'!G171*100,"-")) -> 1.717791411 | J171: =IF(OR('Tabel 1 S'!G171<5,'Tabel 2 S'!J171<0.5),"-",IFERROR('Tabel 2 S'!J171/'Tabel 1 S'!G171*100,"-")) -> 1.561962501
A172: Cand. Scient. Tek. | C172: =IF(OR('Tabel 1 S'!C172<5,'Tabel 2 S'!C172<0.5),"-",IFERROR('Tabel 2 S'!C172/'Tabel 1 S'!C172*100,"-")) -> 4.6875 | D172: =IF(OR('Tabel 1 S'!C172<5,'Tabel 2 S'!D172<0.5),"-",IFERROR('Tabel 2 S'!D172/'Tabel 1 S'!C172*100,"-")) -> 4.201945467 | F172: =IF(OR('Tabel 1 S'!E172<5,'Tabel 2 S'!F172<0.5),"-",IFERROR('Tabel 2 S'!F172/'Tabel 1 S'!E172*100,"-")) -> 2.312138728 | G172: =IF(OR('Tabel 1 S'!E172<5,'Tabel 2 S'!G172<0.5),"-",IFERROR('Tabel 2 S'!G172/'Tabel 1 S'!E172*100,"-")) -> 2.151631624 | I172: =IF(OR('Tabel 1 S'!G172<5,'Tabel 2 S'!I172<0.5),"-",IFERROR('Tabel 2 S'!I172/'Tabel 1 S'!G172*100,"-")) -> 3.561643836 | J172: =IF(OR('Tabel 1 S'!G172<5,'Tabel 2 S'!J172<0.5),"-",IFERROR('Tabel 2 S'!J172/'Tabel 1 S'!G172*100,"-")) -> 3.230152878
A173: MA. Hum. | C173: =IF(OR('Tabel 1 S'!C173<5,'Tabel 2 S'!C173<0.5),"-",IFERROR('Tabel 2 S'!C173/'Tabel 1 S'!C173*100,"-")) -> 6.334841629 | D173: =IF(OR('Tabel 1 S'!C173<5,'Tabel 2 S'!D173<0.5),"-",IFERROR('Tabel 2 S'!D173/'Tabel 1 S'!C173*100,"-")) -> 5.845974352 | F173: =IF(OR('Tabel 1 S'!E173<5,'Tabel 2 S'!F173<0.5),"-",IFERROR('Tabel 2 S'!F173/'Tabel 1 S'!E173*100,"-")) -> 5.688073394 | G173: =IF(OR('Tabel 1 S'!E173<5,'Tabel 2 S'!G173<0.5),"-",IFERROR('Tabel 2 S'!G173/'Tabel 1 S'!E173*100,"-")) -> 5.253156191 | I173: =IF(OR('Tabel 1 S'!G173<5,'Tabel 2 S'!I173<0.5),"-",IFERROR('Tabel 2 S'!I173/'Tabel 1 S'!G173*100,"-")) -> 5.874673629 | J173: =IF(OR('Tabel 1 S'!G173<5,'Tabel 2 S'!J173<0.5),"-",IFERROR('Tabel 2 S'!J173/'Tabel 1 S'!G173*100,"-")) -> 5.424191196
A174: MA. Nat. | C174: =IF(OR('Tabel 1 S'!C174<5,'Tabel 2 S'!C174<0.5),"-",IFERROR('Tabel 2 S'!C174/'Tabel 1 S'!C174*100,"-")) -> 1.990049751 | D174: =IF(OR('Tabel 1 S'!C174<5,'Tabel 2 S'!D174<0.5),"-",IFERROR('Tabel 2 S'!D174/'Tabel 1 S'!C174*100,"-")) -> 1.739571338 | F174: =IF(OR('Tabel 1 S'!E174<5,'Tabel 2 S'!F174<0.5),"-",IFERROR('Tabel 2 S'!F174/'Tabel 1 S'!E174*100,"-")) -> 4.081632653 | G174: =IF(OR('Tabel 1 S'!E174<5,'Tabel 2 S'!G174<0.5),"-",IFERROR('Tabel 2 S'!G174/'Tabel 1 S'!E174*100,"-")) -> 3.604809977 | I174: =IF(OR('Tabel 1 S'!G174<5,'Tabel 2 S'!I174<0.5),"-",IFERROR('Tabel 2 S'!I174/'Tabel 1 S'!G174*100,"-")) -> 3.022670025 | J174: =IF(OR('Tabel 1 S'!G174<5,'Tabel 2 S'!J174<0.5),"-",IFERROR('Tabel 2 S'!J174/'Tabel 1 S'!G174*100,"-")) -> 2.660444822
A175: MA. Ph.d. | C175: =IF(OR('Tabel 1 S'!C175<5,'Tabel 2 S'!C175<0.5),"-",IFERROR('Tabel 2 S'!C175/'Tabel 1 S'!C175*100,"-")) -> 5.555555556 | D175: =IF(OR('Tabel 1 S'!C175<5,'Tabel 2 S'!D175<0.5),"-",IFERROR('Tabel 2 S'!D175/'Tabel 1 S'!C175*100,"-")) -> 3.924198008 | F175: =IF(OR('Tabel 1 S'!E175<5,'Tabel 2 S'!F175<0.5),"-",IFERROR('Tabel 2 S'!F175/'Tabel 1 S'!E175*100,"-")) -> - | G175: =IF(OR('Tabel 1 S'!E175<5,'Tabel 2 S'!G175<0.5),"-",IFERROR('Tabel 2 S'!G175/'Tabel 1 S'!E175*100,"-")) -> - | I175: =IF(OR('Tabel 1 S'!G175<5,'Tabel 2 S'!I175<0.5),"-",IFERROR('Tabel 2 S'!I175/'Tabel 1 S'!G175*100,"-")) -> 3.921568627 | J175: =IF(OR('Tabel 1 S'!G175<5,'Tabel 2 S'!J175<0.5),"-",IFERROR('Tabel 2 S'!J175/'Tabel 1 S'!G175*100,"-")) -> 2.770022123
A176: MA. Samf. | C176: =IF(OR('Tabel 1 S'!C176<5,'Tabel 2 S'!C176<0.5),"-",IFERROR('Tabel 2 S'!C176/'Tabel 1 S'!C176*100,"-")) -> 2.564102564 | D176: =IF(OR('Tabel 1 S'!C176<5,'Tabel 2 S'!D176<0.5),"-",IFERROR('Tabel 2 S'!D176/'Tabel 1 S'!C176*100,"-")) -> 2.563622784 | F176: =IF(OR('Tabel 1 S'!E176<5,'Tabel 2 S'!F176<0.5),"-",IFERROR('Tabel 2 S'!F176/'Tabel 1 S'!E176*100,"-")) -> 12.82051282 | G176: =IF(OR('Tabel 1 S'!E176<5,'Tabel 2 S'!G176<0.5),"-",IFERROR('Tabel 2 S'!G176/'Tabel 1 S'!E176*100,"-")) -> 12.58142261 | I176: =IF(OR('Tabel 1 S'!G176<5,'Tabel 2 S'!I176<0.5),"-",IFERROR('Tabel 2 S'!I176/'Tabel 1 S'!G176*100,"-")) -> 9.401709402 | J176: =IF(OR('Tabel 1 S'!G176<5,'Tabel 2 S'!J176<0.5),"-",IFERROR('Tabel 2 S'!J176/'Tabel 1 S'!G176*100,"-")) -> 9.242156002
A177: Øvrige Mag. | C177: =IF(OR('Tabel 1 S'!C177<5,'Tabel 2 S'!C177<0.5),"-",IFERROR('Tabel 2 S'!C177/'Tabel 1 S'!C177*100,"-")) -> 5.882352941 | D177: =IF(OR('Tabel 1 S'!C177<5,'Tabel 2 S'!D177<0.5),"-",IFERROR('Tabel 2 S'!D177/'Tabel 1 S'!C177*100,"-")) -> 5.88125227 | F177: =IF(OR('Tabel 1 S'!E177<5,'Tabel 2 S'!F177<0.5),"-",IFERROR('Tabel 2 S'!F177/'Tabel 1 S'!E177*100,"-")) -> 7.317073171 | G177: =IF(OR('Tabel 1 S'!E177<5,'Tabel 2 S'!G177<0.5),"-",IFERROR('Tabel 2 S'!G177/'Tabel 1 S'!E177*100,"-")) -> 7.09055865 | I177: =IF(OR('Tabel 1 S'!G177<5,'Tabel 2 S'!I177<0.5),"-",IFERROR('Tabel 2 S'!I177/'Tabel 1 S'!G177*100,"-")) -> 6.896551724 | J177: =IF(OR('Tabel 1 S'!G177<5,'Tabel 2 S'!J177<0.5),"-",IFERROR('Tabel 2 S'!J177/'Tabel 1 S'!G177*100,"-")) -> 6.73610678
A178: Agronom | C178: =IF(OR('Tabel 1 S'!C178<5,'Tabel 2 S'!C178<0.5),"-",IFERROR('Tabel 2 S'!C178/'Tabel 1 S'!C178*100,"-")) -> - | D178: =IF(OR('Tabel 1 S'!C178<5,'Tabel 2 S'!D178<0.5),"-",IFERROR('Tabel 2 S'!D178/'Tabel 1 S'!C178*100,"-")) -> - | F178: =IF(OR('Tabel 1 S'!E178<5,'Tabel 2 S'!F178<0.5),"-",IFERROR('Tabel 2 S'!F178/'Tabel 1 S'!E178*100,"-")) -> - | G178: =IF(OR('Tabel 1 S'!E178<5,'Tabel 2 S'!G178<0.5),"-",IFERROR('Tabel 2 S'!G178/'Tabel 1 S'!E178*100,"-")) -> - | I178: =IF(OR('Tabel 1 S'!G178<5,'Tabel 2 S'!I178<0.5),"-",IFERROR('Tabel 2 S'!I178/'Tabel 1 S'!G178*100,"-")) -> - | J178: =IF(OR('Tabel 1 S'!G178<5,'Tabel 2 S'!J178<0.5),"-",IFERROR('Tabel 2 S'!J178/'Tabel 1 S'!G178*100,"-")) -> -
A179: Landsk. Arkt. | C179: =IF(OR('Tabel 1 S'!C179<5,'Tabel 2 S'!C179<0.5),"-",IFERROR('Tabel 2 S'!C179/'Tabel 1 S'!C179*100,"-")) -> - | D179: =IF(OR('Tabel 1 S'!C179<5,'Tabel 2 S'!D179<0.5),"-",IFERROR('Tabel 2 S'!D179/'Tabel 1 S'!C179*100,"-")) -> - | F179: =IF(OR('Tabel 1 S'!E179<5,'Tabel 2 S'!F179<0.5),"-",IFERROR('Tabel 2 S'!F179/'Tabel 1 S'!E179*100,"-")) -> - | G179: =IF(OR('Tabel 1 S'!E179<5,'Tabel 2 S'!G179<0.5),"-",IFERROR('Tabel 2 S'!G179/'Tabel 1 S'!E179*100,"-")) -> - | I179: =IF(OR('Tabel 1 S'!G179<5,'Tabel 2 S'!I179<0.5),"-",IFERROR('Tabel 2 S'!I179/'Tabel 1 S'!G179*100,"-")) -> - | J179: =IF(OR('Tabel 1 S'!G179<5,'Tabel 2 S'!J179<0.5),"-",IFERROR('Tabel 2 S'!J179/'Tabel 1 S'!G179*100,"-")) -> -
A180: Hortonom | C180: =IF(OR('Tabel 1 S'!C180<5,'Tabel 2 S'!C180<0.5),"-",IFERROR('Tabel 2 S'!C180/'Tabel 1 S'!C180*100,"-")) -> - | D180: =IF(OR('Tabel 1 S'!C180<5,'Tabel 2 S'!D180<0.5),"-",IFERROR('Tabel 2 S'!D180/'Tabel 1 S'!C180*100,"-")) -> - | F180: =IF(OR('Tabel 1 S'!E180<5,'Tabel 2 S'!F180<0.5),"-",IFERROR('Tabel 2 S'!F180/'Tabel 1 S'!E180*100,"-")) -> - | G180: =IF(OR('Tabel 1 S'!E180<5,'Tabel 2 S'!G180<0.5),"-",IFERROR('Tabel 2 S'!G180/'Tabel 1 S'!E180*100,"-")) -> - | I180: =IF(OR('Tabel 1 S'!G180<5,'Tabel 2 S'!I180<0.5),"-",IFERROR('Tabel 2 S'!I180/'Tabel 1 S'!G180*100,"-")) -> - | J180: =IF(OR('Tabel 1 S'!G180<5,'Tabel 2 S'!J180<0.5),"-",IFERROR('Tabel 2 S'!J180/'Tabel 1 S'!G180*100,"-")) -> -
A181: Forstkand. | C181: =IF(OR('Tabel 1 S'!C181<5,'Tabel 2 S'!C181<0.5),"-",IFERROR('Tabel 2 S'!C181/'Tabel 1 S'!C181*100,"-")) -> - | D181: =IF(OR('Tabel 1 S'!C181<5,'Tabel 2 S'!D181<0.5),"-",IFERROR('Tabel 2 S'!D181/'Tabel 1 S'!C181*100,"-")) -> - | F181: =IF(OR('Tabel 1 S'!E181<5,'Tabel 2 S'!F181<0.5),"-",IFERROR('Tabel 2 S'!F181/'Tabel 1 S'!E181*100,"-")) -> - | G181: =IF(OR('Tabel 1 S'!E181<5,'Tabel 2 S'!G181<0.5),"-",IFERROR('Tabel 2 S'!G181/'Tabel 1 S'!E181*100,"-")) -> - | I181: =IF(OR('Tabel 1 S'!G181<5,'Tabel 2 S'!I181<0.5),"-",IFERROR('Tabel 2 S'!I181/'Tabel 1 S'!G181*100,"-")) -> - | J181: =IF(OR('Tabel 1 S'!G181<5,'Tabel 2 S'!J181<0.5),"-",IFERROR('Tabel 2 S'!J181/'Tabel 1 S'!G181*100,"-")) -> -
A182: Jordbrugsakad. | C182: =IF(OR('Tabel 1 S'!C182<5,'Tabel 2 S'!C182<0.5),"-",IFERROR('Tabel 2 S'!C182/'Tabel 1 S'!C182*100,"-")) -> - | D182: =IF(OR('Tabel 1 S'!C182<5,'Tabel 2 S'!D182<0.5),"-",IFERROR('Tabel 2 S'!D182/'Tabel 1 S'!C182*100,"-")) -> - | F182: =IF(OR('Tabel 1 S'!E182<5,'Tabel 2 S'!F182<0.5),"-",IFERROR('Tabel 2 S'!F182/'Tabel 1 S'!E182*100,"-")) -> - | G182: =IF(OR('Tabel 1 S'!E182<5,'Tabel 2 S'!G182<0.5),"-",IFERROR('Tabel 2 S'!G182/'Tabel 1 S'!E182*100,"-")) -> - | I182: =IF(OR('Tabel 1 S'!G182<5,'Tabel 2 S'!I182<0.5),"-",IFERROR('Tabel 2 S'!I182/'Tabel 1 S'!G182*100,"-")) -> - | J182: =IF(OR('Tabel 1 S'!G182<5,'Tabel 2 S'!J182<0.5),"-",IFERROR('Tabel 2 S'!J182/'Tabel 1 S'!G182*100,"-")) -> -
A183: Mejeriing. | C183: =IF(OR('Tabel 1 S'!C183<5,'Tabel 2 S'!C183<0.5),"-",IFERROR('Tabel 2 S'!C183/'Tabel 1 S'!C183*100,"-")) -> - | D183: =IF(OR('Tabel 1 S'!C183<5,'Tabel 2 S'!D183<0.5),"-",IFERROR('Tabel 2 S'!D183/'Tabel 1 S'!C183*100,"-")) -> - | F183: =IF(OR('Tabel 1 S'!E183<5,'Tabel 2 S'!F183<0.5),"-",IFERROR('Tabel 2 S'!F183/'Tabel 1 S'!E183*100,"-")) -> - | G183: =IF(OR('Tabel 1 S'!E183<5,'Tabel 2 S'!G183<0.5),"-",IFERROR('Tabel 2 S'!G183/'Tabel 1 S'!E183*100,"-")) -> - | I183: =IF(OR('Tabel 1 S'!G183<5,'Tabel 2 S'!I183<0.5),"-",IFERROR('Tabel 2 S'!I183/'Tabel 1 S'!G183*100,"-")) -> - | J183: =IF(OR('Tabel 1 S'!G183<5,'Tabel 2 S'!J183<0.5),"-",IFERROR('Tabel 2 S'!J183/'Tabel 1 S'!G183*100,"-")) -> -
A184: Levn.m.kand. | C184: =IF(OR('Tabel 1 S'!C184<5,'Tabel 2 S'!C184<0.5),"-",IFERROR('Tabel 2 S'!C184/'Tabel 1 S'!C184*100,"-")) -> - | D184: =IF(OR('Tabel 1 S'!C184<5,'Tabel 2 S'!D184<0.5),"-",IFERROR('Tabel 2 S'!D184/'Tabel 1 S'!C184*100,"-")) -> - | F184: =IF(OR('Tabel 1 S'!E184<5,'Tabel 2 S'!F184<0.5),"-",IFERROR('Tabel 2 S'!F184/'Tabel 1 S'!E184*100,"-")) -> 7.692307692 | G184: =IF(OR('Tabel 1 S'!E184<5,'Tabel 2 S'!G184<0.5),"-",IFERROR('Tabel 2 S'!G184/'Tabel 1 S'!E184*100,"-")) -> 7.690868353 | I184: =IF(OR('Tabel 1 S'!G184<5,'Tabel 2 S'!I184<0.5),"-",IFERROR('Tabel 2 S'!I184/'Tabel 1 S'!G184*100,"-")) -> 5.263157895 | J184: =IF(OR('Tabel 1 S'!G184<5,'Tabel 2 S'!J184<0.5),"-",IFERROR('Tabel 2 S'!J184/'Tabel 1 S'!G184*100,"-")) -> 5.262173084
A185: Dyrlæge | C185: =IF(OR('Tabel 1 S'!C185<5,'Tabel 2 S'!C185<0.5),"-",IFERROR('Tabel 2 S'!C185/'Tabel 1 S'!C185*100,"-")) -> - | D185: =IF(OR('Tabel 1 S'!C185<5,'Tabel 2 S'!D185<0.5),"-",IFERROR('Tabel 2 S'!D185/'Tabel 1 S'!C185*100,"-")) -> - | F185: =IF(OR('Tabel 1 S'!E185<5,'Tabel 2 S'!F185<0.5),"-",IFERROR('Tabel 2 S'!F185/'Tabel 1 S'!E185*100,"-")) -> - | G185: =IF(OR('Tabel 1 S'!E185<5,'Tabel 2 S'!G185<0.5),"-",IFERROR('Tabel 2 S'!G185/'Tabel 1 S'!E185*100,"-")) -> - | I185: =IF(OR('Tabel 1 S'!G185<5,'Tabel 2 S'!I185<0.5),"-",IFERROR('Tabel 2 S'!I185/'Tabel 1 S'!G185*100,"-")) -> - | J185: =IF(OR('Tabel 1 S'!G185<5,'Tabel 2 S'!J185<0.5),"-",IFERROR('Tabel 2 S'!J185/'Tabel 1 S'!G185*100,"-")) -> -
A186: Farmaceut | C186: =IF(OR('Tabel 1 S'!C186<5,'Tabel 2 S'!C186<0.5),"-",IFERROR('Tabel 2 S'!C186/'Tabel 1 S'!C186*100,"-")) -> - | D186: =IF(OR('Tabel 1 S'!C186<5,'Tabel 2 S'!D186<0.5),"-",IFERROR('Tabel 2 S'!D186/'Tabel 1 S'!C186*100,"-")) -> - | F186: =IF(OR('Tabel 1 S'!E186<5,'Tabel 2 S'!F186<0.5),"-",IFERROR('Tabel 2 S'!F186/'Tabel 1 S'!E186*100,"-")) -> 0.7407407407 | G186: =IF(OR('Tabel 1 S'!E186<5,'Tabel 2 S'!G186<0.5),"-",IFERROR('Tabel 2 S'!G186/'Tabel 1 S'!E186*100,"-")) -> 0.6038471578 | I186: =IF(OR('Tabel 1 S'!G186<5,'Tabel 2 S'!I186<0.5),"-",IFERROR('Tabel 2 S'!I186/'Tabel 1 S'!G186*100,"-")) -> 0.5813953488 | J186: =IF(OR('Tabel 1 S'!G186<5,'Tabel 2 S'!J186<0.5),"-",IFERROR('Tabel 2 S'!J186/'Tabel 1 S'!G186*100,"-")) -> 0.4739498041
A187: Læge | C187: =IF(OR('Tabel 1 S'!C187<5,'Tabel 2 S'!C187<0.5),"-",IFERROR('Tabel 2 S'!C187/'Tabel 1 S'!C187*100,"-")) -> 2.941176471 | D187: =IF(OR('Tabel 1 S'!C187<5,'Tabel 2 S'!D187<0.5),"-",IFERROR('Tabel 2 S'!D187/'Tabel 1 S'!C187*100,"-")) -> 2.738836444 | F187: =IF(OR('Tabel 1 S'!E187<5,'Tabel 2 S'!F187<0.5),"-",IFERROR('Tabel 2 S'!F187/'Tabel 1 S'!E187*100,"-")) -> 1.986754967 | G187: =IF(OR('Tabel 1 S'!E187<5,'Tabel 2 S'!G187<0.5),"-",IFERROR('Tabel 2 S'!G187/'Tabel 1 S'!E187*100,"-")) -> 1.925251024 | I187: =IF(OR('Tabel 1 S'!G187<5,'Tabel 2 S'!I187<0.5),"-",IFERROR('Tabel 2 S'!I187/'Tabel 1 S'!G187*100,"-")) -> 2.283105023 | J187: =IF(OR('Tabel 1 S'!G187<5,'Tabel 2 S'!J187<0.5),"-",IFERROR('Tabel 2 S'!J187/'Tabel 1 S'!G187*100,"-")) -> 2.177871154
A188: Tandlæge | C188: =IF(OR('Tabel 1 S'!C188<5,'Tabel 2 S'!C188<0.5),"-",IFERROR('Tabel 2 S'!C188/'Tabel 1 S'!C188*100,"-")) -> - | D188: =IF(OR('Tabel 1 S'!C188<5,'Tabel 2 S'!D188<0.5),"-",IFERROR('Tabel 2 S'!D188/'Tabel 1 S'!C188*100,"-")) -> - | F188: =IF(OR('Tabel 1 S'!E188<5,'Tabel 2 S'!F188<0.5),"-",IFERROR('Tabel 2 S'!F188/'Tabel 1 S'!E188*100,"-")) -> - | G188: =IF(OR('Tabel 1 S'!E188<5,'Tabel 2 S'!G188<0.5),"-",IFERROR('Tabel 2 S'!G188/'Tabel 1 S'!E188*100,"-")) -> - | I188: =IF(OR('Tabel 1 S'!G188<5,'Tabel 2 S'!I188<0.5),"-",IFERROR('Tabel 2 S'!I188/'Tabel 1 S'!G188*100,"-")) -> - | J188: =IF(OR('Tabel 1 S'!G188<5,'Tabel 2 S'!J188<0.5),"-",IFERROR('Tabel 2 S'!J188/'Tabel 1 S'!G188*100,"-")) -> -
A189: Arkitekt | C189: =IF(OR('Tabel 1 S'!C189<5,'Tabel 2 S'!C189<0.5),"-",IFERROR('Tabel 2 S'!C189/'Tabel 1 S'!C189*100,"-")) -> 16 | D189: =IF(OR('Tabel 1 S'!C189<5,'Tabel 2 S'!D189<0.5),"-",IFERROR('Tabel 2 S'!D189/'Tabel 1 S'!C189*100,"-")) -> 13.21025385 | F189: =IF(OR('Tabel 1 S'!E189<5,'Tabel 2 S'!F189<0.5),"-",IFERROR('Tabel 2 S'!F189/'Tabel 1 S'!E189*100,"-")) -> 5.263157895 | G189: =IF(OR('Tabel 1 S'!E189<5,'Tabel 2 S'!G189<0.5),"-",IFERROR('Tabel 2 S'!G189/'Tabel 1 S'!E189*100,"-")) -> 4.764843563 | I189: =IF(OR('Tabel 1 S'!G189<5,'Tabel 2 S'!I189<0.5),"-",IFERROR('Tabel 2 S'!I189/'Tabel 1 S'!G189*100,"-")) -> 9.523809524 | J189: =IF(OR('Tabel 1 S'!G189<5,'Tabel 2 S'!J189<0.5),"-",IFERROR('Tabel 2 S'!J189/'Tabel 1 S'!G189*100,"-")) -> 8.116196852
A190: Landinspek. | C190: =IF(OR('Tabel 1 S'!C190<5,'Tabel 2 S'!C190<0.5),"-",IFERROR('Tabel 2 S'!C190/'Tabel 1 S'!C190*100,"-")) -> - | D190: =IF(OR('Tabel 1 S'!C190<5,'Tabel 2 S'!D190<0.5),"-",IFERROR('Tabel 2 S'!D190/'Tabel 1 S'!C190*100,"-")) -> - | F190: =IF(OR('Tabel 1 S'!E190<5,'Tabel 2 S'!F190<0.5),"-",IFERROR('Tabel 2 S'!F190/'Tabel 1 S'!E190*100,"-")) -> - | G190: =IF(OR('Tabel 1 S'!E190<5,'Tabel 2 S'!G190<0.5),"-",IFERROR('Tabel 2 S'!G190/'Tabel 1 S'!E190*100,"-")) -> - | I190: =IF(OR('Tabel 1 S'!G190<5,'Tabel 2 S'!I190<0.5),"-",IFERROR('Tabel 2 S'!I190/'Tabel 1 S'!G190*100,"-")) -> - | J190: =IF(OR('Tabel 1 S'!G190<5,'Tabel 2 S'!J190<0.5),"-",IFERROR('Tabel 2 S'!J190/'Tabel 1 S'!G190*100,"-")) -> -
A191: Bibliotekar | C191: =IF(OR('Tabel 1 S'!C191<5,'Tabel 2 S'!C191<0.5),"-",IFERROR('Tabel 2 S'!C191/'Tabel 1 S'!C191*100,"-")) -> 4.761904762 | D191: =IF(OR('Tabel 1 S'!C191<5,'Tabel 2 S'!D191<0.5),"-",IFERROR('Tabel 2 S'!D191/'Tabel 1 S'!C191*100,"-")) -> 4.761013742 | F191: =IF(OR('Tabel 1 S'!E191<5,'Tabel 2 S'!F191<0.5),"-",IFERROR('Tabel 2 S'!F191/'Tabel 1 S'!E191*100,"-")) -> 1.612903226 | G191: =IF(OR('Tabel 1 S'!E191<5,'Tabel 2 S'!G191<0.5),"-",IFERROR('Tabel 2 S'!G191/'Tabel 1 S'!E191*100,"-")) -> 1.612601429 | I191: =IF(OR('Tabel 1 S'!G191<5,'Tabel 2 S'!I191<0.5),"-",IFERROR('Tabel 2 S'!I191/'Tabel 1 S'!G191*100,"-")) -> 2.409638554 | J191: =IF(OR('Tabel 1 S'!G191<5,'Tabel 2 S'!J191<0.5),"-",IFERROR('Tabel 2 S'!J191/'Tabel 1 S'!G191*100,"-")) -> 2.409187677
A192: Musikudd. | C192: =IF(OR('Tabel 1 S'!C192<5,'Tabel 2 S'!C192<0.5),"-",IFERROR('Tabel 2 S'!C192/'Tabel 1 S'!C192*100,"-")) -> - | D192: =IF(OR('Tabel 1 S'!C192<5,'Tabel 2 S'!D192<0.5),"-",IFERROR('Tabel 2 S'!D192/'Tabel 1 S'!C192*100,"-")) -> - | F192: =IF(OR('Tabel 1 S'!E192<5,'Tabel 2 S'!F192<0.5),"-",IFERROR('Tabel 2 S'!F192/'Tabel 1 S'!E192*100,"-")) -> 9.090909091 | G192: =IF(OR('Tabel 1 S'!E192<5,'Tabel 2 S'!G192<0.5),"-",IFERROR('Tabel 2 S'!G192/'Tabel 1 S'!E192*100,"-")) -> 6.316517637 | I192: =IF(OR('Tabel 1 S'!G192<5,'Tabel 2 S'!I192<0.5),"-",IFERROR('Tabel 2 S'!I192/'Tabel 1 S'!G192*100,"-")) -> 6.666666667 | J192: =IF(OR('Tabel 1 S'!G192<5,'Tabel 2 S'!J192<0.5),"-",IFERROR('Tabel 2 S'!J192/'Tabel 1 S'!G192*100,"-")) -> 4.632112934
A193: Teolog | C193: =IF(OR('Tabel 1 S'!C193<5,'Tabel 2 S'!C193<0.5),"-",IFERROR('Tabel 2 S'!C193/'Tabel 1 S'!C193*100,"-")) -> 8.333333333 | D193: =IF(OR('Tabel 1 S'!C193<5,'Tabel 2 S'!D193<0.5),"-",IFERROR('Tabel 2 S'!D193/'Tabel 1 S'!C193*100,"-")) -> 8.331774049 | F193: =IF(OR('Tabel 1 S'!E193<5,'Tabel 2 S'!F193<0.5),"-",IFERROR('Tabel 2 S'!F193/'Tabel 1 S'!E193*100,"-")) -> - | G193: =IF(OR('Tabel 1 S'!E193<5,'Tabel 2 S'!G193<0.5),"-",IFERROR('Tabel 2 S'!G193/'Tabel 1 S'!E193*100,"-")) -> - | I193: =IF(OR('Tabel 1 S'!G193<5,'Tabel 2 S'!I193<0.5),"-",IFERROR('Tabel 2 S'!I193/'Tabel 1 S'!G193*100,"-")) -> 3.448275862 | J193: =IF(OR('Tabel 1 S'!G193<5,'Tabel 2 S'!J193<0.5),"-",IFERROR('Tabel 2 S'!J193/'Tabel 1 S'!G193*100,"-")) -> 3.447630641
A194: Psykolog | C194: =IF(OR('Tabel 1 S'!C194<5,'Tabel 2 S'!C194<0.5),"-",IFERROR('Tabel 2 S'!C194/'Tabel 1 S'!C194*100,"-")) -> 10 | D194: =IF(OR('Tabel 1 S'!C194<5,'Tabel 2 S'!D194<0.5),"-",IFERROR('Tabel 2 S'!D194/'Tabel 1 S'!C194*100,"-")) -> 9.904571821 | F194: =IF(OR('Tabel 1 S'!E194<5,'Tabel 2 S'!F194<0.5),"-",IFERROR('Tabel 2 S'!F194/'Tabel 1 S'!E194*100,"-")) -> 4.166666667 | G194: =IF(OR('Tabel 1 S'!E194<5,'Tabel 2 S'!G194<0.5),"-",IFERROR('Tabel 2 S'!G194/'Tabel 1 S'!E194*100,"-")) -> 2.973554544 | I194: =IF(OR('Tabel 1 S'!G194<5,'Tabel 2 S'!I194<0.5),"-",IFERROR('Tabel 2 S'!I194/'Tabel 1 S'!G194*100,"-")) -> 5 | J194: =IF(OR('Tabel 1 S'!G194<5,'Tabel 2 S'!J194<0.5),"-",IFERROR('Tabel 2 S'!J194/'Tabel 1 S'!G194*100,"-")) -> 3.963699869
A195: Jurist | C195: =IF(OR('Tabel 1 S'!C195<5,'Tabel 2 S'!C195<0.5),"-",IFERROR('Tabel 2 S'!C195/'Tabel 1 S'!C195*100,"-")) -> 2.564102564 | D195: =IF(OR('Tabel 1 S'!C195<5,'Tabel 2 S'!D195<0.5),"-",IFERROR('Tabel 2 S'!D195/'Tabel 1 S'!C195*100,"-")) -> 2.563622784 | F195: =IF(OR('Tabel 1 S'!E195<5,'Tabel 2 S'!F195<0.5),"-",IFERROR('Tabel 2 S'!F195/'Tabel 1 S'!E195*100,"-")) -> 1.063829787 | G195: =IF(OR('Tabel 1 S'!E195<5,'Tabel 2 S'!G195<0.5),"-",IFERROR('Tabel 2 S'!G195/'Tabel 1 S'!E195*100,"-")) -> 0.7106353784 | I195: =IF(OR('Tabel 1 S'!G195<5,'Tabel 2 S'!I195<0.5),"-",IFERROR('Tabel 2 S'!I195/'Tabel 1 S'!G195*100,"-")) -> 1.503759398 | J195: =IF(OR('Tabel 1 S'!G195<5,'Tabel 2 S'!J195<0.5),"-",IFERROR('Tabel 2 S'!J195/'Tabel 1 S'!G195*100,"-")) -> 1.253992588
A196: Økonom | C196: =IF(OR('Tabel 1 S'!C196<5,'Tabel 2 S'!C196<0.5),"-",IFERROR('Tabel 2 S'!C196/'Tabel 1 S'!C196*100,"-")) -> 2.127659574 | D196: =IF(OR('Tabel 1 S'!C196<5,'Tabel 2 S'!D196<0.5),"-",IFERROR('Tabel 2 S'!D196/'Tabel 1 S'!C196*100,"-")) -> 1.92820393 | F196: =IF(OR('Tabel 1 S'!E196<5,'Tabel 2 S'!F196<0.5),"-",IFERROR('Tabel 2 S'!F196/'Tabel 1 S'!E196*100,"-")) -> 2.898550725 | G196: =IF(OR('Tabel 1 S'!E196<5,'Tabel 2 S'!G196<0.5),"-",IFERROR('Tabel 2 S'!G196/'Tabel 1 S'!E196*100,"-")) -> 1.442676653 | I196: =IF(OR('Tabel 1 S'!G196<5,'Tabel 2 S'!I196<0.5),"-",IFERROR('Tabel 2 S'!I196/'Tabel 1 S'!G196*100,"-")) -> 2.45398773 | J196: =IF(OR('Tabel 1 S'!G196<5,'Tabel 2 S'!J196<0.5),"-",IFERROR('Tabel 2 S'!J196/'Tabel 1 S'!G196*100,"-")) -> 1.722673979
A197: Samf. Adm. | C197: =IF(OR('Tabel 1 S'!C197<5,'Tabel 2 S'!C197<0.5),"-",IFERROR('Tabel 2 S'!C197/'Tabel 1 S'!C197*100,"-")) -> 4.026845638 | D197: =IF(OR('Tabel 1 S'!C197<5,'Tabel 2 S'!D197<0.5),"-",IFERROR('Tabel 2 S'!D197/'Tabel 1 S'!C197*100,"-")) -> 3.807164502 | F197: =IF(OR('Tabel 1 S'!E197<5,'Tabel 2 S'!F197<0.5),"-",IFERROR('Tabel 2 S'!F197/'Tabel 1 S'!E197*100,"-")) -> 3.916449086 | G197: =IF(OR('Tabel 1 S'!E197<5,'Tabel 2 S'!G197<0.5),"-",IFERROR('Tabel 2 S'!G197/'Tabel 1 S'!E197*100,"-")) -> 3.218720397 | I197: =IF(OR('Tabel 1 S'!G197<5,'Tabel 2 S'!I197<0.5),"-",IFERROR('Tabel 2 S'!I197/'Tabel 1 S'!G197*100,"-")) -> 3.964757709 | J197: =IF(OR('Tabel 1 S'!G197<5,'Tabel 2 S'!J197<0.5),"-",IFERROR('Tabel 2 S'!J197/'Tabel 1 S'!G197*100,"-")) -> 3.476218698
A198: Cand. Merc. | C198: =IF(OR('Tabel 1 S'!C198<5,'Tabel 2 S'!C198<0.5),"-",IFERROR('Tabel 2 S'!C198/'Tabel 1 S'!C198*100,"-")) -> 1.388888889 | D198: =IF(OR('Tabel 1 S'!C198<5,'Tabel 2 S'!D198<0.5),"-",IFERROR('Tabel 2 S'!D198/'Tabel 1 S'!C198*100,"-")) -> 1.210394187 | F198: =IF(OR('Tabel 1 S'!E198<5,'Tabel 2 S'!F198<0.5),"-",IFERROR('Tabel 2 S'!F198/'Tabel 1 S'!E198*100,"-")) -> 1.954397394 | G198: =IF(OR('Tabel 1 S'!E198<5,'Tabel 2 S'!G198<0.5),"-",IFERROR('Tabel 2 S'!G198/'Tabel 1 S'!E198*100,"-")) -> 1.786421369 | I198: =IF(OR('Tabel 1 S'!G198<5,'Tabel 2 S'!I198<0.5),"-",IFERROR('Tabel 2 S'!I198/'Tabel 1 S'!G198*100,"-")) -> 1.680672269 | J198: =IF(OR('Tabel 1 S'!G198<5,'Tabel 2 S'!J198<0.5),"-",IFERROR('Tabel 2 S'!J198/'Tabel 1 S'!G198*100,"-")) -> 1.507604851
A199: HA | C199: =IF(OR('Tabel 1 S'!C199<5,'Tabel 2 S'!C199<0.5),"-",IFERROR('Tabel 2 S'!C199/'Tabel 1 S'!C199*100,"-")) -> 5.882352941 | D199: =IF(OR('Tabel 1 S'!C199<5,'Tabel 2 S'!D199<0.5),"-",IFERROR('Tabel 2 S'!D199/'Tabel 1 S'!C199*100,"-")) -> 3.529485143 | F199: =IF(OR('Tabel 1 S'!E199<5,'Tabel 2 S'!F199<0.5),"-",IFERROR('Tabel 2 S'!F199/'Tabel 1 S'!E199*100,"-")) -> 6.153846154 | G199: =IF(OR('Tabel 1 S'!E199<5,'Tabel 2 S'!G199<0.5),"-",IFERROR('Tabel 2 S'!G199/'Tabel 1 S'!E199*100,"-")) -> 6.010679896 | I199: =IF(OR('Tabel 1 S'!G199<5,'Tabel 2 S'!I199<0.5),"-",IFERROR('Tabel 2 S'!I199/'Tabel 1 S'!G199*100,"-")) -> 6.034482759 | J199: =IF(OR('Tabel 1 S'!G199<5,'Tabel 2 S'!J199<0.5),"-",IFERROR('Tabel 2 S'!J199/'Tabel 1 S'!G199*100,"-")) -> 4.919809789
A200: HD | C200: =IF(OR('Tabel 1 S'!C200<5,'Tabel 2 S'!C200<0.5),"-",IFERROR('Tabel 2 S'!C200/'Tabel 1 S'!C200*100,"-")) -> 3.636363636 | D200: =IF(OR('Tabel 1 S'!C200<5,'Tabel 2 S'!D200<0.5),"-",IFERROR('Tabel 2 S'!D200/'Tabel 1 S'!C200*100,"-")) -> 3.216094079 | F200: =IF(OR('Tabel 1 S'!E200<5,'Tabel 2 S'!F200<0.5),"-",IFERROR('Tabel 2 S'!F200/'Tabel 1 S'!E200*100,"-")) -> - | G200: =IF(OR('Tabel 1 S'!E200<5,'Tabel 2 S'!G200<0.5),"-",IFERROR('Tabel 2 S'!G200/'Tabel 1 S'!E200*100,"-")) -> - | I200: =IF(OR('Tabel 1 S'!G200<5,'Tabel 2 S'!I200<0.5),"-",IFERROR('Tabel 2 S'!I200/'Tabel 1 S'!G200*100,"-")) -> 2.06185567 | J200: =IF(OR('Tabel 1 S'!G200<5,'Tabel 2 S'!J200<0.5),"-",IFERROR('Tabel 2 S'!J200/'Tabel 1 S'!G200*100,"-")) -> 1.823558498
A201: Komm. og Sprog | C201: =IF(OR('Tabel 1 S'!C201<5,'Tabel 2 S'!C201<0.5),"-",IFERROR('Tabel 2 S'!C201/'Tabel 1 S'!C201*100,"-")) -> - | D201: =IF(OR('Tabel 1 S'!C201<5,'Tabel 2 S'!D201<0.5),"-",IFERROR('Tabel 2 S'!D201/'Tabel 1 S'!C201*100,"-")) -> - | F201: =IF(OR('Tabel 1 S'!E201<5,'Tabel 2 S'!F201<0.5),"-",IFERROR('Tabel 2 S'!F201/'Tabel 1 S'!E201*100,"-")) -> 0.9259259259 | G201: =IF(OR('Tabel 1 S'!E201<5,'Tabel 2 S'!G201<0.5),"-",IFERROR('Tabel 2 S'!G201/'Tabel 1 S'!E201*100,"-")) -> 0.8911019171 | I201: =IF(OR('Tabel 1 S'!G201<5,'Tabel 2 S'!I201<0.5),"-",IFERROR('Tabel 2 S'!I201/'Tabel 1 S'!G201*100,"-")) -> 0.826446281 | J201: =IF(OR('Tabel 1 S'!G201<5,'Tabel 2 S'!J201<0.5),"-",IFERROR('Tabel 2 S'!J201/'Tabel 1 S'!G201*100,"-")) -> 0.7953636946
A202: Bygningskonst. | C202: =IF(OR('Tabel 1 S'!C202<5,'Tabel 2 S'!C202<0.5),"-",IFERROR('Tabel 2 S'!C202/'Tabel 1 S'!C202*100,"-")) -> 4.838709677 | D202: =IF(OR('Tabel 1 S'!C202<5,'Tabel 2 S'!D202<0.5),"-",IFERROR('Tabel 2 S'!D202/'Tabel 1 S'!C202*100,"-")) -> 4.773320349 | F202: =IF(OR('Tabel 1 S'!E202<5,'Tabel 2 S'!F202<0.5),"-",IFERROR('Tabel 2 S'!F202/'Tabel 1 S'!E202*100,"-")) -> 3.333333333 | G202: =IF(OR('Tabel 1 S'!E202<5,'Tabel 2 S'!G202<0.5),"-",IFERROR('Tabel 2 S'!G202/'Tabel 1 S'!E202*100,"-")) -> 3.333333333 | I202: =IF(OR('Tabel 1 S'!G202<5,'Tabel 2 S'!I202<0.5),"-",IFERROR('Tabel 2 S'!I202/'Tabel 1 S'!G202*100,"-")) -> 4.545454545 | J202: =IF(OR('Tabel 1 S'!G202<5,'Tabel 2 S'!J202<0.5),"-",IFERROR('Tabel 2 S'!J202/'Tabel 1 S'!G202*100,"-")) -> 4.492803398
A203: Cand. IT. | C203: =IF(OR('Tabel 1 S'!C203<5,'Tabel 2 S'!C203<0.5),"-",IFERROR('Tabel 2 S'!C203/'Tabel 1 S'!C203*100,"-")) -> - | D203: =IF(OR('Tabel 1 S'!C203<5,'Tabel 2 S'!D203<0.5),"-",IFERROR('Tabel 2 S'!D203/'Tabel 1 S'!C203*100,"-")) -> - | F203: =IF(OR('Tabel 1 S'!E203<5,'Tabel 2 S'!F203<0.5),"-",IFERROR('Tabel 2 S'!F203/'Tabel 1 S'!E203*100,"-")) -> - | G203: =IF(OR('Tabel 1 S'!E203<5,'Tabel 2 S'!G203<0.5),"-",IFERROR('Tabel 2 S'!G203/'Tabel 1 S'!E203*100,"-")) -> - | I203: =IF(OR('Tabel 1 S'!G203<5,'Tabel 2 S'!I203<0.5),"-",IFERROR('Tabel 2 S'!I203/'Tabel 1 S'!G203*100,"-")) -> - | J203: =IF(OR('Tabel 1 S'!G203<5,'Tabel 2 S'!J203<0.5),"-",IFERROR('Tabel 2 S'!J203/'Tabel 1 S'!G203*100,"-")) -> -
A204: Bac. Samf. | C204: =IF(OR('Tabel 1 S'!C204<5,'Tabel 2 S'!C204<0.5),"-",IFERROR('Tabel 2 S'!C204/'Tabel 1 S'!C204*100,"-")) -> - | D204: =IF(OR('Tabel 1 S'!C204<5,'Tabel 2 S'!D204<0.5),"-",IFERROR('Tabel 2 S'!D204/'Tabel 1 S'!C204*100,"-")) -> - | F204: =IF(OR('Tabel 1 S'!E204<5,'Tabel 2 S'!F204<0.5),"-",IFERROR('Tabel 2 S'!F204/'Tabel 1 S'!E204*100,"-")) -> - | G204: =IF(OR('Tabel 1 S'!E204<5,'Tabel 2 S'!G204<0.5),"-",IFERROR('Tabel 2 S'!G204/'Tabel 1 S'!E204*100,"-")) -> - | I204: =IF(OR('Tabel 1 S'!G204<5,'Tabel 2 S'!I204<0.5),"-",IFERROR('Tabel 2 S'!I204/'Tabel 1 S'!G204*100,"-")) -> - | J204: =IF(OR('Tabel 1 S'!G204<5,'Tabel 2 S'!J204<0.5),"-",IFERROR('Tabel 2 S'!J204/'Tabel 1 S'!G204*100,"-")) -> -
A205: Bac. Hum. | C205: =IF(OR('Tabel 1 S'!C205<5,'Tabel 2 S'!C205<0.5),"-",IFERROR('Tabel 2 S'!C205/'Tabel 1 S'!C205*100,"-")) -> 7.142857143 | D205: =IF(OR('Tabel 1 S'!C205<5,'Tabel 2 S'!D205<0.5),"-",IFERROR('Tabel 2 S'!D205/'Tabel 1 S'!C205*100,"-")) -> 6.468800955 | F205: =IF(OR('Tabel 1 S'!E205<5,'Tabel 2 S'!F205<0.5),"-",IFERROR('Tabel 2 S'!F205/'Tabel 1 S'!E205*100,"-")) -> 13.51351351 | G205: =IF(OR('Tabel 1 S'!E205<5,'Tabel 2 S'!G205<0.5),"-",IFERROR('Tabel 2 S'!G205/'Tabel 1 S'!E205*100,"-")) -> 10.64021672 | I205: =IF(OR('Tabel 1 S'!G205<5,'Tabel 2 S'!I205<0.5),"-",IFERROR('Tabel 2 S'!I205/'Tabel 1 S'!G205*100,"-")) -> 10.76923077 | J205: =IF(OR('Tabel 1 S'!G205<5,'Tabel 2 S'!J205<0.5),"-",IFERROR('Tabel 2 S'!J205/'Tabel 1 S'!G205*100,"-")) -> 8.843299157
A206: Bac. Nat. | C206: =IF(OR('Tabel 1 S'!C206<5,'Tabel 2 S'!C206<0.5),"-",IFERROR('Tabel 2 S'!C206/'Tabel 1 S'!C206*100,"-")) -> - | D206: =IF(OR('Tabel 1 S'!C206<5,'Tabel 2 S'!D206<0.5),"-",IFERROR('Tabel 2 S'!D206/'Tabel 1 S'!C206*100,"-")) -> - | F206: =IF(OR('Tabel 1 S'!E206<5,'Tabel 2 S'!F206<0.5),"-",IFERROR('Tabel 2 S'!F206/'Tabel 1 S'!E206*100,"-")) -> 10 | G206: =IF(OR('Tabel 1 S'!E206<5,'Tabel 2 S'!G206<0.5),"-",IFERROR('Tabel 2 S'!G206/'Tabel 1 S'!E206*100,"-")) -> 8.813073037 | I206: =IF(OR('Tabel 1 S'!G206<5,'Tabel 2 S'!I206<0.5),"-",IFERROR('Tabel 2 S'!I206/'Tabel 1 S'!G206*100,"-")) -> 2.272727273 | J206: =IF(OR('Tabel 1 S'!G206<5,'Tabel 2 S'!J206<0.5),"-",IFERROR('Tabel 2 S'!J206/'Tabel 1 S'!G206*100,"-")) -> 2.002971145
A207: Andre | C207: =IF(OR('Tabel 1 S'!C207<5,'Tabel 2 S'!C207<0.5),"-",IFERROR('Tabel 2 S'!C207/'Tabel 1 S'!C207*100,"-")) -> 3.157894737 | D207: =IF(OR('Tabel 1 S'!C207<5,'Tabel 2 S'!D207<0.5),"-",IFERROR('Tabel 2 S'!D207/'Tabel 1 S'!C207*100,"-")) -> 2.744339799 | F207: =IF(OR('Tabel 1 S'!E207<5,'Tabel 2 S'!F207<0.5),"-",IFERROR('Tabel 2 S'!F207/'Tabel 1 S'!E207*100,"-")) -> 3.240740741 | G207: =IF(OR('Tabel 1 S'!E207<5,'Tabel 2 S'!G207<0.5),"-",IFERROR('Tabel 2 S'!G207/'Tabel 1 S'!E207*100,"-")) -> 2.769750353 | I207: =IF(OR('Tabel 1 S'!G207<5,'Tabel 2 S'!I207<0.5),"-",IFERROR('Tabel 2 S'!I207/'Tabel 1 S'!G207*100,"-")) -> 3.201970443 | J207: =IF(OR('Tabel 1 S'!G207<5,'Tabel 2 S'!J207<0.5),"-",IFERROR('Tabel 2 S'!J207/'Tabel 1 S'!G207*100,"-")) -> 2.757858714
A209: Total | C209: =IF(OR('Tabel 1 S'!C209<5,'Tabel 2 S'!C209<0.5),"-",IFERROR('Tabel 2 S'!C209/'Tabel 1 S'!C209*100,"-")) -> 2.930084131 | D209: =IF(OR('Tabel 1 S'!C209<5,'Tabel 2 S'!D209<0.5),"-",IFERROR('Tabel 2 S'!D209/'Tabel 1 S'!C209*100,"-")) -> 2.625365572 | F209: =IF(OR('Tabel 1 S'!E209<5,'Tabel 2 S'!F209<0.5),"-",IFERROR('Tabel 2 S'!F209/'Tabel 1 S'!E209*100,"-")) -> 3.368304804 | G209: =IF(OR('Tabel 1 S'!E209<5,'Tabel 2 S'!G209<0.5),"-",IFERROR('Tabel 2 S'!G209/'Tabel 1 S'!E209*100,"-")) -> 3.001062862 | I209: =IF(OR('Tabel 1 S'!G209<5,'Tabel 2 S'!I209<0.5),"-",IFERROR('Tabel 2 S'!I209/'Tabel 1 S'!G209*100,"-")) -> 3.154618758 | J209: =IF(OR('Tabel 1 S'!G209<5,'Tabel 2 S'!J209<0.5),"-",IFERROR('Tabel 2 S'!J209/'Tabel 1 S'!G209*100,"-")) -> 2.817864594
A211: Ingeniører i alt | C211: =IF(OR('Tabel 1 S'!C211<5,'Tabel 2 S'!C211<0.5),"-",IFERROR('Tabel 2 S'!C211/'Tabel 1 S'!C211*100,"-")) -> 1.788756388 | D211: =IF(OR('Tabel 1 S'!C211<5,'Tabel 2 S'!D211<0.5),"-",IFERROR('Tabel 2 S'!D211/'Tabel 1 S'!C211*100,"-")) -> 1.558593323 | F211: =IF(OR('Tabel 1 S'!E211<5,'Tabel 2 S'!F211<0.5),"-",IFERROR('Tabel 2 S'!F211/'Tabel 1 S'!E211*100,"-")) -> 2.139037433 | G211: =IF(OR('Tabel 1 S'!E211<5,'Tabel 2 S'!G211<0.5),"-",IFERROR('Tabel 2 S'!G211/'Tabel 1 S'!E211*100,"-")) -> 2.125962795 | I211: =IF(OR('Tabel 1 S'!G211<5,'Tabel 2 S'!I211<0.5),"-",IFERROR('Tabel 2 S'!I211/'Tabel 1 S'!G211*100,"-")) -> 1.873385013 | J211: =IF(OR('Tabel 1 S'!G211<5,'Tabel 2 S'!J211<0.5),"-",IFERROR('Tabel 2 S'!J211/'Tabel 1 S'!G211*100,"-")) -> 1.69567096
A212: Magistre i alt | C212: =IF(OR('Tabel 1 S'!C212<5,'Tabel 2 S'!C212<0.5),"-",IFERROR('Tabel 2 S'!C212/'Tabel 1 S'!C212*100,"-")) -> 4.280155642 | D212: =IF(OR('Tabel 1 S'!C212<5,'Tabel 2 S'!D212<0.5),"-",IFERROR('Tabel 2 S'!D212/'Tabel 1 S'!C212*100,"-")) -> 3.857680693 | F212: =IF(OR('Tabel 1 S'!E212<5,'Tabel 2 S'!F212<0.5),"-",IFERROR('Tabel 2 S'!F212/'Tabel 1 S'!E212*100,"-")) -> 5.942857143 | G212: =IF(OR('Tabel 1 S'!E212<5,'Tabel 2 S'!G212<0.5),"-",IFERROR('Tabel 2 S'!G212/'Tabel 1 S'!E212*100,"-")) -> 5.533230569 | I212: =IF(OR('Tabel 1 S'!G212<5,'Tabel 2 S'!I212<0.5),"-",IFERROR('Tabel 2 S'!I212/'Tabel 1 S'!G212*100,"-")) -> 5.327573794 | J212: =IF(OR('Tabel 1 S'!G212<5,'Tabel 2 S'!J212<0.5),"-",IFERROR('Tabel 2 S'!J212/'Tabel 1 S'!G212*100,"-")) -> 4.913192674
A213: DJØF'ere i alt | C213: =IF(OR('Tabel 1 S'!C213<5,'Tabel 2 S'!C213<0.5),"-",IFERROR('Tabel 2 S'!C213/'Tabel 1 S'!C213*100,"-")) -> 2.843016069 | D213: =IF(OR('Tabel 1 S'!C213<5,'Tabel 2 S'!D213<0.5),"-",IFERROR('Tabel 2 S'!D213/'Tabel 1 S'!C213*100,"-")) -> 2.527003753 | F213: =IF(OR('Tabel 1 S'!E213<5,'Tabel 2 S'!F213<0.5),"-",IFERROR('Tabel 2 S'!F213/'Tabel 1 S'!E213*100,"-")) -> 2.865612648 | G213: =IF(OR('Tabel 1 S'!E213<5,'Tabel 2 S'!G213<0.5),"-",IFERROR('Tabel 2 S'!G213/'Tabel 1 S'!E213*100,"-")) -> 2.37652135 | I213: =IF(OR('Tabel 1 S'!G213<5,'Tabel 2 S'!I213<0.5),"-",IFERROR('Tabel 2 S'!I213/'Tabel 1 S'!G213*100,"-")) -> 2.855573861 | J213: =IF(OR('Tabel 1 S'!G213<5,'Tabel 2 S'!J213<0.5),"-",IFERROR('Tabel 2 S'!J213/'Tabel 1 S'!G213*100,"-")) -> 2.443374872
A218: ='Tabel 2 S'!A218 -> Solrød
C220: Mænd | F220: Kvinder | I220: I alt
C221: Ledigheds- berørte | D221: Gns. brutto- ledighed | F221: Ledigheds- berørte | G221: Gns. brutto- ledighed | I221: Ledigheds- berørte | J221: Gns. brutto- ledighed
A224: Civ. ing. | C224: =IF(OR('Tabel 1 S'!C224<5,'Tabel 2 S'!C224<0.5),"-",IFERROR('Tabel 2 S'!C224/'Tabel 1 S'!C224*100,"-")) -> 2.06185567 | D224: =IF(OR('Tabel 1 S'!C224<5,'Tabel 2 S'!D224<0.5),"-",IFERROR('Tabel 2 S'!D224/'Tabel 1 S'!C224*100,"-")) -> 1.617797314 | F224: =IF(OR('Tabel 1 S'!E224<5,'Tabel 2 S'!F224<0.5),"-",IFERROR('Tabel 2 S'!F224/'Tabel 1 S'!E224*100,"-")) -> - | G224: =IF(OR('Tabel 1 S'!E224<5,'Tabel 2 S'!G224<0.5),"-",IFERROR('Tabel 2 S'!G224/'Tabel 1 S'!E224*100,"-")) -> - | I224: =IF(OR('Tabel 1 S'!G224<5,'Tabel 2 S'!I224<0.5),"-",IFERROR('Tabel 2 S'!I224/'Tabel 1 S'!G224*100,"-")) -> 1.470588235 | J224: =IF(OR('Tabel 1 S'!G224<5,'Tabel 2 S'!J224<0.5),"-",IFERROR('Tabel 2 S'!J224/'Tabel 1 S'!G224*100,"-")) -> 1.153870143
A225: Diplom ing. | C225: =IF(OR('Tabel 1 S'!C225<5,'Tabel 2 S'!C225<0.5),"-",IFERROR('Tabel 2 S'!C225/'Tabel 1 S'!C225*100,"-")) -> - | D225: =IF(OR('Tabel 1 S'!C225<5,'Tabel 2 S'!D225<0.5),"-",IFERROR('Tabel 2 S'!D225/'Tabel 1 S'!C225*100,"-")) -> - | F225: =IF(OR('Tabel 1 S'!E225<5,'Tabel 2 S'!F225<0.5),"-",IFERROR('Tabel 2 S'!F225/'Tabel 1 S'!E225*100,"-")) -> - | G225: =IF(OR('Tabel 1 S'!E225<5,'Tabel 2 S'!G225<0.5),"-",IFERROR('Tabel 2 S'!G225/'Tabel 1 S'!E225*100,"-")) -> - | I225: =IF(OR('Tabel 1 S'!G225<5,'Tabel 2 S'!I225<0.5),"-",IFERROR('Tabel 2 S'!I225/'Tabel 1 S'!G225*100,"-")) -> - | J225: =IF(OR('Tabel 1 S'!G225<5,'Tabel 2 S'!J225<0.5),"-",IFERROR('Tabel 2 S'!J225/'Tabel 1 S'!G225*100,"-")) -> -
A226: Cand. Scient. Tek. | C226: =IF(OR('Tabel 1 S'!C226<5,'Tabel 2 S'!C226<0.5),"-",IFERROR('Tabel 2 S'!C226/'Tabel 1 S'!C226*100,"-")) -> 3.846153846 | D226: =IF(OR('Tabel 1 S'!C226<5,'Tabel 2 S'!D226<0.5),"-",IFERROR('Tabel 2 S'!D226/'Tabel 1 S'!C226*100,"-")) -> 3.845434177 | F226: =IF(OR('Tabel 1 S'!E226<5,'Tabel 2 S'!F226<0.5),"-",IFERROR('Tabel 2 S'!F226/'Tabel 1 S'!E226*100,"-")) -> 3.225806452 | G226: =IF(OR('Tabel 1 S'!E226<5,'Tabel 2 S'!G226<0.5),"-",IFERROR('Tabel 2 S'!G226/'Tabel 1 S'!E226*100,"-")) -> 3.062232532 | I226: =IF(OR('Tabel 1 S'!G226<5,'Tabel 2 S'!I226<0.5),"-",IFERROR('Tabel 2 S'!I226/'Tabel 1 S'!G226*100,"-")) -> 3.50877193 | J226: =IF(OR('Tabel 1 S'!G226<5,'Tabel 2 S'!J226<0.5),"-",IFERROR('Tabel 2 S'!J226/'Tabel 1 S'!G226*100,"-")) -> 3.419482405
A227: MA. Hum. | C227: =IF(OR('Tabel 1 S'!C227<5,'Tabel 2 S'!C227<0.5),"-",IFERROR('Tabel 2 S'!C227/'Tabel 1 S'!C227*100,"-")) -> 8.333333333 | D227: =IF(OR('Tabel 1 S'!C227<5,'Tabel 2 S'!D227<0.5),"-",IFERROR('Tabel 2 S'!D227/'Tabel 1 S'!C227*100,"-")) -> 6.024033764 | F227: =IF(OR('Tabel 1 S'!E227<5,'Tabel 2 S'!F227<0.5),"-",IFERROR('Tabel 2 S'!F227/'Tabel 1 S'!E227*100,"-")) -> 3.174603175 | G227: =IF(OR('Tabel 1 S'!E227<5,'Tabel 2 S'!G227<0.5),"-",IFERROR('Tabel 2 S'!G227/'Tabel 1 S'!E227*100,"-")) -> 2.954224373 | I227: =IF(OR('Tabel 1 S'!G227<5,'Tabel 2 S'!I227<0.5),"-",IFERROR('Tabel 2 S'!I227/'Tabel 1 S'!G227*100,"-")) -> 4.597701149 | J227: =IF(OR('Tabel 1 S'!G227<5,'Tabel 2 S'!J227<0.5),"-",IFERROR('Tabel 2 S'!J227/'Tabel 1 S'!G227*100,"-")) -> 3.801068343
A228: MA. Nat. | C228: =IF(OR('Tabel 1 S'!C228<5,'Tabel 2 S'!C228<0.5),"-",IFERROR('Tabel 2 S'!C228/'Tabel 1 S'!C228*100,"-")) -> - | D228: =IF(OR('Tabel 1 S'!C228<5,'Tabel 2 S'!D228<0.5),"-",IFERROR('Tabel 2 S'!D228/'Tabel 1 S'!C228*100,"-")) -> - | F228: =IF(OR('Tabel 1 S'!E228<5,'Tabel 2 S'!F228<0.5),"-",IFERROR('Tabel 2 S'!F228/'Tabel 1 S'!E228*100,"-")) -> - | G228: =IF(OR('Tabel 1 S'!E228<5,'Tabel 2 S'!G228<0.5),"-",IFERROR('Tabel 2 S'!G228/'Tabel 1 S'!E228*100,"-")) -> - | I228: =IF(OR('Tabel 1 S'!G228<5,'Tabel 2 S'!I228<0.5),"-",IFERROR('Tabel 2 S'!I228/'Tabel 1 S'!G228*100,"-")) -> - | J228: =IF(OR('Tabel 1 S'!G228<5,'Tabel 2 S'!J228<0.5),"-",IFERROR('Tabel 2 S'!J228/'Tabel 1 S'!G228*100,"-")) -> -
A229: MA. Ph.d. | C229: =IF(OR('Tabel 1 S'!C229<5,'Tabel 2 S'!C229<0.5),"-",IFERROR('Tabel 2 S'!C229/'Tabel 1 S'!C229*100,"-")) -> - | D229: =IF(OR('Tabel 1 S'!C229<5,'Tabel 2 S'!D229<0.5),"-",IFERROR('Tabel 2 S'!D229/'Tabel 1 S'!C229*100,"-")) -> - | F229: =IF(OR('Tabel 1 S'!E229<5,'Tabel 2 S'!F229<0.5),"-",IFERROR('Tabel 2 S'!F229/'Tabel 1 S'!E229*100,"-")) -> - | G229: =IF(OR('Tabel 1 S'!E229<5,'Tabel 2 S'!G229<0.5),"-",IFERROR('Tabel 2 S'!G229/'Tabel 1 S'!E229*100,"-")) -> - | I229: =IF(OR('Tabel 1 S'!G229<5,'Tabel 2 S'!I229<0.5),"-",IFERROR('Tabel 2 S'!I229/'Tabel 1 S'!G229*100,"-")) -> - | J229: =IF(OR('Tabel 1 S'!G229<5,'Tabel 2 S'!J229<0.5),"-",IFERROR('Tabel 2 S'!J229/'Tabel 1 S'!G229*100,"-")) -> -
A230: MA. Samf. | C230: =IF(OR('Tabel 1 S'!C230<5,'Tabel 2 S'!C230<0.5),"-",IFERROR('Tabel 2 S'!C230/'Tabel 1 S'!C230*100,"-")) -> - | D230: =IF(OR('Tabel 1 S'!C230<5,'Tabel 2 S'!D230<0.5),"-",IFERROR('Tabel 2 S'!D230/'Tabel 1 S'!C230*100,"-")) -> - | F230: =IF(OR('Tabel 1 S'!E230<5,'Tabel 2 S'!F230<0.5),"-",IFERROR('Tabel 2 S'!F230/'Tabel 1 S'!E230*100,"-")) -> - | G230: =IF(OR('Tabel 1 S'!E230<5,'Tabel 2 S'!G230<0.5),"-",IFERROR('Tabel 2 S'!G230/'Tabel 1 S'!E230*100,"-")) -> - | I230: =IF(OR('Tabel 1 S'!G230<5,'Tabel 2 S'!I230<0.5),"-",IFERROR('Tabel 2 S'!I230/'Tabel 1 S'!G230*100,"-")) -> 11.11111111 | J230: =IF(OR('Tabel 1 S'!G230<5,'Tabel 2 S'!J230<0.5),"-",IFERROR('Tabel 2 S'!J230/'Tabel 1 S'!G230*100,"-")) -> 10.06950941
A231: Øvrige Mag. | C231: =IF(OR('Tabel 1 S'!C231<5,'Tabel 2 S'!C231<0.5),"-",IFERROR('Tabel 2 S'!C231/'Tabel 1 S'!C231*100,"-")) -> - | D231: =IF(OR('Tabel 1 S'!C231<5,'Tabel 2 S'!D231<0.5),"-",IFERROR('Tabel 2 S'!D231/'Tabel 1 S'!C231*100,"-")) -> - | F231: =IF(OR('Tabel 1 S'!E231<5,'Tabel 2 S'!F231<0.5),"-",IFERROR('Tabel 2 S'!F231/'Tabel 1 S'!E231*100,"-")) -> - | G231: =IF(OR('Tabel 1 S'!E231<5,'Tabel 2 S'!G231<0.5),"-",IFERROR('Tabel 2 S'!G231/'Tabel 1 S'!E231*100,"-")) -> - | I231: =IF(OR('Tabel 1 S'!G231<5,'Tabel 2 S'!I231<0.5),"-",IFERROR('Tabel 2 S'!I231/'Tabel 1 S'!G231*100,"-")) -> - | J231: =IF(OR('Tabel 1 S'!G231<5,'Tabel 2 S'!J231<0.5),"-",IFERROR('Tabel 2 S'!J231/'Tabel 1 S'!G231*100,"-")) -> -
A232: Agronom | C232: =IF(OR('Tabel 1 S'!C232<5,'Tabel 2 S'!C232<0.5),"-",IFERROR('Tabel 2 S'!C232/'Tabel 1 S'!C232*100,"-")) -> - | D232: =IF(OR('Tabel 1 S'!C232<5,'Tabel 2 S'!D232<0.5),"-",IFERROR('Tabel 2 S'!D232/'Tabel 1 S'!C232*100,"-")) -> - | F232: =IF(OR('Tabel 1 S'!E232<5,'Tabel 2 S'!F232<0.5),"-",IFERROR('Tabel 2 S'!F232/'Tabel 1 S'!E232*100,"-")) -> - | G232: =IF(OR('Tabel 1 S'!E232<5,'Tabel 2 S'!G232<0.5),"-",IFERROR('Tabel 2 S'!G232/'Tabel 1 S'!E232*100,"-")) -> - | I232: =IF(OR('Tabel 1 S'!G232<5,'Tabel 2 S'!I232<0.5),"-",IFERROR('Tabel 2 S'!I232/'Tabel 1 S'!G232*100,"-")) -> - | J232: =IF(OR('Tabel 1 S'!G232<5,'Tabel 2 S'!J232<0.5),"-",IFERROR('Tabel 2 S'!J232/'Tabel 1 S'!G232*100,"-")) -> -
A233: Landsk. Arkt. | C233: =IF(OR('Tabel 1 S'!C233<5,'Tabel 2 S'!C233<0.5),"-",IFERROR('Tabel 2 S'!C233/'Tabel 1 S'!C233*100,"-")) -> - | D233: =IF(OR('Tabel 1 S'!C233<5,'Tabel 2 S'!D233<0.5),"-",IFERROR('Tabel 2 S'!D233/'Tabel 1 S'!C233*100,"-")) -> - | F233: =IF(OR('Tabel 1 S'!E233<5,'Tabel 2 S'!F233<0.5),"-",IFERROR('Tabel 2 S'!F233/'Tabel 1 S'!E233*100,"-")) -> - | G233: =IF(OR('Tabel 1 S'!E233<5,'Tabel 2 S'!G233<0.5),"-",IFERROR('Tabel 2 S'!G233/'Tabel 1 S'!E233*100,"-")) -> - | I233: =IF(OR('Tabel 1 S'!G233<5,'Tabel 2 S'!I233<0.5),"-",IFERROR('Tabel 2 S'!I233/'Tabel 1 S'!G233*100,"-")) -> - | J233: =IF(OR('Tabel 1 S'!G233<5,'Tabel 2 S'!J233<0.5),"-",IFERROR('Tabel 2 S'!J233/'Tabel 1 S'!G233*100,"-")) -> -
A234: Hortonom | C234: =IF(OR('Tabel 1 S'!C234<5,'Tabel 2 S'!C234<0.5),"-",IFERROR('Tabel 2 S'!C234/'Tabel 1 S'!C234*100,"-")) -> - | D234: =IF(OR('Tabel 1 S'!C234<5,'Tabel 2 S'!D234<0.5),"-",IFERROR('Tabel 2 S'!D234/'Tabel 1 S'!C234*100,"-")) -> - | F234: =IF(OR('Tabel 1 S'!E234<5,'Tabel 2 S'!F234<0.5),"-",IFERROR('Tabel 2 S'!F234/'Tabel 1 S'!E234*100,"-")) -> - | G234: =IF(OR('Tabel 1 S'!E234<5,'Tabel 2 S'!G234<0.5),"-",IFERROR('Tabel 2 S'!G234/'Tabel 1 S'!E234*100,"-")) -> - | I234: =IF(OR('Tabel 1 S'!G234<5,'Tabel 2 S'!I234<0.5),"-",IFERROR('Tabel 2 S'!I234/'Tabel 1 S'!G234*100,"-")) -> - | J234: =IF(OR('Tabel 1 S'!G234<5,'Tabel 2 S'!J234<0.5),"-",IFERROR('Tabel 2 S'!J234/'Tabel 1 S'!G234*100,"-")) -> -
A235: Forstkand. | C235: =IF(OR('Tabel 1 S'!C235<5,'Tabel 2 S'!C235<0.5),"-",IFERROR('Tabel 2 S'!C235/'Tabel 1 S'!C235*100,"-")) -> - | D235: =IF(OR('Tabel 1 S'!C235<5,'Tabel 2 S'!D235<0.5),"-",IFERROR('Tabel 2 S'!D235/'Tabel 1 S'!C235*100,"-")) -> - | F235: =IF(OR('Tabel 1 S'!E235<5,'Tabel 2 S'!F235<0.5),"-",IFERROR('Tabel 2 S'!F235/'Tabel 1 S'!E235*100,"-")) -> - | G235: =IF(OR('Tabel 1 S'!E235<5,'Tabel 2 S'!G235<0.5),"-",IFERROR('Tabel 2 S'!G235/'Tabel 1 S'!E235*100,"-")) -> - | I235: =IF(OR('Tabel 1 S'!G235<5,'Tabel 2 S'!I235<0.5),"-",IFERROR('Tabel 2 S'!I235/'Tabel 1 S'!G235*100,"-")) -> - | J235: =IF(OR('Tabel 1 S'!G235<5,'Tabel 2 S'!J235<0.5),"-",IFERROR('Tabel 2 S'!J235/'Tabel 1 S'!G235*100,"-")) -> -
A236: Jordbrugsakad. | C236: =IF(OR('Tabel 1 S'!C236<5,'Tabel 2 S'!C236<0.5),"-",IFERROR('Tabel 2 S'!C236/'Tabel 1 S'!C236*100,"-")) -> - | D236: =IF(OR('Tabel 1 S'!C236<5,'Tabel 2 S'!D236<0.5),"-",IFERROR('Tabel 2 S'!D236/'Tabel 1 S'!C236*100,"-")) -> - | F236: =IF(OR('Tabel 1 S'!E236<5,'Tabel 2 S'!F236<0.5),"-",IFERROR('Tabel 2 S'!F236/'Tabel 1 S'!E236*100,"-")) -> - | G236: =IF(OR('Tabel 1 S'!E236<5,'Tabel 2 S'!G236<0.5),"-",IFERROR('Tabel 2 S'!G236/'Tabel 1 S'!E236*100,"-")) -> - | I236: =IF(OR('Tabel 1 S'!G236<5,'Tabel 2 S'!I236<0.5),"-",IFERROR('Tabel 2 S'!I236/'Tabel 1 S'!G236*100,"-")) -> - | J236: =IF(OR('Tabel 1 S'!G236<5,'Tabel 2 S'!J236<0.5),"-",IFERROR('Tabel 2 S'!J236/'Tabel 1 S'!G236*100,"-")) -> -
A237: Mejeriing. | C237: =IF(OR('Tabel 1 S'!C237<5,'Tabel 2 S'!C237<0.5),"-",IFERROR('Tabel 2 S'!C237/'Tabel 1 S'!C237*100,"-")) -> - | D237: =IF(OR('Tabel 1 S'!C237<5,'Tabel 2 S'!D237<0.5),"-",IFERROR('Tabel 2 S'!D237/'Tabel 1 S'!C237*100,"-")) -> - | F237: =IF(OR('Tabel 1 S'!E237<5,'Tabel 2 S'!F237<0.5),"-",IFERROR('Tabel 2 S'!F237/'Tabel 1 S'!E237*100,"-")) -> - | G237: =IF(OR('Tabel 1 S'!E237<5,'Tabel 2 S'!G237<0.5),"-",IFERROR('Tabel 2 S'!G237/'Tabel 1 S'!E237*100,"-")) -> - | I237: =IF(OR('Tabel 1 S'!G237<5,'Tabel 2 S'!I237<0.5),"-",IFERROR('Tabel 2 S'!I237/'Tabel 1 S'!G237*100,"-")) -> - | J237: =IF(OR('Tabel 1 S'!G237<5,'Tabel 2 S'!J237<0.5),"-",IFERROR('Tabel 2 S'!J237/'Tabel 1 S'!G237*100,"-")) -> -
A238: Levn.m.kand. | C238: =IF(OR('Tabel 1 S'!C238<5,'Tabel 2 S'!C238<0.5),"-",IFERROR('Tabel 2 S'!C238/'Tabel 1 S'!C238*100,"-")) -> - | D238: =IF(OR('Tabel 1 S'!C238<5,'Tabel 2 S'!D238<0.5),"-",IFERROR('Tabel 2 S'!D238/'Tabel 1 S'!C238*100,"-")) -> - | F238: =IF(OR('Tabel 1 S'!E238<5,'Tabel 2 S'!F238<0.5),"-",IFERROR('Tabel 2 S'!F238/'Tabel 1 S'!E238*100,"-")) -> - | G238: =IF(OR('Tabel 1 S'!E238<5,'Tabel 2 S'!G238<0.5),"-",IFERROR('Tabel 2 S'!G238/'Tabel 1 S'!E238*100,"-")) -> - | I238: =IF(OR('Tabel 1 S'!G238<5,'Tabel 2 S'!I238<0.5),"-",IFERROR('Tabel 2 S'!I238/'Tabel 1 S'!G238*100,"-")) -> - | J238: =IF(OR('Tabel 1 S'!G238<5,'Tabel 2 S'!J238<0.5),"-",IFERROR('Tabel 2 S'!J238/'Tabel 1 S'!G238*100,"-")) -> -
A239: Dyrlæge | C239: =IF(OR('Tabel 1 S'!C239<5,'Tabel 2 S'!C239<0.5),"-",IFERROR('Tabel 2 S'!C239/'Tabel 1 S'!C239*100,"-")) -> - | D239: =IF(OR('Tabel 1 S'!C239<5,'Tabel 2 S'!D239<0.5),"-",IFERROR('Tabel 2 S'!D239/'Tabel 1 S'!C239*100,"-")) -> - | F239: =IF(OR('Tabel 1 S'!E239<5,'Tabel 2 S'!F239<0.5),"-",IFERROR('Tabel 2 S'!F239/'Tabel 1 S'!E239*100,"-")) -> - | G239: =IF(OR('Tabel 1 S'!E239<5,'Tabel 2 S'!G239<0.5),"-",IFERROR('Tabel 2 S'!G239/'Tabel 1 S'!E239*100,"-")) -> - | I239: =IF(OR('Tabel 1 S'!G239<5,'Tabel 2 S'!I239<0.5),"-",IFERROR('Tabel 2 S'!I239/'Tabel 1 S'!G239*100,"-")) -> - | J239: =IF(OR('Tabel 1 S'!G239<5,'Tabel 2 S'!J239<0.5),"-",IFERROR('Tabel 2 S'!J239/'Tabel 1 S'!G239*100,"-")) -> -
... 611 more rows

Sheet Tabel 4F S
A1: Tabel 4. Antal forsikrede - aldersfordelt
A3: Sjælland
C5: Under 30 år | D5: 30 - 39 år | E5: 40 - 49 år | F5: 50 - 59 år | G5: Over 60 år | I5: I alt
A7: Civ. ing. | C7: 197 | D7: 623 | E7: 595 | F7: 733 | G7: 225 | I7: 2373
A8: Diplom ing. | C8: 251 | D8: 590 | E8: 950 | F8: 1630 | G8: 538 | I8: 3959
A9: Cand. Scient. Tek. | C9: 245 | D9: 697 | E9: 285 | F9: 117 | G9: 22 | I9: 1366
A10: MA. Hum. | C10: 254 | D10: 1073 | E10: 1150 | F10: 570 | G10: 237 | I10: 3284
A11: MA. Nat. | C11: 63 | D11: 280 | E11: 473 | F11: 445 | G11: 202 | I11: 1463
A12: MA. Ph.d. | C12: 3 | D12: 32 | E12: 53 | F12: 52 | G12: 18 | I12: 158
A13: MA. Samf. | C13: 65 | D13: 216 | E13: 101 | F13: 39 | G13: 15 | I13: 436
A14: Øvrige Mag. | C14: 26 | D14: 41 | E14: 72 | F14: 88 | G14: 40 | I14: 267
A15: Agronom | C15: 23 | D15: 46 | E15: 110 | F15: 177 | G15: 91 | I15: 447
A16: Landsk. Arkt. | C16: 2 | D16: 25 | E16: 32 | F16: 22 | G16: 13 | I16: 94
A17: Hortonom | C17: 1 | D17: 2 | E17: 12 | F17: 23 | G17: 16 | I17: 54
A18: Forstkand. | C18: 3 | D18: 13 | E18: 32 | F18: 17 | G18: 16 | I18: 81
A19: Jordbrugsakad. | C19: 29 | D19: 86 | E19: 186 | F19: 239 | G19: 136 | I19: 676
A20: Mejeriing. | C20: 5 | D20: 10 | E20: 5 | F20: 15 | G20: 7 | I20: 42
A21: Levn.m.kand. | C21: 11 | D21: 35 | E21: 14 | F21: 4 | G21: 1 | I21: 65
A22: Dyrlæge | C22: 33 | D22: 135 | E22: 109 | F22: 104 | G22: 42 | I22: 423
A23: Farmaceut | C23: 68 | D23: 174 | E23: 172 | F23: 142 | G23: 42 | I23: 598
A24: Læge | C24: 82 | D24: 284 | E24: 161 | F24: 130 | G24: 75 | I24: 732
A25: Tandlæge | C25: 25 | D25: 44 | E25: 58 | F25: 33 | G25: 19 | I25: 179
A26: Arkitekt | C26: 9 | D26: 67 | E26: 67 | F26: 65 | G26: 42 | I26: 250
A27: Landinspek. | C27: 6 | D27: 18 | E27: 14 | F27: 25 | G27: 8 | I27: 71
A28: Bibliotekar | C28: 11 | D28: 68 | E28: 114 | F28: 122 | G28: 70 | I28: 385
A29: Musikudd. | C29: 2 | D29: 11 | E29: 24 | F29: 31 | G29: 34 | I29: 102
A30: Teolog | C30: 8 | D30: 32 | E30: 54 | F30: 89 | G30: 39 | I30: 222
A31: Psykolog | C31: 76 | D31: 212 | E31: 161 | F31: 122 | G31: 54 | I31: 625
A32: Jurist | C32: 119 | D32: 366 | E32: 333 | F32: 282 | G32: 103 | I32: 1203
A33: Økonom | C33: 37 | D33: 134 | E33: 162 | F33: 226 | G33: 49 | I33: 608
A34: Samf. Adm. | C34: 177 | D34: 739 | E34: 636 | F34: 444 | G34: 135 | I34: 2131
A35: Cand. Merc. | C35: 257 | D35: 858 | E35: 633 | F35: 531 | G35: 98 | I35: 2377
A36: HA | C36: 59 | D36: 73 | E36: 132 | F36: 255 | G36: 64 | I36: 583
A37: HD | C37: 30 | D37: 69 | E37: 87 | F37: 248 | G37: 91 | I37: 525
A38: Komm. og Sprog | C38: 64 | D38: 135 | E38: 175 | F38: 162 | G38: 85 | I38: 621
A39: Bygningskonst. | C39: 170 | D39: 483 | E39: 356 | F39: 198 | G39: 57 | I39: 1264
A40: Cand. IT. | C40: 23 | D40: 117 | E40: 82 | F40: 16 | G40: 0 | I40: 238
A41: Bac. Samf. | C41: 12 | D41: 23 | E41: 30 | F41: 30 | G41: 7 | I41: 102
A42: Bac. Hum. | C42: 61 | D42: 74 | E42: 56 | F42: 78 | G42: 26 | I42: 295
A43: Bac. Nat. | C43: 92 | D43: 83 | E43: 44 | F43: 34 | G43: 14 | I43: 267
A44: Andre | C44: 129 | D44: 579 | E44: 530 | F44: 443 | G44: 219 | I44: 1900
A46: Total | C46: 2699 | D46: 8461 | E46: 8074 | F46: 7742 | G46: 2814 | I46: 29790
A48: Ingeniører i alt | C48: 448 | D48: 1213 | E48: 1545 | F48: 2363 | G48: 763 | I48: 6332
A49: Magistre i alt | C49: 411 | D49: 1642 | E49: 1849 | F49: 1194 | G49: 512 | I49: 5608
A50: DJØF'ere i alt | C50: 649 | D50: 2170 | E50: 1896 | F50: 1738 | G50: 449 | I50: 6902
A57: Greve
C59: Under 30 år | D59: 30 - 39 år | E59: 40 - 49 år | F59: 50 - 59 år | G59: Over 60 år | I59: I alt
A61: Civ. ing. | C61: 11 | D61: 59 | E61: 55 | F61: 51 | G61: 20 | I61: 196
A62: Diplom ing. | C62: 27 | D62: 61 | E62: 85 | F62: 152 | G62: 40 | I62: 365
A63: Cand. Scient. Tek. | C63: 14 | D63: 36 | E63: 31 | F63: 10 | G63: 1 | I63: 92
A64: MA. Hum. | C64: 14 | D64: 44 | E64: 58 | F64: 22 | G64: 5 | I64: 143
A65: MA. Nat. | C65: 2 | D65: 14 | E65: 24 | F65: 32 | G65: 5 | I65: 77
A66: MA. Ph.d. | C66: 0 | D66: 6 | E66: 3 | F66: 1 | G66: 0 | I66: 10
A67: MA. Samf. | C67: 3 | D67: 10 | E67: 2 | F67: 0 | G67: 1 | I67: 16
A68: Øvrige Mag. | C68: 2 | D68: 3 | E68: 4 | F68: 6 | G68: 4 | I68: 19
A69: Agronom | C69: 2 | D69: 2 | E69: 4 | F69: 7 | G69: 1 | I69: 16
A70: Landsk. Arkt. | C70: 1 | D70: 1 | E70: 2 | F70: 0 | G70: 0 | I70: 4
A71: Hortonom | C71: 0 | D71: 0 | E71: 0 | F71: 2 | G71: 0 | I71: 2
A72: Forstkand. | C72: 0 | D72: 0 | E72: 0 | F72: 0 | G72: 0 | I72: 0
A73: Jordbrugsakad. | C73: 3 | D73: 3 | E73: 6 | F73: 9 | G73: 1 | I73: 22
A74: Mejeriing. | C74: 0 | D74: 0 | E74: 0 | F74: 1 | G74: 0 | I74: 1
A75: Levn.m.kand. | C75: 0 | D75: 1 | E75: 1 | F75: 0 | G75: 0 | I75: 2
A76: Dyrlæge | C76: 1 | D76: 9 | E76: 2 | F76: 2 | G76: 1 | I76: 15
A77: Farmaceut | C77: 5 | D77: 25 | E77: 16 | F77: 18 | G77: 2 | I77: 66
A78: Læge | C78: 5 | D78: 10 | E78: 10 | F78: 10 | G78: 7 | I78: 42
A79: Tandlæge | C79: 3 | D79: 6 | E79: 5 | F79: 3 | G79: 2 | I79: 19
A80: Arkitekt | C80: 1 | D80: 7 | E80: 3 | F80: 2 | G80: 1 | I80: 14
A81: Landinspek. | C81: 0 | D81: 1 | E81: 0 | F81: 4 | G81: 0 | I81: 5
A82: Bibliotekar | C82: 1 | D82: 4 | E82: 6 | F82: 5 | G82: 6 | I82: 22
A83: Musikudd. | C83: 0 | D83: 1 | E83: 2 | F83: 0 | G83: 1 | I83: 4
A84: Teolog | C84: 0 | D84: 4 | E84: 1 | F84: 7 | G84: 3 | I84: 15
A85: Psykolog | C85: 5 | D85: 10 | E85: 7 | F85: 6 | G85: 0 | I85: 28
A86: Jurist | C86: 7 | D86: 35 | E86: 38 | F86: 36 | G86: 9 | I86: 125
A87: Økonom | C87: 2 | D87: 13 | E87: 24 | F87: 15 | G87: 2 | I87: 56
A88: Samf. Adm. | C88: 9 | D88: 56 | E88: 37 | F88: 24 | G88: 6 | I88: 132
A89: Cand. Merc. | C89: 26 | D89: 108 | E89: 90 | F89: 65 | G89: 14 | I89: 303
A90: HA | C90: 4 | D90: 16 | E90: 18 | F90: 26 | G90: 8 | I90: 72
A91: HD | C91: 1 | D91: 12 | E91: 14 | F91: 33 | G91: 16 | I91: 76
A92: Komm. og Sprog | C92: 2 | D92: 13 | E92: 20 | F92: 16 | G92: 7 | I92: 58
A93: Bygningskonst. | C93: 8 | D93: 30 | E93: 21 | F93: 14 | G93: 6 | I93: 79
A94: Cand. IT. | C94: 1 | D94: 10 | E94: 10 | F94: 1 | G94: 0 | I94: 22
A95: Bac. Samf. | C95: 1 | D95: 3 | E95: 2 | F95: 2 | G95: 1 | I95: 9
A96: Bac. Hum. | C96: 3 | D96: 3 | E96: 5 | F96: 3 | G96: 1 | I96: 15
A97: Bac. Nat. | C97: 4 | D97: 6 | E97: 5 | F97: 1 | G97: 1 | I97: 17
A98: Andre | C98: 12 | D98: 52 | E98: 55 | F98: 29 | G98: 11 | I98: 159
A100: Total | C100: 177 | D100: 671 | E100: 660 | F100: 606 | G100: 182 | I100: 2296
A102: Ingeniører i alt | C102: 38 | D102: 120 | E102: 140 | F102: 203 | G102: 60 | I102: 561
A103: Magistre i alt | C103: 21 | D103: 77 | E103: 91 | F103: 61 | G103: 15 | I103: 265
A104: DJØF'ere i alt | C104: 48 | D104: 228 | E104: 207 | F104: 166 | G104: 39 | I104: 688
A111: Køge
C113: Under 30 år | D113: 30 - 39 år | E113: 40 - 49 år | F113: 50 - 59 år | G113: Over 60 år | I113: I alt
A115: Civ. ing. | C115: 20 | D115: 58 | E115: 43 | F115: 71 | G115: 12 | I115: 204
A116: Diplom ing. | C116: 25 | D116: 55 | E116: 71 | F116: 162 | G116: 47 | I116: 360
A117: Cand. Scient. Tek. | C117: 21 | D117: 48 | E117: 18 | F117: 14 | G117: 0 | I117: 101
A118: MA. Hum. | C118: 14 | D118: 96 | E118: 79 | F118: 29 | G118: 17 | I118: 235
A119: MA. Nat. | C119: 6 | D119: 28 | E119: 26 | F119: 34 | G119: 10 | I119: 104
A120: MA. Ph.d. | C120: 0 | D120: 2 | E120: 0 | F120: 3 | G120: 1 | I120: 6
A121: MA. Samf. | C121: 6 | D121: 20 | E121: 5 | F121: 6 | G121: 1 | I121: 38
A122: Øvrige Mag. | C122: 1 | D122: 4 | E122: 7 | F122: 7 | G122: 2 | I122: 21
A123: Agronom | C123: 1 | D123: 4 | E123: 9 | F123: 9 | G123: 11 | I123: 34
A124: Landsk. Arkt. | C124: 0 | D124: 3 | E124: 1 | F124: 2 | G124: 1 | I124: 7
A125: Hortonom | C125: 0 | D125: 0 | E125: 2 | F125: 2 | G125: 2 | I125: 6
A126: Forstkand. | C126: 0 | D126: 0 | E126: 3 | F126: 0 | G126: 1 | I126: 4
A127: Jordbrugsakad. | C127: 1 | D127: 7 | E127: 15 | F127: 13 | G127: 15 | I127: 51
A128: Mejeriing. | C128: 0 | D128: 0 | E128: 0 | F128: 0 | G128: 0 | I128: 0
A129: Levn.m.kand. | C129: 2 | D129: 3 | E129: 2 | F129: 1 | G129: 0 | I129: 8
A130: Dyrlæge | C130: 5 | D130: 8 | E130: 10 | F130: 11 | G130: 3 | I130: 37
A131: Farmaceut | C131: 8 | D131: 14 | E131: 16 | F131: 11 | G131: 0 | I131: 49
A132: Læge | C132: 2 | D132: 24 | E132: 14 | F132: 11 | G132: 4 | I132: 55
A133: Tandlæge | C133: 4 | D133: 3 | E133: 9 | F133: 0 | G133: 2 | I133: 18
A134: Arkitekt | C134: 0 | D134: 5 | E134: 4 | F134: 3 | G134: 3 | I134: 15
A135: Landinspek. | C135: 0 | D135: 1 | E135: 0 | F135: 4 | G135: 1 | I135: 6
A136: Bibliotekar | C136: 1 | D136: 2 | E136: 6 | F136: 12 | G136: 8 | I136: 29
A137: Musikudd. | C137: 1 | D137: 0 | E137: 2 | F137: 2 | G137: 1 | I137: 6
A138: Teolog | C138: 0 | D138: 3 | E138: 2 | F138: 4 | G138: 1 | I138: 10
A139: Psykolog | C139: 10 | D139: 19 | E139: 12 | F139: 12 | G139: 7 | I139: 60
A140: Jurist | C140: 15 | D140: 49 | E140: 41 | F140: 13 | G140: 6 | I140: 124
A141: Økonom | C141: 3 | D141: 18 | E141: 23 | F141: 25 | G141: 5 | I141: 74
A142: Samf. Adm. | C142: 18 | D142: 82 | E142: 35 | F142: 30 | G142: 11 | I142: 176
A143: Cand. Merc. | C143: 30 | D143: 83 | E143: 76 | F143: 51 | G143: 4 | I143: 244
A144: HA | C144: 8 | D144: 4 | E144: 11 | F144: 15 | G144: 8 | I144: 46
A145: HD | C145: 4 | D145: 9 | E145: 7 | F145: 31 | G145: 3 | I145: 54
A146: Komm. og Sprog | C146: 7 | D146: 19 | E146: 14 | F146: 13 | G146: 9 | I146: 62
A147: Bygningskonst. | C147: 16 | D147: 52 | E147: 21 | F147: 14 | G147: 3 | I147: 106
A148: Cand. IT. | C148: 7 | D148: 17 | E148: 9 | F148: 0 | G148: 0 | I148: 33
A149: Bac. Samf. | C149: 1 | D149: 3 | E149: 2 | F149: 1 | G149: 1 | I149: 8
A150: Bac. Hum. | C150: 4 | D150: 6 | E150: 12 | F150: 5 | G150: 0 | I150: 27
A151: Bac. Nat. | C151: 8 | D151: 3 | E151: 2 | F151: 5 | G151: 1 | I151: 19
A152: Andre | C152: 21 | D152: 53 | E152: 49 | F152: 37 | G152: 18 | I152: 178
A154: Total | C154: 269 | D154: 798 | E154: 643 | F154: 650 | G154: 204 | I154: 2564
A156: Ingeniører i alt | C156: 45 | D156: 113 | E156: 114 | F156: 233 | G156: 59 | I156: 564
A157: Magistre i alt | C157: 27 | D157: 150 | E157: 117 | F157: 79 | G157: 31 | I157: 404
A158: DJØF'ere i alt | C158: 74 | D158: 236 | E158: 186 | F158: 134 | G158: 34 | I158: 664
A165: Roskilde
C167: Under 30 år | D167: 30 - 39 år | E167: 40 - 49 år | F167: 50 - 59 år | G167: Over 60 år | I167: I alt
A169: Civ. ing. | C169: 46 | D169: 178 | E169: 196 | F169: 237 | G169: 76 | I169: 733
A170: Diplom ing. | C170: 38 | D170: 116 | E170: 197 | F170: 358 | G170: 106 | I170: 815
A171: Cand. Scient. Tek. | C171: 61 | D171: 179 | E171: 78 | F171: 41 | G171: 6 | I171: 365
A172: MA. Hum. | C172: 64 | D172: 232 | E172: 280 | F172: 143 | G172: 47 | I172: 766
A173: MA. Nat. | C173: 18 | D173: 56 | E173: 135 | F173: 131 | G173: 57 | I173: 397
A174: MA. Ph.d. | C174: 1 | D174: 6 | E174: 14 | F174: 26 | G174: 4 | I174: 51
A175: MA. Samf. | C175: 15 | D175: 49 | E175: 28 | F175: 18 | G175: 7 | I175: 117
A176: Øvrige Mag. | C176: 10 | D176: 6 | E176: 11 | F176: 20 | G176: 11 | I176: 58
A177: Agronom | C177: 4 | D177: 9 | E177: 19 | F177: 26 | G177: 17 | I177: 75
A178: Landsk. Arkt. | C178: 0 | D178: 6 | E178: 12 | F178: 5 | G178: 2 | I178: 25
A179: Hortonom | C179: 0 | D179: 0 | E179: 2 | F179: 0 | G179: 1 | I179: 3
A180: Forstkand. | C180: 1 | D180: 3 | E180: 6 | F180: 3 | G180: 2 | I180: 15
A181: Jordbrugsakad. | C181: 5 | D181: 18 | E181: 39 | F181: 34 | G181: 22 | I181: 118
A182: Mejeriing. | C182: 1 | D182: 1 | E182: 1 | F182: 1 | G182: 0 | I182: 4
A183: Levn.m.kand. | C183: 3 | D183: 11 | E183: 5 | F183: 0 | G183: 0 | I183: 19
A184: Dyrlæge | C184: 3 | D184: 13 | E184: 13 | F184: 23 | G184: 8 | I184: 60
A185: Farmaceut | C185: 11 | D185: 37 | E185: 61 | F185: 46 | G185: 17 | I185: 172
A186: Læge | C186: 16 | D186: 92 | E186: 56 | F186: 35 | G186: 20 | I186: 219
A187: Tandlæge | C187: 5 | D187: 9 | E187: 11 | F187: 9 | G187: 3 | I187: 37
A188: Arkitekt | C188: 1 | D188: 18 | E188: 22 | F188: 16 | G188: 6 | I188: 63
A189: Landinspek. | C189: 0 | D189: 1 | E189: 4 | F189: 6 | G189: 2 | I189: 13
A190: Bibliotekar | C190: 1 | D190: 11 | E190: 27 | F190: 27 | G190: 17 | I190: 83
A191: Musikudd. | C191: 0 | D191: 3 | E191: 3 | F191: 5 | G191: 4 | I191: 15
A192: Teolog | C192: 0 | D192: 0 | E192: 11 | F192: 12 | G192: 6 | I192: 29
A193: Psykolog | C193: 14 | D193: 42 | E193: 49 | F193: 26 | G193: 9 | I193: 140
A194: Jurist | C194: 21 | D194: 82 | E194: 76 | F194: 63 | G194: 24 | I194: 266
A195: Økonom | C195: 12 | D195: 29 | E195: 44 | F195: 67 | G195: 11 | I195: 163
A196: Samf. Adm. | C196: 40 | D196: 183 | E196: 236 | F196: 163 | G196: 59 | I196: 681
A197: Cand. Merc. | C197: 47 | D197: 213 | E197: 162 | F197: 143 | G197: 30 | I197: 595
A198: HA | C198: 13 | D198: 10 | E198: 21 | F198: 64 | G198: 8 | I198: 116
A199: HD | C199: 4 | D199: 12 | E199: 22 | F199: 46 | G199: 13 | I199: 97
A200: Komm. og Sprog | C200: 11 | D200: 26 | E200: 34 | F200: 34 | G200: 16 | I200: 121
A201: Bygningskonst. | C201: 18 | D201: 51 | E201: 57 | F201: 22 | G201: 6 | I201: 154
A202: Cand. IT. | C202: 3 | D202: 27 | E202: 27 | F202: 6 | G202: 0 | I202: 63
A203: Bac. Samf. | C203: 1 | D203: 7 | E203: 7 | F203: 9 | G203: 0 | I203: 24
A204: Bac. Hum. | C204: 16 | D204: 12 | E204: 11 | F204: 17 | G204: 9 | I204: 65
A205: Bac. Nat. | C205: 16 | D205: 11 | E205: 9 | F205: 5 | G205: 3 | I205: 44
A206: Andre | C206: 25 | D206: 134 | E206: 128 | F206: 87 | G206: 32 | I206: 406
A208: Total | C208: 540 | D208: 1875 | E208: 2075 | F208: 1940 | G208: 639 | I208: 7069
A210: Ingeniører i alt | C210: 84 | D210: 294 | E210: 393 | F210: 595 | G210: 182 | I210: 1548
A211: Magistre i alt | C211: 108 | D211: 349 | E211: 468 | F211: 338 | G211: 126 | I211: 1389
A212: DJØF'ere i alt | C212: 133 | D212: 517 | E212: 539 | F212: 500 | G212: 132 | I212: 1821
A219: Solrød
C221: Under 30 år | D221: 30 - 39 år | E221: 40 - 49 år | F221: 50 - 59 år | G221: Over 60 år | I221: I alt
A223: Civ. ing. | C223: 9 | D223: 35 | E223: 41 | F223: 48 | G223: 3 | I223: 136
A224: Diplom ing. | C224: 6 | D224: 37 | E224: 36 | F224: 71 | G224: 30 | I224: 180
A225: Cand. Scient. Tek. | C225: 11 | D225: 26 | E225: 14 | F225: 6 | G225: 0 | I225: 57
A226: MA. Hum. | C226: 10 | D226: 27 | E226: 36 | F226: 11 | G226: 3 | I226: 87
A227: MA. Nat. | C227: 1 | D227: 12 | E227: 11 | F227: 9 | G227: 4 | I227: 37
A228: MA. Ph.d. | C228: 0 | D228: 0 | E228: 2 | F228: 1 | G228: 0 | I228: 3
A229: MA. Samf. | C229: 2 | D229: 10 | E229: 5 | F229: 0 | G229: 1 | I229: 18
A230: Øvrige Mag. | C230: 0 | D230: 3 | E230: 6 | F230: 2 | G230: 0 | I230: 11
A231: Agronom | C231: 1 | D231: 0 | E231: 2 | F231: 0 | G231: 0 | I231: 3
A232: Landsk. Arkt. | C232: 0 | D232: 0 | E232: 1 | F232: 0 | G232: 0 | I232: 1
A233: Hortonom | C233: 0 | D233: 0 | E233: 1 | F233: 1 | G233: 0 | I233: 2
A234: Forstkand. | C234: 0 | D234: 0 | E234: 0 | F234: 0 | G234: 0 | I234: 0
A235: Jordbrugsakad. | C235: 1 | D235: 0 | E235: 4 | F235: 1 | G235: 0 | I235: 6
A236: Mejeriing. | C236: 0 | D236: 0 | E236: 1 | F236: 0 | G236: 0 | I236: 1
A237: Levn.m.kand. | C237: 0 | D237: 2 | E237: 0 | F237: 1 | G237: 0 | I237: 3
A238: Dyrlæge | C238: 0 | D238: 9 | E238: 1 | F238: 2 | G238: 1 | I238: 13
A239: Farmaceut | C239: 4 | D239: 9 | E239: 5 | F239: 4 | G239: 5 | I239: 27
A240: Læge | C240: 2 | D240: 15 | E240: 9 | F240: 1 | G240: 2 | I240: 29
A241: Tandlæge | C241: 1 | D241: 2 | E241: 0 | F241: 2 | G241: 2 | I241: 7
A242: Arkitekt | C242: 0 | D242: 2 | E242: 2 | F242: 2 | G242: 1 | I242: 7
A243: Landinspek. | C243: 0 | D243: 1 | E243: 1 | F243: 0 | G243: 0 | I243: 2
... 593 more rows

Sheet Tabel 4 S
A1: Tabel 4. Ledighedsberørte - aldersfordelt
A3: Sjælland
C5: Under 30 år | D5: 30 - 39 år | E5: 40 - 49 år | F5: 50 - 59 år | G5: Over 60 år | I5: I alt
A7: Civ. ing. | C7: 18.01 | D7: 13 | E7: 4 | F7: 11 | G7: 6 | I7: 52.01
A8: Diplom ing. | C8: 17.01 | D8: 9 | E8: 14 | F8: 16 | G8: 19 | I8: 75.01
A9: Cand. Scient. Tek | C9: 23.01 | D9: 27 | E9: 6 | F9: 4 | G9: 0 | I9: 60.01
A10: MA. Hum. | C10: 49.01 | D10: 82 | E10: 44 | F10: 19 | G10: 14 | I10: 208.01
A11: MA. Nat. | C11: 8.01 | D11: 10 | E11: 13 | F11: 10 | G11: 4 | I11: 45.01
A12: MA. Ph.d. | C12: 1.01 | D12: 3 | E12: 0 | F12: 0 | G12: 0 | I12: 4.01
A13: MA. Samf. | C13: 8.01 | D13: 19 | E13: 5 | F13: 3 | G13: 1 | I13: 36.01
A14: Øvrige Mag. | C14: 4.01 | D14: 3 | E14: 2 | F14: 1 | G14: 3 | I14: 13.01
A15: Agronom | C15: 4.01 | D15: 0 | E15: 1 | F15: 2 | G15: 3 | I15: 10.01
A16: Landsk. Arkt. | C16: 0.01 | D16: 3 | E16: 0 | F16: 0 | G16: 0 | I16: 3.01
A17: Hortonom | C17: 0.01 | D17: 0 | E17: 0 | F17: 0 | G17: 0 | I17: 0.01
A18: Forstkand. | C18: 0.01 | D18: 0 | E18: 1 | F18: 0 | G18: 3 | I18: 4.01
A19: Jordbrugsakad. | C19: 4.04 | D19: 3 | E19: 2 | F19: 2 | G19: 6 | I19: 17.04
A20: Mejeriing. | C20: 0.01 | D20: 0 | E20: 0 | F20: 0 | G20: 1 | I20: 1.01
A21: Levn.m.kand. | C21: 2.01 | D21: 1 | E21: 1 | F21: 0 | G21: 1 | I21: 5.01
A22: Dyrlæge | C22: 2.01 | D22: 1 | E22: 1 | F22: 0 | G22: 0 | I22: 4.01
A23: Farmaceut | C23: 2.01 | D23: 2 | E23: 1 | F23: 0 | G23: 2 | I23: 7.01
A24: Læge | C24: 10.01 | D24: 9 | E24: 1 | F24: 1 | G24: 0 | I24: 21.01
A25: Tandlæge | C25: 0.01 | D25: 1 | E25: 1 | F25: 0 | G25: 0 | I25: 2.01
A26: Arkitekt | C26: 0.01 | D26: 3 | E26: 3 | F26: 5 | G26: 1 | I26: 12.01
A27: Landinspek. | C27: 0.01 | D27: 0 | E27: 1 | F27: 0 | G27: 0 | I27: 1.01
A28: Bibliotekar | C28: 5.01 | D28: 6 | E28: 6 | F28: 1 | G28: 1 | I28: 19.01
A29: Musikudd. | C29: 0.01 | D29: 1 | E29: 1 | F29: 0 | G29: 1 | I29: 3.01
A30: Teolog | C30: 0.01 | D30: 1 | E30: 3 | F30: 2 | G30: 0 | I30: 6.01
A31: Psykolog | C31: 1.01 | D31: 10 | E31: 4 | F31: 1 | G31: 0 | I31: 16.01
A32: Jurist | C32: 0.01 | D32: 2 | E32: 1 | F32: 4 | G32: 5 | I32: 12.01
A33: Økonom | C33: 3.01 | D33: 6 | E33: 3 | F33: 2 | G33: 2 | I33: 16.01
A34: Samf. Adm. | C34: 28.01 | D34: 31 | E34: 14 | F34: 14 | G34: 7 | I34: 94.01
A35: Cand. Merc. | C35: 14.01 | D35: 22 | E35: 8 | F35: 13 | G35: 6 | I35: 63.01
A36: HA | C36: 6.01 | D36: 3 | E36: 5 | F36: 10 | G36: 5 | I36: 29.01
A37: HD | C37: 3.01 | D37: 1 | E37: 2 | F37: 4 | G37: 5 | I37: 15.01
A38: Komm. og Sprog | C38: 12.01 | D38: 8 | E38: 5 | F38: 7 | G38: 4 | I38: 36.01
A39: Bygningskonst. | C39: 12.01 | D39: 8 | E39: 4 | F39: 3 | G39: 1 | I39: 28.01
A40: Cand. IT. | C40: 2.01 | D40: 6 | E40: 1 | F40: 0 | G40: 0 | I40: 9.01
A41: Bac. Samf. | C41: 2.01 | D41: 0 | E41: 2 | F41: 1 | G41: 0 | I41: 5.01
A42: Bac. Hum. | C42: 16.01 | D42: 7 | E42: 4 | F42: 6 | G42: 4 | I42: 37.01
A43: Bac. Nat. | C43: 9.01 | D43: 4 | E43: 0 | F43: 2 | G43: 0 | I43: 15.01
A44: Andre | C44: 17.01 | D44: 32 | E44: 17 | F44: 22 | G44: 9 | I44: 97.01
A46: Total | C46: 278.37 | D46: 334 | E46: 179 | F46: 164 | G46: 108 | I46: 1063.37
A48: Ingeniører i alt | C48: 35.02 | D48: 22 | E48: 18 | F48: 27 | G48: 25 | I48: 127.02
A49: Magistre i alt | C49: 70.05 | D49: 117 | E49: 64 | F49: 33 | G49: 22 | I49: 306.05
A50: DJØF'ere i alt | C50: 51.05 | D50: 64 | E50: 31 | F50: 43 | G50: 25 | I50: 214.05
A57: Greve
C59: Under 30 år | D59: 30 - 39 år | E59: 40 - 49 år | F59: 50 - 59 år | G59: Over 60 år | I59: I alt
A61: Civ. ing. | C61: 1 | D61: 0 | E61: 0 | F61: 0 | G61: 1 | I61: 2
A62: Diplom ing. | C62: 1 | D62: 1 | E62: 0 | F62: 3 | G62: 1 | I62: 6
A63: Cand. Scient. Tek | C63: 0 | D63: 1 | E63: 0 | F63: 1 | G63: 0 | I63: 2
A64: MA. Hum. | C64: 4 | D64: 1 | E64: 2 | F64: 1 | G64: 0 | I64: 8
A65: MA. Nat. | C65: 0 | D65: 0 | E65: 0 | F65: 0 | G65: 0 | I65: 0
A66: MA. Ph.d. | C66: 0 | D66: 0 | E66: 0 | F66: 0 | G66: 0 | I66: 0
A67: MA. Samf. | C67: 0 | D67: 1 | E67: 1 | F67: 0 | G67: 0 | I67: 2
A68: Øvrige Mag. | C68: 0 | D68: 0 | E68: 0 | F68: 0 | G68: 0 | I68: 0
A69: Agronom | C69: 1 | D69: 0 | E69: 0 | F69: 0 | G69: 0 | I69: 1
A70: Landsk. Arkt. | C70: 0 | D70: 1 | E70: 0 | F70: 0 | G70: 0 | I70: 1
A71: Hortonom | C71: 0 | D71: 0 | E71: 0 | F71: 0 | G71: 0 | I71: 0
A72: Forstkand. | C72: 0 | D72: 0 | E72: 0 | F72: 0 | G72: 0 | I72: 0
A73: Jordbrugsakad. | C73: 1 | D73: 1 | E73: 0 | F73: 0 | G73: 0 | I73: 2
A74: Mejeriing. | C74: 0 | D74: 0 | E74: 0 | F74: 0 | G74: 0 | I74: 0
A75: Levn.m.kand. | C75: 0 | D75: 0 | E75: 0 | F75: 0 | G75: 0 | I75: 0
A76: Dyrlæge | C76: 0 | D76: 1 | E76: 0 | F76: 0 | G76: 0 | I76: 1
A77: Farmaceut | C77: 0 | D77: 0 | E77: 0 | F77: 0 | G77: 0 | I77: 0
A78: Læge | C78: 1 | D78: 0 | E78: 0 | F78: 0 | G78: 0 | I78: 1
A79: Tandlæge | C79: 0 | D79: 0 | E79: 0 | F79: 0 | G79: 0 | I79: 0
A80: Arkitekt | C80: 0 | D80: 0 | E80: 0 | F80: 0 | G80: 0 | I80: 0
A81: Landinspek. | C81: 0 | D81: 0 | E81: 0 | F81: 0 | G81: 0 | I81: 0
A82: Bibliotekar | C82: 1 | D82: 0 | E82: 0 | F82: 0 | G82: 0 | I82: 1
A83: Musikudd. | C83: 0 | D83: 0 | E83: 1 | F83: 0 | G83: 0 | I83: 1
A84: Teolog | C84: 0 | D84: 0 | E84: 0 | F84: 0 | G84: 0 | I84: 0
A85: Psykolog | C85: 0 | D85: 1 | E85: 0 | F85: 0 | G85: 0 | I85: 1
A86: Jurist | C86: 0 | D86: 0 | E86: 0 | F86: 1 | G86: 0 | I86: 1
A87: Økonom | C87: 0 | D87: 0 | E87: 1 | F87: 0 | G87: 0 | I87: 1
A88: Samf. Adm. | C88: 0 | D88: 0 | E88: 0 | F88: 0 | G88: 0 | I88: 0
A89: Cand. Merc. | C89: 2 | D89: 1 | E89: 0 | F89: 2 | G89: 0 | I89: 5
A90: HA | C90: 2 | D90: 0 | E90: 1 | F90: 0 | G90: 0 | I90: 3
A91: HD | C91: 1 | D91: 0 | E91: 0 | F91: 0 | G91: 2 | I91: 3
A92: Komm. og Sprog | C92: 0 | D92: 0 | E92: 0 | F92: 0 | G92: 0 | I92: 0
A93: Bygningskonst. | C93: 0 | D93: 0 | E93: 0 | F93: 0 | G93: 0 | I93: 0
A94: Cand. IT. | C94: 0 | D94: 1 | E94: 0 | F94: 0 | G94: 0 | I94: 1
A95: Bac. Samf. | C95: 0 | D95: 0 | E95: 0 | F95: 0 | G95: 0 | I95: 0
A96: Bac. Hum. | C96: 1 | D96: 1 | E96: 0 | F96: 0 | G96: 0 | I96: 2
A97: Bac. Nat. | C97: 1 | D97: 0 | E97: 0 | F97: 0 | G97: 0 | I97: 1
A98: Andre | C98: 1 | D98: 4 | E98: 2 | F98: 1 | G98: 0 | I98: 8
A100: Total | C100: 17 | D100: 14 | E100: 8 | F100: 9 | G100: 4 | I100: 52
A102: Ingeniører i alt | C102: 2 | D102: 1 | E102: 0 | F102: 3 | G102: 2 | I102: 8
A103: Magistre i alt | C103: 4 | D103: 2 | E103: 3 | F103: 1 | G103: 0 | I103: 10
A104: DJØF'ere i alt | C104: 4 | D104: 1 | E104: 2 | F104: 3 | G104: 0 | I104: 10
A111: Køge
C113: Under 30 år | D113: 30 - 39 år | E113: 40 - 49 år | F113: 50 - 59 år | G113: Over 60 år | I113: I alt
A115: Civ. ing. | C115: 0 | D115: 2 | E115: 1 | F115: 0 | G115: 0 | I115: 3
A116: Diplom ing. | C116: 5 | D116: 1 | E116: 1 | F116: 2 | G116: 2 | I116: 11
A117: Cand. Scient. Tek | C117: 3 | D117: 3 | E117: 1 | F117: 2 | G117: 0 | I117: 9
A118: MA. Hum. | C118: 3 | D118: 1 | E118: 2 | F118: 1 | G118: 0 | I118: 7
A119: MA. Nat. | C119: 1 | D119: 1 | E119: 2 | F119: 4 | G119: 0 | I119: 8
A120: MA. Ph.d. | C120: 0 | D120: 1 | E120: 0 | F120: 0 | G120: 0 | I120: 1
A121: MA. Samf. | C121: 2 | D121: 0 | E121: 0 | F121: 1 | G121: 0 | I121: 3
A122: Øvrige Mag. | C122: 0 | D122: 0 | E122: 0 | F122: 1 | G122: 0 | I122: 1
A123: Agronom | C123: 0 | D123: 0 | E123: 0 | F123: 0 | G123: 1 | I123: 1
A124: Landsk. Arkt. | C124: 0 | D124: 0 | E124: 0 | F124: 0 | G124: 0 | I124: 0
A125: Hortonom | C125: 0 | D125: 0 | E125: 0 | F125: 0 | G125: 0 | I125: 0
A126: Forstkand. | C126: 0 | D126: 0 | E126: 0 | F126: 0 | G126: 0 | I126: 0
A127: Jordbrugsakad. | C127: 0 | D127: 0 | E127: 0 | F127: 0 | G127: 1 | I127: 1
A128: Mejeriing. | C128: 0 | D128: 0 | E128: 0 | F128: 0 | G128: 0 | I128: 0
A129: Levn.m.kand. | C129: 0 | D129: 1 | E129: 0 | F129: 0 | G129: 0 | I129: 1
A130: Dyrlæge | C130: 1 | D130: 0 | E130: 0 | F130: 0 | G130: 0 | I130: 1
A131: Farmaceut | C131: 0 | D131: 0 | E131: 0 | F131: 0 | G131: 0 | I131: 0
A132: Læge | C132: 0 | D132: 0 | E132: 0 | F132: 0 | G132: 0 | I132: 0
A133: Tandlæge | C133: 0 | D133: 0 | E133: 0 | F133: 0 | G133: 0 | I133: 0
A134: Arkitekt | C134: 0 | D134: 0 | E134: 0 | F134: 0 | G134: 0 | I134: 0
A135: Landinspek. | C135: 0 | D135: 0 | E135: 0 | F135: 0 | G135: 0 | I135: 0
A136: Bibliotekar | C136: 0 | D136: 0 | E136: 1 | F136: 0 | G136: 1 | I136: 2
A137: Musikudd. | C137: 0 | D137: 0 | E137: 0 | F137: 0 | G137: 0 | I137: 0
A138: Teolog | C138: 0 | D138: 0 | E138: 0 | F138: 0 | G138: 0 | I138: 0
A139: Psykolog | C139: 0 | D139: 0 | E139: 0 | F139: 0 | G139: 0 | I139: 0
A140: Jurist | C140: 0 | D140: 0 | E140: 1 | F140: 0 | G140: 1 | I140: 2
A141: Økonom | C141: 1 | D141: 1 | E141: 0 | F141: 0 | G141: 0 | I141: 2
A142: Samf. Adm. | C142: 2 | D142: 5 | E142: 0 | F142: 1 | G142: 2 | I142: 10
A143: Cand. Merc. | C143: 2 | D143: 2 | E143: 1 | F143: 2 | G143: 0 | I143: 7
A144: HA | C144: 0 | D144: 0 | E144: 0 | F144: 0 | G144: 0 | I144: 0
A145: HD | C145: 0 | D145: 0 | E145: 0 | F145: 0 | G145: 0 | I145: 0
A146: Komm. og Sprog | C146: 2 | D146: 0 | E146: 0 | F146: 0 | G146: 1 | I146: 3
A147: Bygningskonst. | C147: 2 | D147: 0 | E147: 0 | F147: 0 | G147: 0 | I147: 2
A148: Cand. IT. | C148: 1 | D148: 1 | E148: 1 | F148: 0 | G148: 0 | I148: 3
A149: Bac. Samf. | C149: 0 | D149: 0 | E149: 0 | F149: 0 | G149: 0 | I149: 0
A150: Bac. Hum. | C150: 3 | D150: 1 | E150: 0 | F150: 0 | G150: 0 | I150: 4
A151: Bac. Nat. | C151: 1 | D151: 1 | E151: 0 | F151: 0 | G151: 0 | I151: 2
A152: Andre | C152: 3 | D152: 3 | E152: 1 | F152: 5 | G152: 2 | I152: 14
A154: Total | C154: 32 | D154: 24 | E154: 12 | F154: 19 | G154: 10 | I154: 97
A156: Ingeniører i alt | C156: 5 | D156: 3 | E156: 2 | F156: 2 | G156: 2 | I156: 14
A157: Magistre i alt | C157: 6 | D157: 3 | E157: 4 | F157: 7 | G157: 0 | I157: 20
A158: DJØF'ere i alt | C158: 5 | D158: 8 | E158: 2 | F158: 3 | G158: 3 | I158: 21
A165: Roskilde
C167: Under 30 år | D167: 30 - 39 år | E167: 40 - 49 år | F167: 50 - 59 år | G167: Over 60 år | I167: I alt
A169: Civ. ing. | C169: 5 | D169: 4 | E169: 2 | F169: 3 | G169: 1 | I169: 15
A170: Diplom ing. | C170: 3 | D170: 0 | E170: 5 | F170: 3 | G170: 3 | I170: 14
A171: Cand. Scient. Tek | C171: 6 | D171: 7 | E171: 0 | F171: 0 | G171: 0 | I171: 13
A172: MA. Hum. | C172: 16 | D172: 15 | E172: 10 | F172: 2 | G172: 2 | I172: 45
A173: MA. Nat. | C173: 3 | D173: 4 | E173: 5 | F173: 0 | G173: 0 | I173: 12
A174: MA. Ph.d. | C174: 1 | D174: 1 | E174: 0 | F174: 0 | G174: 0 | I174: 2
A175: MA. Samf. | C175: 4 | D175: 4 | E175: 2 | F175: 1 | G175: 0 | I175: 11
A176: Øvrige Mag. | C176: 2 | D176: 0 | E176: 1 | F176: 0 | G176: 1 | I176: 4
A177: Agronom | C177: 0 | D177: 0 | E177: 0 | F177: 0 | G177: 0 | I177: 0
A178: Landsk. Arkt. | C178: 0 | D178: 0 | E178: 0 | F178: 0 | G178: 0 | I178: 0
A179: Hortonom | C179: 0 | D179: 0 | E179: 0 | F179: 0 | G179: 0 | I179: 0
A180: Forstkand. | C180: 0 | D180: 0 | E180: 0 | F180: 0 | G180: 0 | I180: 0
A181: Jordbrugsakad. | C181: 0 | D181: 0 | E181: 0 | F181: 0 | G181: 0 | I181: 0
A182: Mejeriing. | C182: 0 | D182: 0 | E182: 0 | F182: 0 | G182: 0 | I182: 0
A183: Levn.m.kand. | C183: 1 | D183: 0 | E183: 0 | F183: 0 | G183: 0 | I183: 1
A184: Dyrlæge | C184: 0 | D184: 0 | E184: 0 | F184: 0 | G184: 0 | I184: 0
A185: Farmaceut | C185: 1 | D185: 0 | E185: 0 | F185: 0 | G185: 0 | I185: 1
A186: Læge | C186: 0 | D186: 4 | E186: 1 | F186: 0 | G186: 0 | I186: 5
A187: Tandlæge | C187: 0 | D187: 0 | E187: 0 | F187: 0 | G187: 0 | I187: 0
A188: Arkitekt | C188: 0 | D188: 1 | E188: 2 | F188: 3 | G188: 0 | I188: 6
A189: Landinspek. | C189: 0 | D189: 0 | E189: 0 | F189: 0 | G189: 0 | I189: 0
A190: Bibliotekar | C190: 1 | D190: 1 | E190: 0 | F190: 0 | G190: 0 | I190: 2
A191: Musikudd. | C191: 0 | D191: 0 | E191: 0 | F191: 0 | G191: 1 | I191: 1
A192: Teolog | C192: 0 | D192: 0 | E192: 1 | F192: 0 | G192: 0 | I192: 1
A193: Psykolog | C193: 0 | D193: 3 | E193: 3 | F193: 1 | G193: 0 | I193: 7
A194: Jurist | C194: 0 | D194: 0 | E194: 0 | F194: 2 | G194: 2 | I194: 4
A195: Økonom | C195: 1 | D195: 0 | E195: 2 | F195: 0 | G195: 1 | I195: 4
A196: Samf. Adm. | C196: 8 | D196: 7 | E196: 7 | F196: 3 | G196: 2 | I196: 27
A197: Cand. Merc. | C197: 0 | D197: 3 | E197: 2 | F197: 3 | G197: 2 | I197: 10
A198: HA | C198: 1 | D198: 1 | E198: 0 | F198: 4 | G198: 1 | I198: 7
A199: HD | C199: 1 | D199: 0 | E199: 0 | F199: 1 | G199: 0 | I199: 2
A200: Komm. og Sprog | C200: 0 | D200: 0 | E200: 1 | F200: 0 | G200: 0 | I200: 1
A201: Bygningskonst. | C201: 4 | D201: 0 | E201: 2 | F201: 1 | G201: 0 | I201: 7
A202: Cand. IT. | C202: 0 | D202: 0 | E202: 0 | F202: 0 | G202: 0 | I202: 0
A203: Bac. Samf. | C203: 0 | D203: 0 | E203: 0 | F203: 0 | G203: 0 | I203: 0
A204: Bac. Hum. | C204: 4 | D204: 0 | E204: 1 | F204: 1 | G204: 1 | I204: 7
A205: Bac. Nat. | C205: 0 | D205: 1 | E205: 0 | F205: 0 | G205: 0 | I205: 1
A206: Andre | C206: 2 | D206: 5 | E206: 6 | F206: 0 | G206: 0 | I206: 13
A208: Total | C208: 64 | D208: 61 | E208: 53 | F208: 28 | G208: 17 | I208: 223
A210: Ingeniører i alt | C210: 8 | D210: 4 | E210: 7 | F210: 6 | G210: 4 | I210: 29
A211: Magistre i alt | C211: 26 | D211: 24 | E211: 18 | F211: 3 | G211: 3 | I211: 74
A212: DJØF'ere i alt | C212: 10 | D212: 11 | E212: 11 | F212: 12 | G212: 8 | I212: 52
A219: Solrød
C221: Under 30 år | D221: 30 - 39 år | E221: 40 - 49 år | F221: 50 - 59 år | G221: Over 60 år | I221: I alt
A223: Civ. ing. | C223: 2 | D223: 0 | E223: 0 | F223: 0 | G223: 0 | I223: 2
A224: Diplom ing. | C224: 0 | D224: 0 | E224: 0 | F224: 0 | G224: 0 | I224: 0
A225: Cand. Scient. Tek | C225: 1 | D225: 0 | E225: 1 | F225: 0 | G225: 0 | I225: 2
A226: MA. Hum. | C226: 3 | D226: 1 | E226: 0 | F226: 0 | G226: 0 | I226: 4
A227: MA. Nat. | C227: 0 | D227: 0 | E227: 0 | F227: 0 | G227: 0 | I227: 0
A228: MA. Ph.d. | C228: 0 | D228: 0 | E228: 0 | F228: 0 | G228: 0 | I228: 0
A229: MA. Samf. | C229: 0 | D229: 1 | E229: 0 | F229: 0 | G229: 1 | I229: 2
A230: Øvrige Mag. | C230: 0 | D230: 0 | E230: 0 | F230: 0 | G230: 0 | I230: 0
A231: Agronom | C231: 0 | D231: 0 | E231: 0 | F231: 0 | G231: 0 | I231: 0
A232: Landsk. Arkt. | C232: 0 | D232: 0 | E232: 0 | F232: 0 | G232: 0 | I232: 0
A233: Hortonom | C233: 0 | D233: 0 | E233: 0 | F233: 0 | G233: 0 | I233: 0
A234: Forstkand. | C234: 0 | D234: 0 | E234: 0 | F234: 0 | G234: 0 | I234: 0
A235: Jordbrugsakad. | C235: 0 | D235: 0 | E235: 0 | F235: 0 | G235: 0 | I235: 0
A236: Mejeriing. | C236: 0 | D236: 0 | E236: 0 | F236: 0 | G236: 0 | I236: 0
A237: Levn.m.kand. | C237: 0 | D237: 0 | E237: 0 | F237: 0 | G237: 0 | I237: 0
A238: Dyrlæge | C238: 0 | D238: 0 | E238: 0 | F238: 0 | G238: 0 | I238: 0
A239: Farmaceut | C239: 0 | D239: 0 | E239: 0 | F239: 0 | G239: 1 | I239: 1
A240: Læge | C240: 0 | D240: 0 | E240: 0 | F240: 0 | G240: 0 | I240: 0
A241: Tandlæge | C241: 0 | D241: 0 | E241: 0 | F241: 0 | G241: 0 | I241: 0
A242: Arkitekt | C242: 0 | D242: 0 | E242: 0 | F242: 1 | G242: 0 | I242: 1
A243: Landinspek. | C243: 0 | D243: 0 | E243: 0 | F243: 0 | G243: 0 | I243: 0
... 593 more rows

Sheet Tabel 4(Br) S
A1: Tabel 4. Ledighedsberørte - aldersfordelt
A3: Sjælland
C5: Under 30 år | D5: 30 - 39 år | E5: 40 - 49 år | F5: 50 - 59 år | G5: Over 60 år | I5: I alt
A7: Civ. ing. | C7: 15.68140711 | D7: 11.57737167 | E7: 3.905694505 | F7: 9.269631385 | G7: 5.998877316 | I7: 46.43298198
A8: Diplom ing. | C8: 15.00093558 | D8: 7.102226658 | E8: 12.93893844 | F8: 14.33293831 | G8: 15.44377222 | I8: 64.81881121
A9: Cand. Scient. Tek | C9: 20.08108278 | D9: 22.64017963 | E9: 4.878687707 | F9: 3.01191293 | G9: 0 | I9: 50.61186304
A10: MA. Hum. | C10: 41.85929022 | D10: 68.09018899 | E10: 39.01827481 | F10: 16.53152872 | G10: 11.15885985 | I10: 176.6581426
A11: MA. Nat. | C11: 7.119066934 | D11: 8.534273062 | E11: 10.9910809 | F11: 7.724069107 | G11: 3.999251544 | I11: 38.36774154
A12: MA. Ph.d. | C12: 0.9998128959 | D12: 2.412524169 | E12: 0 | F12: 0 | G12: 0 | I12: 3.412337065
A13: MA. Samf. | C13: 6.810952421 | D13: 17.16771658 | E13: 4.961641614 | F13: 2.999438658 | G13: 0.9998128859 | I13: 32.93956216
A14: Øvrige Mag. | C14: 3.676167914 | D14: 2.722509823 | E14: 1.90731616 | F14: 0.9124929832 | G14: 2.237884364 | I14: 11.45637124
A15: Agronom | C15: 3.949354466 | D15: 0 | E15: 0.9536580802 | F15: 1.999625772 | G15: 2.64017963 | I15: 9.542817948
A16: Landsk. Arkt. | C16: 1e-08 | D16: 2.67323645 | E16: 0 | F16: 0 | G16: 0 | I16: 2.67323646
A17: Hortonom | C17: 1e-08 | D17: 0 | E17: 0 | F17: 0 | G17: 0 | I17: 1e-08
A18: Forstkand. | C18: 1e-08 | D18: 0 | E18: 0.9075032745 | F18: 0 | G18: 2.182373854 | I18: 3.089877138
A19: Jordbrugsakad. | C19: 3.949354496 | D19: 2.67323645 | E19: 1.861161355 | F19: 1.999625772 | G19: 4.822553483 | I19: 15.30593156
A20: Mejeriing. | C20: 1e-08 | D20: 0 | E20: 0 | F20: 0 | G20: 0.9998128859 | I20: 0.9998128959
A21: Levn.m.kand. | C21: 1.076529668 | D21: 0.7347346099 | E21: 0.594399052 | F21: 0 | G21: 0.9530343666 | I21: 3.358697696
A22: Dyrlæge | C22: 1.491922919 | D22: 0.8151936631 | E22: 0.9998128859 | F22: 0 | G22: 0 | I22: 3.306929468
A23: Farmaceut | C23: 1.815006559 | D23: 1.538077715 | E23: 0.9998128859 | F23: 0 | G23: 1.682155554 | I23: 6.035052714
A24: Læge | C24: 8.995197415 | D24: 8.16565833 | E24: 0.9549055074 | F24: 0.9998128859 | G24: 0 | I24: 19.11557414
A25: Tandlæge | C25: 1e-08 | D25: 0.9998128859 | E25: 0.9998128859 | F25: 0 | G25: 0 | I25: 1.999625782
A26: Arkitekt | C26: 1e-08 | D26: 2.999438658 | E26: 2.302750577 | F26: 4.763924406 | G26: 0.9998128859 | I26: 11.06592654
A27: Landinspek. | C27: 1e-08 | D27: 0 | E27: 0.6218424499 | F27: 0 | G27: 0 | I27: 0.6218424599
A28: Bibliotekar | C28: 4.044782646 | D28: 5.768103287 | E28: 5.753134161 | F28: 0.594399052 | G28: 0.9998128859 | I28: 17.16023203
A29: Musikudd. | C29: 1e-08 | D29: 0.7921162602 | E29: 0.4758934697 | F29: 0 | G29: 0.6948169401 | I29: 1.96282668
A30: Teolog | C30: 1e-08 | D30: 0.9998128859 | E30: 2.733736668 | F30: 1.747021768 | G30: 0 | I30: 5.480571332
A31: Psykolog | C31: 0.6305744502 | D31: 8.238009106 | E31: 3.694879311 | F31: 0.8613484688 | G31: 0 | I31: 13.42481134
A32: Jurist | C32: 1e-08 | D32: 1.151375288 | E32: 0.9998128859 | F32: 3.64248737 | G32: 3.299444895 | I32: 9.093120449
A33: Økonom | C33: 2.098172529 | D33: 5.12068858 | E33: 2.47863781 | F33: 1.999625772 | G33: 1.999625772 | I33: 13.69675046
A34: Samf. Adm. | C34: 20.7565646 | D34: 27.17021144 | E34: 12.25410092 | F34: 13.15848562 | G34: 6.613235202 | I34: 79.95259778
A35: Cand. Merc. | C35: 11.85055823 | D35: 19.04634192 | E35: 7.084138963 | F35: 12.48487495 | G35: 5.584731491 | I35: 56.05064555
A36: HA | C36: 4.334809465 | D36: 2.896525915 | E36: 4.99906443 | F36: 9.230337429 | G36: 4.428990208 | I36: 25.88972745
A37: HD | C37: 1.845568525 | D37: 0.8501216242 | E37: 1.999625772 | F37: 3.459115574 | G37: 4.130855111 | I37: 12.28528661
A38: Komm. og Sprog | C38: 10.17463982 | D38: 7.654213185 | E38: 4.961641614 | F38: 6.368115761 | G38: 3.122310235 | I38: 32.28092061
A39: Bygningskonst. | C39: 11.55529222 | D39: 7.076903886 | E39: 3.719328884 | F39: 2.301877378 | G39: 1 | I39: 25.65340237
A40: Cand. IT. | C40: 1.999625782 | D40: 5.732551612 | E40: 0.9717457743 | F40: 0 | G40: 0 | I40: 8.703923168
A41: Bac. Samf. | C41: 1.590469666 | D41: 0 | E41: 1.999625772 | F41: 0.9998128859 | G41: 0 | I41: 4.589908324
A42: Bac. Hum. | C42: 12.76804093 | D42: 5.641489428 | E42: 3.346223414 | F42: 5.191791929 | G42: 3.115449386 | I42: 30.06299508
A43: Bac. Nat. | C43: 8.07023016 | D43: 3.880745961 | E43: 0 | F43: 1.214994075 | G43: 0 | I43: 13.1659702
A44: Andre | C44: 15.43940623 | D44: 29.51662197 | E44: 13.203393 | F44: 19.75862284 | G44: 6.524044159 | I44: 84.4420882
A46: Total | C46: 235.7154622 | D46: 289.7089752 | E46: 158.6111146 | F46: 145.558286 | G46: 90.80914364 | I46: 920.4029817
A48: Ingeniører i alt | C48: 30.68234269 | D48: 18.67959833 | E48: 16.84463294 | F48: 23.6025697 | G48: 21.44264954 | I48: 111.2517932
A49: Magistre i alt | C49: 60.46529039 | D49: 98.92721262 | E49: 56.87831348 | F49: 28.16752947 | G49: 18.39580864 | I49: 262.8341546
A50: DJØF'ere i alt | C50: 39.04010483 | D50: 55.38514314 | E50: 27.81575501 | F50: 40.51581114 | G50: 21.92602757 | I50: 184.6828417
A57: Greve
C59: Under 30 år | D59: 30 - 39 år | E59: 40 - 49 år | F59: 50 - 59 år | G59: Over 60 år | I59: I alt
A61: Civ. ing. | C61: 0.4864966008 | D61: 0 | E61: 0 | F61: 0 | G61: 0.9998128859 | I61: 1.486309487
A62: Diplom ing. | C62: 0.9998128859 | D62: 0.1690263831 | E62: 0 | F62: 2.999438658 | G62: 0.5844196345 | I62: 4.752697561
A63: Cand. Scient. Tek | C63: 0 | D63: 0.9998128859 | E63: 0 | F63: 0.6112393189 | G63: 0 | I63: 1.611052205
A64: MA. Hum. | C64: 2.499844072 | D64: 0.9998128859 | E64: 1.399613298 | F64: 0.5731927899 | G64: 0 | I64: 5.472463045
A65: MA. Nat. | C65: 0 | D65: 0 | E65: 0 | F65: 0 | G65: 0 | I65: 0
A66: MA. Ph.d. | C66: 0 | D66: 0 | E66: 0 | F66: 0 | G66: 0 | I66: 0
A67: MA. Samf. | C67: 0 | D67: 0.3998004117 | E67: 0.9998128859 | F67: 0 | G67: 0 | I67: 1.399613298
A68: Øvrige Mag. | C68: 0 | D68: 0 | E68: 0 | F68: 0 | G68: 0 | I68: 0
A69: Agronom | C69: 0.9998128859 | D69: 0 | E69: 0 | F69: 0 | G69: 0 | I69: 0.9998128859
A70: Landsk. Arkt. | C70: 0 | D70: 0.7197654837 | E70: 0 | F70: 0 | G70: 0 | I70: 0.7197654837
A71: Hortonom | C71: 0 | D71: 0 | E71: 0 | F71: 0 | G71: 0 | I71: 0
A72: Forstkand. | C72: 0 | D72: 0 | E72: 0 | F72: 0 | G72: 0 | I72: 0
A73: Jordbrugsakad. | C73: 0.9998128859 | D73: 0.7197654837 | E73: 0 | F73: 0 | G73: 0 | I73: 1.71957837
A74: Mejeriing. | C74: 0 | D74: 0 | E74: 0 | F74: 0 | G74: 0 | I74: 0
A75: Levn.m.kand. | C75: 0 | D75: 0 | E75: 0 | F75: 0 | G75: 0 | I75: 0
A76: Dyrlæge | C76: 0 | D76: 0.8151936631 | E76: 0 | F76: 0 | G76: 0 | I76: 0.8151936631
A77: Farmaceut | C77: 0 | D77: 0 | E77: 0 | F77: 0 | G77: 0 | I77: 0
A78: Læge | C78: 0.9998128859 | D78: 0 | E78: 0 | F78: 0 | G78: 0 | I78: 0.9998128859
A79: Tandlæge | C79: 0 | D79: 0 | E79: 0 | F79: 0 | G79: 0 | I79: 0
A80: Arkitekt | C80: 0 | D80: 0 | E80: 0 | F80: 0 | G80: 0 | I80: 0
A81: Landinspek. | C81: 0 | D81: 0 | E81: 0 | F81: 0 | G81: 0 | I81: 0
A82: Bibliotekar | C82: 0.3074908002 | D82: 0 | E82: 0 | F82: 0 | G82: 0 | I82: 0.3074908002
A83: Musikudd. | C83: 0 | D83: 0 | E83: 0.4758934697 | F83: 0 | G83: 0 | I83: 0.4758934697
A84: Teolog | C84: 0 | D84: 0 | E84: 0 | F84: 0 | G84: 0 | I84: 0
A85: Psykolog | C85: 0 | D85: 0.9998128859 | E85: 0 | F85: 0 | G85: 0 | I85: 0.9998128859
A86: Jurist | C86: 0 | D86: 0 | E86: 0 | F86: 0.9075032745 | G86: 0 | I86: 0.9075032745
A87: Økonom | C87: 0 | D87: 0 | E87: 0.9998128859 | F87: 0 | G87: 0 | I87: 0.9998128859
A88: Samf. Adm. | C88: 0 | D88: 0 | E88: 0 | F88: 0 | G88: 0 | I88: 0
A89: Cand. Merc. | C89: 1.538701428 | D89: 0.9998128859 | E89: 0 | F89: 1.999625772 | G89: 0 | I89: 4.538140086
A90: HA | C90: 1.999625772 | D90: 0 | E90: 0.9998128859 | F90: 0 | G90: 0 | I90: 2.999438658
A91: HD | C91: 0.4921100231 | D91: 0 | E91: 0 | F91: 0 | G91: 1.962202956 | I91: 2.454312979
A92: Komm. og Sprog | C92: 0 | D92: 0 | E92: 0 | F92: 0 | G92: 0 | I92: 0
A93: Bygningskonst. | C93: 0 | D93: 0 | E93: 0 | F93: 0 | G93: 0 | I93: 0
A94: Cand. IT. | C94: 0 | D94: 0.9998128859 | E94: 0 | F94: 0 | G94: 0 | I94: 0.9998128859
A95: Bac. Samf. | C95: 0 | D95: 0 | E95: 0 | F95: 0 | G95: 0 | I95: 0
A96: Bac. Hum. | C96: 0.9998128859 | D96: 0.9811014782 | E96: 0 | F96: 0 | G96: 0 | I96: 1.980914364
A97: Bac. Nat. | C97: 0.9536580802 | D97: 0 | E97: 0 | F97: 0 | G97: 0 | I97: 0.9536580802
A98: Andre | C98: 0.9998128859 | D98: 3.952473024 | E98: 0.9842200462 | F98: 0.9998128859 | G98: 0 | I98: 6.936318842
A100: Total | C100: 13.27699121 | D100: 12.03642487 | E100: 5.859165471 | F100: 8.090812699 | G100: 3.546435477 | I100: 42.80982973
A102: Ingeniører i alt | C102: 1.486309487 | D102: 0.1690263831 | E102: 0 | F102: 2.999438658 | G102: 1.58423252 | I102: 6.239007048
A103: Magistre i alt | C103: 2.499844072 | D103: 1.399613298 | E103: 2.399426183 | F103: 0.5731927899 | G103: 0 | I103: 6.872076343
A104: DJØF'ere i alt | C104: 3.5383272 | D104: 0.9998128859 | E104: 1.999625772 | F104: 2.907129046 | G104: 0 | I104: 9.444894904
A111: Køge
C113: Under 30 år | D113: 30 - 39 år | E113: 40 - 49 år | F113: 50 - 59 år | G113: Over 60 år | I113: I alt
A115: Civ. ing. | C115: 0 | D115: 1.83247053 | E115: 0.9075032745 | F115: 0 | G115: 0 | I115: 2.739973804
A116: Diplom ing. | C116: 4.138339674 | D116: 0.9748643423 | E116: 0.9561529346 | F116: 1.999625772 | G116: 1.491922909 | I116: 9.560905632
A117: Cand. Scient. Tek | C117: 2.718767542 | D117: 1.77696002 | E117: 0.3068670866 | F117: 1.400860725 | G117: 0 | I117: 6.203455373
A118: MA. Hum. | C118: 2.999438658 | D118: 0.9998128859 | E118: 1.491922909 | F118: 0.996694318 | G118: 0 | I118: 6.487868771
A119: MA. Nat. | C119: 0.8126988087 | D119: 0.9998128859 | E119: 1.836836525 | F119: 3.306929458 | G119: 0 | I119: 6.956277677
A120: MA. Ph.d. | C120: 0 | D120: 0.9998128859 | E120: 0 | F120: 0 | G120: 0 | I120: 0.9998128859
A121: MA. Samf. | C121: 1.319777958 | D121: 0 | E121: 0 | F121: 0.9998128859 | G121: 0 | I121: 2.319590844
A122: Øvrige Mag. | C122: 0 | D122: 0 | E122: 0 | F122: 0.9124929832 | G122: 0 | I122: 0.9124929832
A123: Agronom | C123: 0 | D123: 0 | E123: 0 | F123: 0 | G123: 0.9998128859 | I123: 0.9998128859
A124: Landsk. Arkt. | C124: 0 | D124: 0 | E124: 0 | F124: 0 | G124: 0 | I124: 0
A125: Hortonom | C125: 0 | D125: 0 | E125: 0 | F125: 0 | G125: 0 | I125: 0
A126: Forstkand. | C126: 0 | D126: 0 | E126: 0 | F126: 0 | G126: 0 | I126: 0
A127: Jordbrugsakad. | C127: 0 | D127: 0 | E127: 0 | F127: 0 | G127: 0.9998128859 | I127: 0.9998128859
A128: Mejeriing. | C128: 0 | D128: 0 | E128: 0 | F128: 0 | G128: 0 | I128: 0
A129: Levn.m.kand. | C129: 0 | D129: 0.7347346099 | E129: 0 | F129: 0 | G129: 0 | I129: 0.7347346099
A130: Dyrlæge | C130: 0.4921100231 | D130: 0 | E130: 0 | F130: 0 | G130: 0 | I130: 0.4921100231
A131: Farmaceut | C131: 0 | D131: 0 | E131: 0 | F131: 0 | G131: 0 | I131: 0
A132: Læge | C132: 0 | D132: 0 | E132: 0 | F132: 0 | G132: 0 | I132: 0
A133: Tandlæge | C133: 0 | D133: 0 | E133: 0 | F133: 0 | G133: 0 | I133: 0
A134: Arkitekt | C134: 0 | D134: 0 | E134: 0 | F134: 0 | G134: 0 | I134: 0
A135: Landinspek. | C135: 0 | D135: 0 | E135: 0 | F135: 0 | G135: 0 | I135: 0
A136: Bibliotekar | C136: 0 | D136: 0 | E136: 0.9998128859 | F136: 0 | G136: 0.9998128859 | I136: 1.999625772
A137: Musikudd. | C137: 0 | D137: 0 | E137: 0 | F137: 0 | G137: 0 | I137: 0
A138: Teolog | C138: 0 | D138: 0 | E138: 0 | F138: 0 | G138: 0 | I138: 0
A139: Psykolog | C139: 0 | D139: 0 | E139: 0 | F139: 0 | G139: 0 | I139: 0
A140: Jurist | C140: 0 | D140: 0 | E140: 0.9998128859 | F140: 0 | G140: 0.188985218 | I140: 1.188798104
A141: Økonom | C141: 0.7690388574 | D141: 0.9998128859 | E141: 0 | F141: 0 | G141: 0 | I141: 1.768851743
A142: Samf. Adm. | C142: 1.399613298 | D142: 4.256221543 | E142: 0 | F142: 0.9998128859 | G142: 1.614170773 | I142: 8.269818499
A143: Cand. Merc. | C143: 1.729557787 | D143: 1.890475893 | E143: 0.99357575 | F143: 1.999625772 | G143: 0 | I143: 6.613235202
A144: HA | C144: 0 | D144: 0 | E144: 0 | F144: 0 | G144: 0 | I144: 0
A145: HD | C145: 0 | D145: 0 | E145: 0 | F145: 0 | G145: 0 | I145: 0
A146: Komm. og Sprog | C146: 1.999625772 | D146: 0 | E146: 0 | F146: 0 | G146: 0.1228715774 | I146: 2.122497349
A147: Bygningskonst. | C147: 1.723071166 | D147: 0 | E147: 0 | F147: 0 | G147: 0 | I147: 1.723071166
A148: Cand. IT. | C148: 0.9998128859 | D148: 0.9998128859 | E148: 0.9717457743 | F148: 0 | G148: 0 | I148: 2.971371546
A149: Bac. Samf. | C149: 0 | D149: 0 | E149: 0 | F149: 0 | G149: 0 | I149: 0
A150: Bac. Hum. | C150: 2.446204703 | D150: 0.9998128859 | E150: 0 | F150: 0 | G150: 0 | I150: 3.446017589
A151: Bac. Nat. | C151: 0.9998128859 | D151: 0.9998128859 | E151: 0 | F151: 0 | G151: 0 | I151: 1.999625772
A152: Andre | C152: 2.999438658 | D152: 2.537890601 | E152: 0.9998128859 | F152: 4.675357076 | G152: 1.787563151 | I152: 13.00006237
A154: Total | C154: 27.54730868 | D154: 21.00230774 | E154: 10.46404291 | F154: 17.29121188 | G154: 7.2051394 | I154: 83.5100106
A156: Ingeniører i alt | C156: 4.138339674 | D156: 2.807334872 | E156: 1.863656209 | F156: 1.999625772 | G156: 1.491922909 | I156: 12.30087944
A157: Magistre i alt | C157: 5.131915424 | D157: 2.999438658 | E157: 3.328759434 | F157: 6.215929645 | G157: 0 | I157: 17.67604316
A158: DJØF'ere i alt | C158: 3.898209942 | D158: 7.146510322 | E158: 1.993388636 | F158: 2.999438658 | G158: 1.803155991 | I158: 17.84070355
A165: Roskilde
C167: Under 30 år | D167: 30 - 39 år | E167: 40 - 49 år | F167: 50 - 59 år | G167: Over 60 år | I167: I alt
A169: Civ. ing. | C169: 4.583671178 | D169: 3.860787127 | E169: 1.998378345 | F169: 2.076342544 | G169: 0.9998128859 | I169: 13.51899208
A170: Diplom ing. | C170: 2.999438658 | D170: 0 | E170: 4.906754818 | F170: 2.260961766 | G170: 2.562839144 | I170: 12.72999439
A171: Cand. Scient. Tek | C171: 5.944614233 | D171: 5.845443772 | E171: 0 | F171: 0 | G171: 0 | I171: 11.79005801
A172: MA. Hum. | C172: 14.39094368 | D172: 14.28990208 | E172: 8.86920726 | F172: 1.999625772 | G172: 1.999625772 | I172: 41.54930456
A173: MA. Nat. | C173: 2.537890601 | D173: 3.712343292 | E173: 4.311732053 | F173: 0 | G173: 0 | I173: 10.56196595
A174: MA. Ph.d. | C174: 0.9998128859 | D174: 0.4128983971 | E174: 0 | F174: 0 | G174: 0 | I174: 1.412711283
A175: MA. Samf. | C175: 3.814632321 | D175: 3.999251544 | E175: 1.999625772 | F175: 0.9998128859 | G175: 0 | I175: 10.81332252
A176: Øvrige Mag. | C176: 1.999625772 | D176: 0 | E176: 0.9075032745 | F176: 0 | G176: 0.9998128859 | I176: 3.906941932
A177: Agronom | C177: 0 | D177: 0 | E177: 0 | F177: 0 | G177: 0 | I177: 0
A178: Landsk. Arkt. | C178: 0 | D178: 0 | E178: 0 | F178: 0 | G178: 0 | I178: 0
A179: Hortonom | C179: 0 | D179: 0 | E179: 0 | F179: 0 | G179: 0 | I179: 0
A180: Forstkand. | C180: 0 | D180: 0 | E180: 0 | F180: 0 | G180: 0 | I180: 0
A181: Jordbrugsakad. | C181: 0 | D181: 0 | E181: 0 | F181: 0 | G181: 0 | I181: 0
A182: Mejeriing. | C182: 0 | D182: 0 | E182: 0 | F182: 0 | G182: 0 | I182: 0
A183: Levn.m.kand. | C183: 0.9998128859 | D183: 0 | E183: 0 | F183: 0 | G183: 0 | I183: 0.9998128859
A184: Dyrlæge | C184: 0 | D184: 0 | E184: 0 | F184: 0 | G184: 0 | I184: 0
A185: Farmaceut | C185: 0.8151936631 | D185: 0 | E185: 0 | F185: 0 | G185: 0 | I185: 0.8151936631
A186: Læge | C186: 0 | D186: 3.814632321 | E186: 0.9549055074 | F186: 0 | G186: 0 | I186: 4.769537828
A187: Tandlæge | C187: 0 | D187: 0 | E187: 0 | F187: 0 | G187: 0 | I187: 0
A188: Arkitekt | C188: 0 | D188: 0.9998128859 | E188: 1.302937691 | F188: 2.81045344 | G188: 0 | I188: 5.113204017
A189: Landinspek. | C189: 0 | D189: 0 | E189: 0 | F189: 0 | G189: 0 | I189: 0
A190: Bibliotekar | C190: 0.9998128859 | D190: 0.9998128859 | E190: 0 | F190: 0 | G190: 0 | I190: 1.999625772
A191: Musikudd. | C191: 0 | D191: 0 | E191: 0 | F191: 0 | G191: 0.6948169401 | I191: 0.6948169401
A192: Teolog | C192: 0 | D192: 0 | E192: 0.9998128859 | F192: 0 | G192: 0 | I192: 0.9998128859
A193: Psykolog | C193: 0 | D193: 1.707104098 | E193: 2.98072725 | F193: 0.8613484688 | G193: 0 | I193: 5.549179817
A194: Jurist | C194: 0 | D194: 0 | E194: 0 | F194: 1.888604753 | G194: 1.44701553 | I194: 3.335620283
A195: Økonom | C195: 0.3293207759 | D195: 0 | E195: 1.478824924 | F195: 0 | G195: 0.9998128859 | I195: 2.807958585
A196: Samf. Adm. | C196: 6.336930082 | D196: 6.420507703 | E196: 5.916547122 | F196: 2.999438658 | G196: 1.999625772 | I196: 23.67304934
A197: Cand. Merc. | C197: 0 | D197: 2.00274434 | E197: 1.968440092 | F197: 2.999438658 | G197: 1.999625772 | I197: 8.970248862
A198: HA | C198: 0.9075032745 | D198: 0.9998128859 | E198: 0 | F198: 3.323769725 | G198: 0.4758934697 | I198: 5.706979355
A199: HD | C199: 0.9998128859 | D199: 0 | E199: 0 | F199: 0.7690388574 | G199: 0 | I199: 1.768851743
A200: Komm. og Sprog | C200: 0 | D200: 0 | E200: 0.9623900705 | F200: 0 | G200: 0 | I200: 0.9623900705
A201: Bygningskonst. | C201: 4 | D201: 0 | E201: 2 | F201: 0.9189172332 | G201: 0 | I201: 6.918917233
A202: Cand. IT. | C202: 0 | D202: 0 | E202: 0 | F202: 0 | G202: 0 | I202: 0
A203: Bac. Samf. | C203: 0 | D203: 0 | E203: 0 | F203: 0 | G203: 0 | I203: 0
A204: Bac. Hum. | C204: 2.937067299 | D204: 0 | E204: 0.8800598765 | F204: 0.9312043909 | G204: 0.9998128859 | I204: 5.748144452
A205: Bac. Nat. | C205: 0 | D205: 0.8813073037 | E205: 0 | F205: 0 | G205: 0 | I205: 0.8813073037
A206: Andre | C206: 1.953470966 | D206: 4.69344477 | E206: 4.549990644 | F206: 0 | G206: 0 | I206: 11.19690638
A208: Total | C208: 57.54955404 | D208: 54.6398054 | E208: 46.98783758 | F208: 24.83895715 | G208: 15.17869394 | I208: 199.1948481
A210: Ingeniører i alt | C210: 7.583109836 | D210: 3.860787127 | E210: 6.905133163 | F210: 4.33730431 | G210: 3.56265203 | I210: 26.24898647
A211: Magistre i alt | C211: 23.74290526 | D211: 22.41439531 | E211: 16.08806836 | F211: 2.999438658 | G211: 2.999438658 | I211: 68.24424624
A212: DJØF'ere i alt | C212: 7.573754132 | D212: 9.423064929 | E212: 9.363812137 | F212: 11.21125179 | G212: 6.92197343 | I212: 44.49385642
A219: Solrød
C221: Under 30 år | D221: 30 - 39 år | E221: 40 - 49 år | F221: 50 - 59 år | G221: Over 60 år | I221: I alt
A223: Civ. ing. | C223: 1.569263394 | D223: 0 | E223: 0 | F223: 0 | G223: 0 | I223: 1.569263394
A224: Diplom ing. | C224: 0 | D224: 0 | E224: 0 | F224: 0 | G224: 0 | I224: 0
A225: Cand. Scient. Tek | C225: 0.9998128859 | D225: 0 | E225: 0.9492920851 | F225: 0 | G225: 0 | I225: 1.949104971
A226: MA. Hum. | C226: 2.584045406 | D226: 0.7228840516 | E226: 0 | F226: 0 | G226: 0 | I226: 3.306929458
A227: MA. Nat. | C227: 0 | D227: 0 | E227: 0 | F227: 0 | G227: 0 | I227: 0
A228: MA. Ph.d. | C228: 0 | D228: 0 | E228: 0 | F228: 0 | G228: 0 | I228: 0
A229: MA. Samf. | C229: 0 | D229: 0.8126988087 | E229: 0 | F229: 0 | G229: 0.9998128859 | I229: 1.812511695
A230: Øvrige Mag. | C230: 0 | D230: 0 | E230: 0 | F230: 0 | G230: 0 | I230: 0
A231: Agronom | C231: 0 | D231: 0 | E231: 0 | F231: 0 | G231: 0 | I231: 0
A232: Landsk. Arkt. | C232: 0 | D232: 0 | E232: 0 | F232: 0 | G232: 0 | I232: 0
A233: Hortonom | C233: 0 | D233: 0 | E233: 0 | F233: 0 | G233: 0 | I233: 0
A234: Forstkand. | C234: 0 | D234: 0 | E234: 0 | F234: 0 | G234: 0 | I234: 0
A235: Jordbrugsakad. | C235: 0 | D235: 0 | E235: 0 | F235: 0 | G235: 0 | I235: 0
A236: Mejeriing. | C236: 0 | D236: 0 | E236: 0 | F236: 0 | G236: 0 | I236: 0
A237: Levn.m.kand. | C237: 0 | D237: 0 | E237: 0 | F237: 0 | G237: 0 | I237: 0
A238: Dyrlæge | C238: 0 | D238: 0 | E238: 0 | F238: 0 | G238: 0 | I238: 0
A239: Farmaceut | C239: 0 | D239: 0 | E239: 0 | F239: 0 | G239: 0.6823426682 | I239: 0.6823426682
A240: Læge | C240: 0 | D240: 0 | E240: 0 | F240: 0 | G240: 0 | I240: 0
A241: Tandlæge | C241: 0 | D241: 0 | E241: 0 | F241: 0 | G241: 0 | I241: 0
A242: Arkitekt | C242: 0 | D242: 0 | E242: 0 | F242: 0.9998128859 | G242: 0 | I242: 0.9998128859
A243: Landinspek. | C243: 0 | D243: 0 | E243: 0 | F243: 0 | G243: 0 | I243: 0
... 593 more rows

Sheet Tabel 4P S
A1: Tabel 4. Ledighedsberørte - aldersfordelt
A3: Sjælland
C5: Under 30 år | D5: 30 - 39 år | E5: 40 - 49 år | F5: 50 - 59 år | G5: Over 60 år | I5: I alt
A7: Civ. ing. | C7: =IF(OR('Tabel 4F S'!C7<5,'Tabel 4 S'!C7<0.5),"-",IFERROR('Tabel 4 S'!C7/'Tabel 4F S'!C7*100,"-")) -> 9.14213198 | D7: =IF(OR('Tabel 4F S'!D7<5,'Tabel 4 S'!D7<0.5),"-",IFERROR('Tabel 4 S'!D7/'Tabel 4F S'!D7*100,"-")) -> 2.086677368 | E7: =IF(OR('Tabel 4F S'!E7<5,'Tabel 4 S'!E7<0.5),"-",IFERROR('Tabel 4 S'!E7/'Tabel 4F S'!E7*100,"-")) -> 0.6722689076 | F7: =IF(OR('Tabel 4F S'!F7<5,'Tabel 4 S'!F7<0.5),"-",IFERROR('Tabel 4 S'!F7/'Tabel 4F S'!F7*100,"-")) -> 1.500682128 | G7: =IF(OR('Tabel 4F S'!G7<5,'Tabel 4 S'!G7<0.5),"-",IFERROR('Tabel 4 S'!G7/'Tabel 4F S'!G7*100,"-")) -> 2.666666667 | I7: =IF(OR('Tabel 4F S'!I7<5,'Tabel 4 S'!I7<0.5),"-",IFERROR('Tabel 4 S'!I7/'Tabel 4F S'!I7*100,"-")) -> 2.191740413
A8: Diplom ing. | C8: =IF(OR('Tabel 4F S'!C8<5,'Tabel 4 S'!C8<0.5),"-",IFERROR('Tabel 4 S'!C8/'Tabel 4F S'!C8*100,"-")) -> 6.77689243 | D8: =IF(OR('Tabel 4F S'!D8<5,'Tabel 4 S'!D8<0.5),"-",IFERROR('Tabel 4 S'!D8/'Tabel 4F S'!D8*100,"-")) -> 1.525423729 | E8: =IF(OR('Tabel 4F S'!E8<5,'Tabel 4 S'!E8<0.5),"-",IFERROR('Tabel 4 S'!E8/'Tabel 4F S'!E8*100,"-")) -> 1.473684211 | F8: =IF(OR('Tabel 4F S'!F8<5,'Tabel 4 S'!F8<0.5),"-",IFERROR('Tabel 4 S'!F8/'Tabel 4F S'!F8*100,"-")) -> 0.981595092 | G8: =IF(OR('Tabel 4F S'!G8<5,'Tabel 4 S'!G8<0.5),"-",IFERROR('Tabel 4 S'!G8/'Tabel 4F S'!G8*100,"-")) -> 3.531598513 | I8: =IF(OR('Tabel 4F S'!I8<5,'Tabel 4 S'!I8<0.5),"-",IFERROR('Tabel 4 S'!I8/'Tabel 4F S'!I8*100,"-")) -> 1.894670371
A9: Cand. Scient. Tek | C9: =IF(OR('Tabel 4F S'!C9<5,'Tabel 4 S'!C9<0.5),"-",IFERROR('Tabel 4 S'!C9/'Tabel 4F S'!C9*100,"-")) -> 9.391836735 | D9: =IF(OR('Tabel 4F S'!D9<5,'Tabel 4 S'!D9<0.5),"-",IFERROR('Tabel 4 S'!D9/'Tabel 4F S'!D9*100,"-")) -> 3.87374462 | E9: =IF(OR('Tabel 4F S'!E9<5,'Tabel 4 S'!E9<0.5),"-",IFERROR('Tabel 4 S'!E9/'Tabel 4F S'!E9*100,"-")) -> 2.105263158 | F9: =IF(OR('Tabel 4F S'!F9<5,'Tabel 4 S'!F9<0.5),"-",IFERROR('Tabel 4 S'!F9/'Tabel 4F S'!F9*100,"-")) -> 3.418803419 | G9: =IF(OR('Tabel 4F S'!G9<5,'Tabel 4 S'!G9<0.5),"-",IFERROR('Tabel 4 S'!G9/'Tabel 4F S'!G9*100,"-")) -> - | I9: =IF(OR('Tabel 4F S'!I9<5,'Tabel 4 S'!I9<0.5),"-",IFERROR('Tabel 4 S'!I9/'Tabel 4F S'!I9*100,"-")) -> 4.393118594
A10: MA. Hum. | C10: =IF(OR('Tabel 4F S'!C10<5,'Tabel 4 S'!C10<0.5),"-",IFERROR('Tabel 4 S'!C10/'Tabel 4F S'!C10*100,"-")) -> 19.29527559 | D10: =IF(OR('Tabel 4F S'!D10<5,'Tabel 4 S'!D10<0.5),"-",IFERROR('Tabel 4 S'!D10/'Tabel 4F S'!D10*100,"-")) -> 7.642124884 | E10: =IF(OR('Tabel 4F S'!E10<5,'Tabel 4 S'!E10<0.5),"-",IFERROR('Tabel 4 S'!E10/'Tabel 4F S'!E10*100,"-")) -> 3.826086957 | F10: =IF(OR('Tabel 4F S'!F10<5,'Tabel 4 S'!F10<0.5),"-",IFERROR('Tabel 4 S'!F10/'Tabel 4F S'!F10*100,"-")) -> 3.333333333 | G10: =IF(OR('Tabel 4F S'!G10<5,'Tabel 4 S'!G10<0.5),"-",IFERROR('Tabel 4 S'!G10/'Tabel 4F S'!G10*100,"-")) -> 5.907172996 | I10: =IF(OR('Tabel 4F S'!I10<5,'Tabel 4 S'!I10<0.5),"-",IFERROR('Tabel 4 S'!I10/'Tabel 4F S'!I10*100,"-")) -> 6.334043849
A11: MA. Nat. | C11: =IF(OR('Tabel 4F S'!C11<5,'Tabel 4 S'!C11<0.5),"-",IFERROR('Tabel 4 S'!C11/'Tabel 4F S'!C11*100,"-")) -> 12.71428571 | D11: =IF(OR('Tabel 4F S'!D11<5,'Tabel 4 S'!D11<0.5),"-",IFERROR('Tabel 4 S'!D11/'Tabel 4F S'!D11*100,"-")) -> 3.571428571 | E11: =IF(OR('Tabel 4F S'!E11<5,'Tabel 4 S'!E11<0.5),"-",IFERROR('Tabel 4 S'!E11/'Tabel 4F S'!E11*100,"-")) -> 2.748414376 | F11: =IF(OR('Tabel 4F S'!F11<5,'Tabel 4 S'!F11<0.5),"-",IFERROR('Tabel 4 S'!F11/'Tabel 4F S'!F11*100,"-")) -> 2.247191011 | G11: =IF(OR('Tabel 4F S'!G11<5,'Tabel 4 S'!G11<0.5),"-",IFERROR('Tabel 4 S'!G11/'Tabel 4F S'!G11*100,"-")) -> 1.98019802 | I11: =IF(OR('Tabel 4F S'!I11<5,'Tabel 4 S'!I11<0.5),"-",IFERROR('Tabel 4 S'!I11/'Tabel 4F S'!I11*100,"-")) -> 3.076555024
A12: MA. Ph.d. | C12: =IF(OR('Tabel 4F S'!C12<5,'Tabel 4 S'!C12<0.5),"-",IFERROR('Tabel 4 S'!C12/'Tabel 4F S'!C12*100,"-")) -> - | D12: =IF(OR('Tabel 4F S'!D12<5,'Tabel 4 S'!D12<0.5),"-",IFERROR('Tabel 4 S'!D12/'Tabel 4F S'!D12*100,"-")) -> 9.375 | E12: =IF(OR('Tabel 4F S'!E12<5,'Tabel 4 S'!E12<0.5),"-",IFERROR('Tabel 4 S'!E12/'Tabel 4F S'!E12*100,"-")) -> - | F12: =IF(OR('Tabel 4F S'!F12<5,'Tabel 4 S'!F12<0.5),"-",IFERROR('Tabel 4 S'!F12/'Tabel 4F S'!F12*100,"-")) -> - | G12: =IF(OR('Tabel 4F S'!G12<5,'Tabel 4 S'!G12<0.5),"-",IFERROR('Tabel 4 S'!G12/'Tabel 4F S'!G12*100,"-")) -> - | I12: =IF(OR('Tabel 4F S'!I12<5,'Tabel 4 S'!I12<0.5),"-",IFERROR('Tabel 4 S'!I12/'Tabel 4F S'!I12*100,"-")) -> 2.537974684
A13: MA. Samf. | C13: =IF(OR('Tabel 4F S'!C13<5,'Tabel 4 S'!C13<0.5),"-",IFERROR('Tabel 4 S'!C13/'Tabel 4F S'!C13*100,"-")) -> 12.32307692 | D13: =IF(OR('Tabel 4F S'!D13<5,'Tabel 4 S'!D13<0.5),"-",IFERROR('Tabel 4 S'!D13/'Tabel 4F S'!D13*100,"-")) -> 8.796296296 | E13: =IF(OR('Tabel 4F S'!E13<5,'Tabel 4 S'!E13<0.5),"-",IFERROR('Tabel 4 S'!E13/'Tabel 4F S'!E13*100,"-")) -> 4.95049505 | F13: =IF(OR('Tabel 4F S'!F13<5,'Tabel 4 S'!F13<0.5),"-",IFERROR('Tabel 4 S'!F13/'Tabel 4F S'!F13*100,"-")) -> 7.692307692 | G13: =IF(OR('Tabel 4F S'!G13<5,'Tabel 4 S'!G13<0.5),"-",IFERROR('Tabel 4 S'!G13/'Tabel 4F S'!G13*100,"-")) -> 6.666666667 | I13: =IF(OR('Tabel 4F S'!I13<5,'Tabel 4 S'!I13<0.5),"-",IFERROR('Tabel 4 S'!I13/'Tabel 4F S'!I13*100,"-")) -> 8.259174312
A14: Øvrige Mag. | C14: =IF(OR('Tabel 4F S'!C14<5,'Tabel 4 S'!C14<0.5),"-",IFERROR('Tabel 4 S'!C14/'Tabel 4F S'!C14*100,"-")) -> 15.42307692 | D14: =IF(OR('Tabel 4F S'!D14<5,'Tabel 4 S'!D14<0.5),"-",IFERROR('Tabel 4 S'!D14/'Tabel 4F S'!D14*100,"-")) -> 7.317073171 | E14: =IF(OR('Tabel 4F S'!E14<5,'Tabel 4 S'!E14<0.5),"-",IFERROR('Tabel 4 S'!E14/'Tabel 4F S'!E14*100,"-")) -> 2.777777778 | F14: =IF(OR('Tabel 4F S'!F14<5,'Tabel 4 S'!F14<0.5),"-",IFERROR('Tabel 4 S'!F14/'Tabel 4F S'!F14*100,"-")) -> 1.136363636 | G14: =IF(OR('Tabel 4F S'!G14<5,'Tabel 4 S'!G14<0.5),"-",IFERROR('Tabel 4 S'!G14/'Tabel 4F S'!G14*100,"-")) -> 7.5 | I14: =IF(OR('Tabel 4F S'!I14<5,'Tabel 4 S'!I14<0.5),"-",IFERROR('Tabel 4 S'!I14/'Tabel 4F S'!I14*100,"-")) -> 4.872659176
A15: Agronom | C15: =IF(OR('Tabel 4F S'!C15<5,'Tabel 4 S'!C15<0.5),"-",IFERROR('Tabel 4 S'!C15/'Tabel 4F S'!C15*100,"-")) -> 17.43478261 | D15: =IF(OR('Tabel 4F S'!D15<5,'Tabel 4 S'!D15<0.5),"-",IFERROR('Tabel 4 S'!D15/'Tabel 4F S'!D15*100,"-")) -> - | E15: =IF(OR('Tabel 4F S'!E15<5,'Tabel 4 S'!E15<0.5),"-",IFERROR('Tabel 4 S'!E15/'Tabel 4F S'!E15*100,"-")) -> 0.9090909091 | F15: =IF(OR('Tabel 4F S'!F15<5,'Tabel 4 S'!F15<0.5),"-",IFERROR('Tabel 4 S'!F15/'Tabel 4F S'!F15*100,"-")) -> 1.129943503 | G15: =IF(OR('Tabel 4F S'!G15<5,'Tabel 4 S'!G15<0.5),"-",IFERROR('Tabel 4 S'!G15/'Tabel 4F S'!G15*100,"-")) -> 3.296703297 | I15: =IF(OR('Tabel 4F S'!I15<5,'Tabel 4 S'!I15<0.5),"-",IFERROR('Tabel 4 S'!I15/'Tabel 4F S'!I15*100,"-")) -> 2.239373602
A16: Landsk. Arkt. | C16: =IF(OR('Tabel 4F S'!C16<5,'Tabel 4 S'!C16<0.5),"-",IFERROR('Tabel 4 S'!C16/'Tabel 4F S'!C16*100,"-")) -> - | D16: =IF(OR('Tabel 4F S'!D16<5,'Tabel 4 S'!D16<0.5),"-",IFERROR('Tabel 4 S'!D16/'Tabel 4F S'!D16*100,"-")) -> 12 | E16: =IF(OR('Tabel 4F S'!E16<5,'Tabel 4 S'!E16<0.5),"-",IFERROR('Tabel 4 S'!E16/'Tabel 4F S'!E16*100,"-")) -> - | F16: =IF(OR('Tabel 4F S'!F16<5,'Tabel 4 S'!F16<0.5),"-",IFERROR('Tabel 4 S'!F16/'Tabel 4F S'!F16*100,"-")) -> - | G16: =IF(OR('Tabel 4F S'!G16<5,'Tabel 4 S'!G16<0.5),"-",IFERROR('Tabel 4 S'!G16/'Tabel 4F S'!G16*100,"-")) -> - | I16: =IF(OR('Tabel 4F S'!I16<5,'Tabel 4 S'!I16<0.5),"-",IFERROR('Tabel 4 S'!I16/'Tabel 4F S'!I16*100,"-")) -> 3.20212766
A17: Hortonom | C17: =IF(OR('Tabel 4F S'!C17<5,'Tabel 4 S'!C17<0.5),"-",IFERROR('Tabel 4 S'!C17/'Tabel 4F S'!C17*100,"-")) -> - | D17: =IF(OR('Tabel 4F S'!D17<5,'Tabel 4 S'!D17<0.5),"-",IFERROR('Tabel 4 S'!D17/'Tabel 4F S'!D17*100,"-")) -> - | E17: =IF(OR('Tabel 4F S'!E17<5,'Tabel 4 S'!E17<0.5),"-",IFERROR('Tabel 4 S'!E17/'Tabel 4F S'!E17*100,"-")) -> - | F17: =IF(OR('Tabel 4F S'!F17<5,'Tabel 4 S'!F17<0.5),"-",IFERROR('Tabel 4 S'!F17/'Tabel 4F S'!F17*100,"-")) -> - | G17: =IF(OR('Tabel 4F S'!G17<5,'Tabel 4 S'!G17<0.5),"-",IFERROR('Tabel 4 S'!G17/'Tabel 4F S'!G17*100,"-")) -> - | I17: =IF(OR('Tabel 4F S'!I17<5,'Tabel 4 S'!I17<0.5),"-",IFERROR('Tabel 4 S'!I17/'Tabel 4F S'!I17*100,"-")) -> -
A18: Forstkand. | C18: =IF(OR('Tabel 4F S'!C18<5,'Tabel 4 S'!C18<0.5),"-",IFERROR('Tabel 4 S'!C18/'Tabel 4F S'!C18*100,"-")) -> - | D18: =IF(OR('Tabel 4F S'!D18<5,'Tabel 4 S'!D18<0.5),"-",IFERROR('Tabel 4 S'!D18/'Tabel 4F S'!D18*100,"-")) -> - | E18: =IF(OR('Tabel 4F S'!E18<5,'Tabel 4 S'!E18<0.5),"-",IFERROR('Tabel 4 S'!E18/'Tabel 4F S'!E18*100,"-")) -> 3.125 | F18: =IF(OR('Tabel 4F S'!F18<5,'Tabel 4 S'!F18<0.5),"-",IFERROR('Tabel 4 S'!F18/'Tabel 4F S'!F18*100,"-")) -> - | G18: =IF(OR('Tabel 4F S'!G18<5,'Tabel 4 S'!G18<0.5),"-",IFERROR('Tabel 4 S'!G18/'Tabel 4F S'!G18*100,"-")) -> 18.75 | I18: =IF(OR('Tabel 4F S'!I18<5,'Tabel 4 S'!I18<0.5),"-",IFERROR('Tabel 4 S'!I18/'Tabel 4F S'!I18*100,"-")) -> 4.950617284
A19: Jordbrugsakad. | C19: =IF(OR('Tabel 4F S'!C19<5,'Tabel 4 S'!C19<0.5),"-",IFERROR('Tabel 4 S'!C19/'Tabel 4F S'!C19*100,"-")) -> 13.93103448 | D19: =IF(OR('Tabel 4F S'!D19<5,'Tabel 4 S'!D19<0.5),"-",IFERROR('Tabel 4 S'!D19/'Tabel 4F S'!D19*100,"-")) -> 3.488372093 | E19: =IF(OR('Tabel 4F S'!E19<5,'Tabel 4 S'!E19<0.5),"-",IFERROR('Tabel 4 S'!E19/'Tabel 4F S'!E19*100,"-")) -> 1.075268817 | F19: =IF(OR('Tabel 4F S'!F19<5,'Tabel 4 S'!F19<0.5),"-",IFERROR('Tabel 4 S'!F19/'Tabel 4F S'!F19*100,"-")) -> 0.8368200837 | G19: =IF(OR('Tabel 4F S'!G19<5,'Tabel 4 S'!G19<0.5),"-",IFERROR('Tabel 4 S'!G19/'Tabel 4F S'!G19*100,"-")) -> 4.411764706 | I19: =IF(OR('Tabel 4F S'!I19<5,'Tabel 4 S'!I19<0.5),"-",IFERROR('Tabel 4 S'!I19/'Tabel 4F S'!I19*100,"-")) -> 2.520710059
A20: Mejeriing. | C20: =IF(OR('Tabel 4F S'!C20<5,'Tabel 4 S'!C20<0.5),"-",IFERROR('Tabel 4 S'!C20/'Tabel 4F S'!C20*100,"-")) -> - | D20: =IF(OR('Tabel 4F S'!D20<5,'Tabel 4 S'!D20<0.5),"-",IFERROR('Tabel 4 S'!D20/'Tabel 4F S'!D20*100,"-")) -> - | E20: =IF(OR('Tabel 4F S'!E20<5,'Tabel 4 S'!E20<0.5),"-",IFERROR('Tabel 4 S'!E20/'Tabel 4F S'!E20*100,"-")) -> - | F20: =IF(OR('Tabel 4F S'!F20<5,'Tabel 4 S'!F20<0.5),"-",IFERROR('Tabel 4 S'!F20/'Tabel 4F S'!F20*100,"-")) -> - | G20: =IF(OR('Tabel 4F S'!G20<5,'Tabel 4 S'!G20<0.5),"-",IFERROR('Tabel 4 S'!G20/'Tabel 4F S'!G20*100,"-")) -> 14.28571429 | I20: =IF(OR('Tabel 4F S'!I20<5,'Tabel 4 S'!I20<0.5),"-",IFERROR('Tabel 4 S'!I20/'Tabel 4F S'!I20*100,"-")) -> 2.404761905
A21: Levn.m.kand. | C21: =IF(OR('Tabel 4F S'!C21<5,'Tabel 4 S'!C21<0.5),"-",IFERROR('Tabel 4 S'!C21/'Tabel 4F S'!C21*100,"-")) -> 18.27272727 | D21: =IF(OR('Tabel 4F S'!D21<5,'Tabel 4 S'!D21<0.5),"-",IFERROR('Tabel 4 S'!D21/'Tabel 4F S'!D21*100,"-")) -> 2.857142857 | E21: =IF(OR('Tabel 4F S'!E21<5,'Tabel 4 S'!E21<0.5),"-",IFERROR('Tabel 4 S'!E21/'Tabel 4F S'!E21*100,"-")) -> 7.142857143 | F21: =IF(OR('Tabel 4F S'!F21<5,'Tabel 4 S'!F21<0.5),"-",IFERROR('Tabel 4 S'!F21/'Tabel 4F S'!F21*100,"-")) -> - | G21: =IF(OR('Tabel 4F S'!G21<5,'Tabel 4 S'!G21<0.5),"-",IFERROR('Tabel 4 S'!G21/'Tabel 4F S'!G21*100,"-")) -> - | I21: =IF(OR('Tabel 4F S'!I21<5,'Tabel 4 S'!I21<0.5),"-",IFERROR('Tabel 4 S'!I21/'Tabel 4F S'!I21*100,"-")) -> 7.707692308
A22: Dyrlæge | C22: =IF(OR('Tabel 4F S'!C22<5,'Tabel 4 S'!C22<0.5),"-",IFERROR('Tabel 4 S'!C22/'Tabel 4F S'!C22*100,"-")) -> 6.090909091 | D22: =IF(OR('Tabel 4F S'!D22<5,'Tabel 4 S'!D22<0.5),"-",IFERROR('Tabel 4 S'!D22/'Tabel 4F S'!D22*100,"-")) -> 0.7407407407 | E22: =IF(OR('Tabel 4F S'!E22<5,'Tabel 4 S'!E22<0.5),"-",IFERROR('Tabel 4 S'!E22/'Tabel 4F S'!E22*100,"-")) -> 0.9174311927 | F22: =IF(OR('Tabel 4F S'!F22<5,'Tabel 4 S'!F22<0.5),"-",IFERROR('Tabel 4 S'!F22/'Tabel 4F S'!F22*100,"-")) -> - | G22: =IF(OR('Tabel 4F S'!G22<5,'Tabel 4 S'!G22<0.5),"-",IFERROR('Tabel 4 S'!G22/'Tabel 4F S'!G22*100,"-")) -> - | I22: =IF(OR('Tabel 4F S'!I22<5,'Tabel 4 S'!I22<0.5),"-",IFERROR('Tabel 4 S'!I22/'Tabel 4F S'!I22*100,"-")) -> 0.9479905437
A23: Farmaceut | C23: =IF(OR('Tabel 4F S'!C23<5,'Tabel 4 S'!C23<0.5),"-",IFERROR('Tabel 4 S'!C23/'Tabel 4F S'!C23*100,"-")) -> 2.955882353 | D23: =IF(OR('Tabel 4F S'!D23<5,'Tabel 4 S'!D23<0.5),"-",IFERROR('Tabel 4 S'!D23/'Tabel 4F S'!D23*100,"-")) -> 1.149425287 | E23: =IF(OR('Tabel 4F S'!E23<5,'Tabel 4 S'!E23<0.5),"-",IFERROR('Tabel 4 S'!E23/'Tabel 4F S'!E23*100,"-")) -> 0.5813953488 | F23: =IF(OR('Tabel 4F S'!F23<5,'Tabel 4 S'!F23<0.5),"-",IFERROR('Tabel 4 S'!F23/'Tabel 4F S'!F23*100,"-")) -> - | G23: =IF(OR('Tabel 4F S'!G23<5,'Tabel 4 S'!G23<0.5),"-",IFERROR('Tabel 4 S'!G23/'Tabel 4F S'!G23*100,"-")) -> 4.761904762 | I23: =IF(OR('Tabel 4F S'!I23<5,'Tabel 4 S'!I23<0.5),"-",IFERROR('Tabel 4 S'!I23/'Tabel 4F S'!I23*100,"-")) -> 1.172240803
A24: Læge | C24: =IF(OR('Tabel 4F S'!C24<5,'Tabel 4 S'!C24<0.5),"-",IFERROR('Tabel 4 S'!C24/'Tabel 4F S'!C24*100,"-")) -> 12.20731707 | D24: =IF(OR('Tabel 4F S'!D24<5,'Tabel 4 S'!D24<0.5),"-",IFERROR('Tabel 4 S'!D24/'Tabel 4F S'!D24*100,"-")) -> 3.169014085 | E24: =IF(OR('Tabel 4F S'!E24<5,'Tabel 4 S'!E24<0.5),"-",IFERROR('Tabel 4 S'!E24/'Tabel 4F S'!E24*100,"-")) -> 0.6211180124 | F24: =IF(OR('Tabel 4F S'!F24<5,'Tabel 4 S'!F24<0.5),"-",IFERROR('Tabel 4 S'!F24/'Tabel 4F S'!F24*100,"-")) -> 0.7692307692 | G24: =IF(OR('Tabel 4F S'!G24<5,'Tabel 4 S'!G24<0.5),"-",IFERROR('Tabel 4 S'!G24/'Tabel 4F S'!G24*100,"-")) -> - | I24: =IF(OR('Tabel 4F S'!I24<5,'Tabel 4 S'!I24<0.5),"-",IFERROR('Tabel 4 S'!I24/'Tabel 4F S'!I24*100,"-")) -> 2.870218579
A25: Tandlæge | C25: =IF(OR('Tabel 4F S'!C25<5,'Tabel 4 S'!C25<0.5),"-",IFERROR('Tabel 4 S'!C25/'Tabel 4F S'!C25*100,"-")) -> - | D25: =IF(OR('Tabel 4F S'!D25<5,'Tabel 4 S'!D25<0.5),"-",IFERROR('Tabel 4 S'!D25/'Tabel 4F S'!D25*100,"-")) -> 2.272727273 | E25: =IF(OR('Tabel 4F S'!E25<5,'Tabel 4 S'!E25<0.5),"-",IFERROR('Tabel 4 S'!E25/'Tabel 4F S'!E25*100,"-")) -> 1.724137931 | F25: =IF(OR('Tabel 4F S'!F25<5,'Tabel 4 S'!F25<0.5),"-",IFERROR('Tabel 4 S'!F25/'Tabel 4F S'!F25*100,"-")) -> - | G25: =IF(OR('Tabel 4F S'!G25<5,'Tabel 4 S'!G25<0.5),"-",IFERROR('Tabel 4 S'!G25/'Tabel 4F S'!G25*100,"-")) -> - | I25: =IF(OR('Tabel 4F S'!I25<5,'Tabel 4 S'!I25<0.5),"-",IFERROR('Tabel 4 S'!I25/'Tabel 4F S'!I25*100,"-")) -> 1.122905028
A26: Arkitekt | C26: =IF(OR('Tabel 4F S'!C26<5,'Tabel 4 S'!C26<0.5),"-",IFERROR('Tabel 4 S'!C26/'Tabel 4F S'!C26*100,"-")) -> - | D26: =IF(OR('Tabel 4F S'!D26<5,'Tabel 4 S'!D26<0.5),"-",IFERROR('Tabel 4 S'!D26/'Tabel 4F S'!D26*100,"-")) -> 4.47761194 | E26: =IF(OR('Tabel 4F S'!E26<5,'Tabel 4 S'!E26<0.5),"-",IFERROR('Tabel 4 S'!E26/'Tabel 4F S'!E26*100,"-")) -> 4.47761194 | F26: =IF(OR('Tabel 4F S'!F26<5,'Tabel 4 S'!F26<0.5),"-",IFERROR('Tabel 4 S'!F26/'Tabel 4F S'!F26*100,"-")) -> 7.692307692 | G26: =IF(OR('Tabel 4F S'!G26<5,'Tabel 4 S'!G26<0.5),"-",IFERROR('Tabel 4 S'!G26/'Tabel 4F S'!G26*100,"-")) -> 2.380952381 | I26: =IF(OR('Tabel 4F S'!I26<5,'Tabel 4 S'!I26<0.5),"-",IFERROR('Tabel 4 S'!I26/'Tabel 4F S'!I26*100,"-")) -> 4.804
A27: Landinspek. | C27: =IF(OR('Tabel 4F S'!C27<5,'Tabel 4 S'!C27<0.5),"-",IFERROR('Tabel 4 S'!C27/'Tabel 4F S'!C27*100,"-")) -> - | D27: =IF(OR('Tabel 4F S'!D27<5,'Tabel 4 S'!D27<0.5),"-",IFERROR('Tabel 4 S'!D27/'Tabel 4F S'!D27*100,"-")) -> - | E27: =IF(OR('Tabel 4F S'!E27<5,'Tabel 4 S'!E27<0.5),"-",IFERROR('Tabel 4 S'!E27/'Tabel 4F S'!E27*100,"-")) -> 7.142857143 | F27: =IF(OR('Tabel 4F S'!F27<5,'Tabel 4 S'!F27<0.5),"-",IFERROR('Tabel 4 S'!F27/'Tabel 4F S'!F27*100,"-")) -> - | G27: =IF(OR('Tabel 4F S'!G27<5,'Tabel 4 S'!G27<0.5),"-",IFERROR('Tabel 4 S'!G27/'Tabel 4F S'!G27*100,"-")) -> - | I27: =IF(OR('Tabel 4F S'!I27<5,'Tabel 4 S'!I27<0.5),"-",IFERROR('Tabel 4 S'!I27/'Tabel 4F S'!I27*100,"-")) -> 1.422535211
A28: Bibliotekar | C28: =IF(OR('Tabel 4F S'!C28<5,'Tabel 4 S'!C28<0.5),"-",IFERROR('Tabel 4 S'!C28/'Tabel 4F S'!C28*100,"-")) -> 45.54545455 | D28: =IF(OR('Tabel 4F S'!D28<5,'Tabel 4 S'!D28<0.5),"-",IFERROR('Tabel 4 S'!D28/'Tabel 4F S'!D28*100,"-")) -> 8.823529412 | E28: =IF(OR('Tabel 4F S'!E28<5,'Tabel 4 S'!E28<0.5),"-",IFERROR('Tabel 4 S'!E28/'Tabel 4F S'!E28*100,"-")) -> 5.263157895 | F28: =IF(OR('Tabel 4F S'!F28<5,'Tabel 4 S'!F28<0.5),"-",IFERROR('Tabel 4 S'!F28/'Tabel 4F S'!F28*100,"-")) -> 0.8196721311 | G28: =IF(OR('Tabel 4F S'!G28<5,'Tabel 4 S'!G28<0.5),"-",IFERROR('Tabel 4 S'!G28/'Tabel 4F S'!G28*100,"-")) -> 1.428571429 | I28: =IF(OR('Tabel 4F S'!I28<5,'Tabel 4 S'!I28<0.5),"-",IFERROR('Tabel 4 S'!I28/'Tabel 4F S'!I28*100,"-")) -> 4.937662338
A29: Musikudd. | C29: =IF(OR('Tabel 4F S'!C29<5,'Tabel 4 S'!C29<0.5),"-",IFERROR('Tabel 4 S'!C29/'Tabel 4F S'!C29*100,"-")) -> - | D29: =IF(OR('Tabel 4F S'!D29<5,'Tabel 4 S'!D29<0.5),"-",IFERROR('Tabel 4 S'!D29/'Tabel 4F S'!D29*100,"-")) -> 9.090909091 | E29: =IF(OR('Tabel 4F S'!E29<5,'Tabel 4 S'!E29<0.5),"-",IFERROR('Tabel 4 S'!E29/'Tabel 4F S'!E29*100,"-")) -> 4.166666667 | F29: =IF(OR('Tabel 4F S'!F29<5,'Tabel 4 S'!F29<0.5),"-",IFERROR('Tabel 4 S'!F29/'Tabel 4F S'!F29*100,"-")) -> - | G29: =IF(OR('Tabel 4F S'!G29<5,'Tabel 4 S'!G29<0.5),"-",IFERROR('Tabel 4 S'!G29/'Tabel 4F S'!G29*100,"-")) -> 2.941176471 | I29: =IF(OR('Tabel 4F S'!I29<5,'Tabel 4 S'!I29<0.5),"-",IFERROR('Tabel 4 S'!I29/'Tabel 4F S'!I29*100,"-")) -> 2.950980392
A30: Teolog | C30: =IF(OR('Tabel 4F S'!C30<5,'Tabel 4 S'!C30<0.5),"-",IFERROR('Tabel 4 S'!C30/'Tabel 4F S'!C30*100,"-")) -> - | D30: =IF(OR('Tabel 4F S'!D30<5,'Tabel 4 S'!D30<0.5),"-",IFERROR('Tabel 4 S'!D30/'Tabel 4F S'!D30*100,"-")) -> 3.125 | E30: =IF(OR('Tabel 4F S'!E30<5,'Tabel 4 S'!E30<0.5),"-",IFERROR('Tabel 4 S'!E30/'Tabel 4F S'!E30*100,"-")) -> 5.555555556 | F30: =IF(OR('Tabel 4F S'!F30<5,'Tabel 4 S'!F30<0.5),"-",IFERROR('Tabel 4 S'!F30/'Tabel 4F S'!F30*100,"-")) -> 2.247191011 | G30: =IF(OR('Tabel 4F S'!G30<5,'Tabel 4 S'!G30<0.5),"-",IFERROR('Tabel 4 S'!G30/'Tabel 4F S'!G30*100,"-")) -> - | I30: =IF(OR('Tabel 4F S'!I30<5,'Tabel 4 S'!I30<0.5),"-",IFERROR('Tabel 4 S'!I30/'Tabel 4F S'!I30*100,"-")) -> 2.707207207
A31: Psykolog | C31: =IF(OR('Tabel 4F S'!C31<5,'Tabel 4 S'!C31<0.5),"-",IFERROR('Tabel 4 S'!C31/'Tabel 4F S'!C31*100,"-")) -> 1.328947368 | D31: =IF(OR('Tabel 4F S'!D31<5,'Tabel 4 S'!D31<0.5),"-",IFERROR('Tabel 4 S'!D31/'Tabel 4F S'!D31*100,"-")) -> 4.716981132 | E31: =IF(OR('Tabel 4F S'!E31<5,'Tabel 4 S'!E31<0.5),"-",IFERROR('Tabel 4 S'!E31/'Tabel 4F S'!E31*100,"-")) -> 2.48447205 | F31: =IF(OR('Tabel 4F S'!F31<5,'Tabel 4 S'!F31<0.5),"-",IFERROR('Tabel 4 S'!F31/'Tabel 4F S'!F31*100,"-")) -> 0.8196721311 | G31: =IF(OR('Tabel 4F S'!G31<5,'Tabel 4 S'!G31<0.5),"-",IFERROR('Tabel 4 S'!G31/'Tabel 4F S'!G31*100,"-")) -> - | I31: =IF(OR('Tabel 4F S'!I31<5,'Tabel 4 S'!I31<0.5),"-",IFERROR('Tabel 4 S'!I31/'Tabel 4F S'!I31*100,"-")) -> 2.5616
A32: Jurist | C32: =IF(OR('Tabel 4F S'!C32<5,'Tabel 4 S'!C32<0.5),"-",IFERROR('Tabel 4 S'!C32/'Tabel 4F S'!C32*100,"-")) -> - | D32: =IF(OR('Tabel 4F S'!D32<5,'Tabel 4 S'!D32<0.5),"-",IFERROR('Tabel 4 S'!D32/'Tabel 4F S'!D32*100,"-")) -> 0.5464480874 | E32: =IF(OR('Tabel 4F S'!E32<5,'Tabel 4 S'!E32<0.5),"-",IFERROR('Tabel 4 S'!E32/'Tabel 4F S'!E32*100,"-")) -> 0.3003003003 | F32: =IF(OR('Tabel 4F S'!F32<5,'Tabel 4 S'!F32<0.5),"-",IFERROR('Tabel 4 S'!F32/'Tabel 4F S'!F32*100,"-")) -> 1.418439716 | G32: =IF(OR('Tabel 4F S'!G32<5,'Tabel 4 S'!G32<0.5),"-",IFERROR('Tabel 4 S'!G32/'Tabel 4F S'!G32*100,"-")) -> 4.854368932 | I32: =IF(OR('Tabel 4F S'!I32<5,'Tabel 4 S'!I32<0.5),"-",IFERROR('Tabel 4 S'!I32/'Tabel 4F S'!I32*100,"-")) -> 0.9983374896
A33: Økonom | C33: =IF(OR('Tabel 4F S'!C33<5,'Tabel 4 S'!C33<0.5),"-",IFERROR('Tabel 4 S'!C33/'Tabel 4F S'!C33*100,"-")) -> 8.135135135 | D33: =IF(OR('Tabel 4F S'!D33<5,'Tabel 4 S'!D33<0.5),"-",IFERROR('Tabel 4 S'!D33/'Tabel 4F S'!D33*100,"-")) -> 4.47761194 | E33: =IF(OR('Tabel 4F S'!E33<5,'Tabel 4 S'!E33<0.5),"-",IFERROR('Tabel 4 S'!E33/'Tabel 4F S'!E33*100,"-")) -> 1.851851852 | F33: =IF(OR('Tabel 4F S'!F33<5,'Tabel 4 S'!F33<0.5),"-",IFERROR('Tabel 4 S'!F33/'Tabel 4F S'!F33*100,"-")) -> 0.8849557522 | G33: =IF(OR('Tabel 4F S'!G33<5,'Tabel 4 S'!G33<0.5),"-",IFERROR('Tabel 4 S'!G33/'Tabel 4F S'!G33*100,"-")) -> 4.081632653 | I33: =IF(OR('Tabel 4F S'!I33<5,'Tabel 4 S'!I33<0.5),"-",IFERROR('Tabel 4 S'!I33/'Tabel 4F S'!I33*100,"-")) -> 2.633223684
A34: Samf. Adm. | C34: =IF(OR('Tabel 4F S'!C34<5,'Tabel 4 S'!C34<0.5),"-",IFERROR('Tabel 4 S'!C34/'Tabel 4F S'!C34*100,"-")) -> 15.82485876 | D34: =IF(OR('Tabel 4F S'!D34<5,'Tabel 4 S'!D34<0.5),"-",IFERROR('Tabel 4 S'!D34/'Tabel 4F S'!D34*100,"-")) -> 4.194857916 | E34: =IF(OR('Tabel 4F S'!E34<5,'Tabel 4 S'!E34<0.5),"-",IFERROR('Tabel 4 S'!E34/'Tabel 4F S'!E34*100,"-")) -> 2.201257862 | F34: =IF(OR('Tabel 4F S'!F34<5,'Tabel 4 S'!F34<0.5),"-",IFERROR('Tabel 4 S'!F34/'Tabel 4F S'!F34*100,"-")) -> 3.153153153 | G34: =IF(OR('Tabel 4F S'!G34<5,'Tabel 4 S'!G34<0.5),"-",IFERROR('Tabel 4 S'!G34/'Tabel 4F S'!G34*100,"-")) -> 5.185185185 | I34: =IF(OR('Tabel 4F S'!I34<5,'Tabel 4 S'!I34<0.5),"-",IFERROR('Tabel 4 S'!I34/'Tabel 4F S'!I34*100,"-")) -> 4.411543876
A35: Cand. Merc. | C35: =IF(OR('Tabel 4F S'!C35<5,'Tabel 4 S'!C35<0.5),"-",IFERROR('Tabel 4 S'!C35/'Tabel 4F S'!C35*100,"-")) -> 5.451361868 | D35: =IF(OR('Tabel 4F S'!D35<5,'Tabel 4 S'!D35<0.5),"-",IFERROR('Tabel 4 S'!D35/'Tabel 4F S'!D35*100,"-")) -> 2.564102564 | E35: =IF(OR('Tabel 4F S'!E35<5,'Tabel 4 S'!E35<0.5),"-",IFERROR('Tabel 4 S'!E35/'Tabel 4F S'!E35*100,"-")) -> 1.263823065 | F35: =IF(OR('Tabel 4F S'!F35<5,'Tabel 4 S'!F35<0.5),"-",IFERROR('Tabel 4 S'!F35/'Tabel 4F S'!F35*100,"-")) -> 2.448210923 | G35: =IF(OR('Tabel 4F S'!G35<5,'Tabel 4 S'!G35<0.5),"-",IFERROR('Tabel 4 S'!G35/'Tabel 4F S'!G35*100,"-")) -> 6.12244898 | I35: =IF(OR('Tabel 4F S'!I35<5,'Tabel 4 S'!I35<0.5),"-",IFERROR('Tabel 4 S'!I35/'Tabel 4F S'!I35*100,"-")) -> 2.650820362
A36: HA | C36: =IF(OR('Tabel 4F S'!C36<5,'Tabel 4 S'!C36<0.5),"-",IFERROR('Tabel 4 S'!C36/'Tabel 4F S'!C36*100,"-")) -> 10.18644068 | D36: =IF(OR('Tabel 4F S'!D36<5,'Tabel 4 S'!D36<0.5),"-",IFERROR('Tabel 4 S'!D36/'Tabel 4F S'!D36*100,"-")) -> 4.109589041 | E36: =IF(OR('Tabel 4F S'!E36<5,'Tabel 4 S'!E36<0.5),"-",IFERROR('Tabel 4 S'!E36/'Tabel 4F S'!E36*100,"-")) -> 3.787878788 | F36: =IF(OR('Tabel 4F S'!F36<5,'Tabel 4 S'!F36<0.5),"-",IFERROR('Tabel 4 S'!F36/'Tabel 4F S'!F36*100,"-")) -> 3.921568627 | G36: =IF(OR('Tabel 4F S'!G36<5,'Tabel 4 S'!G36<0.5),"-",IFERROR('Tabel 4 S'!G36/'Tabel 4F S'!G36*100,"-")) -> 7.8125 | I36: =IF(OR('Tabel 4F S'!I36<5,'Tabel 4 S'!I36<0.5),"-",IFERROR('Tabel 4 S'!I36/'Tabel 4F S'!I36*100,"-")) -> 4.975986278
A37: HD | C37: =IF(OR('Tabel 4F S'!C37<5,'Tabel 4 S'!C37<0.5),"-",IFERROR('Tabel 4 S'!C37/'Tabel 4F S'!C37*100,"-")) -> 10.03333333 | D37: =IF(OR('Tabel 4F S'!D37<5,'Tabel 4 S'!D37<0.5),"-",IFERROR('Tabel 4 S'!D37/'Tabel 4F S'!D37*100,"-")) -> 1.449275362 | E37: =IF(OR('Tabel 4F S'!E37<5,'Tabel 4 S'!E37<0.5),"-",IFERROR('Tabel 4 S'!E37/'Tabel 4F S'!E37*100,"-")) -> 2.298850575 | F37: =IF(OR('Tabel 4F S'!F37<5,'Tabel 4 S'!F37<0.5),"-",IFERROR('Tabel 4 S'!F37/'Tabel 4F S'!F37*100,"-")) -> 1.612903226 | G37: =IF(OR('Tabel 4F S'!G37<5,'Tabel 4 S'!G37<0.5),"-",IFERROR('Tabel 4 S'!G37/'Tabel 4F S'!G37*100,"-")) -> 5.494505495 | I37: =IF(OR('Tabel 4F S'!I37<5,'Tabel 4 S'!I37<0.5),"-",IFERROR('Tabel 4 S'!I37/'Tabel 4F S'!I37*100,"-")) -> 2.859047619
A38: Komm. og Sprog | C38: =IF(OR('Tabel 4F S'!C38<5,'Tabel 4 S'!C38<0.5),"-",IFERROR('Tabel 4 S'!C38/'Tabel 4F S'!C38*100,"-")) -> 18.765625 | D38: =IF(OR('Tabel 4F S'!D38<5,'Tabel 4 S'!D38<0.5),"-",IFERROR('Tabel 4 S'!D38/'Tabel 4F S'!D38*100,"-")) -> 5.925925926 | E38: =IF(OR('Tabel 4F S'!E38<5,'Tabel 4 S'!E38<0.5),"-",IFERROR('Tabel 4 S'!E38/'Tabel 4F S'!E38*100,"-")) -> 2.857142857 | F38: =IF(OR('Tabel 4F S'!F38<5,'Tabel 4 S'!F38<0.5),"-",IFERROR('Tabel 4 S'!F38/'Tabel 4F S'!F38*100,"-")) -> 4.320987654 | G38: =IF(OR('Tabel 4F S'!G38<5,'Tabel 4 S'!G38<0.5),"-",IFERROR('Tabel 4 S'!G38/'Tabel 4F S'!G38*100,"-")) -> 4.705882353 | I38: =IF(OR('Tabel 4F S'!I38<5,'Tabel 4 S'!I38<0.5),"-",IFERROR('Tabel 4 S'!I38/'Tabel 4F S'!I38*100,"-")) -> 5.798711755
A39: Bygningskonst. | C39: =IF(OR('Tabel 4F S'!C39<5,'Tabel 4 S'!C39<0.5),"-",IFERROR('Tabel 4 S'!C39/'Tabel 4F S'!C39*100,"-")) -> 7.064705882 | D39: =IF(OR('Tabel 4F S'!D39<5,'Tabel 4 S'!D39<0.5),"-",IFERROR('Tabel 4 S'!D39/'Tabel 4F S'!D39*100,"-")) -> 1.6563147 | E39: =IF(OR('Tabel 4F S'!E39<5,'Tabel 4 S'!E39<0.5),"-",IFERROR('Tabel 4 S'!E39/'Tabel 4F S'!E39*100,"-")) -> 1.123595506 | F39: =IF(OR('Tabel 4F S'!F39<5,'Tabel 4 S'!F39<0.5),"-",IFERROR('Tabel 4 S'!F39/'Tabel 4F S'!F39*100,"-")) -> 1.515151515 | G39: =IF(OR('Tabel 4F S'!G39<5,'Tabel 4 S'!G39<0.5),"-",IFERROR('Tabel 4 S'!G39/'Tabel 4F S'!G39*100,"-")) -> 1.754385965 | I39: =IF(OR('Tabel 4F S'!I39<5,'Tabel 4 S'!I39<0.5),"-",IFERROR('Tabel 4 S'!I39/'Tabel 4F S'!I39*100,"-")) -> 2.215981013
A40: Cand. IT. | C40: =IF(OR('Tabel 4F S'!C40<5,'Tabel 4 S'!C40<0.5),"-",IFERROR('Tabel 4 S'!C40/'Tabel 4F S'!C40*100,"-")) -> 8.739130435 | D40: =IF(OR('Tabel 4F S'!D40<5,'Tabel 4 S'!D40<0.5),"-",IFERROR('Tabel 4 S'!D40/'Tabel 4F S'!D40*100,"-")) -> 5.128205128 | E40: =IF(OR('Tabel 4F S'!E40<5,'Tabel 4 S'!E40<0.5),"-",IFERROR('Tabel 4 S'!E40/'Tabel 4F S'!E40*100,"-")) -> 1.219512195 | F40: =IF(OR('Tabel 4F S'!F40<5,'Tabel 4 S'!F40<0.5),"-",IFERROR('Tabel 4 S'!F40/'Tabel 4F S'!F40*100,"-")) -> - | G40: =IF(OR('Tabel 4F S'!G40<5,'Tabel 4 S'!G40<0.5),"-",IFERROR('Tabel 4 S'!G40/'Tabel 4F S'!G40*100,"-")) -> - | I40: =IF(OR('Tabel 4F S'!I40<5,'Tabel 4 S'!I40<0.5),"-",IFERROR('Tabel 4 S'!I40/'Tabel 4F S'!I40*100,"-")) -> 3.785714286
A41: Bac. Samf. | C41: =IF(OR('Tabel 4F S'!C41<5,'Tabel 4 S'!C41<0.5),"-",IFERROR('Tabel 4 S'!C41/'Tabel 4F S'!C41*100,"-")) -> 16.75 | D41: =IF(OR('Tabel 4F S'!D41<5,'Tabel 4 S'!D41<0.5),"-",IFERROR('Tabel 4 S'!D41/'Tabel 4F S'!D41*100,"-")) -> - | E41: =IF(OR('Tabel 4F S'!E41<5,'Tabel 4 S'!E41<0.5),"-",IFERROR('Tabel 4 S'!E41/'Tabel 4F S'!E41*100,"-")) -> 6.666666667 | F41: =IF(OR('Tabel 4F S'!F41<5,'Tabel 4 S'!F41<0.5),"-",IFERROR('Tabel 4 S'!F41/'Tabel 4F S'!F41*100,"-")) -> 3.333333333 | G41: =IF(OR('Tabel 4F S'!G41<5,'Tabel 4 S'!G41<0.5),"-",IFERROR('Tabel 4 S'!G41/'Tabel 4F S'!G41*100,"-")) -> - | I41: =IF(OR('Tabel 4F S'!I41<5,'Tabel 4 S'!I41<0.5),"-",IFERROR('Tabel 4 S'!I41/'Tabel 4F S'!I41*100,"-")) -> 4.911764706
A42: Bac. Hum. | C42: =IF(OR('Tabel 4F S'!C42<5,'Tabel 4 S'!C42<0.5),"-",IFERROR('Tabel 4 S'!C42/'Tabel 4F S'!C42*100,"-")) -> 26.24590164 | D42: =IF(OR('Tabel 4F S'!D42<5,'Tabel 4 S'!D42<0.5),"-",IFERROR('Tabel 4 S'!D42/'Tabel 4F S'!D42*100,"-")) -> 9.459459459 | E42: =IF(OR('Tabel 4F S'!E42<5,'Tabel 4 S'!E42<0.5),"-",IFERROR('Tabel 4 S'!E42/'Tabel 4F S'!E42*100,"-")) -> 7.142857143 | F42: =IF(OR('Tabel 4F S'!F42<5,'Tabel 4 S'!F42<0.5),"-",IFERROR('Tabel 4 S'!F42/'Tabel 4F S'!F42*100,"-")) -> 7.692307692 | G42: =IF(OR('Tabel 4F S'!G42<5,'Tabel 4 S'!G42<0.5),"-",IFERROR('Tabel 4 S'!G42/'Tabel 4F S'!G42*100,"-")) -> 15.38461538 | I42: =IF(OR('Tabel 4F S'!I42<5,'Tabel 4 S'!I42<0.5),"-",IFERROR('Tabel 4 S'!I42/'Tabel 4F S'!I42*100,"-")) -> 12.54576271
A43: Bac. Nat. | C43: =IF(OR('Tabel 4F S'!C43<5,'Tabel 4 S'!C43<0.5),"-",IFERROR('Tabel 4 S'!C43/'Tabel 4F S'!C43*100,"-")) -> 9.793478261 | D43: =IF(OR('Tabel 4F S'!D43<5,'Tabel 4 S'!D43<0.5),"-",IFERROR('Tabel 4 S'!D43/'Tabel 4F S'!D43*100,"-")) -> 4.819277108 | E43: =IF(OR('Tabel 4F S'!E43<5,'Tabel 4 S'!E43<0.5),"-",IFERROR('Tabel 4 S'!E43/'Tabel 4F S'!E43*100,"-")) -> - | F43: =IF(OR('Tabel 4F S'!F43<5,'Tabel 4 S'!F43<0.5),"-",IFERROR('Tabel 4 S'!F43/'Tabel 4F S'!F43*100,"-")) -> 5.882352941 | G43: =IF(OR('Tabel 4F S'!G43<5,'Tabel 4 S'!G43<0.5),"-",IFERROR('Tabel 4 S'!G43/'Tabel 4F S'!G43*100,"-")) -> - | I43: =IF(OR('Tabel 4F S'!I43<5,'Tabel 4 S'!I43<0.5),"-",IFERROR('Tabel 4 S'!I43/'Tabel 4F S'!I43*100,"-")) -> 5.621722846
A44: Andre | C44: =IF(OR('Tabel 4F S'!C44<5,'Tabel 4 S'!C44<0.5),"-",IFERROR('Tabel 4 S'!C44/'Tabel 4F S'!C44*100,"-")) -> 13.18604651 | D44: =IF(OR('Tabel 4F S'!D44<5,'Tabel 4 S'!D44<0.5),"-",IFERROR('Tabel 4 S'!D44/'Tabel 4F S'!D44*100,"-")) -> 5.526770294 | E44: =IF(OR('Tabel 4F S'!E44<5,'Tabel 4 S'!E44<0.5),"-",IFERROR('Tabel 4 S'!E44/'Tabel 4F S'!E44*100,"-")) -> 3.20754717 | F44: =IF(OR('Tabel 4F S'!F44<5,'Tabel 4 S'!F44<0.5),"-",IFERROR('Tabel 4 S'!F44/'Tabel 4F S'!F44*100,"-")) -> 4.966139955 | G44: =IF(OR('Tabel 4F S'!G44<5,'Tabel 4 S'!G44<0.5),"-",IFERROR('Tabel 4 S'!G44/'Tabel 4F S'!G44*100,"-")) -> 4.109589041 | I44: =IF(OR('Tabel 4F S'!I44<5,'Tabel 4 S'!I44<0.5),"-",IFERROR('Tabel 4 S'!I44/'Tabel 4F S'!I44*100,"-")) -> 5.105789474
A46: Total | C46: =IF(OR('Tabel 4F S'!C46<5,'Tabel 4 S'!C46<0.5),"-",IFERROR('Tabel 4 S'!C46/'Tabel 4F S'!C46*100,"-")) -> 10.31381993 | D46: =IF(OR('Tabel 4F S'!D46<5,'Tabel 4 S'!D46<0.5),"-",IFERROR('Tabel 4 S'!D46/'Tabel 4F S'!D46*100,"-")) -> 3.947523933 | E46: =IF(OR('Tabel 4F S'!E46<5,'Tabel 4 S'!E46<0.5),"-",IFERROR('Tabel 4 S'!E46/'Tabel 4F S'!E46*100,"-")) -> 2.216992816 | F46: =IF(OR('Tabel 4F S'!F46<5,'Tabel 4 S'!F46<0.5),"-",IFERROR('Tabel 4 S'!F46/'Tabel 4F S'!F46*100,"-")) -> 2.118315681 | G46: =IF(OR('Tabel 4F S'!G46<5,'Tabel 4 S'!G46<0.5),"-",IFERROR('Tabel 4 S'!G46/'Tabel 4F S'!G46*100,"-")) -> 3.837953092 | I46: =IF(OR('Tabel 4F S'!I46<5,'Tabel 4 S'!I46<0.5),"-",IFERROR('Tabel 4 S'!I46/'Tabel 4F S'!I46*100,"-")) -> 3.569553541
A48: Ingeniører i alt | C48: =IF(OR('Tabel 4F S'!C48<5,'Tabel 4 S'!C48<0.5),"-",IFERROR('Tabel 4 S'!C48/'Tabel 4F S'!C48*100,"-")) -> 7.816964286 | D48: =IF(OR('Tabel 4F S'!D48<5,'Tabel 4 S'!D48<0.5),"-",IFERROR('Tabel 4 S'!D48/'Tabel 4F S'!D48*100,"-")) -> 1.813685078 | E48: =IF(OR('Tabel 4F S'!E48<5,'Tabel 4 S'!E48<0.5),"-",IFERROR('Tabel 4 S'!E48/'Tabel 4F S'!E48*100,"-")) -> 1.165048544 | F48: =IF(OR('Tabel 4F S'!F48<5,'Tabel 4 S'!F48<0.5),"-",IFERROR('Tabel 4 S'!F48/'Tabel 4F S'!F48*100,"-")) -> 1.14261532 | G48: =IF(OR('Tabel 4F S'!G48<5,'Tabel 4 S'!G48<0.5),"-",IFERROR('Tabel 4 S'!G48/'Tabel 4F S'!G48*100,"-")) -> 3.276539974 | I48: =IF(OR('Tabel 4F S'!I48<5,'Tabel 4 S'!I48<0.5),"-",IFERROR('Tabel 4 S'!I48/'Tabel 4F S'!I48*100,"-")) -> 2.006001263
A49: Magistre i alt | C49: =IF(OR('Tabel 4F S'!C49<5,'Tabel 4 S'!C49<0.5),"-",IFERROR('Tabel 4 S'!C49/'Tabel 4F S'!C49*100,"-")) -> 17.04379562 | D49: =IF(OR('Tabel 4F S'!D49<5,'Tabel 4 S'!D49<0.5),"-",IFERROR('Tabel 4 S'!D49/'Tabel 4F S'!D49*100,"-")) -> 7.12545676 | E49: =IF(OR('Tabel 4F S'!E49<5,'Tabel 4 S'!E49<0.5),"-",IFERROR('Tabel 4 S'!E49/'Tabel 4F S'!E49*100,"-")) -> 3.461330449 | F49: =IF(OR('Tabel 4F S'!F49<5,'Tabel 4 S'!F49<0.5),"-",IFERROR('Tabel 4 S'!F49/'Tabel 4F S'!F49*100,"-")) -> 2.763819095 | G49: =IF(OR('Tabel 4F S'!G49<5,'Tabel 4 S'!G49<0.5),"-",IFERROR('Tabel 4 S'!G49/'Tabel 4F S'!G49*100,"-")) -> 4.296875 | I49: =IF(OR('Tabel 4F S'!I49<5,'Tabel 4 S'!I49<0.5),"-",IFERROR('Tabel 4 S'!I49/'Tabel 4F S'!I49*100,"-")) -> 5.457382311
A50: DJØF'ere i alt | C50: =IF(OR('Tabel 4F S'!C50<5,'Tabel 4 S'!C50<0.5),"-",IFERROR('Tabel 4 S'!C50/'Tabel 4F S'!C50*100,"-")) -> 7.865947612 | D50: =IF(OR('Tabel 4F S'!D50<5,'Tabel 4 S'!D50<0.5),"-",IFERROR('Tabel 4 S'!D50/'Tabel 4F S'!D50*100,"-")) -> 2.949308756 | E50: =IF(OR('Tabel 4F S'!E50<5,'Tabel 4 S'!E50<0.5),"-",IFERROR('Tabel 4 S'!E50/'Tabel 4F S'!E50*100,"-")) -> 1.635021097 | F50: =IF(OR('Tabel 4F S'!F50<5,'Tabel 4 S'!F50<0.5),"-",IFERROR('Tabel 4 S'!F50/'Tabel 4F S'!F50*100,"-")) -> 2.47410817 | G50: =IF(OR('Tabel 4F S'!G50<5,'Tabel 4 S'!G50<0.5),"-",IFERROR('Tabel 4 S'!G50/'Tabel 4F S'!G50*100,"-")) -> 5.567928731 | I50: =IF(OR('Tabel 4F S'!I50<5,'Tabel 4 S'!I50<0.5),"-",IFERROR('Tabel 4 S'!I50/'Tabel 4F S'!I50*100,"-")) -> 3.101274993
A57: Greve
C59: Under 30 år | D59: 30 - 39 år | E59: 40 - 49 år | F59: 50 - 59 år | G59: Over 60 år | I59: I alt
A61: Civ. ing. | C61: =IF(OR('Tabel 4F S'!C61<5,'Tabel 4 S'!C61<0.5),"-",IFERROR('Tabel 4 S'!C61/'Tabel 4F S'!C61*100,"-")) -> 9.090909091 | D61: =IF(OR('Tabel 4F S'!D61<5,'Tabel 4 S'!D61<0.5),"-",IFERROR('Tabel 4 S'!D61/'Tabel 4F S'!D61*100,"-")) -> - | E61: =IF(OR('Tabel 4F S'!E61<5,'Tabel 4 S'!E61<0.5),"-",IFERROR('Tabel 4 S'!E61/'Tabel 4F S'!E61*100,"-")) -> - | F61: =IF(OR('Tabel 4F S'!F61<5,'Tabel 4 S'!F61<0.5),"-",IFERROR('Tabel 4 S'!F61/'Tabel 4F S'!F61*100,"-")) -> - | G61: =IF(OR('Tabel 4F S'!G61<5,'Tabel 4 S'!G61<0.5),"-",IFERROR('Tabel 4 S'!G61/'Tabel 4F S'!G61*100,"-")) -> 5 | I61: =IF(OR('Tabel 4F S'!I61<5,'Tabel 4 S'!I61<0.5),"-",IFERROR('Tabel 4 S'!I61/'Tabel 4F S'!I61*100,"-")) -> 1.020408163
A62: Diplom ing. | C62: =IF(OR('Tabel 4F S'!C62<5,'Tabel 4 S'!C62<0.5),"-",IFERROR('Tabel 4 S'!C62/'Tabel 4F S'!C62*100,"-")) -> 3.703703704 | D62: =IF(OR('Tabel 4F S'!D62<5,'Tabel 4 S'!D62<0.5),"-",IFERROR('Tabel 4 S'!D62/'Tabel 4F S'!D62*100,"-")) -> 1.639344262 | E62: =IF(OR('Tabel 4F S'!E62<5,'Tabel 4 S'!E62<0.5),"-",IFERROR('Tabel 4 S'!E62/'Tabel 4F S'!E62*100,"-")) -> - | F62: =IF(OR('Tabel 4F S'!F62<5,'Tabel 4 S'!F62<0.5),"-",IFERROR('Tabel 4 S'!F62/'Tabel 4F S'!F62*100,"-")) -> 1.973684211 | G62: =IF(OR('Tabel 4F S'!G62<5,'Tabel 4 S'!G62<0.5),"-",IFERROR('Tabel 4 S'!G62/'Tabel 4F S'!G62*100,"-")) -> 2.5 | I62: =IF(OR('Tabel 4F S'!I62<5,'Tabel 4 S'!I62<0.5),"-",IFERROR('Tabel 4 S'!I62/'Tabel 4F S'!I62*100,"-")) -> 1.643835616
A63: Cand. Scient. Tek | C63: =IF(OR('Tabel 4F S'!C63<5,'Tabel 4 S'!C63<0.5),"-",IFERROR('Tabel 4 S'!C63/'Tabel 4F S'!C63*100,"-")) -> - | D63: =IF(OR('Tabel 4F S'!D63<5,'Tabel 4 S'!D63<0.5),"-",IFERROR('Tabel 4 S'!D63/'Tabel 4F S'!D63*100,"-")) -> 2.777777778 | E63: =IF(OR('Tabel 4F S'!E63<5,'Tabel 4 S'!E63<0.5),"-",IFERROR('Tabel 4 S'!E63/'Tabel 4F S'!E63*100,"-")) -> - | F63: =IF(OR('Tabel 4F S'!F63<5,'Tabel 4 S'!F63<0.5),"-",IFERROR('Tabel 4 S'!F63/'Tabel 4F S'!F63*100,"-")) -> 10 | G63: =IF(OR('Tabel 4F S'!G63<5,'Tabel 4 S'!G63<0.5),"-",IFERROR('Tabel 4 S'!G63/'Tabel 4F S'!G63*100,"-")) -> - | I63: =IF(OR('Tabel 4F S'!I63<5,'Tabel 4 S'!I63<0.5),"-",IFERROR('Tabel 4 S'!I63/'Tabel 4F S'!I63*100,"-")) -> 2.173913043
A64: MA. Hum. | C64: =IF(OR('Tabel 4F S'!C64<5,'Tabel 4 S'!C64<0.5),"-",IFERROR('Tabel 4 S'!C64/'Tabel 4F S'!C64*100,"-")) -> 28.57142857 | D64: =IF(OR('Tabel 4F S'!D64<5,'Tabel 4 S'!D64<0.5),"-",IFERROR('Tabel 4 S'!D64/'Tabel 4F S'!D64*100,"-")) -> 2.272727273 | E64: =IF(OR('Tabel 4F S'!E64<5,'Tabel 4 S'!E64<0.5),"-",IFERROR('Tabel 4 S'!E64/'Tabel 4F S'!E64*100,"-")) -> 3.448275862 | F64: =IF(OR('Tabel 4F S'!F64<5,'Tabel 4 S'!F64<0.5),"-",IFERROR('Tabel 4 S'!F64/'Tabel 4F S'!F64*100,"-")) -> 4.545454545 | G64: =IF(OR('Tabel 4F S'!G64<5,'Tabel 4 S'!G64<0.5),"-",IFERROR('Tabel 4 S'!G64/'Tabel 4F S'!G64*100,"-")) -> - | I64: =IF(OR('Tabel 4F S'!I64<5,'Tabel 4 S'!I64<0.5),"-",IFERROR('Tabel 4 S'!I64/'Tabel 4F S'!I64*100,"-")) -> 5.594405594
A65: MA. Nat. | C65: =IF(OR('Tabel 4F S'!C65<5,'Tabel 4 S'!C65<0.5),"-",IFERROR('Tabel 4 S'!C65/'Tabel 4F S'!C65*100,"-")) -> - | D65: =IF(OR('Tabel 4F S'!D65<5,'Tabel 4 S'!D65<0.5),"-",IFERROR('Tabel 4 S'!D65/'Tabel 4F S'!D65*100,"-")) -> - | E65: =IF(OR('Tabel 4F S'!E65<5,'Tabel 4 S'!E65<0.5),"-",IFERROR('Tabel 4 S'!E65/'Tabel 4F S'!E65*100,"-")) -> - | F65: =IF(OR('Tabel 4F S'!F65<5,'Tabel 4 S'!F65<0.5),"-",IFERROR('Tabel 4 S'!F65/'Tabel 4F S'!F65*100,"-")) -> - | G65: =IF(OR('Tabel 4F S'!G65<5,'Tabel 4 S'!G65<0.5),"-",IFERROR('Tabel 4 S'!G65/'Tabel 4F S'!G65*100,"-")) -> - | I65: =IF(OR('Tabel 4F S'!I65<5,'Tabel 4 S'!I65<0.5),"-",IFERROR('Tabel 4 S'!I65/'Tabel 4F S'!I65*100,"-")) -> -
A66: MA. Ph.d. | C66: =IF(OR('Tabel 4F S'!C66<5,'Tabel 4 S'!C66<0.5),"-",IFERROR('Tabel 4 S'!C66/'Tabel 4F S'!C66*100,"-")) -> - | D66: =IF(OR('Tabel 4F S'!D66<5,'Tabel 4 S'!D66<0.5),"-",IFERROR('Tabel 4 S'!D66/'Tabel 4F S'!D66*100,"-")) -> - | E66: =IF(OR('Tabel 4F S'!E66<5,'Tabel 4 S'!E66<0.5),"-",IFERROR('Tabel 4 S'!E66/'Tabel 4F S'!E66*100,"-")) -> - | F66: =IF(OR('Tabel 4F S'!F66<5,'Tabel 4 S'!F66<0.5),"-",IFERROR('Tabel 4 S'!F66/'Tabel 4F S'!F66*100,"-")) -> - | G66: =IF(OR('Tabel 4F S'!G66<5,'Tabel 4 S'!G66<0.5),"-",IFERROR('Tabel 4 S'!G66/'Tabel 4F S'!G66*100,"-")) -> - | I66: =IF(OR('Tabel 4F S'!I66<5,'Tabel 4 S'!I66<0.5),"-",IFERROR('Tabel 4 S'!I66/'Tabel 4F S'!I66*100,"-")) -> -
A67: MA. Samf. | C67: =IF(OR('Tabel 4F S'!C67<5,'Tabel 4 S'!C67<0.5),"-",IFERROR('Tabel 4 S'!C67/'Tabel 4F S'!C67*100,"-")) -> - | D67: =IF(OR('Tabel 4F S'!D67<5,'Tabel 4 S'!D67<0.5),"-",IFERROR('Tabel 4 S'!D67/'Tabel 4F S'!D67*100,"-")) -> 10 | E67: =IF(OR('Tabel 4F S'!E67<5,'Tabel 4 S'!E67<0.5),"-",IFERROR('Tabel 4 S'!E67/'Tabel 4F S'!E67*100,"-")) -> - | F67: =IF(OR('Tabel 4F S'!F67<5,'Tabel 4 S'!F67<0.5),"-",IFERROR('Tabel 4 S'!F67/'Tabel 4F S'!F67*100,"-")) -> - | G67: =IF(OR('Tabel 4F S'!G67<5,'Tabel 4 S'!G67<0.5),"-",IFERROR('Tabel 4 S'!G67/'Tabel 4F S'!G67*100,"-")) -> - | I67: =IF(OR('Tabel 4F S'!I67<5,'Tabel 4 S'!I67<0.5),"-",IFERROR('Tabel 4 S'!I67/'Tabel 4F S'!I67*100,"-")) -> 12.5
A68: Øvrige Mag. | C68: =IF(OR('Tabel 4F S'!C68<5,'Tabel 4 S'!C68<0.5),"-",IFERROR('Tabel 4 S'!C68/'Tabel 4F S'!C68*100,"-")) -> - | D68: =IF(OR('Tabel 4F S'!D68<5,'Tabel 4 S'!D68<0.5),"-",IFERROR('Tabel 4 S'!D68/'Tabel 4F S'!D68*100,"-")) -> - | E68: =IF(OR('Tabel 4F S'!E68<5,'Tabel 4 S'!E68<0.5),"-",IFERROR('Tabel 4 S'!E68/'Tabel 4F S'!E68*100,"-")) -> - | F68: =IF(OR('Tabel 4F S'!F68<5,'Tabel 4 S'!F68<0.5),"-",IFERROR('Tabel 4 S'!F68/'Tabel 4F S'!F68*100,"-")) -> - | G68: =IF(OR('Tabel 4F S'!G68<5,'Tabel 4 S'!G68<0.5),"-",IFERROR('Tabel 4 S'!G68/'Tabel 4F S'!G68*100,"-")) -> - | I68: =IF(OR('Tabel 4F S'!I68<5,'Tabel 4 S'!I68<0.5),"-",IFERROR('Tabel 4 S'!I68/'Tabel 4F S'!I68*100,"-")) -> -
A69: Agronom | C69: =IF(OR('Tabel 4F S'!C69<5,'Tabel 4 S'!C69<0.5),"-",IFERROR('Tabel 4 S'!C69/'Tabel 4F S'!C69*100,"-")) -> - | D69: =IF(OR('Tabel 4F S'!D69<5,'Tabel 4 S'!D69<0.5),"-",IFERROR('Tabel 4 S'!D69/'Tabel 4F S'!D69*100,"-")) -> - | E69: =IF(OR('Tabel 4F S'!E69<5,'Tabel 4 S'!E69<0.5),"-",IFERROR('Tabel 4 S'!E69/'Tabel 4F S'!E69*100,"-")) -> - | F69: =IF(OR('Tabel 4F S'!F69<5,'Tabel 4 S'!F69<0.5),"-",IFERROR('Tabel 4 S'!F69/'Tabel 4F S'!F69*100,"-")) -> - | G69: =IF(OR('Tabel 4F S'!G69<5,'Tabel 4 S'!G69<0.5),"-",IFERROR('Tabel 4 S'!G69/'Tabel 4F S'!G69*100,"-")) -> - | I69: =IF(OR('Tabel 4F S'!I69<5,'Tabel 4 S'!I69<0.5),"-",IFERROR('Tabel 4 S'!I69/'Tabel 4F S'!I69*100,"-")) -> 6.25
A70: Landsk. Arkt. | C70: =IF(OR('Tabel 4F S'!C70<5,'Tabel 4 S'!C70<0.5),"-",IFERROR('Tabel 4 S'!C70/'Tabel 4F S'!C70*100,"-")) -> - | D70: =IF(OR('Tabel 4F S'!D70<5,'Tabel 4 S'!D70<0.5),"-",IFERROR('Tabel 4 S'!D70/'Tabel 4F S'!D70*100,"-")) -> - | E70: =IF(OR('Tabel 4F S'!E70<5,'Tabel 4 S'!E70<0.5),"-",IFERROR('Tabel 4 S'!E70/'Tabel 4F S'!E70*100,"-")) -> - | F70: =IF(OR('Tabel 4F S'!F70<5,'Tabel 4 S'!F70<0.5),"-",IFERROR('Tabel 4 S'!F70/'Tabel 4F S'!F70*100,"-")) -> - | G70: =IF(OR('Tabel 4F S'!G70<5,'Tabel 4 S'!G70<0.5),"-",IFERROR('Tabel 4 S'!G70/'Tabel 4F S'!G70*100,"-")) -> - | I70: =IF(OR('Tabel 4F S'!I70<5,'Tabel 4 S'!I70<0.5),"-",IFERROR('Tabel 4 S'!I70/'Tabel 4F S'!I70*100,"-")) -> -
A71: Hortonom | C71: =IF(OR('Tabel 4F S'!C71<5,'Tabel 4 S'!C71<0.5),"-",IFERROR('Tabel 4 S'!C71/'Tabel 4F S'!C71*100,"-")) -> - | D71: =IF(OR('Tabel 4F S'!D71<5,'Tabel 4 S'!D71<0.5),"-",IFERROR('Tabel 4 S'!D71/'Tabel 4F S'!D71*100,"-")) -> - | E71: =IF(OR('Tabel 4F S'!E71<5,'Tabel 4 S'!E71<0.5),"-",IFERROR('Tabel 4 S'!E71/'Tabel 4F S'!E71*100,"-")) -> - | F71: =IF(OR('Tabel 4F S'!F71<5,'Tabel 4 S'!F71<0.5),"-",IFERROR('Tabel 4 S'!F71/'Tabel 4F S'!F71*100,"-")) -> - | G71: =IF(OR('Tabel 4F S'!G71<5,'Tabel 4 S'!G71<0.5),"-",IFERROR('Tabel 4 S'!G71/'Tabel 4F S'!G71*100,"-")) -> - | I71: =IF(OR('Tabel 4F S'!I71<5,'Tabel 4 S'!I71<0.5),"-",IFERROR('Tabel 4 S'!I71/'Tabel 4F S'!I71*100,"-")) -> -
A72: Forstkand. | C72: =IF(OR('Tabel 4F S'!C72<5,'Tabel 4 S'!C72<0.5),"-",IFERROR('Tabel 4 S'!C72/'Tabel 4F S'!C72*100,"-")) -> - | D72: =IF(OR('Tabel 4F S'!D72<5,'Tabel 4 S'!D72<0.5),"-",IFERROR('Tabel 4 S'!D72/'Tabel 4F S'!D72*100,"-")) -> - | E72: =IF(OR('Tabel 4F S'!E72<5,'Tabel 4 S'!E72<0.5),"-",IFERROR('Tabel 4 S'!E72/'Tabel 4F S'!E72*100,"-")) -> - | F72: =IF(OR('Tabel 4F S'!F72<5,'Tabel 4 S'!F72<0.5),"-",IFERROR('Tabel 4 S'!F72/'Tabel 4F S'!F72*100,"-")) -> - | G72: =IF(OR('Tabel 4F S'!G72<5,'Tabel 4 S'!G72<0.5),"-",IFERROR('Tabel 4 S'!G72/'Tabel 4F S'!G72*100,"-")) -> - | I72: =IF(OR('Tabel 4F S'!I72<5,'Tabel 4 S'!I72<0.5),"-",IFERROR('Tabel 4 S'!I72/'Tabel 4F S'!I72*100,"-")) -> -
A73: Jordbrugsakad. | C73: =IF(OR('Tabel 4F S'!C73<5,'Tabel 4 S'!C73<0.5),"-",IFERROR('Tabel 4 S'!C73/'Tabel 4F S'!C73*100,"-")) -> - | D73: =IF(OR('Tabel 4F S'!D73<5,'Tabel 4 S'!D73<0.5),"-",IFERROR('Tabel 4 S'!D73/'Tabel 4F S'!D73*100,"-")) -> - | E73: =IF(OR('Tabel 4F S'!E73<5,'Tabel 4 S'!E73<0.5),"-",IFERROR('Tabel 4 S'!E73/'Tabel 4F S'!E73*100,"-")) -> - | F73: =IF(OR('Tabel 4F S'!F73<5,'Tabel 4 S'!F73<0.5),"-",IFERROR('Tabel 4 S'!F73/'Tabel 4F S'!F73*100,"-")) -> - | G73: =IF(OR('Tabel 4F S'!G73<5,'Tabel 4 S'!G73<0.5),"-",IFERROR('Tabel 4 S'!G73/'Tabel 4F S'!G73*100,"-")) -> - | I73: =IF(OR('Tabel 4F S'!I73<5,'Tabel 4 S'!I73<0.5),"-",IFERROR('Tabel 4 S'!I73/'Tabel 4F S'!I73*100,"-")) -> 9.090909091
A74: Mejeriing. | C74: =IF(OR('Tabel 4F S'!C74<5,'Tabel 4 S'!C74<0.5),"-",IFERROR('Tabel 4 S'!C74/'Tabel 4F S'!C74*100,"-")) -> - | D74: =IF(OR('Tabel 4F S'!D74<5,'Tabel 4 S'!D74<0.5),"-",IFERROR('Tabel 4 S'!D74/'Tabel 4F S'!D74*100,"-")) -> - | E74: =IF(OR('Tabel 4F S'!E74<5,'Tabel 4 S'!E74<0.5),"-",IFERROR('Tabel 4 S'!E74/'Tabel 4F S'!E74*100,"-")) -> - | F74: =IF(OR('Tabel 4F S'!F74<5,'Tabel 4 S'!F74<0.5),"-",IFERROR('Tabel 4 S'!F74/'Tabel 4F S'!F74*100,"-")) -> - | G74: =IF(OR('Tabel 4F S'!G74<5,'Tabel 4 S'!G74<0.5),"-",IFERROR('Tabel 4 S'!G74/'Tabel 4F S'!G74*100,"-")) -> - | I74: =IF(OR('Tabel 4F S'!I74<5,'Tabel 4 S'!I74<0.5),"-",IFERROR('Tabel 4 S'!I74/'Tabel 4F S'!I74*100,"-")) -> -
A75: Levn.m.kand. | C75: =IF(OR('Tabel 4F S'!C75<5,'Tabel 4 S'!C75<0.5),"-",IFERROR('Tabel 4 S'!C75/'Tabel 4F S'!C75*100,"-")) -> - | D75: =IF(OR('Tabel 4F S'!D75<5,'Tabel 4 S'!D75<0.5),"-",IFERROR('Tabel 4 S'!D75/'Tabel 4F S'!D75*100,"-")) -> - | E75: =IF(OR('Tabel 4F S'!E75<5,'Tabel 4 S'!E75<0.5),"-",IFERROR('Tabel 4 S'!E75/'Tabel 4F S'!E75*100,"-")) -> - | F75: =IF(OR('Tabel 4F S'!F75<5,'Tabel 4 S'!F75<0.5),"-",IFERROR('Tabel 4 S'!F75/'Tabel 4F S'!F75*100,"-")) -> - | G75: =IF(OR('Tabel 4F S'!G75<5,'Tabel 4 S'!G75<0.5),"-",IFERROR('Tabel 4 S'!G75/'Tabel 4F S'!G75*100,"-")) -> - | I75: =IF(OR('Tabel 4F S'!I75<5,'Tabel 4 S'!I75<0.5),"-",IFERROR('Tabel 4 S'!I75/'Tabel 4F S'!I75*100,"-")) -> -
A76: Dyrlæge | C76: =IF(OR('Tabel 4F S'!C76<5,'Tabel 4 S'!C76<0.5),"-",IFERROR('Tabel 4 S'!C76/'Tabel 4F S'!C76*100,"-")) -> - | D76: =IF(OR('Tabel 4F S'!D76<5,'Tabel 4 S'!D76<0.5),"-",IFERROR('Tabel 4 S'!D76/'Tabel 4F S'!D76*100,"-")) -> 11.11111111 | E76: =IF(OR('Tabel 4F S'!E76<5,'Tabel 4 S'!E76<0.5),"-",IFERROR('Tabel 4 S'!E76/'Tabel 4F S'!E76*100,"-")) -> - | F76: =IF(OR('Tabel 4F S'!F76<5,'Tabel 4 S'!F76<0.5),"-",IFERROR('Tabel 4 S'!F76/'Tabel 4F S'!F76*100,"-")) -> - | G76: =IF(OR('Tabel 4F S'!G76<5,'Tabel 4 S'!G76<0.5),"-",IFERROR('Tabel 4 S'!G76/'Tabel 4F S'!G76*100,"-")) -> - | I76: =IF(OR('Tabel 4F S'!I76<5,'Tabel 4 S'!I76<0.5),"-",IFERROR('Tabel 4 S'!I76/'Tabel 4F S'!I76*100,"-")) -> 6.666666667
A77: Farmaceut | C77: =IF(OR('Tabel 4F S'!C77<5,'Tabel 4 S'!C77<0.5),"-",IFERROR('Tabel 4 S'!C77/'Tabel 4F S'!C77*100,"-")) -> - | D77: =IF(OR('Tabel 4F S'!D77<5,'Tabel 4 S'!D77<0.5),"-",IFERROR('Tabel 4 S'!D77/'Tabel 4F S'!D77*100,"-")) -> - | E77: =IF(OR('Tabel 4F S'!E77<5,'Tabel 4 S'!E77<0.5),"-",IFERROR('Tabel 4 S'!E77/'Tabel 4F S'!E77*100,"-")) -> - | F77: =IF(OR('Tabel 4F S'!F77<5,'Tabel 4 S'!F77<0.5),"-",IFERROR('Tabel 4 S'!F77/'Tabel 4F S'!F77*100,"-")) -> - | G77: =IF(OR('Tabel 4F S'!G77<5,'Tabel 4 S'!G77<0.5),"-",IFERROR('Tabel 4 S'!G77/'Tabel 4F S'!G77*100,"-")) -> - | I77: =IF(OR('Tabel 4F S'!I77<5,'Tabel 4 S'!I77<0.5),"-",IFERROR('Tabel 4 S'!I77/'Tabel 4F S'!I77*100,"-")) -> -
A78: Læge | C78: =IF(OR('Tabel 4F S'!C78<5,'Tabel 4 S'!C78<0.5),"-",IFERROR('Tabel 4 S'!C78/'Tabel 4F S'!C78*100,"-")) -> 20 | D78: =IF(OR('Tabel 4F S'!D78<5,'Tabel 4 S'!D78<0.5),"-",IFERROR('Tabel 4 S'!D78/'Tabel 4F S'!D78*100,"-")) -> - | E78: =IF(OR('Tabel 4F S'!E78<5,'Tabel 4 S'!E78<0.5),"-",IFERROR('Tabel 4 S'!E78/'Tabel 4F S'!E78*100,"-")) -> - | F78: =IF(OR('Tabel 4F S'!F78<5,'Tabel 4 S'!F78<0.5),"-",IFERROR('Tabel 4 S'!F78/'Tabel 4F S'!F78*100,"-")) -> - | G78: =IF(OR('Tabel 4F S'!G78<5,'Tabel 4 S'!G78<0.5),"-",IFERROR('Tabel 4 S'!G78/'Tabel 4F S'!G78*100,"-")) -> - | I78: =IF(OR('Tabel 4F S'!I78<5,'Tabel 4 S'!I78<0.5),"-",IFERROR('Tabel 4 S'!I78/'Tabel 4F S'!I78*100,"-")) -> 2.380952381
A79: Tandlæge | C79: =IF(OR('Tabel 4F S'!C79<5,'Tabel 4 S'!C79<0.5),"-",IFERROR('Tabel 4 S'!C79/'Tabel 4F S'!C79*100,"-")) -> - | D79: =IF(OR('Tabel 4F S'!D79<5,'Tabel 4 S'!D79<0.5),"-",IFERROR('Tabel 4 S'!D79/'Tabel 4F S'!D79*100,"-")) -> - | E79: =IF(OR('Tabel 4F S'!E79<5,'Tabel 4 S'!E79<0.5),"-",IFERROR('Tabel 4 S'!E79/'Tabel 4F S'!E79*100,"-")) -> - | F79: =IF(OR('Tabel 4F S'!F79<5,'Tabel 4 S'!F79<0.5),"-",IFERROR('Tabel 4 S'!F79/'Tabel 4F S'!F79*100,"-")) -> - | G79: =IF(OR('Tabel 4F S'!G79<5,'Tabel 4 S'!G79<0.5),"-",IFERROR('Tabel 4 S'!G79/'Tabel 4F S'!G79*100,"-")) -> - | I79: =IF(OR('Tabel 4F S'!I79<5,'Tabel 4 S'!I79<0.5),"-",IFERROR('Tabel 4 S'!I79/'Tabel 4F S'!I79*100,"-")) -> -
A80: Arkitekt | C80: =IF(OR('Tabel 4F S'!C80<5,'Tabel 4 S'!C80<0.5),"-",IFERROR('Tabel 4 S'!C80/'Tabel 4F S'!C80*100,"-")) -> - | D80: =IF(OR('Tabel 4F S'!D80<5,'Tabel 4 S'!D80<0.5),"-",IFERROR('Tabel 4 S'!D80/'Tabel 4F S'!D80*100,"-")) -> - | E80: =IF(OR('Tabel 4F S'!E80<5,'Tabel 4 S'!E80<0.5),"-",IFERROR('Tabel 4 S'!E80/'Tabel 4F S'!E80*100,"-")) -> - | F80: =IF(OR('Tabel 4F S'!F80<5,'Tabel 4 S'!F80<0.5),"-",IFERROR('Tabel 4 S'!F80/'Tabel 4F S'!F80*100,"-")) -> - | G80: =IF(OR('Tabel 4F S'!G80<5,'Tabel 4 S'!G80<0.5),"-",IFERROR('Tabel 4 S'!G80/'Tabel 4F S'!G80*100,"-")) -> - | I80: =IF(OR('Tabel 4F S'!I80<5,'Tabel 4 S'!I80<0.5),"-",IFERROR('Tabel 4 S'!I80/'Tabel 4F S'!I80*100,"-")) -> -
A81: Landinspek. | C81: =IF(OR('Tabel 4F S'!C81<5,'Tabel 4 S'!C81<0.5),"-",IFERROR('Tabel 4 S'!C81/'Tabel 4F S'!C81*100,"-")) -> - | D81: =IF(OR('Tabel 4F S'!D81<5,'Tabel 4 S'!D81<0.5),"-",IFERROR('Tabel 4 S'!D81/'Tabel 4F S'!D81*100,"-")) -> - | E81: =IF(OR('Tabel 4F S'!E81<5,'Tabel 4 S'!E81<0.5),"-",IFERROR('Tabel 4 S'!E81/'Tabel 4F S'!E81*100,"-")) -> - | F81: =IF(OR('Tabel 4F S'!F81<5,'Tabel 4 S'!F81<0.5),"-",IFERROR('Tabel 4 S'!F81/'Tabel 4F S'!F81*100,"-")) -> - | G81: =IF(OR('Tabel 4F S'!G81<5,'Tabel 4 S'!G81<0.5),"-",IFERROR('Tabel 4 S'!G81/'Tabel 4F S'!G81*100,"-")) -> - | I81: =IF(OR('Tabel 4F S'!I81<5,'Tabel 4 S'!I81<0.5),"-",IFERROR('Tabel 4 S'!I81/'Tabel 4F S'!I81*100,"-")) -> -
A82: Bibliotekar | C82: =IF(OR('Tabel 4F S'!C82<5,'Tabel 4 S'!C82<0.5),"-",IFERROR('Tabel 4 S'!C82/'Tabel 4F S'!C82*100,"-")) -> - | D82: =IF(OR('Tabel 4F S'!D82<5,'Tabel 4 S'!D82<0.5),"-",IFERROR('Tabel 4 S'!D82/'Tabel 4F S'!D82*100,"-")) -> - | E82: =IF(OR('Tabel 4F S'!E82<5,'Tabel 4 S'!E82<0.5),"-",IFERROR('Tabel 4 S'!E82/'Tabel 4F S'!E82*100,"-")) -> - | F82: =IF(OR('Tabel 4F S'!F82<5,'Tabel 4 S'!F82<0.5),"-",IFERROR('Tabel 4 S'!F82/'Tabel 4F S'!F82*100,"-")) -> - | G82: =IF(OR('Tabel 4F S'!G82<5,'Tabel 4 S'!G82<0.5),"-",IFERROR('Tabel 4 S'!G82/'Tabel 4F S'!G82*100,"-")) -> - | I82: =IF(OR('Tabel 4F S'!I82<5,'Tabel 4 S'!I82<0.5),"-",IFERROR('Tabel 4 S'!I82/'Tabel 4F S'!I82*100,"-")) -> 4.545454545
A83: Musikudd. | C83: =IF(OR('Tabel 4F S'!C83<5,'Tabel 4 S'!C83<0.5),"-",IFERROR('Tabel 4 S'!C83/'Tabel 4F S'!C83*100,"-")) -> - | D83: =IF(OR('Tabel 4F S'!D83<5,'Tabel 4 S'!D83<0.5),"-",IFERROR('Tabel 4 S'!D83/'Tabel 4F S'!D83*100,"-")) -> - | E83: =IF(OR('Tabel 4F S'!E83<5,'Tabel 4 S'!E83<0.5),"-",IFERROR('Tabel 4 S'!E83/'Tabel 4F S'!E83*100,"-")) -> - | F83: =IF(OR('Tabel 4F S'!F83<5,'Tabel 4 S'!F83<0.5),"-",IFERROR('Tabel 4 S'!F83/'Tabel 4F S'!F83*100,"-")) -> - | G83: =IF(OR('Tabel 4F S'!G83<5,'Tabel 4 S'!G83<0.5),"-",IFERROR('Tabel 4 S'!G83/'Tabel 4F S'!G83*100,"-")) -> - | I83: =IF(OR('Tabel 4F S'!I83<5,'Tabel 4 S'!I83<0.5),"-",IFERROR('Tabel 4 S'!I83/'Tabel 4F S'!I83*100,"-")) -> -
A84: Teolog | C84: =IF(OR('Tabel 4F S'!C84<5,'Tabel 4 S'!C84<0.5),"-",IFERROR('Tabel 4 S'!C84/'Tabel 4F S'!C84*100,"-")) -> - | D84: =IF(OR('Tabel 4F S'!D84<5,'Tabel 4 S'!D84<0.5),"-",IFERROR('Tabel 4 S'!D84/'Tabel 4F S'!D84*100,"-")) -> - | E84: =IF(OR('Tabel 4F S'!E84<5,'Tabel 4 S'!E84<0.5),"-",IFERROR('Tabel 4 S'!E84/'Tabel 4F S'!E84*100,"-")) -> - | F84: =IF(OR('Tabel 4F S'!F84<5,'Tabel 4 S'!F84<0.5),"-",IFERROR('Tabel 4 S'!F84/'Tabel 4F S'!F84*100,"-")) -> - | G84: =IF(OR('Tabel 4F S'!G84<5,'Tabel 4 S'!G84<0.5),"-",IFERROR('Tabel 4 S'!G84/'Tabel 4F S'!G84*100,"-")) -> - | I84: =IF(OR('Tabel 4F S'!I84<5,'Tabel 4 S'!I84<0.5),"-",IFERROR('Tabel 4 S'!I84/'Tabel 4F S'!I84*100,"-")) -> -
A85: Psykolog | C85: =IF(OR('Tabel 4F S'!C85<5,'Tabel 4 S'!C85<0.5),"-",IFERROR('Tabel 4 S'!C85/'Tabel 4F S'!C85*100,"-")) -> - | D85: =IF(OR('Tabel 4F S'!D85<5,'Tabel 4 S'!D85<0.5),"-",IFERROR('Tabel 4 S'!D85/'Tabel 4F S'!D85*100,"-")) -> 10 | E85: =IF(OR('Tabel 4F S'!E85<5,'Tabel 4 S'!E85<0.5),"-",IFERROR('Tabel 4 S'!E85/'Tabel 4F S'!E85*100,"-")) -> - | F85: =IF(OR('Tabel 4F S'!F85<5,'Tabel 4 S'!F85<0.5),"-",IFERROR('Tabel 4 S'!F85/'Tabel 4F S'!F85*100,"-")) -> - | G85: =IF(OR('Tabel 4F S'!G85<5,'Tabel 4 S'!G85<0.5),"-",IFERROR('Tabel 4 S'!G85/'Tabel 4F S'!G85*100,"-")) -> - | I85: =IF(OR('Tabel 4F S'!I85<5,'Tabel 4 S'!I85<0.5),"-",IFERROR('Tabel 4 S'!I85/'Tabel 4F S'!I85*100,"-")) -> 3.571428571
A86: Jurist | C86: =IF(OR('Tabel 4F S'!C86<5,'Tabel 4 S'!C86<0.5),"-",IFERROR('Tabel 4 S'!C86/'Tabel 4F S'!C86*100,"-")) -> - | D86: =IF(OR('Tabel 4F S'!D86<5,'Tabel 4 S'!D86<0.5),"-",IFERROR('Tabel 4 S'!D86/'Tabel 4F S'!D86*100,"-")) -> - | E86: =IF(OR('Tabel 4F S'!E86<5,'Tabel 4 S'!E86<0.5),"-",IFERROR('Tabel 4 S'!E86/'Tabel 4F S'!E86*100,"-")) -> - | F86: =IF(OR('Tabel 4F S'!F86<5,'Tabel 4 S'!F86<0.5),"-",IFERROR('Tabel 4 S'!F86/'Tabel 4F S'!F86*100,"-")) -> 2.777777778 | G86: =IF(OR('Tabel 4F S'!G86<5,'Tabel 4 S'!G86<0.5),"-",IFERROR('Tabel 4 S'!G86/'Tabel 4F S'!G86*100,"-")) -> - | I86: =IF(OR('Tabel 4F S'!I86<5,'Tabel 4 S'!I86<0.5),"-",IFERROR('Tabel 4 S'!I86/'Tabel 4F S'!I86*100,"-")) -> 0.8
A87: Økonom | C87: =IF(OR('Tabel 4F S'!C87<5,'Tabel 4 S'!C87<0.5),"-",IFERROR('Tabel 4 S'!C87/'Tabel 4F S'!C87*100,"-")) -> - | D87: =IF(OR('Tabel 4F S'!D87<5,'Tabel 4 S'!D87<0.5),"-",IFERROR('Tabel 4 S'!D87/'Tabel 4F S'!D87*100,"-")) -> - | E87: =IF(OR('Tabel 4F S'!E87<5,'Tabel 4 S'!E87<0.5),"-",IFERROR('Tabel 4 S'!E87/'Tabel 4F S'!E87*100,"-")) -> 4.166666667 | F87: =IF(OR('Tabel 4F S'!F87<5,'Tabel 4 S'!F87<0.5),"-",IFERROR('Tabel 4 S'!F87/'Tabel 4F S'!F87*100,"-")) -> - | G87: =IF(OR('Tabel 4F S'!G87<5,'Tabel 4 S'!G87<0.5),"-",IFERROR('Tabel 4 S'!G87/'Tabel 4F S'!G87*100,"-")) -> - | I87: =IF(OR('Tabel 4F S'!I87<5,'Tabel 4 S'!I87<0.5),"-",IFERROR('Tabel 4 S'!I87/'Tabel 4F S'!I87*100,"-")) -> 1.785714286
A88: Samf. Adm. | C88: =IF(OR('Tabel 4F S'!C88<5,'Tabel 4 S'!C88<0.5),"-",IFERROR('Tabel 4 S'!C88/'Tabel 4F S'!C88*100,"-")) -> - | D88: =IF(OR('Tabel 4F S'!D88<5,'Tabel 4 S'!D88<0.5),"-",IFERROR('Tabel 4 S'!D88/'Tabel 4F S'!D88*100,"-")) -> - | E88: =IF(OR('Tabel 4F S'!E88<5,'Tabel 4 S'!E88<0.5),"-",IFERROR('Tabel 4 S'!E88/'Tabel 4F S'!E88*100,"-")) -> - | F88: =IF(OR('Tabel 4F S'!F88<5,'Tabel 4 S'!F88<0.5),"-",IFERROR('Tabel 4 S'!F88/'Tabel 4F S'!F88*100,"-")) -> - | G88: =IF(OR('Tabel 4F S'!G88<5,'Tabel 4 S'!G88<0.5),"-",IFERROR('Tabel 4 S'!G88/'Tabel 4F S'!G88*100,"-")) -> - | I88: =IF(OR('Tabel 4F S'!I88<5,'Tabel 4 S'!I88<0.5),"-",IFERROR('Tabel 4 S'!I88/'Tabel 4F S'!I88*100,"-")) -> -
A89: Cand. Merc. | C89: =IF(OR('Tabel 4F S'!C89<5,'Tabel 4 S'!C89<0.5),"-",IFERROR('Tabel 4 S'!C89/'Tabel 4F S'!C89*100,"-")) -> 7.692307692 | D89: =IF(OR('Tabel 4F S'!D89<5,'Tabel 4 S'!D89<0.5),"-",IFERROR('Tabel 4 S'!D89/'Tabel 4F S'!D89*100,"-")) -> 0.9259259259 | E89: =IF(OR('Tabel 4F S'!E89<5,'Tabel 4 S'!E89<0.5),"-",IFERROR('Tabel 4 S'!E89/'Tabel 4F S'!E89*100,"-")) -> - | F89: =IF(OR('Tabel 4F S'!F89<5,'Tabel 4 S'!F89<0.5),"-",IFERROR('Tabel 4 S'!F89/'Tabel 4F S'!F89*100,"-")) -> 3.076923077 | G89: =IF(OR('Tabel 4F S'!G89<5,'Tabel 4 S'!G89<0.5),"-",IFERROR('Tabel 4 S'!G89/'Tabel 4F S'!G89*100,"-")) -> - | I89: =IF(OR('Tabel 4F S'!I89<5,'Tabel 4 S'!I89<0.5),"-",IFERROR('Tabel 4 S'!I89/'Tabel 4F S'!I89*100,"-")) -> 1.650165017
A90: HA | C90: =IF(OR('Tabel 4F S'!C90<5,'Tabel 4 S'!C90<0.5),"-",IFERROR('Tabel 4 S'!C90/'Tabel 4F S'!C90*100,"-")) -> - | D90: =IF(OR('Tabel 4F S'!D90<5,'Tabel 4 S'!D90<0.5),"-",IFERROR('Tabel 4 S'!D90/'Tabel 4F S'!D90*100,"-")) -> - | E90: =IF(OR('Tabel 4F S'!E90<5,'Tabel 4 S'!E90<0.5),"-",IFERROR('Tabel 4 S'!E90/'Tabel 4F S'!E90*100,"-")) -> 5.555555556 | F90: =IF(OR('Tabel 4F S'!F90<5,'Tabel 4 S'!F90<0.5),"-",IFERROR('Tabel 4 S'!F90/'Tabel 4F S'!F90*100,"-")) -> - | G90: =IF(OR('Tabel 4F S'!G90<5,'Tabel 4 S'!G90<0.5),"-",IFERROR('Tabel 4 S'!G90/'Tabel 4F S'!G90*100,"-")) -> - | I90: =IF(OR('Tabel 4F S'!I90<5,'Tabel 4 S'!I90<0.5),"-",IFERROR('Tabel 4 S'!I90/'Tabel 4F S'!I90*100,"-")) -> 4.166666667
A91: HD | C91: =IF(OR('Tabel 4F S'!C91<5,'Tabel 4 S'!C91<0.5),"-",IFERROR('Tabel 4 S'!C91/'Tabel 4F S'!C91*100,"-")) -> - | D91: =IF(OR('Tabel 4F S'!D91<5,'Tabel 4 S'!D91<0.5),"-",IFERROR('Tabel 4 S'!D91/'Tabel 4F S'!D91*100,"-")) -> - | E91: =IF(OR('Tabel 4F S'!E91<5,'Tabel 4 S'!E91<0.5),"-",IFERROR('Tabel 4 S'!E91/'Tabel 4F S'!E91*100,"-")) -> - | F91: =IF(OR('Tabel 4F S'!F91<5,'Tabel 4 S'!F91<0.5),"-",IFERROR('Tabel 4 S'!F91/'Tabel 4F S'!F91*100,"-")) -> - | G91: =IF(OR('Tabel 4F S'!G91<5,'Tabel 4 S'!G91<0.5),"-",IFERROR('Tabel 4 S'!G91/'Tabel 4F S'!G91*100,"-")) -> 12.5 | I91: =IF(OR('Tabel 4F S'!I91<5,'Tabel 4 S'!I91<0.5),"-",IFERROR('Tabel 4 S'!I91/'Tabel 4F S'!I91*100,"-")) -> 3.947368421
A92: Komm. og Sprog | C92: =IF(OR('Tabel 4F S'!C92<5,'Tabel 4 S'!C92<0.5),"-",IFERROR('Tabel 4 S'!C92/'Tabel 4F S'!C92*100,"-")) -> - | D92: =IF(OR('Tabel 4F S'!D92<5,'Tabel 4 S'!D92<0.5),"-",IFERROR('Tabel 4 S'!D92/'Tabel 4F S'!D92*100,"-")) -> - | E92: =IF(OR('Tabel 4F S'!E92<5,'Tabel 4 S'!E92<0.5),"-",IFERROR('Tabel 4 S'!E92/'Tabel 4F S'!E92*100,"-")) -> - | F92: =IF(OR('Tabel 4F S'!F92<5,'Tabel 4 S'!F92<0.5),"-",IFERROR('Tabel 4 S'!F92/'Tabel 4F S'!F92*100,"-")) -> - | G92: =IF(OR('Tabel 4F S'!G92<5,'Tabel 4 S'!G92<0.5),"-",IFERROR('Tabel 4 S'!G92/'Tabel 4F S'!G92*100,"-")) -> - | I92: =IF(OR('Tabel 4F S'!I92<5,'Tabel 4 S'!I92<0.5),"-",IFERROR('Tabel 4 S'!I92/'Tabel 4F S'!I92*100,"-")) -> -
A93: Bygningskonst. | C93: =IF(OR('Tabel 4F S'!C93<5,'Tabel 4 S'!C93<0.5),"-",IFERROR('Tabel 4 S'!C93/'Tabel 4F S'!C93*100,"-")) -> - | D93: =IF(OR('Tabel 4F S'!D93<5,'Tabel 4 S'!D93<0.5),"-",IFERROR('Tabel 4 S'!D93/'Tabel 4F S'!D93*100,"-")) -> - | E93: =IF(OR('Tabel 4F S'!E93<5,'Tabel 4 S'!E93<0.5),"-",IFERROR('Tabel 4 S'!E93/'Tabel 4F S'!E93*100,"-")) -> - | F93: =IF(OR('Tabel 4F S'!F93<5,'Tabel 4 S'!F93<0.5),"-",IFERROR('Tabel 4 S'!F93/'Tabel 4F S'!F93*100,"-")) -> - | G93: =IF(OR('Tabel 4F S'!G93<5,'Tabel 4 S'!G93<0.5),"-",IFERROR('Tabel 4 S'!G93/'Tabel 4F S'!G93*100,"-")) -> - | I93: =IF(OR('Tabel 4F S'!I93<5,'Tabel 4 S'!I93<0.5),"-",IFERROR('Tabel 4 S'!I93/'Tabel 4F S'!I93*100,"-")) -> -
A94: Cand. IT. | C94: =IF(OR('Tabel 4F S'!C94<5,'Tabel 4 S'!C94<0.5),"-",IFERROR('Tabel 4 S'!C94/'Tabel 4F S'!C94*100,"-")) -> - | D94: =IF(OR('Tabel 4F S'!D94<5,'Tabel 4 S'!D94<0.5),"-",IFERROR('Tabel 4 S'!D94/'Tabel 4F S'!D94*100,"-")) -> 10 | E94: =IF(OR('Tabel 4F S'!E94<5,'Tabel 4 S'!E94<0.5),"-",IFERROR('Tabel 4 S'!E94/'Tabel 4F S'!E94*100,"-")) -> - | F94: =IF(OR('Tabel 4F S'!F94<5,'Tabel 4 S'!F94<0.5),"-",IFERROR('Tabel 4 S'!F94/'Tabel 4F S'!F94*100,"-")) -> - | G94: =IF(OR('Tabel 4F S'!G94<5,'Tabel 4 S'!G94<0.5),"-",IFERROR('Tabel 4 S'!G94/'Tabel 4F S'!G94*100,"-")) -> - | I94: =IF(OR('Tabel 4F S'!I94<5,'Tabel 4 S'!I94<0.5),"-",IFERROR('Tabel 4 S'!I94/'Tabel 4F S'!I94*100,"-")) -> 4.545454545
A95: Bac. Samf. | C95: =IF(OR('Tabel 4F S'!C95<5,'Tabel 4 S'!C95<0.5),"-",IFERROR('Tabel 4 S'!C95/'Tabel 4F S'!C95*100,"-")) -> - | D95: =IF(OR('Tabel 4F S'!D95<5,'Tabel 4 S'!D95<0.5),"-",IFERROR('Tabel 4 S'!D95/'Tabel 4F S'!D95*100,"-")) -> - | E95: =IF(OR('Tabel 4F S'!E95<5,'Tabel 4 S'!E95<0.5),"-",IFERROR('Tabel 4 S'!E95/'Tabel 4F S'!E95*100,"-")) -> - | F95: =IF(OR('Tabel 4F S'!F95<5,'Tabel 4 S'!F95<0.5),"-",IFERROR('Tabel 4 S'!F95/'Tabel 4F S'!F95*100,"-")) -> - | G95: =IF(OR('Tabel 4F S'!G95<5,'Tabel 4 S'!G95<0.5),"-",IFERROR('Tabel 4 S'!G95/'Tabel 4F S'!G95*100,"-")) -> - | I95: =IF(OR('Tabel 4F S'!I95<5,'Tabel 4 S'!I95<0.5),"-",IFERROR('Tabel 4 S'!I95/'Tabel 4F S'!I95*100,"-")) -> -
A96: Bac. Hum. | C96: =IF(OR('Tabel 4F S'!C96<5,'Tabel 4 S'!C96<0.5),"-",IFERROR('Tabel 4 S'!C96/'Tabel 4F S'!C96*100,"-")) -> - | D96: =IF(OR('Tabel 4F S'!D96<5,'Tabel 4 S'!D96<0.5),"-",IFERROR('Tabel 4 S'!D96/'Tabel 4F S'!D96*100,"-")) -> - | E96: =IF(OR('Tabel 4F S'!E96<5,'Tabel 4 S'!E96<0.5),"-",IFERROR('Tabel 4 S'!E96/'Tabel 4F S'!E96*100,"-")) -> - | F96: =IF(OR('Tabel 4F S'!F96<5,'Tabel 4 S'!F96<0.5),"-",IFERROR('Tabel 4 S'!F96/'Tabel 4F S'!F96*100,"-")) -> - | G96: =IF(OR('Tabel 4F S'!G96<5,'Tabel 4 S'!G96<0.5),"-",IFERROR('Tabel 4 S'!G96/'Tabel 4F S'!G96*100,"-")) -> - | I96: =IF(OR('Tabel 4F S'!I96<5,'Tabel 4 S'!I96<0.5),"-",IFERROR('Tabel 4 S'!I96/'Tabel 4F S'!I96*100,"-")) -> 13.33333333
A97: Bac. Nat. | C97: =IF(OR('Tabel 4F S'!C97<5,'Tabel 4 S'!C97<0.5),"-",IFERROR('Tabel 4 S'!C97/'Tabel 4F S'!C97*100,"-")) -> - | D97: =IF(OR('Tabel 4F S'!D97<5,'Tabel 4 S'!D97<0.5),"-",IFERROR('Tabel 4 S'!D97/'Tabel 4F S'!D97*100,"-")) -> - | E97: =IF(OR('Tabel 4F S'!E97<5,'Tabel 4 S'!E97<0.5),"-",IFERROR('Tabel 4 S'!E97/'Tabel 4F S'!E97*100,"-")) -> - | F97: =IF(OR('Tabel 4F S'!F97<5,'Tabel 4 S'!F97<0.5),"-",IFERROR('Tabel 4 S'!F97/'Tabel 4F S'!F97*100,"-")) -> - | G97: =IF(OR('Tabel 4F S'!G97<5,'Tabel 4 S'!G97<0.5),"-",IFERROR('Tabel 4 S'!G97/'Tabel 4F S'!G97*100,"-")) -> - | I97: =IF(OR('Tabel 4F S'!I97<5,'Tabel 4 S'!I97<0.5),"-",IFERROR('Tabel 4 S'!I97/'Tabel 4F S'!I97*100,"-")) -> 5.882352941
A98: Andre | C98: =IF(OR('Tabel 4F S'!C98<5,'Tabel 4 S'!C98<0.5),"-",IFERROR('Tabel 4 S'!C98/'Tabel 4F S'!C98*100,"-")) -> 8.333333333 | D98: =IF(OR('Tabel 4F S'!D98<5,'Tabel 4 S'!D98<0.5),"-",IFERROR('Tabel 4 S'!D98/'Tabel 4F S'!D98*100,"-")) -> 7.692307692 | E98: =IF(OR('Tabel 4F S'!E98<5,'Tabel 4 S'!E98<0.5),"-",IFERROR('Tabel 4 S'!E98/'Tabel 4F S'!E98*100,"-")) -> 3.636363636 | F98: =IF(OR('Tabel 4F S'!F98<5,'Tabel 4 S'!F98<0.5),"-",IFERROR('Tabel 4 S'!F98/'Tabel 4F S'!F98*100,"-")) -> 3.448275862 | G98: =IF(OR('Tabel 4F S'!G98<5,'Tabel 4 S'!G98<0.5),"-",IFERROR('Tabel 4 S'!G98/'Tabel 4F S'!G98*100,"-")) -> - | I98: =IF(OR('Tabel 4F S'!I98<5,'Tabel 4 S'!I98<0.5),"-",IFERROR('Tabel 4 S'!I98/'Tabel 4F S'!I98*100,"-")) -> 5.031446541
A100: Total | C100: =IF(OR('Tabel 4F S'!C100<5,'Tabel 4 S'!C100<0.5),"-",IFERROR('Tabel 4 S'!C100/'Tabel 4F S'!C100*100,"-")) -> 9.604519774 | D100: =IF(OR('Tabel 4F S'!D100<5,'Tabel 4 S'!D100<0.5),"-",IFERROR('Tabel 4 S'!D100/'Tabel 4F S'!D100*100,"-")) -> 2.086438152 | E100: =IF(OR('Tabel 4F S'!E100<5,'Tabel 4 S'!E100<0.5),"-",IFERROR('Tabel 4 S'!E100/'Tabel 4F S'!E100*100,"-")) -> 1.212121212 | F100: =IF(OR('Tabel 4F S'!F100<5,'Tabel 4 S'!F100<0.5),"-",IFERROR('Tabel 4 S'!F100/'Tabel 4F S'!F100*100,"-")) -> 1.485148515 | G100: =IF(OR('Tabel 4F S'!G100<5,'Tabel 4 S'!G100<0.5),"-",IFERROR('Tabel 4 S'!G100/'Tabel 4F S'!G100*100,"-")) -> 2.197802198 | I100: =IF(OR('Tabel 4F S'!I100<5,'Tabel 4 S'!I100<0.5),"-",IFERROR('Tabel 4 S'!I100/'Tabel 4F S'!I100*100,"-")) -> 2.264808362
A102: Ingeniører i alt | C102: =IF(OR('Tabel 4F S'!C102<5,'Tabel 4 S'!C102<0.5),"-",IFERROR('Tabel 4 S'!C102/'Tabel 4F S'!C102*100,"-")) -> 5.263157895 | D102: =IF(OR('Tabel 4F S'!D102<5,'Tabel 4 S'!D102<0.5),"-",IFERROR('Tabel 4 S'!D102/'Tabel 4F S'!D102*100,"-")) -> 0.8333333333 | E102: =IF(OR('Tabel 4F S'!E102<5,'Tabel 4 S'!E102<0.5),"-",IFERROR('Tabel 4 S'!E102/'Tabel 4F S'!E102*100,"-")) -> - | F102: =IF(OR('Tabel 4F S'!F102<5,'Tabel 4 S'!F102<0.5),"-",IFERROR('Tabel 4 S'!F102/'Tabel 4F S'!F102*100,"-")) -> 1.477832512 | G102: =IF(OR('Tabel 4F S'!G102<5,'Tabel 4 S'!G102<0.5),"-",IFERROR('Tabel 4 S'!G102/'Tabel 4F S'!G102*100,"-")) -> 3.333333333 | I102: =IF(OR('Tabel 4F S'!I102<5,'Tabel 4 S'!I102<0.5),"-",IFERROR('Tabel 4 S'!I102/'Tabel 4F S'!I102*100,"-")) -> 1.426024955
A103: Magistre i alt | C103: =IF(OR('Tabel 4F S'!C103<5,'Tabel 4 S'!C103<0.5),"-",IFERROR('Tabel 4 S'!C103/'Tabel 4F S'!C103*100,"-")) -> 19.04761905 | D103: =IF(OR('Tabel 4F S'!D103<5,'Tabel 4 S'!D103<0.5),"-",IFERROR('Tabel 4 S'!D103/'Tabel 4F S'!D103*100,"-")) -> 2.597402597 | E103: =IF(OR('Tabel 4F S'!E103<5,'Tabel 4 S'!E103<0.5),"-",IFERROR('Tabel 4 S'!E103/'Tabel 4F S'!E103*100,"-")) -> 3.296703297 | F103: =IF(OR('Tabel 4F S'!F103<5,'Tabel 4 S'!F103<0.5),"-",IFERROR('Tabel 4 S'!F103/'Tabel 4F S'!F103*100,"-")) -> 1.639344262 | G103: =IF(OR('Tabel 4F S'!G103<5,'Tabel 4 S'!G103<0.5),"-",IFERROR('Tabel 4 S'!G103/'Tabel 4F S'!G103*100,"-")) -> - | I103: =IF(OR('Tabel 4F S'!I103<5,'Tabel 4 S'!I103<0.5),"-",IFERROR('Tabel 4 S'!I103/'Tabel 4F S'!I103*100,"-")) -> 3.773584906
A104: DJØF'ere i alt | C104: =IF(OR('Tabel 4F S'!C104<5,'Tabel 4 S'!C104<0.5),"-",IFERROR('Tabel 4 S'!C104/'Tabel 4F S'!C104*100,"-")) -> 8.333333333 | D104: =IF(OR('Tabel 4F S'!D104<5,'Tabel 4 S'!D104<0.5),"-",IFERROR('Tabel 4 S'!D104/'Tabel 4F S'!D104*100,"-")) -> 0.4385964912 | E104: =IF(OR('Tabel 4F S'!E104<5,'Tabel 4 S'!E104<0.5),"-",IFERROR('Tabel 4 S'!E104/'Tabel 4F S'!E104*100,"-")) -> 0.9661835749 | F104: =IF(OR('Tabel 4F S'!F104<5,'Tabel 4 S'!F104<0.5),"-",IFERROR('Tabel 4 S'!F104/'Tabel 4F S'!F104*100,"-")) -> 1.807228916 | G104: =IF(OR('Tabel 4F S'!G104<5,'Tabel 4 S'!G104<0.5),"-",IFERROR('Tabel 4 S'!G104/'Tabel 4F S'!G104*100,"-")) -> - | I104: =IF(OR('Tabel 4F S'!I104<5,'Tabel 4 S'!I104<0.5),"-",IFERROR('Tabel 4 S'!I104/'Tabel 4F S'!I104*100,"-")) -> 1.453488372
A111: Køge
C113: Under 30 år | D113: 30 - 39 år | E113: 40 - 49 år | F113: 50 - 59 år | G113: Over 60 år | I113: I alt
A115: Civ. ing. | C115: =IF(OR('Tabel 4F S'!C115<5,'Tabel 4 S'!C115<0.5),"-",IFERROR('Tabel 4 S'!C115/'Tabel 4F S'!C115*100,"-")) -> - | D115: =IF(OR('Tabel 4F S'!D115<5,'Tabel 4 S'!D115<0.5),"-",IFERROR('Tabel 4 S'!D115/'Tabel 4F S'!D115*100,"-")) -> 3.448275862 | E115: =IF(OR('Tabel 4F S'!E115<5,'Tabel 4 S'!E115<0.5),"-",IFERROR('Tabel 4 S'!E115/'Tabel 4F S'!E115*100,"-")) -> 2.325581395 | F115: =IF(OR('Tabel 4F S'!F115<5,'Tabel 4 S'!F115<0.5),"-",IFERROR('Tabel 4 S'!F115/'Tabel 4F S'!F115*100,"-")) -> - | G115: =IF(OR('Tabel 4F S'!G115<5,'Tabel 4 S'!G115<0.5),"-",IFERROR('Tabel 4 S'!G115/'Tabel 4F S'!G115*100,"-")) -> - | I115: =IF(OR('Tabel 4F S'!I115<5,'Tabel 4 S'!I115<0.5),"-",IFERROR('Tabel 4 S'!I115/'Tabel 4F S'!I115*100,"-")) -> 1.470588235
A116: Diplom ing. | C116: =IF(OR('Tabel 4F S'!C116<5,'Tabel 4 S'!C116<0.5),"-",IFERROR('Tabel 4 S'!C116/'Tabel 4F S'!C116*100,"-")) -> 20 | D116: =IF(OR('Tabel 4F S'!D116<5,'Tabel 4 S'!D116<0.5),"-",IFERROR('Tabel 4 S'!D116/'Tabel 4F S'!D116*100,"-")) -> 1.818181818 | E116: =IF(OR('Tabel 4F S'!E116<5,'Tabel 4 S'!E116<0.5),"-",IFERROR('Tabel 4 S'!E116/'Tabel 4F S'!E116*100,"-")) -> 1.408450704 | F116: =IF(OR('Tabel 4F S'!F116<5,'Tabel 4 S'!F116<0.5),"-",IFERROR('Tabel 4 S'!F116/'Tabel 4F S'!F116*100,"-")) -> 1.234567901 | G116: =IF(OR('Tabel 4F S'!G116<5,'Tabel 4 S'!G116<0.5),"-",IFERROR('Tabel 4 S'!G116/'Tabel 4F S'!G116*100,"-")) -> 4.255319149 | I116: =IF(OR('Tabel 4F S'!I116<5,'Tabel 4 S'!I116<0.5),"-",IFERROR('Tabel 4 S'!I116/'Tabel 4F S'!I116*100,"-")) -> 3.055555556
A117: Cand. Scient. Tek | C117: =IF(OR('Tabel 4F S'!C117<5,'Tabel 4 S'!C117<0.5),"-",IFERROR('Tabel 4 S'!C117/'Tabel 4F S'!C117*100,"-")) -> 14.28571429 | D117: =IF(OR('Tabel 4F S'!D117<5,'Tabel 4 S'!D117<0.5),"-",IFERROR('Tabel 4 S'!D117/'Tabel 4F S'!D117*100,"-")) -> 6.25 | E117: =IF(OR('Tabel 4F S'!E117<5,'Tabel 4 S'!E117<0.5),"-",IFERROR('Tabel 4 S'!E117/'Tabel 4F S'!E117*100,"-")) -> 5.555555556 | F117: =IF(OR('Tabel 4F S'!F117<5,'Tabel 4 S'!F117<0.5),"-",IFERROR('Tabel 4 S'!F117/'Tabel 4F S'!F117*100,"-")) -> 14.28571429 | G117: =IF(OR('Tabel 4F S'!G117<5,'Tabel 4 S'!G117<0.5),"-",IFERROR('Tabel 4 S'!G117/'Tabel 4F S'!G117*100,"-")) -> - | I117: =IF(OR('Tabel 4F S'!I117<5,'Tabel 4 S'!I117<0.5),"-",IFERROR('Tabel 4 S'!I117/'Tabel 4F S'!I117*100,"-")) -> 8.910891089
A118: MA. Hum. | C118: =IF(OR('Tabel 4F S'!C118<5,'Tabel 4 S'!C118<0.5),"-",IFERROR('Tabel 4 S'!C118/'Tabel 4F S'!C118*100,"-")) -> 21.42857143 | D118: =IF(OR('Tabel 4F S'!D118<5,'Tabel 4 S'!D118<0.5),"-",IFERROR('Tabel 4 S'!D118/'Tabel 4F S'!D118*100,"-")) -> 1.041666667 | E118: =IF(OR('Tabel 4F S'!E118<5,'Tabel 4 S'!E118<0.5),"-",IFERROR('Tabel 4 S'!E118/'Tabel 4F S'!E118*100,"-")) -> 2.53164557 | F118: =IF(OR('Tabel 4F S'!F118<5,'Tabel 4 S'!F118<0.5),"-",IFERROR('Tabel 4 S'!F118/'Tabel 4F S'!F118*100,"-")) -> 3.448275862 | G118: =IF(OR('Tabel 4F S'!G118<5,'Tabel 4 S'!G118<0.5),"-",IFERROR('Tabel 4 S'!G118/'Tabel 4F S'!G118*100,"-")) -> - | I118: =IF(OR('Tabel 4F S'!I118<5,'Tabel 4 S'!I118<0.5),"-",IFERROR('Tabel 4 S'!I118/'Tabel 4F S'!I118*100,"-")) -> 2.978723404
A119: MA. Nat. | C119: =IF(OR('Tabel 4F S'!C119<5,'Tabel 4 S'!C119<0.5),"-",IFERROR('Tabel 4 S'!C119/'Tabel 4F S'!C119*100,"-")) -> 16.66666667 | D119: =IF(OR('Tabel 4F S'!D119<5,'Tabel 4 S'!D119<0.5),"-",IFERROR('Tabel 4 S'!D119/'Tabel 4F S'!D119*100,"-")) -> 3.571428571 | E119: =IF(OR('Tabel 4F S'!E119<5,'Tabel 4 S'!E119<0.5),"-",IFERROR('Tabel 4 S'!E119/'Tabel 4F S'!E119*100,"-")) -> 7.692307692 | F119: =IF(OR('Tabel 4F S'!F119<5,'Tabel 4 S'!F119<0.5),"-",IFERROR('Tabel 4 S'!F119/'Tabel 4F S'!F119*100,"-")) -> 11.76470588 | G119: =IF(OR('Tabel 4F S'!G119<5,'Tabel 4 S'!G119<0.5),"-",IFERROR('Tabel 4 S'!G119/'Tabel 4F S'!G119*100,"-")) -> - | I119: =IF(OR('Tabel 4F S'!I119<5,'Tabel 4 S'!I119<0.5),"-",IFERROR('Tabel 4 S'!I119/'Tabel 4F S'!I119*100,"-")) -> 7.692307692
A120: MA. Ph.d. | C120: =IF(OR('Tabel 4F S'!C120<5,'Tabel 4 S'!C120<0.5),"-",IFERROR('Tabel 4 S'!C120/'Tabel 4F S'!C120*100,"-")) -> - | D120: =IF(OR('Tabel 4F S'!D120<5,'Tabel 4 S'!D120<0.5),"-",IFERROR('Tabel 4 S'!D120/'Tabel 4F S'!D120*100,"-")) -> - | E120: =IF(OR('Tabel 4F S'!E120<5,'Tabel 4 S'!E120<0.5),"-",IFERROR('Tabel 4 S'!E120/'Tabel 4F S'!E120*100,"-")) -> - | F120: =IF(OR('Tabel 4F S'!F120<5,'Tabel 4 S'!F120<0.5),"-",IFERROR('Tabel 4 S'!F120/'Tabel 4F S'!F120*100,"-")) -> - | G120: =IF(OR('Tabel 4F S'!G120<5,'Tabel 4 S'!G120<0.5),"-",IFERROR('Tabel 4 S'!G120/'Tabel 4F S'!G120*100,"-")) -> - | I120: =IF(OR('Tabel 4F S'!I120<5,'Tabel 4 S'!I120<0.5),"-",IFERROR('Tabel 4 S'!I120/'Tabel 4F S'!I120*100,"-")) -> 16.66666667
A121: MA. Samf. | C121: =IF(OR('Tabel 4F S'!C121<5,'Tabel 4 S'!C121<0.5),"-",IFERROR('Tabel 4 S'!C121/'Tabel 4F S'!C121*100,"-")) -> 33.33333333 | D121: =IF(OR('Tabel 4F S'!D121<5,'Tabel 4 S'!D121<0.5),"-",IFERROR('Tabel 4 S'!D121/'Tabel 4F S'!D121*100,"-")) -> - | E121: =IF(OR('Tabel 4F S'!E121<5,'Tabel 4 S'!E121<0.5),"-",IFERROR('Tabel 4 S'!E121/'Tabel 4F S'!E121*100,"-")) -> - | F121: =IF(OR('Tabel 4F S'!F121<5,'Tabel 4 S'!F121<0.5),"-",IFERROR('Tabel 4 S'!F121/'Tabel 4F S'!F121*100,"-")) -> 16.66666667 | G121: =IF(OR('Tabel 4F S'!G121<5,'Tabel 4 S'!G121<0.5),"-",IFERROR('Tabel 4 S'!G121/'Tabel 4F S'!G121*100,"-")) -> - | I121: =IF(OR('Tabel 4F S'!I121<5,'Tabel 4 S'!I121<0.5),"-",IFERROR('Tabel 4 S'!I121/'Tabel 4F S'!I121*100,"-")) -> 7.894736842
A122: Øvrige Mag. | C122: =IF(OR('Tabel 4F S'!C122<5,'Tabel 4 S'!C122<0.5),"-",IFERROR('Tabel 4 S'!C122/'Tabel 4F S'!C122*100,"-")) -> - | D122: =IF(OR('Tabel 4F S'!D122<5,'Tabel 4 S'!D122<0.5),"-",IFERROR('Tabel 4 S'!D122/'Tabel 4F S'!D122*100,"-")) -> - | E122: =IF(OR('Tabel 4F S'!E122<5,'Tabel 4 S'!E122<0.5),"-",IFERROR('Tabel 4 S'!E122/'Tabel 4F S'!E122*100,"-")) -> - | F122: =IF(OR('Tabel 4F S'!F122<5,'Tabel 4 S'!F122<0.5),"-",IFERROR('Tabel 4 S'!F122/'Tabel 4F S'!F122*100,"-")) -> 14.28571429 | G122: =IF(OR('Tabel 4F S'!G122<5,'Tabel 4 S'!G122<0.5),"-",IFERROR('Tabel 4 S'!G122/'Tabel 4F S'!G122*100,"-")) -> - | I122: =IF(OR('Tabel 4F S'!I122<5,'Tabel 4 S'!I122<0.5),"-",IFERROR('Tabel 4 S'!I122/'Tabel 4F S'!I122*100,"-")) -> 4.761904762
A123: Agronom | C123: =IF(OR('Tabel 4F S'!C123<5,'Tabel 4 S'!C123<0.5),"-",IFERROR('Tabel 4 S'!C123/'Tabel 4F S'!C123*100,"-")) -> - | D123: =IF(OR('Tabel 4F S'!D123<5,'Tabel 4 S'!D123<0.5),"-",IFERROR('Tabel 4 S'!D123/'Tabel 4F S'!D123*100,"-")) -> - | E123: =IF(OR('Tabel 4F S'!E123<5,'Tabel 4 S'!E123<0.5),"-",IFERROR('Tabel 4 S'!E123/'Tabel 4F S'!E123*100,"-")) -> - | F123: =IF(OR('Tabel 4F S'!F123<5,'Tabel 4 S'!F123<0.5),"-",IFERROR('Tabel 4 S'!F123/'Tabel 4F S'!F123*100,"-")) -> - | G123: =IF(OR('Tabel 4F S'!G123<5,'Tabel 4 S'!G123<0.5),"-",IFERROR('Tabel 4 S'!G123/'Tabel 4F S'!G123*100,"-")) -> 9.090909091 | I123: =IF(OR('Tabel 4F S'!I123<5,'Tabel 4 S'!I123<0.5),"-",IFERROR('Tabel 4 S'!I123/'Tabel 4F S'!I123*100,"-")) -> 2.941176471
A124: Landsk. Arkt. | C124: =IF(OR('Tabel 4F S'!C124<5,'Tabel 4 S'!C124<0.5),"-",IFERROR('Tabel 4 S'!C124/'Tabel 4F S'!C124*100,"-")) -> - | D124: =IF(OR('Tabel 4F S'!D124<5,'Tabel 4 S'!D124<0.5),"-",IFERROR('Tabel 4 S'!D124/'Tabel 4F S'!D124*100,"-")) -> - | E124: =IF(OR('Tabel 4F S'!E124<5,'Tabel 4 S'!E124<0.5),"-",IFERROR('Tabel 4 S'!E124/'Tabel 4F S'!E124*100,"-")) -> - | F124: =IF(OR('Tabel 4F S'!F124<5,'Tabel 4 S'!F124<0.5),"-",IFERROR('Tabel 4 S'!F124/'Tabel 4F S'!F124*100,"-")) -> - | G124: =IF(OR('Tabel 4F S'!G124<5,'Tabel 4 S'!G124<0.5),"-",IFERROR('Tabel 4 S'!G124/'Tabel 4F S'!G124*100,"-")) -> - | I124: =IF(OR('Tabel 4F S'!I124<5,'Tabel 4 S'!I124<0.5),"-",IFERROR('Tabel 4 S'!I124/'Tabel 4F S'!I124*100,"-")) -> -
A125: Hortonom | C125: =IF(OR('Tabel 4F S'!C125<5,'Tabel 4 S'!C125<0.5),"-",IFERROR('Tabel 4 S'!C125/'Tabel 4F S'!C125*100,"-")) -> - | D125: =IF(OR('Tabel 4F S'!D125<5,'Tabel 4 S'!D125<0.5),"-",IFERROR('Tabel 4 S'!D125/'Tabel 4F S'!D125*100,"-")) -> - | E125: =IF(OR('Tabel 4F S'!E125<5,'Tabel 4 S'!E125<0.5),"-",IFERROR('Tabel 4 S'!E125/'Tabel 4F S'!E125*100,"-")) -> - | F125: =IF(OR('Tabel 4F S'!F125<5,'Tabel 4 S'!F125<0.5),"-",IFERROR('Tabel 4 S'!F125/'Tabel 4F S'!F125*100,"-")) -> - | G125: =IF(OR('Tabel 4F S'!G125<5,'Tabel 4 S'!G125<0.5),"-",IFERROR('Tabel 4 S'!G125/'Tabel 4F S'!G125*100,"-")) -> - | I125: =IF(OR('Tabel 4F S'!I125<5,'Tabel 4 S'!I125<0.5),"-",IFERROR('Tabel 4 S'!I125/'Tabel 4F S'!I125*100,"-")) -> -
A126: Forstkand. | C126: =IF(OR('Tabel 4F S'!C126<5,'Tabel 4 S'!C126<0.5),"-",IFERROR('Tabel 4 S'!C126/'Tabel 4F S'!C126*100,"-")) -> - | D126: =IF(OR('Tabel 4F S'!D126<5,'Tabel 4 S'!D126<0.5),"-",IFERROR('Tabel 4 S'!D126/'Tabel 4F S'!D126*100,"-")) -> - | E126: =IF(OR('Tabel 4F S'!E126<5,'Tabel 4 S'!E126<0.5),"-",IFERROR('Tabel 4 S'!E126/'Tabel 4F S'!E126*100,"-")) -> - | F126: =IF(OR('Tabel 4F S'!F126<5,'Tabel 4 S'!F126<0.5),"-",IFERROR('Tabel 4 S'!F126/'Tabel 4F S'!F126*100,"-")) -> - | G126: =IF(OR('Tabel 4F S'!G126<5,'Tabel 4 S'!G126<0.5),"-",IFERROR('Tabel 4 S'!G126/'Tabel 4F S'!G126*100,"-")) -> - | I126: =IF(OR('Tabel 4F S'!I126<5,'Tabel 4 S'!I126<0.5),"-",IFERROR('Tabel 4 S'!I126/'Tabel 4F S'!I126*100,"-")) -> -
A127: Jordbrugsakad. | C127: =IF(OR('Tabel 4F S'!C127<5,'Tabel 4 S'!C127<0.5),"-",IFERROR('Tabel 4 S'!C127/'Tabel 4F S'!C127*100,"-")) -> - | D127: =IF(OR('Tabel 4F S'!D127<5,'Tabel 4 S'!D127<0.5),"-",IFERROR('Tabel 4 S'!D127/'Tabel 4F S'!D127*100,"-")) -> - | E127: =IF(OR('Tabel 4F S'!E127<5,'Tabel 4 S'!E127<0.5),"-",IFERROR('Tabel 4 S'!E127/'Tabel 4F S'!E127*100,"-")) -> - | F127: =IF(OR('Tabel 4F S'!F127<5,'Tabel 4 S'!F127<0.5),"-",IFERROR('Tabel 4 S'!F127/'Tabel 4F S'!F127*100,"-")) -> - | G127: =IF(OR('Tabel 4F S'!G127<5,'Tabel 4 S'!G127<0.5),"-",IFERROR('Tabel 4 S'!G127/'Tabel 4F S'!G127*100,"-")) -> 6.666666667 | I127: =IF(OR('Tabel 4F S'!I127<5,'Tabel 4 S'!I127<0.5),"-",IFERROR('Tabel 4 S'!I127/'Tabel 4F S'!I127*100,"-")) -> 1.960784314
A128: Mejeriing. | C128: =IF(OR('Tabel 4F S'!C128<5,'Tabel 4 S'!C128<0.5),"-",IFERROR('Tabel 4 S'!C128/'Tabel 4F S'!C128*100,"-")) -> - | D128: =IF(OR('Tabel 4F S'!D128<5,'Tabel 4 S'!D128<0.5),"-",IFERROR('Tabel 4 S'!D128/'Tabel 4F S'!D128*100,"-")) -> - | E128: =IF(OR('Tabel 4F S'!E128<5,'Tabel 4 S'!E128<0.5),"-",IFERROR('Tabel 4 S'!E128/'Tabel 4F S'!E128*100,"-")) -> - | F128: =IF(OR('Tabel 4F S'!F128<5,'Tabel 4 S'!F128<0.5),"-",IFERROR('Tabel 4 S'!F128/'Tabel 4F S'!F128*100,"-")) -> - | G128: =IF(OR('Tabel 4F S'!G128<5,'Tabel 4 S'!G128<0.5),"-",IFERROR('Tabel 4 S'!G128/'Tabel 4F S'!G128*100,"-")) -> - | I128: =IF(OR('Tabel 4F S'!I128<5,'Tabel 4 S'!I128<0.5),"-",IFERROR('Tabel 4 S'!I128/'Tabel 4F S'!I128*100,"-")) -> -
A129: Levn.m.kand. | C129: =IF(OR('Tabel 4F S'!C129<5,'Tabel 4 S'!C129<0.5),"-",IFERROR('Tabel 4 S'!C129/'Tabel 4F S'!C129*100,"-")) -> - | D129: =IF(OR('Tabel 4F S'!D129<5,'Tabel 4 S'!D129<0.5),"-",IFERROR('Tabel 4 S'!D129/'Tabel 4F S'!D129*100,"-")) -> - | E129: =IF(OR('Tabel 4F S'!E129<5,'Tabel 4 S'!E129<0.5),"-",IFERROR('Tabel 4 S'!E129/'Tabel 4F S'!E129*100,"-")) -> - | F129: =IF(OR('Tabel 4F S'!F129<5,'Tabel 4 S'!F129<0.5),"-",IFERROR('Tabel 4 S'!F129/'Tabel 4F S'!F129*100,"-")) -> - | G129: =IF(OR('Tabel 4F S'!G129<5,'Tabel 4 S'!G129<0.5),"-",IFERROR('Tabel 4 S'!G129/'Tabel 4F S'!G129*100,"-")) -> - | I129: =IF(OR('Tabel 4F S'!I129<5,'Tabel 4 S'!I129<0.5),"-",IFERROR('Tabel 4 S'!I129/'Tabel 4F S'!I129*100,"-")) -> 12.5
A130: Dyrlæge | C130: =IF(OR('Tabel 4F S'!C130<5,'Tabel 4 S'!C130<0.5),"-",IFERROR('Tabel 4 S'!C130/'Tabel 4F S'!C130*100,"-")) -> 20 | D130: =IF(OR('Tabel 4F S'!D130<5,'Tabel 4 S'!D130<0.5),"-",IFERROR('Tabel 4 S'!D130/'Tabel 4F S'!D130*100,"-")) -> - | E130: =IF(OR('Tabel 4F S'!E130<5,'Tabel 4 S'!E130<0.5),"-",IFERROR('Tabel 4 S'!E130/'Tabel 4F S'!E130*100,"-")) -> - | F130: =IF(OR('Tabel 4F S'!F130<5,'Tabel 4 S'!F130<0.5),"-",IFERROR('Tabel 4 S'!F130/'Tabel 4F S'!F130*100,"-")) -> - | G130: =IF(OR('Tabel 4F S'!G130<5,'Tabel 4 S'!G130<0.5),"-",IFERROR('Tabel 4 S'!G130/'Tabel 4F S'!G130*100,"-")) -> - | I130: =IF(OR('Tabel 4F S'!I130<5,'Tabel 4 S'!I130<0.5),"-",IFERROR('Tabel 4 S'!I130/'Tabel 4F S'!I130*100,"-")) -> 2.702702703
A131: Farmaceut | C131: =IF(OR('Tabel 4F S'!C131<5,'Tabel 4 S'!C131<0.5),"-",IFERROR('Tabel 4 S'!C131/'Tabel 4F S'!C131*100,"-")) -> - | D131: =IF(OR('Tabel 4F S'!D131<5,'Tabel 4 S'!D131<0.5),"-",IFERROR('Tabel 4 S'!D131/'Tabel 4F S'!D131*100,"-")) -> - | E131: =IF(OR('Tabel 4F S'!E131<5,'Tabel 4 S'!E131<0.5),"-",IFERROR('Tabel 4 S'!E131/'Tabel 4F S'!E131*100,"-")) -> - | F131: =IF(OR('Tabel 4F S'!F131<5,'Tabel 4 S'!F131<0.5),"-",IFERROR('Tabel 4 S'!F131/'Tabel 4F S'!F131*100,"-")) -> - | G131: =IF(OR('Tabel 4F S'!G131<5,'Tabel 4 S'!G131<0.5),"-",IFERROR('Tabel 4 S'!G131/'Tabel 4F S'!G131*100,"-")) -> - | I131: =IF(OR('Tabel 4F S'!I131<5,'Tabel 4 S'!I131<0.5),"-",IFERROR('Tabel 4 S'!I131/'Tabel 4F S'!I131*100,"-")) -> -
A132: Læge | C132: =IF(OR('Tabel 4F S'!C132<5,'Tabel 4 S'!C132<0.5),"-",IFERROR('Tabel 4 S'!C132/'Tabel 4F S'!C132*100,"-")) -> - | D132: =IF(OR('Tabel 4F S'!D132<5,'Tabel 4 S'!D132<0.5),"-",IFERROR('Tabel 4 S'!D132/'Tabel 4F S'!D132*100,"-")) -> - | E132: =IF(OR('Tabel 4F S'!E132<5,'Tabel 4 S'!E132<0.5),"-",IFERROR('Tabel 4 S'!E132/'Tabel 4F S'!E132*100,"-")) -> - | F132: =IF(OR('Tabel 4F S'!F132<5,'Tabel 4 S'!F132<0.5),"-",IFERROR('Tabel 4 S'!F132/'Tabel 4F S'!F132*100,"-")) -> - | G132: =IF(OR('Tabel 4F S'!G132<5,'Tabel 4 S'!G132<0.5),"-",IFERROR('Tabel 4 S'!G132/'Tabel 4F S'!G132*100,"-")) -> - | I132: =IF(OR('Tabel 4F S'!I132<5,'Tabel 4 S'!I132<0.5),"-",IFERROR('Tabel 4 S'!I132/'Tabel 4F S'!I132*100,"-")) -> -
A133: Tandlæge | C133: =IF(OR('Tabel 4F S'!C133<5,'Tabel 4 S'!C133<0.5),"-",IFERROR('Tabel 4 S'!C133/'Tabel 4F S'!C133*100,"-")) -> - | D133: =IF(OR('Tabel 4F S'!D133<5,'Tabel 4 S'!D133<0.5),"-",IFERROR('Tabel 4 S'!D133/'Tabel 4F S'!D133*100,"-")) -> - | E133: =IF(OR('Tabel 4F S'!E133<5,'Tabel 4 S'!E133<0.5),"-",IFERROR('Tabel 4 S'!E133/'Tabel 4F S'!E133*100,"-")) -> - | F133: =IF(OR('Tabel 4F S'!F133<5,'Tabel 4 S'!F133<0.5),"-",IFERROR('Tabel 4 S'!F133/'Tabel 4F S'!F133*100,"-")) -> - | G133: =IF(OR('Tabel 4F S'!G133<5,'Tabel 4 S'!G133<0.5),"-",IFERROR('Tabel 4 S'!G133/'Tabel 4F S'!G133*100,"-")) -> - | I133: =IF(OR('Tabel 4F S'!I133<5,'Tabel 4 S'!I133<0.5),"-",IFERROR('Tabel 4 S'!I133/'Tabel 4F S'!I133*100,"-")) -> -
A134: Arkitekt | C134: =IF(OR('Tabel 4F S'!C134<5,'Tabel 4 S'!C134<0.5),"-",IFERROR('Tabel 4 S'!C134/'Tabel 4F S'!C134*100,"-")) -> - | D134: =IF(OR('Tabel 4F S'!D134<5,'Tabel 4 S'!D134<0.5),"-",IFERROR('Tabel 4 S'!D134/'Tabel 4F S'!D134*100,"-")) -> - | E134: =IF(OR('Tabel 4F S'!E134<5,'Tabel 4 S'!E134<0.5),"-",IFERROR('Tabel 4 S'!E134/'Tabel 4F S'!E134*100,"-")) -> - | F134: =IF(OR('Tabel 4F S'!F134<5,'Tabel 4 S'!F134<0.5),"-",IFERROR('Tabel 4 S'!F134/'Tabel 4F S'!F134*100,"-")) -> - | G134: =IF(OR('Tabel 4F S'!G134<5,'Tabel 4 S'!G134<0.5),"-",IFERROR('Tabel 4 S'!G134/'Tabel 4F S'!G134*100,"-")) -> - | I134: =IF(OR('Tabel 4F S'!I134<5,'Tabel 4 S'!I134<0.5),"-",IFERROR('Tabel 4 S'!I134/'Tabel 4F S'!I134*100,"-")) -> -
A135: Landinspek. | C135: =IF(OR('Tabel 4F S'!C135<5,'Tabel 4 S'!C135<0.5),"-",IFERROR('Tabel 4 S'!C135/'Tabel 4F S'!C135*100,"-")) -> - | D135: =IF(OR('Tabel 4F S'!D135<5,'Tabel 4 S'!D135<0.5),"-",IFERROR('Tabel 4 S'!D135/'Tabel 4F S'!D135*100,"-")) -> - | E135: =IF(OR('Tabel 4F S'!E135<5,'Tabel 4 S'!E135<0.5),"-",IFERROR('Tabel 4 S'!E135/'Tabel 4F S'!E135*100,"-")) -> - | F135: =IF(OR('Tabel 4F S'!F135<5,'Tabel 4 S'!F135<0.5),"-",IFERROR('Tabel 4 S'!F135/'Tabel 4F S'!F135*100,"-")) -> - | G135: =IF(OR('Tabel 4F S'!G135<5,'Tabel 4 S'!G135<0.5),"-",IFERROR('Tabel 4 S'!G135/'Tabel 4F S'!G135*100,"-")) -> - | I135: =IF(OR('Tabel 4F S'!I135<5,'Tabel 4 S'!I135<0.5),"-",IFERROR('Tabel 4 S'!I135/'Tabel 4F S'!I135*100,"-")) -> -
A136: Bibliotekar | C136: =IF(OR('Tabel 4F S'!C136<5,'Tabel 4 S'!C136<0.5),"-",IFERROR('Tabel 4 S'!C136/'Tabel 4F S'!C136*100,"-")) -> - | D136: =IF(OR('Tabel 4F S'!D136<5,'Tabel 4 S'!D136<0.5),"-",IFERROR('Tabel 4 S'!D136/'Tabel 4F S'!D136*100,"-")) -> - | E136: =IF(OR('Tabel 4F S'!E136<5,'Tabel 4 S'!E136<0.5),"-",IFERROR('Tabel 4 S'!E136/'Tabel 4F S'!E136*100,"-")) -> 16.66666667 | F136: =IF(OR('Tabel 4F S'!F136<5,'Tabel 4 S'!F136<0.5),"-",IFERROR('Tabel 4 S'!F136/'Tabel 4F S'!F136*100,"-")) -> - | G136: =IF(OR('Tabel 4F S'!G136<5,'Tabel 4 S'!G136<0.5),"-",IFERROR('Tabel 4 S'!G136/'Tabel 4F S'!G136*100,"-")) -> 12.5 | I136: =IF(OR('Tabel 4F S'!I136<5,'Tabel 4 S'!I136<0.5),"-",IFERROR('Tabel 4 S'!I136/'Tabel 4F S'!I136*100,"-")) -> 6.896551724
A137: Musikudd. | C137: =IF(OR('Tabel 4F S'!C137<5,'Tabel 4 S'!C137<0.5),"-",IFERROR('Tabel 4 S'!C137/'Tabel 4F S'!C137*100,"-")) -> - | D137: =IF(OR('Tabel 4F S'!D137<5,'Tabel 4 S'!D137<0.5),"-",IFERROR('Tabel 4 S'!D137/'Tabel 4F S'!D137*100,"-")) -> - | E137: =IF(OR('Tabel 4F S'!E137<5,'Tabel 4 S'!E137<0.5),"-",IFERROR('Tabel 4 S'!E137/'Tabel 4F S'!E137*100,"-")) -> - | F137: =IF(OR('Tabel 4F S'!F137<5,'Tabel 4 S'!F137<0.5),"-",IFERROR('Tabel 4 S'!F137/'Tabel 4F S'!F137*100,"-")) -> - | G137: =IF(OR('Tabel 4F S'!G137<5,'Tabel 4 S'!G137<0.5),"-",IFERROR('Tabel 4 S'!G137/'Tabel 4F S'!G137*100,"-")) -> - | I137: =IF(OR('Tabel 4F S'!I137<5,'Tabel 4 S'!I137<0.5),"-",IFERROR('Tabel 4 S'!I137/'Tabel 4F S'!I137*100,"-")) -> -
